{"text_format":"1","workbook":"xlsx","n_sheets":10,"sheets":["Instructions","Project Summary","Trail","Road","Parcel","log","Lookup","BMP Modeling","BMP Sizing","Infeasibility Criteria"],"not_rendered":{"charts":0,"images":2,"macros":1,"external_links":0,"defined_names":428,"comments":0,"pivot_tables":0},"unopened":[],"bounds":{"document_bytes":16777216,"sheet_cells":100000,"rows_first":2000,"rows_last":500,"rows_between":2000,"halvings":0,"cell_chars":16384,"cell_head_chars":4096},"cells_cut":0,"cells_raw":0,"read":"whole","date_system":"1900"}

{"sheet":"Instructions","index":0,"n_rows":165,"n_cols":6,"rows_kept":165,"cut":false,"hidden":false,"merged":[[0,0,0,41],[7,0,7,41],[1,0,1,41],[4,0,4,41],[5,0,5,41]]}
["On-site Stormwater Management Calculator"]
["Instructions"]
["Version 05-22-2026"]
[]
["To use the On-Site Stormwater Calculator you must select \"Enable Content\" when the Security Warning appears."]
["Note this calculator is designed to work with Microsoft Excel 2010 or newer."]
["Introduction"]
["This spreadsheet tool helps users implement the On-site Stormwater Management requirements for projects in the "]
["City of Seattle.  In addition, this spreadsheet documents the other applicable Stormwater Code requirements for projects"]
["and provides a Site and Drainage Control Summary. Instructions for evaluating, selecting, and sizing on-site best"]
["management practices (BMPs) are provided below."]
[]
["Note: all projects that require Drainage Review by SDCI must include a Site and Drainage Control Summary Sheet on the"]
["Drainage and Wastewater Control Plan. "]
[]
["Refer to Volume 1, Volume 3 (Section 3.3 and Chapter 5), and Appendix C of the Seattle Stormwater Manual (Seattle 2026) for"]
["On-site Stormwater Management requirements, BMP design requirements and infeasibility criteria."]
[]
["The \"Project Summary\" and either the \"BMP Sizing\" or \"BMP Modeling\" tabs can be used to provide documentation for"]
["compliance with the On-site List requirement."]
[]
["How to Use the On-site List Approach Calculator:"]
[null,"Note: The On-site List Approach is the most commonly used method.  Refer to instructions at the bottom of this page if"]
[null,"the On-site Performance Standard will be used."]
[null,"Project Summary Tab:"]
[null,"A. Fill in the light green cells in the \"Project Summary\" tab."]
[]
[null,null,"Step 1: Determine if Dispersion and Infiltration are Feasible"]
[null,null,null,"Refer to Section 3.1 and Section 3.2 in Volume 3 of the Seattle Stormwater Manual (Seattle 2026). "]
[]
[null,null,"Step 2: Calculate Areas by Surface Type"]
[null,null,null,"Divide the project area into hard surface areas with distinct drainage pathways and conduct a BMP evaluation "]
[null,null,null,"for each surface \"sub area\". Refer to Figure 1 below for an example. Enter roof and non-roof areas and number "]
[null,null,null,"of areas into \"Project Summary\" tab and hit Enter. Excel tabs will be generated for each individual surface."]
[null,null,null,"Note: Do not create a surface tab for Permeable Pavement Facilities (PPF). PPFs are the only hard surface that"]
[null,null,null,"will not have a surface tab. Enter the PPF area on the BMP Sizing tab."]
[]
[null,null,"Step 3: Select the On-site List Approach (Pre-sized Approach) Calculator option"]
[null,null,null,"Check the box for the “On-site List Approach (Pre-sized Approach) Calculator” on the Summary Tab."]
[]
[null,null,null,"The On-site Lists that indicate the BMPs that must be evaluated and the order in which they must be evaluated "]
[null,null,null,"are provided in Volume 1, Section 5.2 for all project type(s). The applicable on-site BMPs are provided in"]
[null,null,null,"this calculator in the \"Surface\" tabs based on information entered in the \"Project Summary\" tab."]
[]
[]
[]
[]
[]
[]
[]
[]
[]
[]
[]
[]
[]
[]
[]
[]
[null,"Figure 1. Example Delineation of Hard Surface Areas with Distinct Drainage Pathways for a Parcel or Residential Project."]
[]
[]
[]
[]
[]
[]
[]
[]
[]
[]
[]
[]
[]
[]
[]
[]
[]
[null,"Figure 2. Example Delineation of Hard Surface Areas for Trail and Sidewalk Projects."]
[]
[null,"Surface Tab(s):"]
[null,null,"Step 4: Evaluate BMPs by Category"]
[null,null,null,"On each \"Surface\" tab, select \"Infeasible\", \"Not evaluated\", or \"Use BMP\" for each category. Note: BMPs in each"]
[null,null,null,"category may be evaluated in any order. (See detailed information in Steps 5 through 10)."]
[]
[null,null,"Step 5: Evaluate Feasibility of Category 1 BMPs"]
[null,null,null,"Determine feasibility of the BMP(s) in Category 1. The BMP is considered infeasible if one of the following applies:"]
[null,null,null,null,"-The BMP is considered infeasible per the criteria provided in the “Infeasibility Criteria” tab."]
[null,null,null,null,"-Competing needs (e.g., historic preservation laws, health and safety standards) as provided in"]
[null,null,null,null,null,"Seattle Municipal Code (SMC), Section 22.805.070 conflict with the BMP."]
[null,null,null,null,"-The size of the BMP in the \"Surface\" tab(s) (generated based on \"Project Summary\" tab inputs)"]
[null,null,null,null,"cannot be met on the site."]
[]
[null,null,"Step 6: Select Category 1 BMP(s)"]
[null,null,null,"If any of the Category 1 BMPs are feasible for a surface, then a Category 1 BMP must be used to manage"]
[null,null,null,"runoff from the surface. Identify the BMP selected for the surface area by selecting \"Use BMP\" from"]
[null,null,null,"the drop down menu. After BMP(s) are selected, the calculator will size the BMP for the surface area"]
[null,null,null,"based on the facility information (e.g., ponding depth) entered in the \"BMP Sizing\" tab."]
[null,null,null,"Note: Facility sizes provided in this tool are the minimum size required. Facilities can be made larger to "]
[null,null,null,"meet additional requirements (i.e., flow control and/or water quality treatment standards)."]
[]
[null,null,"Step 7: Document Infeasibility of Category 1 BMPs (if applicable)"]
[null,null,null,"If all the Category 1 BMPs are deemed infeasible, select \"Infeasible\" and the applicable \"infeasibility criteria\" "]
[null,null,null,"from the drop down menus and proceed to Step 8. If needed for clarity, the applicant shall provide a narrative"]
[null,null,null,"description and rationale with substantial evidence sufficient to explain and justify the applicant's conclusion "]
[null,null,null,"that On-site BMPs are infeasible."]
[]
[null,null,"Step 8: Evaluate/Select Category 2 BMPs"]
[null,null,null,"If all of the Category 1 BMPs are deemed infeasible, evaluate the On-site BMPs in Category 2 using the same approach "]
[null,null,null,"described in Steps 5 through 7. Once you move to Category 2, you can select any BMP within that Category."]
[]
[null,null,"Step 9: Evaluate/Select Category 3 BMPs"]
[null,null,null,"If all of the Category 2 BMPs are deemed infeasible, evaluate the On-site BMPs in Category 3 using the same approach "]
[null,null,null,"described in Steps 5 through 7. Once you move to Category 3, you can select any BMP within that Category."]
[]
[null,null,"Step 10: Evaluate/Select Category 4 BMPs"]
[null,null,null,"If all of the Category 3 BMPs are deemed infeasible, evaluate the On-site BMPs in Category 4 using the same approach "]
[null,null,null,"described in Steps 5 through 7."]
[]
[null,null,"Step 11: Evaluate/Select Category 5 BMPs (if applicable)"]
[null,null,null,"If all of the Category 4 BMPs are deemed infeasible, evaluate the On-site BMPs in Category 5 using the same approach "]
[null,null,null,"described in Steps 5 through 7."]
[]
[null,"BMP Sizing Tab:"]
[null,"B. Once a \"Surface\" tab is completed for each surface, complete the information on the \"BMP Sizing\" tab "]
[]
[null,null,null,"For each surface, select the BMP that the surface drains to. If more than one surface drains to the same BMP,"]
[null,null,null,"indicate with the same BMP number. The appropriate sizing will be provided for each BMP based on the area"]
[null,null,null,"of the surfaces draining to it. For BMPs with multiple design parameters (i.e., ponding depth, side slopes),"]
[null,null,null,"select the design parameters that will be applied to the project."]
[]
[null,"Project Summary Tab:"]
[null,"C. The \"Project Summary\" tab summarizes the selected BMPs and BMP sizes by surface."]
[]
["How to Use this Spreadsheet for the On-site Performance Standard"]
[null,"Project Summary Tab:"]
[null,"A. Fill in the light green cells in the \"Project Summary\" tab."]
[]
[null,null,"Step 1: Determine if Dispersion and Infiltration are Feasible"]
[null,null,null,"Refer to Section 3.1 and Section 3.2 in Volume 3 of the Seattle Stormwater Manual (Seattle 2026)."]
[]
[null,null,"Step 2: Select the On-site Performance Standard Option"]
[null,null,null,"Check the box for the “On-site Performance Standard” on the Summary Tab."]
[]
[null,null,null,"When using the Performance Standard, any BMP from the Stormwater Manual may be selected in any order (i.e. the "]
[null,null,null,"On-site Lists are not required to be used)."]
[]
[null,null,"Step 3: Conduct Stormwater Modeling Using an Approved Continuous Runoff Model"]
[null,null,null,"Determine which On-site Stormwater Performance goal from Volume 1, Section 5.2.1 is applicable to your project "]
[null,null,null,"and use an approved continuous runoff model to demonstrate that this standard is met. See On-site Performance"]
[null,null,null,"Standard BMP Design in Appendix F, Section F-4 of the Seattle Stormwater Manual (Seattle 2026)."]
[]
[null,null,null,"Submit the calculations and a narrative describing the calculations in a Drainage Report."]
[]
[null,null,"Step 4: Calculate Areas Tributary to Each BMP"]
[null,null,null,"Divide the hard surface areas of the project into surfaces that are managed with each BMP selected using the "]
[null,null,null,"continuous runoff modeling indicated above. If some hard surfaces bypass all BMPs, designate a surface for"]
[null,null,null,"these areas to be identified as a “bypass area”."]
[]
[null,null,null,"Enter the number of separate roof and non-roof areas into \"Project Summary\" tab and hit Enter.  Instead of creating "]
[null,null,null,"separate surface tabs, the Performance Standard mode will create user inputs for each “surface” in the BMP"]
[null,null,null,"Modeling Tab."]
[]
[null,null,"Step 5: Document the BMP’s Used in the BMP Modeling Tab"]
[null,null,null,"Complete the green input fields in the BMP Modeling Tab to identify which BMP manages each “surface”.  Verify that"]
[null,null,null,"the summary of these BMPs correctly shows on the Summary tab."]

{"sheet":"Project Summary","index":1,"n_rows":84,"n_cols":56,"rows_kept":84,"cut":false,"hidden":false,"merged":[[19,18,19,21],[78,1,78,3],[78,4,78,9],[76,4,76,9],[50,36,50,39],[32,1,32,40],[40,19,40,40],[61,16,61,19],[76,1,76,3],[72,20,75,41],[46,20,46,23],[53,36,53,39],[50,24,51,35],[53,24,54,35],[78,10,78,20],[78,32,78,40],[29,18,29,21],[78,26,78,31],[56,36,56,39],[76,32,76,40],[0,0,0,41],[1,0,1,41],[7,7,7,19],[5,7,5,19],[9,7,9,19],[7,32,7,40],[5,32,5,40],[9,32,9,40],[3,0,3,41],[15,35,15,40],[21,18,21,21],[23,18,23,21],[19,36,19,39],[17,22,17,25],[19,25,23,35],[25,36,25,39],[25,25,29,35],[83,23,83,40],[72,16,72,19],[76,10,76,20],[76,26,76,31],[76,22,76,25],[74,16,74,19],[82,37,82,39],[82,14,82,19],[80,34,80,39],[80,14,80,19],[78,22,78,25],[13,32,13,40],[38,30,38,33],[27,18,27,21],[63,14,63,15],[53,18,53,21],[50,18,50,21],[63,32,63,34],[59,26,59,40],[61,24,61,40],[34,16,34,40],[36,16,36,40],[31,6,31,24],[56,21,56,24],[59,16,59,19],[63,29,63,30],[25,18,25,21]]}
["On-site Stormwater Management Calculator "]
["Site and Drainage Control Summary"]
[{"$f":"Version","v":"Version 05-22-2026"}]
["To use the On-Site List Calculator you must select \"Enable Content\" when the Security Warning appears."]
["Project Information",null,null,null,null,null,null,null,null,null,null,null,null,null,null,null,null,null,null,null,null,null,null,null,null,null,null,null,null,null,null,null,null,null,null,null,null,null,null,null,null,null,null,"Hidden Column"]
[null,"Site Address",null,null,null,null,null,null,null,null,null,null,null,null,null,null,null,null,null,null,null,"SDCI Project Number"]
[]
[null,"Primary Contact",null,null,null,null,null,null,null,null,null,null,null,null,null,null,null,null,null,null,null,"SDOT Project Number",null,null,null,null,null,null,null,null,null,null,null,null,null,null,null,null,null,null,null,null,null,"Type","Old"]
[]
[null,"Project Type",null,null,null,null,null,null,null,null,null,null,null,null,null,null,null,null,null,null,null,"Primary Contact E-mail or Phone",null,null,null,null,null,null,null,null,null,null,null,null,null,null,null,null,null,null,null,null,null,{"$f":"IFERROR(INDEX(Lookup!$L$2:$L$8,MATCH($H$10,Project,0)),\"\")","v":""}]
[]
[null,"Is this project part of a Common Plan of Development or Sale or \"Closely-related\" to other SDCI permits/projects?"]
[]
[null,"Common Plan of Development or Sale and Closely-Related SDCI Construction Permit Numbers"]
[]
[null,"Is this project associated with a Short Plat or Subdivision?",null,null,null,null,null,null,null,null,null,null,null,null,null,null,null,null,null,null,null,null,"Yes",null,null,"No",null,null,"SDCI MUP Number"]
[]
[null,"Was the project lot created or altered in size after Jan 1, 2016? ",null,null,null,null,null,null,null,null,null,null,null,null,null,null,null,null,null,null,null,null,null,null,null,null,null,null,null,null,null,null,null,null,null,null,null,null,null,null,null,null,null,"Engineer Required",{"$f":"OR(S22>5000,S51>5000,AS69,AND(Q60=\"Yes\",NOT(AA60=\"Simple infiltration test\")),Q35=\"On Site Infiltration (No Off-site Point of Discharge)\")","v":false},{"$f":"IF(AS69,\"Submit Continuous Runoff Model in a Drainage Report to demonstrate On-site Performance Standard (Vol. 1, Section 5.2.1) is met.\",IF(AND(OR(AR10=Road,AR10=Trail),S22>=2000),\"On-site Stormwater Management is required for ≥ 2,000 sf of new plus replaced area.\",IF(AND(OR(AR10=Parcel,AR10=Res),W18=\"Yes\",OR(S22>=750,AND(AU32=1,AK26>750))),\"On-site Stormater Management is required for ≥ 750 sf of new plus replaced area.\",IF(AND(OR(AR10=Parcel,AR10=Res),OR(W18=\"No\",W18=\"\"),OR(S22>=1500,AND(AU32=1,AK26>=1500))),\"On-site Stormwater Management required for ≥ 1,500 sf of new plus replaced area.\",\"On-site Stormwater Management is not required.\"))))","v":"On-site Stormwater Management is not required."}]
[]
[null,"Total Site Area",null,null,null,null,null,null,null,null,null,null,null,null,null,null,null,null,null,null,null,null,"sf","´",{"$f":"IF(OR(AU32=1,AU33=1),\"\u008e\",\"\")","v":""},"Total Common Plan/Closely Related and/or Short Plat/Subdivision Site Area",null,null,null,null,null,null,null,null,null,null,null,null,null,null,"sf","´",null,"On-site Required",{"$f":"AT18<>\"On-site Stormwater Management is not required.\"","v":false}]
[]
[null,"Total New plus Replaced Hard Surface Area (NPRHS)",null,null,null,null,null,null,null,null,null,null,null,null,null,null,null,null,null,null,null,null,"sf","´",{"$f":"IF(OR(AU32=1,AU33=1),\"\u008e\",\"\")","v":""}]
[]
[null,"Total New and/or Replaced Lawn/Landscaping",null,null,null,null,null,null,null,null,null,null,null,null,null,null,null,null,null,null,null,null,"sf","´"]
[]
[null,"Undisturbed and Protected Site Area",null,null,null,null,null,null,null,null,null,null,null,null,null,null,null,null,null,null,null,null,"sf","´",null,"Total Common Plan/Closely Related and/or Short Plat/Subdivision NPRHS",null,null,null,null,null,null,null,null,null,null,null,null,null,null,"sf","´"]
[]
[null,"Total Existing Hard Surface Area To Remain",null,null,null,null,null,null,null,null,null,null,null,null,null,null,null,null,null,null,null,null,"sf","´"]
[]
[null,"Total Existing Hard Surface Area (Prior to Project)",null,null,null,null,null,null,null,null,null,null,null,null,null,null,null,null,null,null,null,null,"sf","´",null,null,null,null,null,null,null,null,null,null,null,null,null,null,null,null,null,null,null,null,null,null,"check boxes"]
[]
["Site Information",null,null,null,null,null,{"$f":"IF(AND(AR10=Res,S22>=5000),\"For ≥5,000 sf of NPRHS the project is a Parcel Based project.\",\"\")","v":""},null,null,null,null,null,null,null,null,null,null,null,null,null,null,null,null,null,null,null,null,null,null,null,null,null,null,null,null,null,null,null,null,null,null,null,null,null,null,null,null,"Closely related"]
[null,"Note: Reference the Water, Drainage, and Wastewater Availability Certificate (WAC) or Preliminary Assessment Report (PAR) to complete this section.",null,null,null,null,null,null,null,null,null,null,null,null,null,null,null,null,null,null,null,null,null,null,null,null,null,null,null,null,null,null,null,null,null,null,null,null,null,null,null,null,null,null,null,null,null,"Short Plat or Subdivision?"]
[]
[null,"Approved Point of Stormwater Discharge",null,null,null,null,null,null,null,null,null,null,null,null,null,null,null,null,null,null,null,null,null,null,null,null,null,null,null,null,null,null,null,null,null,null,null,null,null,null,null,null,null,null,null,null,null,"Pre-Developed Pasture Standard"]
[]
[null,null,null,"Drainage Basin",null,null,null,null,null,null,null,null,null,null,null,null,null,null,null,null,null,null,null,null,null,null,null,null,null,null,null,null,null,null,null,null,null,null,null,null,null,null,null,"Drainage Basin Category",{"$f":"IFERROR(INDEX(Lookup!$K$2:$K$19,MATCH(CONCATENATE(Q37,AE39),Lookup!$J$2:$J$19,0)),1)","v":1},null,null,"Peak Control Standard"]
[]
[null,null,null,"Is the downstream drainage system considered Capacity Constrained by SPU?",null,null,null,null,null,null,null,null,null,null,null,null,null,null,null,null,null,null,null,null,null,null,null,null,null,null,null,null,null,null,null,null,null,null,null,null,null,null,null,null,null,null,null,"Pre-Developed Forest Standard"]
[]
[null,"Approved Foundation Drainage Point of Discharge",null,null,null,null,null,null,null,null,null,null,null,null,null,null,null,null,null,null,null,null,null,null,null,null,null,null,null,null,null,null,null,null,null,null,null,null,null,null,null,null,null,null,null,null,null,"Wetland Protection Standard"]
[]
[null,"Required Flow Control Standard",null,null,null,null,null,null,null,null,null,null,null,"Pre-Developed Pasture",null,null,null,null,null,null,null,null,null,null,"Pre-Developed Forest",null,null,null,null,null,null,null,null,null,null,null,"Peak Control",null,null,null,null,null,null,null,null,null,null,"Existing Conditions Standard"]
[]
[null,null,null,null,null,null,null,null,null,null,null,null,null,"Wetland Protection",null,null,null,null,null,null,null,null,null,null,"Existing Conditions",null,null,null,null,null,null,null,null,null,null,null,"None",null,null,null,null,null,null,"Flow Control Required",{"$f":"IFERROR(OR(AU35:AU43),FALSE)","v":false},null,null,"None"]
[]
[null,"Project will permanently discharge groundwater?",null,null,null,null,null,null,null,null,null,null,null,null,null,null,null,null,"´",null,null,null,null,null,null,null,null,null,null,null,null,null,null,null,null,null,null,null,null,null,null,null,null,"Water Quality",{"$f":"IFERROR(OR(AU46:AU53),FALSE)","v":false},null,null,"oil control"]
[]
[null,"Required Water Quality Treatment Standard",null,null,null,null,null,null,null,null,null,null,null,null,null,null,"´",null,"Oil Control",null,null,null,null,null,"Metals",null,null,null,"Basic",null,null,null,"Phosphorus",null,null,null,null,null,"None",null,null,null,null,"Dispersion Infeasible",false,null,null,"metals"]
[]
[null,"Total Pollution Generating Hard Surface Area",null,null,null,null,null,null,null,null,null,null,null,null,null,null,null,"´",null,null,null,null,"sf",{"$f":"IF(OR(AU32=1,AU33=1),\"\u008e\",\"\")","v":""},"w/ Common Plan/Closely-Related and/or Short Plat/Subdivsion",null,null,null,null,null,null,null,null,null,null,null,null,null,null,null,"sf","´",null,"Infiltration Infeasible",{"$f":"Q62=\"No\"","v":false},null,null,"basic"]
[null,null,null,null,null,null,null,null,null,null,null,null,null,null,null,null,null,null,null,null,null,null,null,null,null,null,null,null,null,null,null,null,null,null,null,null,null,null,null,null,null,null,null,null,null,null,null,"phosphorus"]
[]
[null,"Total Pollution Generating Pervious Surface Area",null,null,null,null,null,null,null,null,null,null,null,null,null,null,null,"´",null,null,null,null,"sf",{"$f":"IF(OR(AU32=1,AU33=1),\"\u008e\",\"\")","v":""},"w/ Common Plan/Closely-Related and/or Short Plat/Subdivsion",null,null,null,null,null,null,null,null,null,null,null,null,null,null,null,"sf","´",null,"Infiltrating Area",{"$f":"SUMIF(BD79:BD83,TRUE,W79:W79)","v":0},null,null,"none"]
[]
[]
[null,"Is there soil and/or groundwater contamination on this site?",null,null,null,null,null,null,null,null,null,null,null,null,null,null,null,null,null,null,null,null,null,null,null,null,null,"Source Control is required",null,null,null,null,null,null,null,null,null,null,null,null,null,"´"]
[]
["Infiltration Information",null,null,null,null,null,null,null,null,{"$f":"IF(AND(NOT(AS20),Q35=Lookup!V10),\"Infiltration evaluation is required for projects with No Off-site Point of Discharge\",\"\")","v":""}]
[null,"Is infiltration investigation required?",null,null,null,null,null,null,null,null,null,null,null,null,null,null,null,null,null,null,null,{"$f":"IF(Q60=\"\",\"\",IF(Q60=\"No\",\"Why?\",\"Type of test:\"))","v":""},null,null,null,null,null,null,null,null,null,null,null,null,null,null,null,null,null,null,null,null,null,"Infiltration Exploration or Mapped",{"$f":"OR(Q60=\"Yes\",AND(Q60=\"No\",AA60=\"Site is mapped as \"\"infltr. investigation not required\"\"\"))","v":false}]
[]
[null,null,null,"Is infiltration on the site feasible?",null,null,null,null,null,null,null,null,null,null,null,null,null,null,null,null,null,{"$f":"IF(Q62=\"No\",\"Why?\",IF(AND(Q60=\"No\",AA60=\"Other\"),\"Explain:\",\"\"))","v":""},null,null,null,null,null,null,null,null,null,null,null,null,null,null,null,null,null,null,null,null,null,"Measured Infiltration Rate ",{"$f":"O64","v":0}]
[]
[null,null,null,"Site Measured Infiltration Rate ",null,null,null,null,null,null,null,null,null,null,null,null,"x","Infiltration Rate Correction Factor ",null,null,null,null,null,null,null,null,null,null,null,null,null,"=",{"$f":"AD64*O64","v":0},null,null,"Site Design Inf Rate",null,null,null,null,null,null,null,"Infiltration Rate (in/hr)",{"$f":"IF(Q62=\"No\",0,AG64)","v":0}]
[]
["On-site Stormwater Management (select List Approach or Performance Standard)",null,null,null,null,null,null,null,null,null,null,null,null,null,null,null,null,null,null,null,null,null,null,null,null,null,null,"´",{"$f":"IF(AND(NOT(AS20),Q35<>Lookup!V10,ProjectTypeCell<>\"\",totalnewreplacedarea<>\"\"),\"OSM not required, leave this section blank\",\"\")","v":""}]
[null,null,null,"On-site List Approach (Pre-sized) Calculator -- Complete the Surface tabs and BMP Sizing tabs   (Most commonly used)",null,null,null,null,null,null,null,null,null,null,null,null,null,null,null,null,null,null,null,null,null,null,null,null,null,null,null,null,null,null,null,null,null,null,null,null,null,null,null,"List Apporach",true,"Toggle"]
[]
[null,null,null,"On-site Performance Standard -- Stormwater modeling by Civil Engineer",null,null,null,null,null,null,null,null,null,null,null,null,null,null,null,null,null,null,null,null,null,null,null,"´",null,null,null,null,null,null,null,null,null,null,null,null,null,null,null,"Performance Standard",false,1]
[]
[null,null,null,"Small Projects with No Off-site Point of Discharge",null,null,null,null,null,null,null,null,null,null,null,null,null,null,null,null,"´",null,null,null,null,null,null,null,null,null,null,null,null,null,null,null,null,null,null,null,null,null,null,"Areas","Sheets","Old "]
[]
[null,"Number of roof areas",null,null,null,null,null,null,null,null,null,null,null,null,null,null,0,null,null,null,{"$f":"IF(AS69,\"\",IF(SUM(W79:Z79)>0,IF(ROUND(SUM(W79:Z79)+SUMIF($AT$78:$AT$83,\"Permeable Pavement Facility\",$BB$78:$BB$83),0)>ROUND(S22,0),\"Note total area entered on surface tabs (plus permeable pavement facility area) exceeds the total new plus replaced hard surface area entered above.\",IF(ROUND(SUM(W79:Z79)+SUMIF($AT$78:$AT$83,\"Permeable Pavement Facility\",$BB$78:$BB$83),0)<ROUND(S22,0),\"Note total area entered on surface tabs (plus permeable pavement facility area) does not match total new plus replaced hard surface area entered above.\",\"\")),IF(SUM(Q73:T75)=0,\"Enter number of surface areas and hit Enter\",\"\")))","v":"Enter number of surface areas and hit Enter"},null,null,null,null,null,null,null,null,null,null,null,null,null,null,null,null,null,null,null,null,null,null,{"$f":"SUM(Q73,Q75)","v":0},{"$f":"MAX(AS79:AS84)","v":0},0,0]
[]
[null,"Number of other surface areas",null,null,null,null,null,null,null,null,null,null,null,null,null,null,0,null,null,null,null,null,null,null,null,null,null,null,null,null,null,null,null,null,null,null,null,null,null,null,null,null,null,null,null,0,0]
[]
[null,"Surface",null,null,"Surfaces Description",null,null,null,null,null,"On-site BMP",null,null,null,null,null,null,null,null,null,null,null,"Contrib. Area (sf)",null,null,null,"Facility \nSize (sf)",null,null,null,null,null,"Facility Configuration",null,null,null,null,null,null,null,null,null,null,"Sheet Name","Count","BMP","BMP # from Sizing Tab","Count for BMP #","List more than 1 BMP","List Name","Roof / Non Roof","Roof Managed","Surface Managed","Facility Size no units","Vol Managed per Year (gal)","Infiltrating BMP"]
[null,null,null,null,null,null,null,null,null,null,null,null,null,null,null,null,null,null,null,null,null,null,null,null,null,null,null,null,null,null,null,null,null,null,null,null,null,null,null,null,null,null,null,null,-1,null,0]
[null,{"$f":"AS79","v":0},null,null,{"$f":"IFERROR(IF($AS$69,IF(INDEX('BMP Modeling'!$J:$J,MATCH(B79,'BMP Modeling'!$B:$B,0))=\"Roof\",\"Roof: \",\"Surface: \") & INDEX('BMP Modeling'!P:P,MATCH(B79,'BMP Modeling'!$B:$B,0)),\nIF(INDIRECT(\"'\"&AR79&\"'!N9\")=\"\",\"\",IF(INDIRECT(\"'\"&AR79&\"'!N9\")=\"Roof\",INDIRECT(\"'\"&AR79&\"'!N9\")&\":\"&INDIRECT(\"'\"&AR79&\"'!n11\"),\"Surface:\"&INDIRECT(\"'\"&AR79&\"'!n11\")))),\"\")","v":""},null,null,null,null,null,{"$f":"IF(AT79=\"\",\"\",IF($AS$69,INDEX('BMP Modeling'!X:X,MATCH(B79,'BMP Modeling'!B:B,0)),IF(AND(AW79,AV79>1),INDEX('BMP Sizing'!$K$7:$K$45,MATCH(AU79,'BMP Sizing'!$AO$7:$AO$45,0)),AT79)))","v":""},null,null,null,null,null,null,null,null,null,null,null,{"$f":"IFERROR(IF($AS$69,INDEX('BMP Modeling'!D:D,MATCH(B79,'BMP Modeling'!B:B,0)),INDIRECT(\"'\"&AR79&\"'!N13\")),\"\")","v":""},null,null,null,{"$f":"IF($AS$69,TEXT(INDEX('BMP Modeling'!$AF:$AF,MATCH(B79,'BMP Modeling'!$B:$B,0)),\"#,###\"),IF(AT79=\"None Feasible\",\"-\",IFERROR(IF(AU79<=MAX($AU$78:AU78),\"^\",TEXT(INDEX('BMP Sizing'!$AQ$49:$AQ$249,MATCH(AU79,'BMP Sizing'!$AN$49:$AN$249,0)),\"#,##0\")& \" \" & INDEX('BMP Sizing'!$AR$49:$AR$249,MATCH(AU79,'BMP Sizing'!$AN$49:$AN$249,0)) ),\"-\")))","v":"-"},null,null,null,null,null,{"$f":"IFERROR(IF($AS$69,\"See Plan\",IF(AU79<=MAX($AU$78:AU78),\"^\",INDEX('BMP Sizing'!$AT$49:$AT$249,MATCH(AU79,'BMP Sizing'!$AN$49:$AN$249,0)))),\"-\")","v":"-"},null,null,null,null,null,null,null,null,null,null,{"$f":"$AR$10&\" - Surface \"&B79","v":" - Surface 0"},{"$f":"AS78+1","v":0},{"$f":"IFERROR(IF($AS$69,\"BMP Modeling\",INDEX(INDIRECT(\"'\"&AR79&\"'!BS:BS\"),MATCH(TRUE,INDIRECT(\"'\"&AR79&\"'!BX:BX\"),0))),\"\")","v":""},{"$f":"IFERROR(INDEX('BMP Sizing'!$AO$7:$AO$46,MATCH(AS79,'BMP Sizing'!$B$7:$B$46,0)),\"\")","v":""},{"$f":"COUNTIF($AT$78:$AT$80,AT79)","v":3},{"$f":"INDEX(Lookup!$B$70:$B$94,MATCH(AT79,Lookup!$A$70:$A$94,0))","v":{"$error":"#N/A"}},{"$f":"TRIM(SUBSTITUTE(SUBSTITUTE(SUBSTITUTE(AT79,\" \",\"\"),\"-\",\"\"),\"/\",\"\")&IF(AW79,AV79,\"\"))","v":{"$error":"#N/A"}},{"$f":"IFERROR(IF(performancestd,INDEX('BMP Modeling'!J:J,MATCH(B79,'BMP Modeling'!B:B,0)),INDIRECT(\"'\"&AR79&\"'!N9\")),\"\")","v":""},{"$f":"IF(performancestd,AY79=\"Roof\",IF(OR(AT79=\"Vegetated Roof System\",AND(AT79=\"Permeable Pavement Facility\",AY79=\"Roof\")), BB79>=INT(INDEX('BMP Sizing'!$V$49:$V$249,MATCH(AU79,'BMP Sizing'!$AN$49:$AN$249,0))*INDEX('BMP Sizing'!$AP$49:$AP$249,MATCH(AU79,'BMP Sizing'!$AN$49:$AN$249,0))),AND(AND(AU79>0,AU79<>\"\"),AY79=\"Roof\",BC79>0,BC79<>\"-\")))","v":false},{"$f":"IF(performancestd,AY79=\"Non-Roof\",IF(AND(AT79=\"Permeable Pavement Facility\",AY79=\"Non-Roof\"), BB79>=INDEX('BMP Sizing'!$V$49:$V$249,MATCH(AU79,'BMP Sizing'!$AN$49:$AN$249,0))*INDEX('BMP Sizing'!$AP$49:$AP$249,MATCH(AU79,'BMP Sizing'!$AN$49:$AN$249,0)),AND(AND(AU79>0,AU79<>\"\"),AY79=\"Non-Roof\",BC79>0,BC79<>\"-\")))","v":false},{"$f":"IF($AS$69,0,IF(AT79=\"None Feasible\",\"-\",IFERROR(IF(AU79<=MAX($AU$78:AU78),\"^\",INDEX('BMP Sizing'!$AQ$49:$AQ$249,MATCH(AU79,'BMP Sizing'!$AN$49:$AN$249,0))),\"-\")))","v":"-"},{"$f":"IF($AS$69,\nIFERROR(INDEX('BMP Modeling'!$AL:$AL,MATCH(B79,'BMP Modeling'!$B:$B,0))*7.48052/158,0),\nIF(AT79=\"None Feasible\",\"-\",IFERROR(IF(AU79<=MAX($AU$78:AU78),\"^\",INDEX('BMP Sizing'!$AS$49:$AS$249,MATCH(AU79,'BMP Sizing'!$AN$49:$AN$249,0))),\"-\")))","v":"-"},{"$f":"INDEX(Lookup!$I$70:$I$94,MATCH(AT79,Lookup!$A$70:$A$94,0))","v":{"$error":"#N/A"}}]
[]
[null,"Total New/Replaced Roof Area",null,null,null,null,null,null,null,null,null,null,null,null,{"$f":"TEXT(SUMIF($AY$78:$AY$80,\"Roof\",$W$78:$Z$80),\"#,##0\")&\" sf\"","v":"0 sf"},null,null,null,null,null,null,"Total Volume Managed On Site",null,null,null,null,null,null,null,null,null,null,null,null,{"$f":"IFERROR(TEXT(SUM($BC$79:$BC$83),\"#,##0\")&\" gal\",\"\")","v":"0 gal"}]
[]
[null,"Total New/Replaced Other Surface Area",null,null,null,null,null,null,null,null,null,null,null,null,{"$f":"TEXT(SUMIF($AY$78:$AY$80,\"Non-Roof\",$W$78:$Z$80)+SUMIF($AT$78:$AT$80,\"Permeable Pavement Facility\",$BB$78:$BB$80),\"#,##0\") &\" sf\"","v":"0 sf"},null,null,null,null,null,null,"Estimated compost required for soil amendment",null,null,null,null,null,null,null,null,null,null,null,null,null,null,null,{"$f":"IF(S24=\"\",0,S24*0.0062)","v":0},null,null,"cy"]
[null,null,null,null,null,null,null,null,null,null,null,null,null,null,null,null,null,null,null,null,null,null,null,"Volume of compost will be verified by the Inspector."]

{"sheet":"Trail","index":2,"n_rows":59,"n_cols":85,"rows_kept":59,"cut":false,"hidden":true,"merged":[[0,0,0,68],[0,79,0,84],[1,0,1,68],[6,13,6,20],[6,70,13,70],[6,72,13,72],[6,73,13,73],[6,75,13,75],[6,76,13,76],[6,77,13,77],[6,71,13,71],[6,74,13,74],[8,24,8,67],[3,13,3,24],[25,17,25,22],[25,24,25,67],[6,84,13,84],[8,13,8,20],[10,13,10,67],[12,13,12,20],[18,17,18,22],[18,24,18,67],[6,78,13,78],[6,79,13,79],[6,80,13,80],[6,81,13,81],[6,82,13,82],[6,83,13,83],[28,17,28,22],[28,24,28,67],[57,17,57,22],[57,24,57,67],[37,17,37,22],[37,24,37,67],[47,17,47,22],[47,24,47,67],[50,17,50,22],[50,24,50,67],[40,17,40,22],[40,24,40,67],[34,17,34,22],[34,24,34,67],[31,17,31,22],[31,24,31,67]]}
["On-site Stormwater Management Calculator - List Approach",null,null,null,null,null,null,null,null,null,null,null,null,null,null,null,null,null,null,null,null,null,null,null,null,null,null,null,null,null,null,null,null,null,null,null,null,null,null,null,null,null,null,null,null,null,null,null,null,null,null,null,null,null,null,null,null,null,null,null,null,null,null,null,null,null,null,null,null,null,null,null,null,null,null,null,null,"Column to Use",null,"Evaluation Required"]
["Surface Identification and BMP Evaluation for Trail and Sidewalk Projects",null,null,null,null,null,null,null,null,null,null,null,null,null,null,null,null,null,null,null,null,null,null,null,null,null,null,null,null,null,null,null,null,null,null,null,null,null,null,null,null,null,null,null,null,null,null,null,null,null,null,null,null,null,null,null,null,null,null,null,null,null,null,null,null,null,null,null,null,null,"None Feasible",null,null,null,null,{"$f":"AND(COUNTIFS(BT19:BT58,\"Feasibility\",BV19:BV58,TRUE)=COUNTIF(BT19:BT58,\"Feasibility\"),COUNTIF(BX19:BX58,TRUE)=0)","v":false},null,{"$f":"OFFSET(CA2,0,IF($N$9=\"Roof\",0,3)+'Project Summary'!$AS$37)","v":4},null,1,2,3,4,5,6]
[]
[null,"Project No.",null,null,null,null,null,null,null,null,null,null,null,{"$f":"'Project Summary'!$AG$6","v":0},null,null,null,null,null,null,null,null,null,null,null,null,null,null,null,null,null,null,null,null,null,null,null,null,null,null,null,null,null,null,null,null,null,null,null,null,null,null,null,null,null,null,null,null,null,null,null,null,null,null,null,null,null,null,null,null,null,null,null,null,null,null,null,null,null,"Roof","Roof","Roof","Surface","Surface","Surface"]
[]
[]
[null,"Hard Surface Number",null,null,null,null,null,null,null,null,null,null,null,null,null,null,null,null,null,null,null,null,null,null,null,null,null,null,null,null,null,null,null,null,null,null,null,null,null,null,null,null,null,null,null,null,null,null,null,null,null,null,null,null,null,null,null,null,null,null,null,null,null,null,null,null,null,null,null,null,"BMP","Dropdown Lookup","Grey Out","Infeasible Selected","Infeasibility Criteria Selected","BMP Selected","Other BMP in Group Selected","Evaluation Required","Infiltration/ DispersionInfeasible","Not designated receiving water","Public combined sewer or capacity constrained","Designated Receiving Water","Not designated receiving water","Public combined sewer or capacity constrained","Designated Receiving Water"]
[]
[null,"Hard Surface Type",null,null,null,null,null,null,null,null,null,null,null,null,null,null,null,null,null,null,null,null,"´",null,{"$f":"IF(COUNTIF(BX19:BX85,TRUE)>1,\"More than one Use BMP selected, please select only one. \",\"\") & IF(SUMPRODUCT($BV$19:$BV$86*NOT(BW19:BW86)*NOT(BY19:BY86)) > 0,SUMPRODUCT($BV$19:$BV$86*NOT(BW19:BW86)*NOT(BY19:BY86))&\" BMP(s) require infeasibility criteria.\",\"\")","v":""}]
[]
[null,"Hard Surface Description"]
[]
[null,"Surface Area (sf)"]
[]
["Category 1            (Select 1 BMP from Category 1, order does not matter, or move to Category 2)",null,null,null,null,null,null,null,null,null,null,null,null,null,null,null,null,null,null,null,null,null,null,null,null,null,null,null,null,null,null,null,null,null,null,null,null,null,null,null,null,null,null,null,null,null,null,null,null,null,null,null,null,null,null,null,null,null,null,null,null,null,null,null,null,null,null,null,null,null,"Category 1"]
[]
[null,"BMP",null,null,null,null,null,null,null,null,null,null,null,null,null,null,null,"Feasibility",null,null,null,null,null,null,"Infeasibility Criteria"]
[]
[null,"Full Dispersion",null,null,null,null,null,null,null,null,null,null,null,null,null,null,null,null,null,null,null,null,null,null,null,null,null,null,null,null,null,null,null,null,null,null,null,null,null,null,null,null,null,null,null,null,null,null,null,null,null,null,null,null,null,null,null,null,null,null,null,null,null,null,null,null,null,null,null,null,"Full Dispersion",{"$f":"IF(BZ19,IF(CA19,\"Infeasible\",\"Feasibility\"),\"NoEval\")","v":"Feasibility"},{"$f":"IF(OR(R19=\"\",BX19),FALSE,OR(NOT(BZ19),BV19))","v":false},{"$f":"R19=\"Infeasible\"","v":false},{"$f":"AND(BV19,NOT(Y19=\"\"))","v":false},{"$f":"R19=\"Use BMP\"","v":false},false,{"$f":"INDEX(CB19:CG19,MATCH($BZ$2,$CB$2:$CG$2,0))","v":true},{"$f":"Dispersion","v":false},false,false,false,true,true,true]
[]
[]
["Category 2",null,null,null,null,null,null,null,null,null,null,null,null,null,null,null,null,null,null,null,null,null,null,null,null,null,null,null,null,null,null,null,null,null,null,null,null,null,null,null,null,null,null,null,null,null,null,null,null,null,null,null,null,null,null,null,null,null,null,null,null,null,null,null,null,null,null,null,null,null,"Category 2",null,{"$f":"NOT(AND(BU19:BU21,N9<>\"\"))","v":true}]
[]
[null,"BMP",null,null,null,null,null,null,null,null,null,null,null,null,null,null,null,"Feasibility",null,null,null,null,null,null,"Infeasibility Criteria"]
[]
[null,"Rain Garden with or without Tree",null,null,null,null,null,null,null,null,null,null,null,null,null,null,null,null,null,null,null,null,null,null,null,null,null,null,null,null,null,null,null,null,null,null,null,null,null,null,null,null,null,null,null,null,null,null,null,null,null,null,null,null,null,null,null,null,null,null,null,null,null,null,null,null,null,null,null,null,"Rain Garden",{"$f":"IF(BZ26,IF(CA26,\"Infeasible\",\"Feasibility\"),\"NotRequired\")","v":"Feasibility"},{"$f":"IF(OR(R26=\"\",BX26),FALSE,OR(NOT(BZ26),BV26))","v":false},{"$f":"R26=\"Infeasible\"","v":false},{"$f":"AND(BV26,NOT(Y26=\"\"))","v":false},{"$f":"R26=\"Use BMP\"","v":false},{"$f":"OR(BX35,BX38,BX41,BX29,BX32)","v":false},{"$f":"INDEX(CB26:CG26,MATCH($BZ$2,$CB$2:$CG$2,0))","v":true},{"$f":"AND(InfExploration,OR(InfiltrationInfeasible,MeasuredInfRate<0.3))","v":false},true,true,false,true,{"$f":"Q13<5000","v":true},false]
[null,null,{"$f":"IF($N$9=\"\",\"\",IF(BZ26,\"\",\"Evaluation not required.\"))","v":""}]
[]
[null,"Infiltrating Soil Cell Bioretention with Tree",null,null,null,null,null,null,null,null,null,null,null,null,null,null,null,null,null,null,null,null,null,null,null,null,null,null,null,null,null,null,null,null,null,null,null,null,null,null,null,null,null,null,null,null,null,null,null,null,null,null,null,null,null,null,null,null,null,null,null,null,null,null,null,null,null,null,null,null,"Infiltrating Soil Cell Bioretention with Tree",{"$f":"IF(CA29,\"Infeasible\",\"NotRequired\")","v":"NotRequired"},{"$f":"IF(OR(R29=\"\",BX29),FALSE,OR(NOT(BZ29),BV29))","v":false},{"$f":"R29=\"Infeasible\"","v":false},{"$f":"AND(BV29,NOT(Y29=\"\"))","v":false},{"$f":"R29=\"Use BMP\"","v":false},{"$f":"OR(BX38,BX41,BX35,BX26,BX32)","v":false},{"$f":"INDEX(CB29:CG29,MATCH($BZ$2,$CB$2:$CG$2,0))","v":false},{"$f":"AND(InfExploration,OR(InfiltrationInfeasible,MeasuredInfRate<0.3))","v":false},false,false,false,false,false,false]
[null,null,{"$f":"IF($N$9=\"\",\"\",IF(BZ29,\"\",\"Evaluation not required but allowed.\"))","v":""}]
[]
[null,"Infiltrating Soil Cell Bioretention without Tree",null,null,null,null,null,null,null,null,null,null,null,null,null,null,null,null,null,null,null,null,null,null,null,null,null,null,null,null,null,null,null,null,null,null,null,null,null,null,null,null,null,null,null,null,null,null,null,null,null,null,null,null,null,null,null,null,null,null,null,null,null,null,null,null,null,null,null,null,"Infiltrating Soil Cell Bioretention without Tree",{"$f":"IF(AND(BW29,Y29=Lookup!S386),IF(CA32,\"Infeasible\",\"NotRequired\"),\"NoEval\")","v":"NoEval"},{"$f":"IF(OR(R32=\"\",BX32),FALSE,OR(NOT(BZ32),BV32))","v":false},{"$f":"R32=\"Infeasible\"","v":false},{"$f":"AND(BV32,NOT(Y32=\"\"))","v":false},{"$f":"R32=\"Use BMP\"","v":false},{"$f":"OR(BX41,BX35,BX38,BX29,BX26)","v":false},{"$f":"INDEX(CB32:CG32,MATCH($BZ$2,$CB$2:$CG$2,0))","v":false},{"$f":"AND(InfExploration,OR(InfiltrationInfeasible,MeasuredInfRate<0.3))","v":false},false,false,false,false,false,false]
[null,null,{"$f":"IF($N$9=\"\",\"\",IF(BZ32,\"\",\"Evaluation not allowed unless tree is infeasible.\"))","v":""}]
[]
[null,"Permeable Pavement Facility",null,null,null,null,null,null,null,null,null,null,null,null,null,null,null,null,null,null,null,null,null,null,null,null,null,null,null,null,null,null,null,null,null,null,null,null,null,null,null,null,null,null,null,null,null,null,null,null,null,null,null,null,null,null,null,null,null,null,null,null,null,null,null,null,null,null,null,null,"Permeable Pavement Facility",{"$f":"IF(CA35,\"Infeasible\",IF(BZ35,\"Feasibility\",\"NotRequired\"))","v":"NotRequired"},{"$f":"IF(OR(R35=\"\",BX35),FALSE,OR(NOT(BZ35),BV35))","v":false},{"$f":"R35=\"Infeasible\"","v":false},{"$f":"AND(BV35,NOT(Y35=\"\"))","v":false},{"$f":"R35=\"Use BMP\"","v":false},{"$f":"OR(BX26,BX38,BX41,BX29,BX32)","v":false},{"$f":"INDEX(CB35:CG35,MATCH($BZ$2,$CB$2:$CG$2,0))","v":false},{"$f":"AND(InfExploration,OR(InfiltrationInfeasible,MeasuredInfRate<0.3))","v":false},false,false,false,false,false,false]
[null,null,{"$f":"IF(BX35,\"Note the surface area (\"&N13&\" sf) should represent the area contributing to the permeable pavement facility. Facility area will be entered on the BMP Sizing tab.\",\nIF($N$9=\"\",\"\",\nIF(OR('Project Summary'!Q37=Lookup!I4, 'Project Summary'!Q37=Lookup!I5),\"Evaluation not required but allowed if permeable pavement in ROW is greater than 2,000 sf.\",\"Evaluation not required but allowed.\")))","v":""}]
[]
[null,"Permeable Pavement Surface",null,null,null,null,null,null,null,null,null,null,null,null,null,null,null,null,null,null,null,null,null,null,null,null,null,null,null,null,null,null,null,null,null,null,null,null,null,null,null,null,null,null,null,null,null,null,null,null,null,null,null,null,null,null,null,null,null,null,null,null,null,null,null,null,null,null,null,null,"Permeable Pavement Surface",{"$f":"IF(CA38,\"Infeasible\",IF(BZ38,\"Feasibility\",\"NotRequired\"))","v":"Feasibility"},{"$f":"IF(OR(R38=\"\",BX38),FALSE,OR(NOT(BZ38),BV38))","v":false},{"$f":"R38=\"Infeasible\"","v":false},{"$f":"AND(BV38,NOT(Y38=\"\"))","v":false},{"$f":"R38=\"Use BMP\"","v":false},{"$f":"OR(BX26,BX35,BX41,BX29,BX32)","v":false},{"$f":"INDEX(CB38:CG38,MATCH($BZ$2,$CB$2:$CG$2,0))","v":true},null,true,true,false,true,true,false]
[null,null,{"$f":"IF(N9=\"\",\"\",\nIF(BZ2=5,\"Minimum permeable pavement area in ROW is 2,000 sf.\",\nIF(BZ2=6,IF(N13<2000,\"Evaluation not allowed in ROW if new plus replaced PGHS is less than 2,000 sf.\",\"Evaluation not required but allowed if permable pavement in ROW is greater than 2,000 sf.\"),\"\")))","v":""}]
[]
[null,"Sidewalk/Trail Compost-Amended Strip",null,null,null,null,null,null,null,null,null,null,null,null,null,null,null,null,null,null,null,null,null,null,null,null,null,null,null,null,null,null,null,null,null,null,null,null,null,null,null,null,null,null,null,null,null,null,null,null,null,null,null,null,null,null,null,null,null,null,null,null,null,null,null,null,null,null,null,null,"Sidewalk/Trail Compost-Amended Strip",{"$f":"IF(BZ41,\"Feasibility\",\"NotRequired\")","v":"Feasibility"},{"$f":"IF(OR(R41=\"\",BX41),FALSE,OR(NOT(BZ41),BV41))","v":false},{"$f":"R41=\"Infeasible\"","v":false},{"$f":"AND(BV41,NOT(Y41=\"\"))","v":false},{"$f":"R41=\"Use BMP\"","v":false},{"$f":"OR(BX26,BX35,BX38,BX29,BX32)","v":false},{"$f":"INDEX(CB41:CG41,MATCH($BZ$2,$CB$2:$CG$2,0))","v":true},{"$f":"AND(InfExploration,OR(InfiltrationInfeasible,InfRate<0.15), 'Project Summary'!$AA$60<>Lookup!$R$2)","v":false},true,true,false,true,true,false]
[null,null,{"$f":"IF($N$9=\"\",\"\",IF(BZ41,\"\",\"Evaluation not required.\"))","v":""}]
[]
["Category 3",null,null,null,null,null,null,null,null,null,null,null,null,null,null,null,null,null,null,null,null,null,null,null,null,null,null,null,null,null,null,null,null,null,null,null,null,null,null,null,null,null,null,null,null,null,null,null,null,null,null,null,null,null,null,null,null,null,null,null,null,null,null,null,null,null,null,null,null,null,"Category 3",null,{"$f":"NOT(AND(BU19:BU21,BU23:BU42))","v":true}]
[]
[null,"BMP",null,null,null,null,null,null,null,null,null,null,null,null,null,null,null,"Feasibility",null,null,null,null,null,null,"Infeasibility Criteria"]
[]
[null,"Sheet Flow Dispersion",null,null,null,null,null,null,null,null,null,null,null,null,null,null,null,null,null,null,null,null,null,null,null,null,null,null,null,null,null,null,null,null,null,null,null,null,null,null,null,null,null,null,null,null,null,null,null,null,null,null,null,null,null,null,null,null,null,null,null,null,null,null,null,null,null,null,null,null,"Sheet Flow Dispersion",{"$f":"IF(BZ48,IF(CA48,\"Infeasible\",\"Feasibility\"),\"NoEval\")","v":"Feasibility"},{"$f":"IF(OR(R48=\"\",BX48),FALSE,OR(NOT(BZ48),BV48))","v":false},{"$f":"R48=\"Infeasible\"","v":false},{"$f":"AND(BV48,NOT(Y48=\"\"))","v":false},{"$f":"R48=\"Use BMP\"","v":false},{"$f":"BX51","v":false},{"$f":"INDEX(CB48:CG48,MATCH($BZ$2,$CB$2:$CG$2,0))","v":true},{"$f":"Dispersion","v":false},false,false,false,true,true,true]
[]
[]
[null,"Concentrated Dispersion",null,null,null,null,null,null,null,null,null,null,null,null,null,null,null,null,null,null,null,null,null,null,null,null,null,null,null,null,null,null,null,null,null,null,null,null,null,null,null,null,null,null,null,null,null,null,null,null,null,null,null,null,null,null,null,null,null,null,null,null,null,null,null,null,null,null,null,null,"Concentrated Flow Dispersion",{"$f":"IF(BZ51,IF(CA51,\"Infeasible\",\"Feasibility\"),\"NoEval\")","v":"Feasibility"},{"$f":"IF(OR(R51=\"\",BX51),FALSE,OR(NOT(BZ51),BV51))","v":false},{"$f":"R51=\"Infeasible\"","v":false},{"$f":"AND(BV51,NOT(Y51=\"\"))","v":false},{"$f":"R51=\"Use BMP\"","v":false},{"$f":"BX48","v":false},{"$f":"INDEX(CB51:CG51,MATCH($BZ$2,$CB$2:$CG$2,0))","v":true},{"$f":"Dispersion","v":false},false,false,false,true,true,true]
[null,null,{"$f":"IF($N$9=\"Roof\",\"Evaluation not required for roof surfaces.\",\"\")","v":""}]
[]
["Category 4",null,null,null,null,null,null,null,null,null,null,null,null,null,null,null,null,null,null,null,null,null,null,null,null,null,null,null,null,null,null,null,null,null,null,null,null,null,null,null,null,null,null,null,null,null,null,null,null,null,null,null,null,null,null,null,null,null,null,null,null,null,null,null,null,null,null,null,null,null,"Category 4",null,{"$f":"NOT(AND(BU19,BU26:BU41,BU48:BU51))","v":true}]
[]
[null,"BMP",null,null,null,null,null,null,null,null,null,null,null,null,null,null,null,"Feasibility",null,null,null,null,null,null,"Infeasibility Criteria"]
[]
[null,"Trees",null,null,null,null,null,null,null,null,null,null,null,null,null,null,null,null,null,null,null,null,null,null,null,null,null,null,null,null,null,null,null,null,null,null,null,null,null,null,null,null,null,null,null,null,null,null,null,null,null,null,null,null,null,null,null,null,null,null,null,null,null,null,null,null,null,null,null,null,"Trees",{"$f":"IF(BZ58,\"Feasibility\",\"NoEval\")","v":"Feasibility"},{"$f":"IF(OR(R58=\"\",BX58),FALSE,OR(NOT(BZ58),BV58))","v":false},{"$f":"R58=\"Infeasible\"","v":false},{"$f":"AND(BV58,NOT(Y58=\"\"))","v":false},{"$f":"R58=\"Use BMP\"","v":false},false,{"$f":"INDEX(CB58:CG58,MATCH($BZ$2,$CB$2:$CG$2,0))","v":true},null,false,false,false,true,true,true]
[null,null,{"$f":"IF($N$9=\"Roof\",\"Evaluation not required for roof surfaces.\",\"\")","v":""}]

{"sheet":"Road","index":3,"n_rows":62,"n_cols":85,"rows_kept":62,"cut":false,"hidden":true,"merged":[[0,0,0,68],[0,79,0,84],[1,0,1,68],[6,13,6,20],[6,70,13,70],[6,72,13,72],[6,73,13,73],[6,75,13,75],[6,76,13,76],[6,77,13,77],[6,71,13,71],[6,84,13,84],[8,13,8,20],[12,13,12,20],[6,82,13,82],[6,83,13,83],[52,24,52,67],[52,17,52,22],[18,24,18,67],[31,17,31,22],[25,17,25,22],[34,24,34,67],[18,17,18,22],[31,24,31,67],[34,17,34,22],[6,80,13,80],[10,13,10,23],[6,81,13,81],[6,74,13,74],[8,24,8,67],[10,25,10,67],[6,78,13,78],[6,79,13,79],[61,17,61,22],[61,24,61,67],[3,13,3,25],[40,17,40,22],[40,24,40,67],[50,17,50,22],[50,24,50,67],[28,17,28,22],[28,24,28,67],[37,17,37,22],[37,24,37,67],[43,17,43,22],[43,24,43,67],[25,24,25,67],[59,17,59,22],[59,24,59,67]]}
["On-site Stormwater Management Calculator - List Approach",null,null,null,null,null,null,null,null,null,null,null,null,null,null,null,null,null,null,null,null,null,null,null,null,null,null,null,null,null,null,null,null,null,null,null,null,null,null,null,null,null,null,null,null,null,null,null,null,null,null,null,null,null,null,null,null,null,null,null,null,null,null,null,null,null,null,null,null,null,null,null,null,null,null,null,null,"Column to Use",null,"Evaluation Required"]
["Surface Identification and BMP Evaluation for Roadway Projects",null,null,null,null,null,null,null,null,null,null,null,null,null,null,null,null,null,null,null,null,null,null,null,null,null,null,null,null,null,null,null,null,null,null,null,null,null,null,null,null,null,null,null,null,null,null,null,null,null,null,null,null,null,null,null,null,null,null,null,null,null,null,null,null,null,null,null,null,null,"None Feasible",null,null,null,null,{"$f":"AND(COUNTIFS(BT19:BT60,\"Feasibility\",BV19:BV60,TRUE)=COUNTIF(BT19:BT60,\"Feasibility\"),COUNTIF(BX19:BX60,TRUE)=0)","v":false},null,{"$f":"OFFSET(CA2,0,IF($N$9=\"Roof\",0,3)+'Project Summary'!$AS$37)","v":4},null,1,2,3,4,5,6]
[]
[null,"Project No.",null,null,null,null,null,null,null,null,null,null,null,{"$f":"'Project Summary'!$AG$6","v":0},null,null,null,null,null,null,null,null,null,null,null,null,null,null,null,null,null,null,null,null,null,null,null,null,null,null,null,null,null,null,null,null,null,null,null,null,null,null,null,null,null,null,null,null,null,null,null,null,null,null,null,null,null,null,null,null,null,null,null,null,null,null,null,null,null,"Roof","Roof","Roof","Surface","Surface","Surface"]
[]
[]
[null,"Hard Surface Number",null,null,null,null,null,null,null,null,null,null,null,null,null,null,null,null,null,null,null,null,null,null,null,null,null,null,null,null,null,null,null,null,null,null,null,null,null,null,null,null,null,null,null,null,null,null,null,null,null,null,null,null,null,null,null,null,null,null,null,null,null,null,null,null,null,null,null,null,"BMP","Dropdown Lookup","Grey Out","Infeasible Selected","Infeasible Criteria Entered","BMP Selected","Other BMP in Group Selected","Evaluation Required","Infiltration /Dispersion Infeasible","Not designated receiving water","Public combined sewer or capacity constrained","Designated Receiving Water","Not designated receiving water","Public combined sewer or capacity constrained","Designated Receiving Water"]
[]
[null,"Hard Surface Type",null,null,null,null,null,null,null,null,null,null,null,null,null,null,null,null,null,null,null,null,"´",null,{"$f":"IF(COUNTIF(BX19:BX87,TRUE)>1,\"More than one Use BMP selected, please select only one. \",\"\") & IF(SUMPRODUCT($BV$19:$BV$88*NOT(BW19:BW88)*NOT(BY19:BY88)) > 0,SUMPRODUCT($BV$19:$BV$88*NOT(BW19:BW88)*NOT(BY19:BY88))&\" BMP(s) require infeasibility criteria.\",\"\")","v":""}]
[]
[null,"Hard Surface Description",null,null,null,null,null,null,null,null,null,null,null,null,null,null,null,null,null,null,null,null,null,null,":"]
[]
[null,"Surface Area (sf)"]
[]
["Category 1            (Select 1 BMP from Category 1, order does not matter, or move to Category 2)",null,null,null,null,null,null,null,null,null,null,null,null,null,null,null,null,null,null,null,null,null,null,null,null,null,null,null,null,null,null,null,null,null,null,null,null,null,null,null,null,null,null,null,null,null,null,null,null,null,null,null,null,null,null,null,null,null,null,null,null,null,null,null,null,null,null,null,null,null,"Category 1"]
[]
[null,"BMP",null,null,null,null,null,null,null,null,null,null,null,null,null,null,null,"Feasibility",null,null,null,null,null,null,"Infeasibility Criteria"]
[]
[null,"Full Dispersion",null,null,null,null,null,null,null,null,null,null,null,null,null,null,null,null,null,null,null,null,null,null,null,null,null,null,null,null,null,null,null,null,null,null,null,null,null,null,null,null,null,null,null,null,null,null,null,null,null,null,null,null,null,null,null,null,null,null,null,null,null,null,null,null,null,null,null,null,"Full Dispersion",{"$f":"IF(BZ19,IF(CA19,\"Infeasible\",\"Feasibility\"),\"NoEval\")","v":"Feasibility"},{"$f":"IF(OR(R19=\"\",BX19),FALSE,OR(NOT(BZ19),BV19))","v":false},{"$f":"R19=\"Infeasible\"","v":false},{"$f":"AND(BV19,NOT(Y19=\"\"))","v":false},{"$f":"R19=\"Use BMP\"","v":false},false,{"$f":"INDEX(CB19:CG19,MATCH($BZ$2,$CB$2:$CG$2,0))","v":true},{"$f":"Dispersion","v":false},false,false,false,true,true,true]
[]
[]
["Category 2",null,null,null,null,null,null,null,null,null,null,null,null,null,null,null,null,null,null,null,null,null,null,null,null,null,null,null,null,null,null,null,null,null,null,null,null,null,null,null,null,null,null,null,null,null,null,null,null,null,null,null,null,null,null,null,null,null,null,null,null,null,null,null,null,null,null,null,null,null,"Category 2",null,{"$f":"NOT(AND(BU19:BU21,N9<>\"\"))","v":true}]
[]
[null,"BMP",null,null,null,null,null,null,null,null,null,null,null,null,null,null,null,"Feasibility",null,null,null,null,null,null,"Infeasibility Criteria"]
[]
[null,"Rain Garden with Tree",null,null,null,null,null,null,null,null,null,null,null,null,null,null,null,null,null,null,null,null,null,null,null,null,null,null,null,null,null,null,null,null,null,null,null,null,null,null,null,null,null,null,null,null,null,null,null,null,null,null,null,null,null,null,null,null,null,null,null,null,null,null,null,null,null,null,null,null,"Rain Garden",{"$f":"IF(BZ26,IF(CA26,\"Infeasible\",\"Feasibility\"),\"NoEval\")","v":"Feasibility"},{"$f":"IF(OR(R26=\"\",BX26),FALSE,OR(NOT(BZ26),BV26))","v":false},{"$f":"R26=\"Infeasible\"","v":false},{"$f":"AND(BV26,NOT(Y26=\"\"))","v":false},{"$f":"R26=\"Use BMP\"","v":false},{"$f":"OR(BX29,BX38,BX41,BX32,BX44,BX35)","v":false},{"$f":"INDEX(CB26:CG26,MATCH($BZ$2,$CB$2:$CG$2,0))","v":true},{"$f":"AND(InfExploration,OR(InfiltrationInfeasible,MeasuredInfRate<0.3))","v":false},false,false,false,{"$f":"AND(NOT('Project Summary'!$AS$45),NOT('Project Summary'!$AS$47),$N$13<5000)","v":true},{"$f":"AND(NOT('Project Summary'!$AS$45),NOT('Project Summary'!$AS$47),$N$13<5000)","v":true},{"$f":"AND(NOT('Project Summary'!$AS$45),NOT('Project Summary'!$AS$47),$N$13<5000)","v":true}]
[null,null,{"$f":"IF($N$9=\"\",\"\",IF(MeasuredInfRate<0.3,\"\",IF(OR('Project Summary'!AS45,'Project Summary'!AS47),\"Evaluation not allowed when project requires Flow Control or Water Quality Treatment\",IF(N13>=5000,\"Evaluation not allowed for sites with greater than 5,000 sf of hard surface infiltrating onsite\",\"\"))))","v":""}]
[]
[null,"Infiltrating Bioretention with Tree",null,null,null,null,null,null,null,null,null,null,null,null,null,null,null,null,null,null,null,null,null,null,null,null,null,null,null,null,null,null,null,null,null,null,null,null,null,null,null,null,null,null,null,null,null,null,null,null,null,null,null,null,null,null,null,null,null,null,null,null,null,null,null,null,null,null,null,null,"Infiltrating Bioretention",{"$f":"IF(BZ29,IF(CA29,\"Infeasible\",\"Feasibility\"),\"NoEval\")","v":"Feasibility"},{"$f":"IF(OR(R29=\"\",BX29),FALSE,OR(NOT(BZ29),BV29))","v":false},{"$f":"R29=\"Infeasible\"","v":false},{"$f":"AND(BV29,NOT(Y29=\"\"))","v":false},{"$f":"R29=\"Use BMP\"","v":false},{"$f":"OR(BX26,BX38,BX41,BX32,BX44,BX35)","v":false},{"$f":"INDEX(CB29:CG29,MATCH($BZ$2,$CB$2:$CG$2,0))","v":true},{"$f":"AND(InfExploration,OR(InfiltrationInfeasible,MeasuredInfRate<0.3))","v":false},false,false,false,true,true,true]
[null,null,{"$f":"IF(N9<>\"\",\nIF(BZ2>=5, \"Evaluation is only allowed when contributing area is sufficient to warrant minimum bioretention cell size in ROW.\",\"\"),\"\")","v":""}]
[]
[null,"Infiltrating Soil Cell Bioretention with Tree",null,null,null,null,null,null,null,null,null,null,null,null,null,null,null,null,null,null,null,null,null,null,null,null,null,null,null,null,null,null,null,null,null,null,null,null,null,null,null,null,null,null,null,null,null,null,null,null,null,null,null,null,null,null,null,null,null,null,null,null,null,null,null,null,null,null,null,null,"Infiltrating Soil Cell Bioretention with Tree",{"$f":"IF(CA32,\"Infeasible\",\"NotRequired\")","v":"NotRequired"},{"$f":"IF(OR(R32=\"\",BX32),FALSE,OR(NOT(BZ32),BV32))","v":false},{"$f":"R32=\"Infeasible\"","v":false},{"$f":"AND(BV32,NOT(Y32=\"\"))","v":false},{"$f":"R32=\"Use BMP\"","v":false},{"$f":"OR(BX29,BX41,BX44,BX26,BX38,BX35)","v":false},{"$f":"INDEX(CB32:CG32,MATCH($BZ$2,$CB$2:$CG$2,0))","v":false},{"$f":"AND(InfExploration,OR(InfiltrationInfeasible,MeasuredInfRate<0.3))","v":false},false,false,false,false,false,false]
[null,null,{"$f":"IF(N9<>\"\",\"Evaluation not required but allowed.\",\"\")","v":""}]
[]
[null,"Infiltrating Soil Cell Bioretention without Tree",null,null,null,null,null,null,null,null,null,null,null,null,null,null,null,null,null,null,null,null,null,null,null,null,null,null,null,null,null,null,null,null,null,null,null,null,null,null,null,null,null,null,null,null,null,null,null,null,null,null,null,null,null,null,null,null,null,null,null,null,null,null,null,null,null,null,null,null,"Infiltrating Soil Cell Bioretention without Tree",{"$f":"IF(AND(BW32,Y32=Lookup!S386),IF(CA35,\"Infeasible\",\"NotRequired\"),\"NoEval\")","v":"NoEval"},{"$f":"IF(OR(R35=\"\",BX35),FALSE,OR(NOT(BZ35),BV35))","v":false},{"$f":"R35=\"Infeasible\"","v":false},{"$f":"AND(BV35,NOT(Y35=\"\"))","v":false},{"$f":"R35=\"Use BMP\"","v":false},{"$f":"OR(BX32,BX44,BX26,BX29,BX41,BX38)","v":false},{"$f":"INDEX(CB35:CG35,MATCH($BZ$2,$CB$2:$CG$2,0))","v":false},{"$f":"AND(InfExploration,OR(InfiltrationInfeasible,MeasuredInfRate<0.3))","v":false},false,false,false,false,false,false]
[null,null,{"$f":"IF($N$9=\"\",\"\",IF(BZ35,\"\",\"Evaluation not allowed unless tree is infeasible.\"))","v":""}]
[]
[null,"Permeable Pavement Facility",null,null,null,null,null,null,null,null,null,null,null,null,null,null,null,null,null,null,null,null,null,null,null,null,null,null,null,null,null,null,null,null,null,null,null,null,null,null,null,null,null,null,null,null,null,null,null,null,null,null,null,null,null,null,null,null,null,null,null,null,null,null,null,null,null,null,null,null,"Permeable Pavement Facility",{"$f":"IF(CA38,\"Infeasible\",\nIF(BZ2=4,\nIF(N11=\"Arterial Street or Collector\",\"NoEval\",\"NotRequired\"),\nIF(BZ2=5,\nIF(AND(N11=\"ROW\", N13<2000),\"NoEval\",IF(OR(N11=\"ROW\",N11=\"Other\"),\"NotRequired\",\"NoEval\")),\nIF(BZ2=6,\nIF(AND(N13>=2000, OR(N11=\"ROW\",N11=\"Other\")),\"NotRequired\",IF(AND(N13<2000,N11=\"Other\"),\"NoEval\",IF(AND(N13<2000,N11=\"ROW\"),\"NoEval\",\"NoEval\"))),\"Feasibility\"))))","v":"NotRequired"},{"$f":"IF(OR(R38=\"\",BX38),FALSE,OR(NOT(BZ38),BV38))","v":false},{"$f":"R38=\"Infeasible\"","v":false},{"$f":"AND(BV38,NOT(Y38=\"\"))","v":false},{"$f":"R38=\"Use BMP\"","v":false},{"$f":"OR(BX26,BX29,BX41,BX32,BX44,BX35)","v":false},{"$f":"INDEX(CB38:CG38,MATCH($BZ$2,$CB$2:$CG$2,0))","v":false},{"$f":"AND(InfExploration,OR(InfiltrationInfeasible,MeasuredInfRate<0.3))","v":false},false,false,false,false,false,false]
[null,null,{"$f":"IF(BX38,\"Note the surface area (\"&N13&\" sf) should represent the area contributing to the permeable pavement facility. Facility area will be entered on the BMP Sizing tab.\",\"\")","v":""}]
[]
[null,"Permeable Pavement Surface",null,null,null,null,null,null,null,null,null,null,null,null,null,null,null,null,null,null,null,null,null,null,null,null,null,null,null,null,null,null,null,null,null,null,null,null,null,null,null,null,null,null,null,null,null,null,null,null,null,null,null,null,null,null,null,null,null,null,null,null,null,null,null,null,null,null,null,null,"Permeable Pavement Surface",{"$f":"IF(BZ2=4,IF(N11=\"Arterial Street or Collector\",\"NoEval\",IF(CA41,\"Infeasible\",\"Feasibility\")),\nIF(BZ2=5,IF(AND(N11=\"ROW\",N13<2000),\"NoEval\",IF(OR(N11=\"ROW\",N11=\"Other\"),IF(CA41,\"Infeasible\",\"Feasibility\"),\"NoEval\")),\nIF(BZ2=6,IF(AND(N11=\"Other\",N13<2000),\"NoEval\",IF(AND(N11=\"ROW\",N13<2000),\"NoEval\",IF(OR(N11=\"Other\",N11=\"ROW\"),IF(CA41,\"Infeasible\",\"NotRequired\"),\"NoEval\"))))))","v":"Feasibility"},{"$f":"IF(OR(R41=\"\",BX41),FALSE,OR(NOT(BZ41),BV41))","v":false},{"$f":"R41=\"Infeasible\"","v":false},{"$f":"AND(BV41,NOT(Y41=\"\"))","v":false},{"$f":"R41=\"Use BMP\"","v":false},{"$f":"OR(BX26,BX29,BX38,BX32,BX44,BX35)","v":false},{"$f":"INDEX(CB41:CG41,MATCH($BZ$2,$CB$2:$CG$2,0))","v":true},null,false,false,false,{"$f":"IF(N11=\"Arterial Street or Collector\",FALSE,TRUE)","v":true},{"$f":"IF(AND(N11=\"ROW\",N13<2000),FALSE,IF(OR(N11=\"ROW\",N11=\"Other\"),TRUE,FALSE))","v":false},{"$f":"AND(N13>=2000,OR(N11=\"Other\",N11=\"ROW\"))","v":false}]
[null,null,{"$f":"IF(N9=\"\",\"\",\nIF(MeasuredInfRate<0.3, \"\",\nIF(BZ2=4,IF(N11=\"Arterial Street or Collector\",\"Evaluation is not allowed if roadway is an arterial street or collector.\",\"\"),\nIF(BZ2=5,IF(AND(N11=\"ROW\",N13<2000),\"Minimum permeable pavement area allowed in the ROW is 2,000 sf.\",IF(OR(N11=\"ROW\",N11=\"Other\"),\"\",\"Evaluation of roadway surfaces, including alleys, is not allowed.\")),\nIF(BZ2=6,IF(AND(N11=\"Other\",N13<2000),\"Evaluation is not allowed if new plus replaced PGHS is less than 2,000 sf.\",IF(AND(N11=\"ROW\",N13<2000),\"Minimum permeable pavement area allowed in the ROW is 2,000 sf.\",IF(OR(N11=\"Other\",N11=\"ROW\"),\"\",\"Evaluation of roadway surfaces, including alleys, is not allowed.\"))))))))","v":""}]
[]
[null,"Sidewalk/Trail Compost-Amended Strip",null,null,null,null,null,null,null,null,null,null,null,null,null,null,null,null,null,null,null,null,null,null,null,null,null,null,null,null,null,null,null,null,null,null,null,null,null,null,null,null,null,null,null,null,null,null,null,null,null,null,null,null,null,null,null,null,null,null,null,null,null,null,null,null,null,null,null,null,"Sidewalk/Trail Compost-Amended Strip",{"$f":"IF(N9=\"Roof\",\"NoEval\",\"NotRequired\")","v":"NotRequired"},{"$f":"IF(OR(R44=\"\",BX44),FALSE,OR(NOT(BZ44),BV44))","v":false},{"$f":"R44=\"Infeasible\"","v":false},{"$f":"AND(BV44,NOT(Y44=\"\"))","v":false},{"$f":"R44=\"Use BMP\"","v":false},{"$f":"OR(BX29,BX38,BX41,BX26,BX32,BX35)","v":false},{"$f":"INDEX(CB44:CG44,MATCH($BZ$2,$CB$2:$CG$2,0))","v":false},{"$f":"AND(InfExploration,OR(InfiltrationInfeasible,InfRate<0.15), 'Project Summary'!$AA$60<>Lookup!$R$2)","v":false},false,false,false,false,false,false]
[null,null,{"$f":"IF(N9=\"\",\"\",\n\"Evaluation of roadway surfaces, including alleys, is not allowed.\")","v":""}]
[]
["Category 3",null,null,null,null,null,null,null,null,null,null,null,null,null,null,null,null,null,null,null,null,null,null,null,null,null,null,null,null,null,null,null,null,null,null,null,null,null,null,null,null,null,null,null,null,null,null,null,null,null,null,null,null,null,null,null,null,null,null,null,null,null,null,null,null,null,null,null,null,null,"Category 3",null,{"$f":"NOT(AND(BU19:BU21,BU25:BU45,N9<>\"\"))","v":true}]
[]
[null,"BMP",null,null,null,null,null,null,null,null,null,null,null,null,null,null,null,"Feasibility",null,null,null,null,null,null,"Infeasibility Criteria"]
[]
[null,"Sheet Flow Dispersion",null,null,null,null,null,null,null,null,null,null,null,null,null,null,null,null,null,null,null,null,null,null,null,null,null,null,null,null,null,null,null,null,null,null,null,null,null,null,null,null,null,null,null,null,null,null,null,null,null,null,null,null,null,null,null,null,null,null,null,null,null,null,null,null,null,null,null,null,"Sheet Flow Dispersion",{"$f":"IF(BZ51,IF(CA51,\"Infeasible\",\"Feasibility\"),\"NoEval\")","v":"Feasibility"},{"$f":"IF(OR(R51=\"\",BX51),FALSE,OR(NOT(BZ51),BV51))","v":false},{"$f":"R51=\"Infeasible\"","v":false},{"$f":"AND(BV51,NOT(Y51=\"\"))","v":false},{"$f":"R51=\"Use BMP\"","v":false},{"$f":"BX53","v":false},{"$f":"INDEX(CB51:CG51,MATCH($BZ$2,$CB$2:$CG$2,0))","v":true},{"$f":"Dispersion","v":false},false,false,false,true,true,true]
[]
[null,"Concentrated Flow Dispersion",null,null,null,null,null,null,null,null,null,null,null,null,null,null,null,null,null,null,null,null,null,null,null,null,null,null,null,null,null,null,null,null,null,null,null,null,null,null,null,null,null,null,null,null,null,null,null,null,null,null,null,null,null,null,null,null,null,null,null,null,null,null,null,null,null,null,null,null,"Concentrated Flow Dispersion",{"$f":"IF(BZ53,IF(CA53,\"Infeasible\",\"Feasibility\"),\"NoEval\")","v":"Feasibility"},{"$f":"IF(OR(R53=\"\",BX53),FALSE,OR(NOT(BZ53),BV53))","v":false},{"$f":"R53=\"Infeasible\"","v":false},{"$f":"AND(BV53,NOT(Y53=\"\"))","v":false},{"$f":"R53=\"Use BMP\"","v":false},{"$f":"BX51","v":false},{"$f":"INDEX(CB53:CG53,MATCH($BZ$2,$CB$2:$CG$2,0))","v":true},{"$f":"Dispersion","v":false},false,false,false,true,true,true]
[]
[]
["Category 4",null,null,null,null,null,null,null,null,null,null,null,null,null,null,null,null,null,null,null,null,null,null,null,null,null,null,null,null,null,null,null,null,null,null,null,null,null,null,null,null,null,null,null,null,null,null,null,null,null,null,null,null,null,null,null,null,null,null,null,null,null,null,null,null,null,null,null,null,null,"Category 4",null,{"$f":"NOT(AND(BU19,BU26:BU44,BU51:BU53,N9<>\"\"))","v":true}]
[]
[null,"BMP",null,null,null,null,null,null,null,null,null,null,null,null,null,null,null,"Feasibility",null,null,null,null,null,null,"Infeasibility Criteria"]
[]
[null,"Trees",null,null,null,null,null,null,null,null,null,null,null,null,null,null,null,null,null,null,null,null,null,null,null,null,null,null,null,null,null,null,null,null,null,null,null,null,null,null,null,null,null,null,null,null,null,null,null,null,null,null,null,null,null,null,null,null,null,null,null,null,null,null,null,null,null,null,null,null,"Trees",{"$f":"IF(BZ60,\"Feasibility\",\"NoEval\")","v":"Feasibility"},{"$f":"IF(OR(R60=\"\",BX60),FALSE,OR(NOT(BZ60),BV60))","v":false},{"$f":"R60=\"Infeasible\"","v":false},{"$f":"AND(BV60,NOT(Y60=\"\"))","v":false},{"$f":"R60=\"Use BMP\"","v":false},{"$f":"BX62","v":false},{"$f":"INDEX(CB60:CG60,MATCH($BZ$2,$CB$2:$CG$2,0))","v":true},{"$f":"Dispersion","v":false},false,false,false,true,true,true]
[]
[null,"Non-Infiltrating Soil Cell Bioretention with Tree",null,null,null,null,null,null,null,null,null,null,null,null,null,null,null,null,null,null,null,null,null,null,null,null,null,null,null,null,null,null,null,null,null,null,null,null,null,null,null,null,null,null,null,null,null,null,null,null,null,null,null,null,null,null,null,null,null,null,null,null,null,null,null,null,null,null,null,null,"Non-Infiltrating Soil Cell Bioretention with Tree","NotRequired",{"$f":"IF(OR(R62=\"\",BX62),FALSE,OR(NOT(BZ62),BV62))","v":false},{"$f":"R62=\"Infeasible\"","v":false},{"$f":"AND(BV62,NOT(Y62=\"\"))","v":false},{"$f":"R62=\"Use BMP\"","v":false},{"$f":"BX60","v":false},{"$f":"INDEX(CB62:CG62,MATCH($BZ$2,$CB$2:$CG$2,0))","v":false},{"$f":"Dispersion","v":false},false,false,false,false,false,false]

{"sheet":"Parcel","index":4,"n_rows":102,"n_cols":85,"rows_kept":102,"cut":false,"hidden":true,"merged":[[0,0,0,68],[34,17,34,22],[37,17,37,22],[27,17,27,22],[43,17,43,22],[24,17,24,22],[1,0,1,68],[10,13,10,67],[18,24,18,67],[8,13,8,20],[12,13,12,20],[18,17,18,22],[21,17,21,22],[24,24,24,67],[27,24,27,67],[37,24,37,67],[100,17,100,22],[97,17,97,22],[87,17,87,22],[87,24,87,67],[8,24,8,67],[46,17,46,22],[75,17,75,22],[59,17,59,22],[62,17,62,22],[65,17,65,22],[68,17,68,22],[75,24,75,67],[68,24,68,67],[65,24,65,67],[62,24,62,67],[21,24,21,67],[6,77,13,77],[6,72,13,72],[6,74,13,74],[102,24,102,59],[97,24,97,67],[100,24,100,67],[46,24,46,67],[34,24,34,67],[6,71,13,71],[6,73,13,73],[6,75,13,75],[6,76,13,76],[6,70,13,70],[6,78,13,78],[0,79,0,84],[6,84,13,84],[6,83,13,83],[6,82,13,82],[6,81,13,81],[6,80,13,80],[6,79,13,79],[3,13,3,24],[6,13,6,20],[43,24,43,67],[59,24,59,67],[81,17,81,22],[81,24,81,67],[40,17,40,22],[40,24,40,67],[56,17,56,22],[56,24,56,67],[78,17,78,22],[78,24,78,67],[90,17,90,22],[90,24,90,67],[49,17,49,22],[49,24,49,67],[84,17,84,22],[84,24,84,67]]}
["On-site Stormwater Management Calculator - List Approach",null,null,null,null,null,null,null,null,null,null,null,null,null,null,null,null,null,null,null,null,null,null,null,null,null,null,null,null,null,null,null,null,null,null,null,null,null,null,null,null,null,null,null,null,null,null,null,null,null,null,null,null,null,null,null,null,null,null,null,null,null,null,null,null,null,null,null,null,null,null,null,null,null,null,null,null,"Column to Use",null,"Evaluation Required"]
["Surface Identification and BMP Evaluation for Parcel-Based Projects",null,null,null,null,null,null,null,null,null,null,null,null,null,null,null,null,null,null,null,null,null,null,null,null,null,null,null,null,null,null,null,null,null,null,null,null,null,null,null,null,null,null,null,null,null,null,null,null,null,null,null,null,null,null,null,null,null,null,null,null,null,null,null,null,null,null,null,null,null,"None Feasible",null,null,null,null,{"$f":"AND(COUNTIFS(BT19:BT101,\"Feasibility\",BV19:BV101,TRUE)=COUNTIF(BT19:BT101,\"Feasibility\"),COUNTIF(BX19:BX101,TRUE)=0)","v":false},null,{"$f":"OFFSET(CA2,0,IF($N$9=\"Roof\",0,3)+'Project Summary'!$AS$37)","v":4},null,1,2,3,4,5,6]
[]
[null,"Project No.",null,null,null,null,null,null,null,null,null,null,null,{"$f":"'Project Summary'!$AG$6","v":0},null,null,null,null,null,null,null,null,null,null,null,null,null,null,null,null,null,null,null,null,null,null,null,null,null,null,null,null,null,null,null,null,null,null,null,null,null,null,null,null,null,null,null,null,null,null,null,null,null,null,null,null,null,null,null,null,null,null,null,null,null,null,null,null,null,"Roof","Roof","Roof","Surface","Surface","Surface"]
[]
[]
[null,"Hard Surface Number",null,null,null,null,null,null,null,null,null,null,null,null,null,null,null,null,null,null,null,null,null,null,null,null,null,null,null,null,null,null,null,null,null,null,null,null,null,null,null,null,null,null,null,null,null,null,null,null,null,null,null,null,null,null,null,null,null,null,null,null,null,null,null,null,null,null,null,null,"BMP","Dropdown Lookup","Grey Out","Infeasible Selected","Infeasibility Criteria Selected","BMP Selected","Other BMP in Group Selected","Evaluation Required","Dispersion/Infiltration Infeasible","Not designated receiving water","Public combined sewer or capacity constrained","Designated Receiving Water","Not designated receiving water","Public combined sewer or capacity constrained","Designated Receiving Water"]
[]
[null,"Hard Surface Type",null,null,null,null,null,null,null,null,null,null,null,null,null,null,null,null,null,null,null,null,"´",null,{"$f":"IF(COUNTIF(BX19:BX104,TRUE)>1,\"More than one Use BMP selected, please select only one. \",\"\") & IF(SUMPRODUCT($BV$19:$BV$105*NOT(BW19:BW105)*NOT(BY19:BY105)) > 0,SUMPRODUCT($BV$19:$BV$105*NOT(BW19:BW105)*NOT(BY19:BY105))&\" BMP(s) require infeasibility criteria.\",\"\")","v":""}]
[]
[null,"Hard Surface Description"]
[]
[null,"Surface Area (sf)"]
[]
["Category 1            (Select 1 BMP from Category 1, order does not matter, or move to Category 2)",null,null,null,null,null,null,null,null,null,null,null,null,null,null,null,null,null,null,null,null,null,null,null,null,null,null,null,null,null,null,null,null,null,null,null,null,null,null,null,null,null,null,null,null,null,null,null,null,null,null,null,null,null,null,null,null,null,null,null,null,null,null,null,null,null,null,null,null,null,"Category 1"]
[]
[null,"BMP",null,null,null,null,null,null,null,null,null,null,null,null,null,null,null,"Feasibility",null,null,null,null,null,null,"Infeasibility Criteria (see infeasibility criteria tab for full text)"]
[]
[null,"Full Dispersion",null,null,null,null,null,null,null,null,null,null,null,null,null,null,null,null,null,null,null,null,null,null,null,null,null,null,null,null,null,null,null,null,null,null,null,null,null,null,null,null,null,null,null,null,null,null,null,null,null,null,null,null,null,null,null,null,null,null,null,null,null,null,null,null,null,null,null,null,"Full Dispersion",{"$f":"IF(BZ19,IF(CA19,\"Infeasible\",\"Feasibility\"),\"NoEval\")","v":"Feasibility"},{"$f":"IF(OR(BX19,R19=\"\"),FALSE,OR(NOT(BZ19),BV19))","v":false},{"$f":"R19=\"Infeasible\"","v":false},{"$f":"AND(BV19,NOT(Y19=\"\"))","v":false},{"$f":"R19=\"Use BMP\"","v":false},{"$f":"OR(BX22,BX25,BX28)","v":false},{"$f":"INDEX(CB19:CG19,MATCH($BZ$2,$CB$2:$CG$2,0))","v":true},{"$f":"Dispersion","v":false},true,true,true,true,true,true]
[]
[]
[null,"Infiltration Trench",null,null,null,null,null,null,null,null,null,null,null,null,null,null,null,null,null,null,null,null,null,null,null,null,null,null,null,null,null,null,null,null,null,null,null,null,null,null,null,null,null,null,null,null,null,null,null,null,null,null,null,null,null,null,null,null,null,null,null,null,null,null,null,null,null,null,null,null,"Infiltration Trench",{"$f":"IF(CA22,\"Infeasible\",IF(BZ22,\"Feasibility\",IF(N9=\"Roof\",\"NoEval\",\"NotRequired\")))","v":"NotRequired"},{"$f":"IF(OR(BX22,R22=\"\"),FALSE,OR(NOT(BZ22),BV22))","v":false},{"$f":"R22=\"Infeasible\"","v":false},{"$f":"AND(BV22,NOT(Y22=\"\"))","v":false},{"$f":"R22=\"Use BMP\"","v":false},{"$f":"OR(BX19,BX25,BX28)","v":false},{"$f":"INDEX(CB22:CG22,MATCH($BZ$2,$CB$2:$CG$2,0))","v":false},{"$f":"AND(InfExploration,OR(InfiltrationInfeasible,MeasuredInfRate<2))","v":false},true,true,true,false,false,false]
[null,null,{"$f":"IF(N9=\"\",\"\",IF(N9=\"Roof\",\"\",\"Evaluation is not required but allowed.\"))","v":""}]
[]
[null,"Dry Well",null,null,null,null,null,null,null,null,null,null,null,null,null,null,null,null,null,null,null,null,null,null,null,null,null,null,null,null,null,null,null,null,null,null,null,null,null,null,null,null,null,null,null,null,null,null,null,null,null,null,null,null,null,null,null,null,null,null,null,null,null,null,null,null,null,null,null,null,"Dry Well",{"$f":"IF(BZ25,IF(CA25,\"Infeasible\",\"Feasibility\"),IF(N9=\"Roof\",\"NoEval\",\"NotRequired\"))","v":"NotRequired"},{"$f":"IF(OR(BX25,R25=\"\"),FALSE,OR(NOT(BZ25),BV25))","v":false},{"$f":"R25=\"Infeasible\"","v":false},{"$f":"AND(BV25,NOT(Y25=\"\"))","v":false},{"$f":"R25=\"Use BMP\"","v":false},{"$f":"OR(BX19,BX22,BX28)","v":false},{"$f":"INDEX(CB25:CG25,MATCH($BZ$2,$CB$2:$CG$2,0))","v":false},{"$f":"AND(InfExploration,OR(InfiltrationInfeasible,MeasuredInfRate<5))","v":false},true,true,true,false,false,false]
[null,null,{"$f":"IF(N9=\"\",\"\",IF(N9=\"Roof\",\"\",\"Evaluation is not required but allowed.\"))","v":""}]
[]
[null,"Rainwater Harvesting - Category 1 Sizing",null,null,null,null,null,null,null,null,null,null,null,null,null,null,null,null,null,null,null,null,null,null,null,null,null,null,null,null,null,null,null,null,null,null,null,null,null,null,null,null,null,null,null,null,null,null,null,null,null,null,null,null,null,null,null,null,null,null,null,null,null,null,null,null,null,null,null,null,"Rainwater Harvesting - Category 1",{"$f":"IF(N9=\"Roof\",IF(BZ28,\"Feasibility\",\"NotRequired\"),\"NoEval\")","v":"NoEval"},{"$f":"IF(OR(BX28,R28=\"\"),FALSE,OR(NOT(BZ28),BV28))","v":false},{"$f":"R28=\"Infeasible\"","v":false},{"$f":"AND(BV28,NOT(Y28=\"\"))","v":false},{"$f":"R28=\"Use BMP\"","v":false},{"$f":"OR(BX19,BX22,BX25)","v":false},{"$f":"INDEX(CB28:CG28,MATCH($BZ$2,$CB$2:$CG$2,0))","v":false},null,{"$f":"(SUMIF('Project Summary'!$AY$78:$AY$83,\"Roof\",'Project Summary'!$W$78:$Z$79))>=10000","v":false},{"$f":"(SUMIF('Project Summary'!$AY$78:$AY$83,\"Roof\",'Project Summary'!$W$78:$Z$79))>=10000","v":false},false,false,false,false]
[null,null,{"$f":"IF($N$9=\"\",\"\",\nIF(N9=\"Roof\",IF(BZ2=3,\"Evaluation not required but allowed.\",\"\"),\"Evaluation not allowed for non-roof surfaces.\"))","v":""}]
[]
["Category 2",null,null,null,null,null,null,null,null,null,null,null,null,null,null,null,null,null,null,null,null,null,null,null,null,null,null,null,null,null,null,null,null,null,null,null,null,null,null,null,null,null,null,null,null,null,null,null,null,null,null,null,null,null,null,null,null,null,null,null,null,null,null,null,null,null,null,null,null,null,"Category 2",null,{"$f":"NOT(AND(BU19:BU28,N9<>\"\"))","v":true}]
[]
[null,"BMP",null,null,null,null,null,null,null,null,null,null,null,null,null,null,null,"Feasibility",null,null,null,null,null,null,"Infeasibility Criteria"]
[]
[null,"Rain Garden with or without Tree",null,null,null,null,null,null,null,null,null,null,null,null,null,null,null,null,null,null,null,null,null,null,null,null,null,null,null,null,null,null,null,null,null,null,null,null,null,null,null,null,null,null,null,null,null,null,null,null,null,null,null,null,null,null,null,null,null,null,null,null,null,null,null,null,null,null,null,null,"Rain Garden",{"$f":"IF(BZ35,IF(CA35,\"Infeasible\",\"Feasibility\"),\"NoEval\")","v":"Feasibility"},{"$f":"IF(OR(BX35,R35=\"\"),FALSE,OR(NOT(BZ35),BV35))","v":false},{"$f":"R35=\"Infeasible\"","v":false},{"$f":"AND(BV35,NOT(Y35=\"\"))","v":false},{"$f":"R35=\"Use BMP\"","v":false},{"$f":"OR(BX38,BX41,BX44,BX47,BX50)","v":false},{"$f":"INDEX(CB35:CG35,MATCH($BZ$2,$CB$2:$CG$2,0))","v":true},{"$f":"AND(InfExploration,OR(InfiltrationInfeasible,MeasuredInfRate<0.3))","v":false},{"$f":"AND(NOT('Project Summary'!$AS$45),NOT('Project Summary'!$AS$47),N13<5000)","v":true},{"$f":"AND(NOT('Project Summary'!$AS$45),NOT('Project Summary'!$AS$47),N13<5000)","v":true},{"$f":"AND(NOT('Project Summary'!$AS$45),NOT('Project Summary'!$AS$47),N13<5000)","v":true},{"$f":"AND(NOT('Project Summary'!$AS$45),NOT('Project Summary'!$AS$47),N13<5000)","v":true},{"$f":"AND(NOT('Project Summary'!$AS$45),NOT('Project Summary'!$AS$47),N13<5000)","v":true},{"$f":"AND(NOT('Project Summary'!$AS$45),NOT('Project Summary'!$AS$47),N13<5000)","v":true}]
[null,null,{"$f":"IF($N$9=\"\",\"\",IF(BZ35,\"\",\"Evaluation not allowed when project requires flow control or water quality treatment or >5000 SF hard surface is infiltrated onsite.\"))","v":""}]
[]
[null,"Infiltrating Bioretention with or without Tree",null,null,null,null,null,null,null,null,null,null,null,null,null,null,null,null,null,null,null,null,null,null,null,null,null,null,null,null,null,null,null,null,null,null,null,null,null,null,null,null,null,null,null,null,null,null,null,null,null,null,null,null,null,null,null,null,null,null,null,null,null,null,null,null,null,null,null,null,"Infiltrating Bioretention",{"$f":"IF(BZ38,IF(CA38,\"Infeasible\",\"Feasibility\"),\"NoEval\")","v":"Feasibility"},{"$f":"IF(OR(BX38,R38=\"\"),FALSE,OR(NOT(BZ38),BV38))","v":false},{"$f":"R38=\"Infeasible\"","v":false},{"$f":"AND(BV38,NOT(Y38=\"\"))","v":false},{"$f":"R38=\"Use BMP\"","v":false},{"$f":"OR(BX35,BX41,BX44,BX47,BX50)","v":false},{"$f":"INDEX(CB38:CG38,MATCH($BZ$2,$CB$2:$CG$2,0))","v":true},{"$f":"AND(InfExploration,OR(InfiltrationInfeasible,MeasuredInfRate<0.3))","v":false},true,true,true,true,true,true]
[]
[]
[null,"Infiltrating Soil Cell Bioretention with Tree",null,null,null,null,null,null,null,null,null,null,null,null,null,null,null,null,null,null,null,null,null,null,null,null,null,null,null,null,null,null,null,null,null,null,null,null,null,null,null,null,null,null,null,null,null,null,null,null,null,null,null,null,null,null,null,null,null,null,null,null,null,null,null,null,null,null,null,null,"Infiltrating Soil Cell Bioretention with Tree",{"$f":"IF(CA41,\"Infeasible\",\"NotRequired\")","v":"NotRequired"},{"$f":"IF(OR(BX41,R41=\"\"),FALSE,OR(NOT(BZ41),BV41))","v":false},{"$f":"R41=\"Infeasible\"","v":false},{"$f":"AND(BV41,NOT(Y41=\"\"))","v":false},{"$f":"R41=\"Use BMP\"","v":false},{"$f":"OR(BX38,BX35,BX47,BX50,BX44)","v":false},{"$f":"INDEX(CB41:CG41,MATCH($BZ$2,$CB$2:$CG$2,0))","v":false},{"$f":"AND(InfExploration,OR(InfiltrationInfeasible,MeasuredInfRate<0.3))","v":false},false,false,false,false,false,false]
[null,null,{"$f":"IF($N$9=\"\",\"\",\"Evaluation not required but allowed.\")","v":""}]
[]
[null,"Permeable Pavement Facility",null,null,null,null,null,null,null,null,null,null,null,null,null,null,null,null,null,null,null,null,null,null,null,null,null,null,null,null,null,null,null,null,null,null,null,null,null,null,null,null,null,null,null,null,null,null,null,null,null,null,null,null,null,null,null,null,null,null,null,null,null,null,null,null,null,null,null,null,"Permeable Pavement Facility",{"$f":"IF($CA$44,\"Infeasible\",\"Feasibility\")","v":"Feasibility"},{"$f":"IF(OR(BX44,R44=\"\"),FALSE,OR(NOT(BZ44),BV44))","v":false},{"$f":"R44=\"Infeasible\"","v":false},{"$f":"AND(BV44,NOT(Y44=\"\"))","v":false},{"$f":"R44=\"Use BMP\"","v":false},{"$f":"OR(BX35,BX38,BX41,BX47,BX50)","v":false},{"$f":"INDEX(CB44:CG44,MATCH($BZ$2,$CB$2:$CG$2,0))","v":true},{"$f":"AND(InfExploration,OR(InfiltrationInfeasible,MeasuredInfRate<0.3))","v":false},true,true,true,true,true,true]
[null,null,{"$f":"IF(BX44,\"Note: the surface area (\"&N13&\" sf) must represent the area contributing to the permeable pavement facility. Do not create a separate surface tab for the Permeable Pavement Facility, facility area will be entered on the BMP Sizing sheet.\",\"\")","v":""}]
[]
[null,"Permeable Pavement Surface",null,null,null,null,null,null,null,null,null,null,null,null,null,null,null,null,null,null,null,null,null,null,null,null,null,null,null,null,null,null,null,null,null,null,null,null,null,null,null,null,null,null,null,null,null,null,null,null,null,null,null,null,null,null,null,null,null,null,null,null,null,null,null,null,null,null,null,null,"Permeable Pavement Surface",{"$f":"IF(NOT($BZ$47),\"NoEval\",IF($CA$47,\"Infeasible\",\"Feasibility\"))","v":"Feasibility"},{"$f":"IF(OR(BX47,R47=\"\"),FALSE,OR(NOT(BZ47),BV47))","v":false},{"$f":"R47=\"Infeasible\"","v":false},{"$f":"AND(BV47,NOT(Y47=\"\"))","v":false},{"$f":"R47=\"Use BMP\"","v":false},{"$f":"OR(BX35,BX38,BX41,BX44,BX50)","v":false},{"$f":"INDEX(CB47:CG47,MATCH($BZ$2,$CB$2:$CG$2,0))","v":true},null,false,false,false,true,true,true]
[null,null,{"$f":"IF(N9=\"\",\"\",IF(N9=\"Roof\",\"Evaluation not allowed for roof surfaces.\",\"\"))","v":""}]
[]
[null,"Sidewalk/Trail Compost-Amended Strip",null,null,null,null,null,null,null,null,null,null,null,null,null,null,null,null,null,null,null,null,null,null,null,null,null,null,null,null,null,null,null,null,null,null,null,null,null,null,null,null,null,null,null,null,null,null,null,null,null,null,null,null,null,null,null,null,null,null,null,null,null,null,null,null,null,null,null,null,"Sidewalk/Trail Compost-Amended Strip",{"$f":"IF(NOT($BZ$50),\"NoEval\",\"Feasibility\")","v":"Feasibility"},{"$f":"IF(OR(BX50,R50=\"\"),FALSE,OR(NOT(BZ50),BV50))","v":false},{"$f":"R50=\"Infeasible\"","v":false},{"$f":"AND(BV50,NOT(Y50=\"\"))","v":false},{"$f":"R50=\"Use BMP\"","v":false},{"$f":"OR(BX35,BX38,BX41,BX44,BX47)","v":false},{"$f":"INDEX(CB50:CG50,MATCH($BZ$2,$CB$2:$CG$2,0))","v":true},{"$f":"AND(InfExploration,OR(InfiltrationInfeasible,InfRate<0.15), 'Project Summary'!$AA$60<>Lookup!$R$2)","v":false},false,false,false,true,true,true]
[null,null,{"$f":"IF(N9=\"\",\"\",IF(N9=\"Roof\",\"Evaluation not allowed for roof surfaces.\",\"\"))","v":""}]
[]
["Category 3",null,null,null,null,null,null,null,null,null,null,null,null,null,null,null,null,null,null,null,null,null,null,null,null,null,null,null,null,null,null,null,null,null,null,null,null,null,null,null,null,null,null,null,null,null,null,null,null,null,null,null,null,null,null,null,null,null,null,null,null,null,null,null,null,null,null,null,null,null,"Category 3",null,{"$f":"NOT(AND(BU19:BU28,BU32:BU50,N9<>\"\"))","v":true}]
[]
[null,"BMP",null,null,null,null,null,null,null,null,null,null,null,null,null,null,null,"Feasibility",null,null,null,null,null,null,"Infeasibility Criteria"]
[]
[null,"Infiltrating Soil Cell Bioretention w/o Tree",null,null,null,null,null,null,null,null,null,null,null,null,null,null,null,null,null,null,null,null,null,null,null,null,null,null,null,null,null,null,null,null,null,null,null,null,null,null,null,null,null,null,null,null,null,null,null,null,null,null,null,null,null,null,null,null,null,null,null,null,null,null,null,null,null,null,null,null,"Infiltrating Soil Cell Bioretention without Tree",{"$f":"IF(BZ57,IF(CA57,\"Infeasible\",\"Feasibility\"),\"NotRequired\")","v":"NotRequired"},{"$f":"IF(OR(BX57,R57=\"\"),FALSE,OR(NOT(BZ57),BV57))","v":false},{"$f":"R57=\"Infeasible\"","v":false},{"$f":"AND(BV57,NOT(Y57=\"\"))","v":false},{"$f":"R57=\"Use BMP\"","v":false},{"$f":"OR(BX69,BX63,BX66,BX60)","v":false},{"$f":"INDEX(CB57:CG57,MATCH($BZ$2,$CB$2:$CG$2,0))","v":false},{"$f":"AND(InfExploration,OR(InfiltrationInfeasible,MeasuredInfRate<0.3))","v":false},false,false,false,false,false,false]
[null,null,{"$f":"IF($N$9=\"\",\"\",\"Evaluation not required but allowed.\")","v":""}]
[]
[null,"Sheet Flow Dispersion",null,null,null,null,null,null,null,null,null,null,null,null,null,null,null,null,null,null,null,null,null,null,null,null,null,null,null,null,null,null,null,null,null,null,null,null,null,null,null,null,null,null,null,null,null,null,null,null,null,null,null,null,null,null,null,null,null,null,null,null,null,null,null,null,null,null,null,null,"Sheet Flow Dispersion",{"$f":"IF(BZ60,\"Feasibility\",\"Infeasible\")","v":"Feasibility"},{"$f":"IF(OR(BX60,R60=\"\"),FALSE,OR(NOT(BZ60),BV60))","v":false},{"$f":"R60=\"Infeasible\"","v":false},{"$f":"AND(BV60,NOT(Y60=\"\"))","v":false},{"$f":"R60=\"Use BMP\"","v":false},{"$f":"OR(BX63,BX66,BX69,BX57)","v":false},{"$f":"AND(INDEX(CB60:CG60,MATCH($BZ$2,$CB$2:$CG$2,0)),NOT(CA60))","v":true},{"$f":"Dispersion","v":false},true,true,true,true,true,true]
[]
[]
[null,"Concentrated Flow Dispersion",null,null,null,null,null,null,null,null,null,null,null,null,null,null,null,null,null,null,null,null,null,null,null,null,null,null,null,null,null,null,null,null,null,null,null,null,null,null,null,null,null,null,null,null,null,null,null,null,null,null,null,null,null,null,null,null,null,null,null,null,null,null,null,null,null,null,null,null,"Concentrated Flow Dispersion",{"$f":"IF(BZ63,\"Feasibility\",IF(N9=\"Roof\",\"NoEval\",\"Infeasible\"))","v":"Feasibility"},{"$f":"IF(OR(BX63,R63=\"\"),FALSE,OR(NOT(BZ63),BV63))","v":false},{"$f":"R63=\"Infeasible\"","v":false},{"$f":"AND(BV63,NOT(Y63=\"\"))","v":false},{"$f":"R63=\"Use BMP\"","v":false},{"$f":"OR(BX60,BX66,BX69,BX57)","v":false},{"$f":"AND(INDEX(CB63:CG63,MATCH($BZ$2,$CB$2:$CG$2,0)),NOT(CA63))","v":true},{"$f":"Dispersion","v":false},false,false,false,true,true,true]
[null,null,{"$f":"IF($N$9=\"Roof\",\"Evaluation not allowed for roof surfaces.\",\"\")","v":""}]
[]
[null,"Splashblock Downspout Dispersion",null,null,null,null,null,null,null,null,null,null,null,null,null,null,null,null,null,null,null,null,null,null,null,null,null,null,null,null,null,null,null,null,null,null,null,null,null,null,null,null,null,null,null,null,null,null,null,null,null,null,null,null,null,null,null,null,null,null,null,null,null,null,null,null,null,null,null,null,"Splashblock Downspout Dispersion",{"$f":"IF(BZ66,\"Feasibility\",IF(CA66,\"Infeasible\",\"NoEval\"))","v":"NoEval"},{"$f":"IF(OR(BX66,R66=\"\"),FALSE,OR(NOT(BZ66),BV66))","v":false},{"$f":"R66=\"Infeasible\"","v":false},{"$f":"AND(BV66,NOT(Y66=\"\"))","v":false},{"$f":"R66=\"Use BMP\"","v":false},{"$f":"OR(BX60,BX63,BX69,BX57)","v":false},{"$f":"AND(INDEX(CB66:CG66,MATCH($BZ$2,$CB$2:$CG$2,0)),NOT(CA66))","v":false},{"$f":"Dispersion","v":false},true,true,true,false,false,false]
[null,null,{"$f":"IF($N$9=\"\",\"\",IF($N$9=\"Roof\",\"\",\"Evaluation not allowed for non-roof surfaces.\"))","v":""}]
[]
[null,"Trench Downspout Dispersion",null,null,null,null,null,null,null,null,null,null,null,null,null,null,null,null,null,null,null,null,null,null,null,null,null,null,null,null,null,null,null,null,null,null,null,null,null,null,null,null,null,null,null,null,null,null,null,null,null,null,null,null,null,null,null,null,null,null,null,null,null,null,null,null,null,null,null,null,"Trench Downspout Dispersion",{"$f":"IF(BZ69,\"Feasibility\",IF(CA69,\"Infeasible\",\"NoEval\"))","v":"NoEval"},{"$f":"IF(OR(BX69,R69=\"\"),FALSE,OR(NOT(BZ69),BV69))","v":false},{"$f":"R69=\"Infeasible\"","v":false},{"$f":"AND(BV69,NOT(Y69=\"\"))","v":false},{"$f":"R69=\"Use BMP\"","v":false},{"$f":"OR(BX60,BX63,BX66,BX57)","v":false},{"$f":"AND(INDEX(CB69:CG69,MATCH($BZ$2,$CB$2:$CG$2,0)),NOT(CA69))","v":false},{"$f":"Dispersion","v":false},true,true,true,false,false,false]
[null,null,{"$f":"IF($N$9=\"\",\"\",IF($N$9=\"Roof\",\"\",\"Evaluation not allowed for non-roof surfaces.\"))","v":""}]
[]
["Category 4",null,null,null,null,null,null,null,null,null,null,null,null,null,null,null,null,null,null,null,null,null,null,null,null,null,null,null,null,null,null,null,null,null,null,null,null,null,null,null,null,null,null,null,null,null,null,null,null,null,null,null,null,null,null,null,null,null,null,null,null,null,null,null,null,null,null,null,null,null,"Category 4",null,{"$f":"NOT(AND(BU18:BU28,BU34:BU51,BU57:BU69,N9<>\"\"))","v":true}]
[]
[null,"BMP",null,null,null,null,null,null,null,null,null,null,null,null,null,null,null,"Feasibility",null,null,null,null,null,null,"Infeasibility Criteria"]
[]
[null,"Non-Infiltrating Bioretention (NIB)",null,null,null,null,null,null,null,null,null,null,null,null,null,null,null,null,null,null,null,null,null,null,null,null,null,null,null,null,null,null,null,null,null,null,null,null,null,null,null,null,null,null,null,null,null,null,null,null,null,null,null,null,null,null,null,null,null,null,null,null,null,null,null,null,null,null,null,null,"Non-Infiltrating Bioretention",{"$f":"IF(BZ76,\"Feasibility\",\"Infeasible\")","v":"Feasibility"},{"$f":"IF(OR(BX76,R76=\"\"),FALSE,OR(NOT(BZ76),BV76))","v":false},{"$f":"R76=\"Infeasible\"","v":false},{"$f":"AND(BV76,NOT(Y76=\"\"))","v":false},{"$f":"R76=\"Use BMP\"","v":false},{"$f":"OR(BX82,BX85,BX88,BX79,BX91)","v":false},{"$f":"INDEX(CB76:CG76,MATCH($BZ$2,$CB$2:$CG$2,0))","v":true},null,true,true,true,true,true,true]
[]
[null,null,null,null,null,null,null,null,null,null,null,null,null,null,null,null,null,null,null,null,null,null,null,null,null,null,null,null,null,null,null,null,null,null,null,null,null,null,null,null,null,null,null,null,null,null,null,null,null,null,null,null,null,null,null,null,null,null,null,null,null,null,null,null,null,null,null,null,null,null,null,"\""]
[null,"Non-Infiltrating Soil Cell Bioretention with Tree",null,null,null,null,null,null,null,null,null,null,null,null,null,null,null,null,null,null,null,null,null,null,null,null,null,null,null,null,null,null,null,null,null,null,null,null,null,null,null,null,null,null,null,null,null,null,null,null,null,null,null,null,null,null,null,null,null,null,null,null,null,null,null,null,null,null,null,null,"Non-Infiltrating Soil Cell Bioretention with Tree",{"$f":"IF(BZ79,\"Feasibility\",\"NotRequired\")","v":"NotRequired"},{"$f":"IF(OR(BX79,R79=\"\"),FALSE,OR(NOT(BZ79),BV79))","v":false},{"$f":"R79=\"Infeasible\"","v":false},{"$f":"AND(BV79,NOT(Y79=\"\"))","v":false},{"$f":"R79=\"Use BMP\"","v":false},{"$f":"OR(BX85,BX88,BX82,BX76,BX91)","v":false},{"$f":"INDEX(CB79:CG79,MATCH($BZ$2,$CB$2:$CG$2,0))","v":false},null,false,false,false,false,false,false]
[null,null,{"$f":"IF($N$9=\"\",\"\",\"Evaluation not required but allowed.\")","v":""}]
[null,null,null,null,null,null,null,null,null,null,null,null,null,null,null,null,null,null,null,null,null,null,null,null,null,null,null,null,null,null,null,null,null,null,null,null,null,null,null,null,null,null,null,null,null,null,null,null,null,null,null,null,null,null,null,null,null,null,null,null,null,null,null,null,null,null,null,null,null,null,null,"\""]
[null,"Water Quality BMP in lieu of NIB",null,null,null,null,null,null,null,null,null,null,null,null,null,null,null,null,null,null,null,null,null,null,null,null,null,null,null,null,null,null,null,null,null,null,null,null,null,null,null,null,null,null,null,null,null,null,null,null,null,null,null,null,null,null,null,null,null,null,null,null,null,null,null,null,null,null,null,null,"Water Quality BMP in lieu of NIB",{"$f":"IF('Project Summary'!$Q$37=Lookup!$I$5,\"NoEval\",\"UseorNotEvaluated\")","v":"UseorNotEvaluated"},{"$f":"IF(OR(BX82,R82=\"\"),FALSE,OR(NOT(BZ82),BV82))","v":false},{"$f":"R82=\"Infeasible\"","v":false},{"$f":"AND(BV82,NOT(Y82=\"\"))","v":false},{"$f":"R82=\"Use BMP\"","v":false},{"$f":"OR(BX76,BX85,BX88,BX79,BX91)","v":false},{"$f":"INDEX(CB82:CG82,MATCH($BZ$2,$CB$2:$CG$2,0))","v":false},null,{"$f":"AND(FALSE,NOT('Project Summary'!$Q$37=Lookup!$I$5))","v":false},{"$f":"AND(FALSE,NOT('Project Summary'!$Q$37=Lookup!$I$5))","v":false},{"$f":"AND(FALSE,NOT('Project Summary'!$Q$37=Lookup!$I$5))","v":false},{"$f":"AND(FALSE,NOT('Project Summary'!$Q$37=Lookup!$I$5))","v":false},{"$f":"AND(FALSE,NOT('Project Summary'!$Q$37=Lookup!$I$5))","v":false},{"$f":"AND(FALSE,NOT('Project Summary'!$Q$37=Lookup!$I$5))","v":false}]
[null,null,{"$f":"IF(N9=\"\",\"\",IF('Project Summary'!Q37=Lookup!I5,\"Evaluation not allowed in Combined Sewer Service Area.\",\"Evaluation is allowed but not required.\"))","v":""}]
[]
[null,"Rainwater Harvesting - Category 4 Sizing",null,null,null,null,null,null,null,null,null,null,null,null,null,null,null,null,null,null,null,null,null,null,null,null,null,null,null,null,null,null,null,null,null,null,null,null,null,null,null,null,null,null,null,null,null,null,null,null,null,null,null,null,null,null,null,null,null,null,null,null,null,null,null,null,null,null,null,null,"Rainwater Harvesting - Category 4",{"$f":"IF(N9=\"Roof\",IF(BZ85,\"Feasibility\",\"NotRequired\"),\"NoEval\")","v":"NoEval"},{"$f":"IF(OR(BX85,R85=\"\"),FALSE,OR(NOT(BZ85),BV85))","v":false},{"$f":"R85=\"Infeasible\"","v":false},{"$f":"AND(BV85,NOT(Y85=\"\"))","v":false},{"$f":"R85=\"Use BMP\"","v":false},{"$f":"OR(BX76,BX82,BX88,BX79,BX91)","v":false},{"$f":"INDEX(CB85:CG85,MATCH($BZ$2,$CB$2:$CG$2,0))","v":false},null,{"$f":"IF((SUMIF('Project Summary'!$AY$78:$AY$83,\"Roof\",'Project Summary'!$W$78:$Z$79))<20000,FALSE,TRUE)","v":false},{"$f":"IF((SUMIF('Project Summary'!$AY$78:$AY$83,\"Roof\",'Project Summary'!$W$78:$Z$79))<20000,FALSE,TRUE)","v":false},false,false,false,false]
[null,null,{"$f":"IF($N$9=\"\",\"\",\nIF(BZ2=3,\"Evaluation not required but allowed.\",\nIF(N9=\"Roof\",\"Evaluation not required for less than 20,000 sf of new and replaced rooftop but allowed.\",\"Evaluation not allowed for non-roof surfaces.\")))","v":""}]
[]
[null,"Vegetated Roof System",null,null,null,null,null,null,null,null,null,null,null,null,null,null,null,null,null,null,null,null,null,null,null,null,null,null,null,null,null,null,null,null,null,null,null,null,null,null,null,null,null,null,null,null,null,null,null,null,null,null,null,null,null,null,null,null,null,null,null,null,null,null,null,null,null,null,null,null,"Vegetated Roof System",{"$f":"IF(N9=\"Roof\",IF(BZ88,\"Feasibility\",\"NotRequired\"),\"NoEval\")","v":"NoEval"},{"$f":"IF(OR(BX88,R88=\"\"),FALSE,OR(NOT(BZ88),BV88))","v":false},{"$f":"R88=\"Infeasible\"","v":false},{"$f":"AND(BV88,NOT(Y88=\"\"))","v":false},{"$f":"R88=\"Use BMP\"","v":false},{"$f":"OR(BX76,BX82,BX85,BX79,BX91)","v":false},{"$f":"INDEX(CB88:CG88,MATCH($BZ$2,$CB$2:$CG$2,0))","v":false},null,{"$f":"IF((SUMIF('Project Summary'!$AY$78:$AY$83,\"Roof\",'Project Summary'!$W$78:$Z$79))<5000,FALSE,TRUE)","v":false},{"$f":"IF((SUMIF('Project Summary'!$AY$78:$AY$83,\"Roof\",'Project Summary'!$W$78:$Z$79))<5000,FALSE,TRUE)","v":false},{"$f":"IF((SUMIF('Project Summary'!$AY$78:$AY$83,\"Roof\",'Project Summary'!$W$78:$Z$79))<5000,FALSE,TRUE)","v":false},false,false,false]
[null,null,{"$f":"IF($N$9=\"\",\"\",IF(N9=\"Roof\",IF(NOT(BZ88),\"Evaluation not required but allowed.\",\"Evaluation not required for less than 5,000 sf of new plus replaced rooftop surface.\"),\"Evaluation not allowed for non-roof surfaces.\"))","v":""}]
[]
[null,"Residential Cistern",null,null,null,null,null,null,null,null,null,null,null,null,null,null,null,null,null,null,null,null,null,null,null,null,null,null,null,null,null,null,null,null,null,null,null,null,null,null,null,null,null,null,null,null,null,null,null,null,null,null,null,null,null,null,null,null,null,null,null,null,null,null,null,null,null,null,null,null,"Residential Cistern",{"$f":"IF(N9=\"Roof\",\"NotRequired\",\"NoEval\")","v":"NoEval"},{"$f":"IF(OR(BX91,R91=\"\"),FALSE,OR(NOT(BZ91),BV91))","v":false},{"$f":"R91=\"Infeasible\"","v":false},{"$f":"AND(BV91,NOT(Y91=\"\"))","v":false},{"$f":"R91=\"Use BMP\"","v":false},{"$f":"OR(BX82,BX88,BX79,BX85,BX76)","v":false},{"$f":"INDEX(CB91:CG91,MATCH($BZ$2,$CB$2:$CG$2,0))","v":false},null,false,false,false,false,false,false]
[null,null,{"$f":"IF($N$9=\"\",\"\",IF($N$9=\"Roof\",\"Evaluate not required but allowed.\",\"Evaluation not allowed for non-roof surfaces.\"))","v":""}]
[]
["Category 5",null,null,null,null,null,null,null,null,null,null,null,null,null,null,null,null,null,null,null,null,null,null,null,null,null,null,null,null,null,null,null,null,null,null,null,null,null,null,null,null,null,null,null,null,null,null,null,null,null,null,null,null,null,null,null,null,null,null,null,null,null,null,null,null,null,null,null,null,null,"Category 5",null,{"$f":"NOT(AND(BU19:BU28,BU32:BU50,BU54:BU69,BU76:BU91,N9<>\"\"))","v":true}]
[]
[null,"BMP",null,null,null,null,null,null,null,null,null,null,null,null,null,null,null,"Feasibility",null,null,null,null,null,null,"Infeasibility Criteria"]
[]
[null,"Perforated Stub-out Connection",null,null,null,null,null,null,null,null,null,null,null,null,null,null,null,null,null,null,null,null,null,null,null,null,null,null,null,null,null,null,null,null,null,null,null,null,null,null,null,null,null,null,null,null,null,null,null,null,null,null,null,null,null,null,null,null,null,null,null,null,null,null,null,null,null,null,null,null,"Perforated Stub-out Connection",{"$f":"IF(N9=\"Roof\",IF(CA98,\"Infeasible\",\"Feasibility\"),\"NoEval\")","v":"NoEval"},{"$f":"IF(OR(BX98,R98=\"\"),FALSE,OR(NOT(BZ98),BV98))","v":false},{"$f":"R98=\"Infeasible\"","v":false},{"$f":"AND(BV98,NOT(Y98=\"\"))","v":false},{"$f":"R98=\"Use BMP\"","v":false},{"$f":"BX101","v":false},{"$f":"INDEX(CB98:CG98,MATCH($BZ$2,$CB$2:$CG$2,0))","v":false},{"$f":"AND(InfExploration,OR(InfiltrationInfeasible,MeasuredInfRate<0.3))","v":false},true,true,true,false,false,false]
[null,null,{"$f":"IF($N$9=\"\",\"\",IF(N9=\"Roof\",\"\",\"Evaluation not allowed for non-roof surfaces.\"))","v":""}]
[]
[null,"Trees",null,null,null,null,null,null,null,null,null,null,null,null,null,null,null,null,null,null,null,null,null,null,null,null,null,null,null,null,null,null,null,null,null,null,null,null,null,null,null,null,null,null,null,null,null,null,null,null,null,null,null,null,null,null,null,null,null,null,null,null,null,null,null,null,null,null,null,null,"Trees",{"$f":"IF(N9=\"Roof\",\"NoEval\",\"Feasibility\")","v":"Feasibility"},{"$f":"IF(OR(BX101,R101=\"\"),FALSE,OR(NOT(BZ101),BV101))","v":false},{"$f":"R101=\"Infeasible\"","v":false},{"$f":"AND(BV101,NOT(Y101=\"\"))","v":false},{"$f":"R101=\"Use BMP\"","v":false},{"$f":"BX98","v":false},{"$f":"INDEX(CB101:CG101,MATCH($BZ$2,$CB$2:$CG$2,0))","v":true},null,false,false,false,true,true,true]
[null,null,{"$f":"IF(NOT(BZ101),\"Evaluation not allowed for roof surfaces.\",\"\")","v":""}]

{"sheet":"log","index":5,"n_rows":0,"n_cols":0,"rows_kept":0,"cut":false,"hidden":true,"merged":[]}

{"sheet":"Lookup","index":6,"n_rows":407,"n_cols":25,"rows_kept":407,"cut":false,"hidden":true,"merged":[]}
["Project Type","Surface Type","BMP Feasibility","Ponding Depths","Side slopes","YesNo","Check","No Eval","Drainage Basin","Basin + Capacity Constrained","On-Site List Lookup Column","Sheet Name","Infeasible Infiltration",null,"Empty List","Environmentally Critical Areas","Dispersion Infeasible","Infiltration Investigation No","Infiltration Investigation Yes","Infiltration Infeasible","ROW Surface List","Approved Point of Stormwater Discharge","Approved Point of Sub Discharge","Approved Point of Wastewater Discharge","Does Not Apply"]
["Trail and Sidewalk","Roof","-",6,"Vertical","Yes",null,"Not Evaluated","Listed Creek Basin","Listed Creek BasinYes",1,"Trail","Infeasible",null,{"$f":"\"\"","v":""},"No","Site cannot meet required horizontal setbacks ","Site is mapped as \"infltr. investigation not required\"","Simple infiltration test","Can’t meet setbacks from structures/property lines","ROW","Public Storm Drain Main ","Public Storm Drain Main ","Public Sanitary Sewer Main","Does Not Apply for Roadway or Trail and Sidewalk projects"]
["Parcel-Based","Non-Roof","Infeasible",12,"3H:1V","No","✓","Evaluation not required for roof.","Non-listed Creek Basin","Non-listed Creek BasinYes",1,"Parcel","Infiltration is infeasible on site.",null,null,"Geologic Hazard/ Steep Slope Area","Site constraints make dispersion infeasible","Other","Small PIT test","Can’t meet separation from groundwater/hard pan","Alley","Drainage Ditch","Drainage Ditch","Public Combined Sewer Main"]
["Roadway",null,"Use BMP",null,null,null,null,"Evaluation not required for other surfaces.","Designated Receiving Water","Designated Receiving WaterYes",2,"Road","Dispersion is infeasible",null,null,"Flood-prone Area","Site cannot meet flow path requirements ",null,"Large PIT test","Can’t meet setbacks from environmental “Site Constraints”","Arterial Street or Collector","Drainage Culvert","Drainage Culvert","Existing Septic System (King County Public Health Department Approval Required)"]
["Utility",null,"Not Evaluated",null,null,null,null,null,"Combined Sewer Service Area","Combined Sewer Service AreaYes",2,"x",null,null,null,"Wetland","One or more of the infeasibility criteria for “All Dispersion BMPs” (Appendix C, Table C.1) apply.",null,"Deep infiltration test","Measured infl rate is less than 0.3 inch/hour","Roadway","Curb Weep","Direct to Receiving Water"]
["Pavement Maintenance",null,"None Feasible",null,null,null,null,null,"Small Lake Basins","Small Lake BasinsYes",1,"x",null,null,null,"Fish and Wildlife Conservation Area",null,null,null,"Site is mapped as \"infltr. investigation not required\"","Other","Alley Surface Drain","Wetland"]
["Remediation",null,null,null,null,null,null,null,"Wetland","WetlandYes",1,"x",null,null,null,"Abandoned Landfill",null,null,null,null,null,"Direct to Receiving Water","Public Combined Sewer Main"]
["Stormwater Retrofit",null,null,null,null,null,null,null,"N/A for Residential and Lowrise Projects","Listed Creek BasinNo",1,"x",null,null,null,null,null,null,null,null,null,"Wetland","On Site Infiltration "]
[null,null,null,null,null,null,null,null,null,"Non-listed Creek BasinNo",1,null,null,null,null,null,null,null,null,null,null,"Public Combined Sewer Main"]
[null,null,null,null,null,null,null,null,null,"Designated Receiving WaterNo",3,null,null,null,null,null,null,null,null,null,null,"On Site Infiltration (No Off-site Point of Discharge)"]
[null,null,null,null,null,null,null,null,null,"Combined Sewer Service AreaNo",2,null,null,null,null,null,null,null,null,null,null,"Other"]
[null,null,null,null,null,null,null,null,null,"Small Lake BasinsNo",1]
[null,null,null,null,null,null,null,null,null,"WetlandNo",1]
[null,null,null,null,null,null,null,null,null,"Listed Creek Basin",1]
[null,null,null,null,null,null,null,null,null,"Non-listed Creek Basin",1]
[null,null,null,null,null,null,null,null,null,"Designated Receiving Water",3]
[null,null,null,null,null,null,null,null,null,"Combined Sewer Service Area",2]
[null,null,null,null,null,null,null,null,null,"Small Lake Basins",1]
[null,null,null,null,null,null,null,null,null,"Wetland",1]
["Full Dispersion","Infiltration Trench","Dry Well","Rain Garden","Infiltrating Bioretention","Rainwater Harvesting","Permeable Pavement Facility","Permeable Pavement Surface","Sheet Flow Dispersion","Concentrated Dispersion","Splashblock Downspout Dispersion","Trench Downspout Dispersion","Non-Infiltrating Bioretention","Vegetated Roof","Residential Cistern","Perforated Stub-out Connection","New or Retained Trees","Sidewalk/Trail Compost-Amended Strip","Water Quality BMP in lieu of NIB","Infiltrating Soil Cell Bioretention with Tree","Infiltrating Soil Cell Bioretention without Tree","Non-Infiltrating Soil Cell Bioretention with Tree"]
["Full Dispersion","Infiltration Trench #1","Dry Well #1","Rain Garden #1","Infiltrating Bioretention #1","Rainwater Harvesting - Category 1","Permeable Pavement Facility #1","Permeable Pavement Surface #1","Sheet Flow Dispersion","Concentrated Flow Dispersion","Splashblock Downspout Dispersion","Trench Downspout Dispersion","Non-Infiltrating Bioretention #1","Vegetated Roof System #1","Residential Cistern #1","Perforated Stub-out Connection","Trees #1","Sidewalk/Trail Compost-Amended Strip","Water Quality BMP in lieu of NIB #1","Infiltrating Soil Cell Bioretention with Tree #1","Infiltrating Soil Cell Bioretention without Tree #1","Non-Infiltrating Soil Cell Bioretention with Tree #1"]
[null,"Infiltration Trench #2","Dry Well #2","Rain Garden #2","Infiltrating Bioretention #2","Rainwater Harvesting - Category 2","Permeable Pavement Facility #2","Permeable Pavement Surface #2",null,null,null,null,"Non-Infiltrating Bioretention #2","Vegetated Roof System #2","Residential Cistern #2",null,"Trees #2",null,"Water Quality BMP in lieu of NIB #2","Infiltrating Soil Cell Bioretention with Tree #2","Infiltrating Soil Cell Bioretention without Tree #2","Non-Infiltrating Soil Cell Bioretention with Tree #2"]
[null,"Infiltration Trench #3","Dry Well #3","Rain Garden #3","Infiltrating Bioretention #3","Rainwater Harvesting - Category 4","Permeable Pavement Facility #3","Permeable Pavement Surface #3",null,null,null,null,"Non-Infiltrating Bioretention #3","Vegetated Roof System #3","Residential Cistern #3",null,"Trees #3",null,"Water Quality BMP in lieu of NIB #3","Infiltrating Soil Cell Bioretention with Tree #3","Infiltrating Soil Cell Bioretention without Tree #3","Non-Infiltrating Soil Cell Bioretention with Tree #3"]
[null,"Infiltration Trench #4","Dry Well #4","Rain Garden #4","Infiltrating Bioretention #4",null,"Permeable Pavement Facility #4","Permeable Pavement Surface #4",null,null,null,null,"Non-Infiltrating Bioretention #4","Vegetated Roof System #4","Residential Cistern #4",null,"Trees #4",null,"Water Quality BMP in lieu of NIB #4","Infiltrating Soil Cell Bioretention with Tree #4","Infiltrating Soil Cell Bioretention without Tree #4","Non-Infiltrating Soil Cell Bioretention with Tree #4"]
[null,"Infiltration Trench #5","Dry Well #5","Rain Garden #5","Infiltrating Bioretention #5",null,"Permeable Pavement Facility #5","Permeable Pavement Surface #5",null,null,null,null,"Non-Infiltrating Bioretention #5","Vegetated Roof System #5","Residential Cistern #5",null,"Trees #5",null,"Water Quality BMP in lieu of NIB #5","Infiltrating Soil Cell Bioretention with Tree #5","Infiltrating Soil Cell Bioretention without Tree #5","Non-Infiltrating Soil Cell Bioretention with Tree #5"]
[null,"Infiltration Trench #6","Dry Well #6","Rain Garden #6","Infiltrating Bioretention #6",null,"Permeable Pavement Facility #6","Permeable Pavement Surface #6",null,null,null,null,"Non-Infiltrating Bioretention #6","Vegetated Roof System #6","Residential Cistern #6",null,"Trees #6",null,"Water Quality BMP in lieu of NIB #6","Infiltrating Soil Cell Bioretention with Tree #6","Infiltrating Soil Cell Bioretention without Tree #6","Non-Infiltrating Soil Cell Bioretention with Tree #6"]
[null,"Infiltration Trench #7","Dry Well #7","Rain Garden #7","Infiltrating Bioretention #7",null,"Permeable Pavement Facility #7","Permeable Pavement Surface #7",null,null,null,null,"Non-Infiltrating Bioretention #7","Vegetated Roof System #7","Residential Cistern #7",null,"Trees #7",null,"Water Quality BMP in lieu of NIB #7","Infiltrating Soil Cell Bioretention with Tree #7","Infiltrating Soil Cell Bioretention without Tree #7","Non-Infiltrating Soil Cell Bioretention with Tree #7"]
[null,"Infiltration Trench #8","Dry Well #8","Rain Garden #8","Infiltrating Bioretention #8",null,"Permeable Pavement Facility #8","Permeable Pavement Surface #8",null,null,null,null,"Non-Infiltrating Bioretention #8","Vegetated Roof System #8","Residential Cistern #8",null,"Trees #8",null,"Water Quality BMP in lieu of NIB #8","Infiltrating Soil Cell Bioretention with Tree #8","Infiltrating Soil Cell Bioretention without Tree #8","Non-Infiltrating Soil Cell Bioretention with Tree #8"]
[null,"Infiltration Trench #9","Dry Well #9","Rain Garden #9","Infiltrating Bioretention #9",null,"Permeable Pavement Facility #9","Permeable Pavement Surface #9",null,null,null,null,"Non-Infiltrating Bioretention #9","Vegetated Roof System #9","Residential Cistern #9",null,"Trees #9",null,"Water Quality BMP in lieu of NIB #9","Infiltrating Soil Cell Bioretention with Tree #9","Infiltrating Soil Cell Bioretention without Tree #9","Non-Infiltrating Soil Cell Bioretention with Tree #9"]
[null,"Infiltration Trench #10","Dry Well #10","Rain Garden #10","Infiltrating Bioretention #10",null,"Permeable Pavement Facility #10","Permeable Pavement Surface #10",null,null,null,null,"Non-Infiltrating Bioretention #10","Vegetated Roof System #10","Residential Cistern #10",null,"Trees #10",null,"Water Quality BMP in lieu of NIB #10","Infiltrating Soil Cell Bioretention with Tree #10","Infiltrating Soil Cell Bioretention without Tree #10","Non-Infiltrating Soil Cell Bioretention with Tree #10"]
[null,"Infiltration Trench #11","Dry Well #11","Rain Garden #11","Infiltrating Bioretention #11",null,"Permeable Pavement Facility #11","Permeable Pavement Surface #11",null,null,null,null,"Non-Infiltrating Bioretention #11","Vegetated Roof System #11","Residential Cistern #11",null,"Trees #11",null,"Water Quality BMP in lieu of NIB #11","Infiltrating Soil Cell Bioretention with Tree #11","Infiltrating Soil Cell Bioretention without Tree #11","Non-Infiltrating Soil Cell Bioretention with Tree #11"]
[null,"Infiltration Trench #12","Dry Well #12","Rain Garden #12","Infiltrating Bioretention #12",null,"Permeable Pavement Facility #12","Permeable Pavement Surface #12",null,null,null,null,"Non-Infiltrating Bioretention #12","Vegetated Roof System #12","Residential Cistern #12",null,"Trees #12",null,"Water Quality BMP in lieu of NIB #12","Infiltrating Soil Cell Bioretention with Tree #12","Infiltrating Soil Cell Bioretention without Tree #12","Non-Infiltrating Soil Cell Bioretention with Tree #12"]
[null,"Infiltration Trench #13","Dry Well #13","Rain Garden #13","Infiltrating Bioretention #13",null,"Permeable Pavement Facility #13","Permeable Pavement Surface #13",null,null,null,null,"Non-Infiltrating Bioretention #13","Vegetated Roof System #13","Residential Cistern #13",null,"Trees #13",null,"Water Quality BMP in lieu of NIB #13","Infiltrating Soil Cell Bioretention with Tree #13","Infiltrating Soil Cell Bioretention without Tree #13","Non-Infiltrating Soil Cell Bioretention with Tree #13"]
[null,"Infiltration Trench #14","Dry Well #14","Rain Garden #14","Infiltrating Bioretention #14",null,"Permeable Pavement Facility #14","Permeable Pavement Surface #14",null,null,null,null,"Non-Infiltrating Bioretention #14","Vegetated Roof System #14","Residential Cistern #14",null,"Trees #14",null,"Water Quality BMP in lieu of NIB #14","Infiltrating Soil Cell Bioretention with Tree #14","Infiltrating Soil Cell Bioretention without Tree #14","Non-Infiltrating Soil Cell Bioretention with Tree #14"]
[null,"Infiltration Trench #15","Dry Well #15","Rain Garden #15","Infiltrating Bioretention #15",null,"Permeable Pavement Facility #15","Permeable Pavement Surface #15",null,null,null,null,"Non-Infiltrating Bioretention #15","Vegetated Roof System #15","Residential Cistern #15",null,"Trees #15",null,"Water Quality BMP in lieu of NIB #15","Infiltrating Soil Cell Bioretention with Tree #15","Infiltrating Soil Cell Bioretention without Tree #15","Non-Infiltrating Soil Cell Bioretention with Tree #15"]
[null,"Infiltration Trench #16","Dry Well #16","Rain Garden #16","Infiltrating Bioretention #16",null,"Permeable Pavement Facility #16","Permeable Pavement Surface #16",null,null,null,null,"Non-Infiltrating Bioretention #16","Vegetated Roof System #16","Residential Cistern #16",null,"Trees #16",null,"Water Quality BMP in lieu of NIB #16","Infiltrating Soil Cell Bioretention with Tree #16","Infiltrating Soil Cell Bioretention without Tree #16","Non-Infiltrating Soil Cell Bioretention with Tree #16"]
[null,"Infiltration Trench #17","Dry Well #17","Rain Garden #17","Infiltrating Bioretention #17",null,"Permeable Pavement Facility #17","Permeable Pavement Surface #17",null,null,null,null,"Non-Infiltrating Bioretention #17","Vegetated Roof System #17","Residential Cistern #17",null,"Trees #17",null,"Water Quality BMP in lieu of NIB #17","Infiltrating Soil Cell Bioretention with Tree #17","Infiltrating Soil Cell Bioretention without Tree #17","Non-Infiltrating Soil Cell Bioretention with Tree #17"]
[null,"Infiltration Trench #18","Dry Well #18","Rain Garden #18","Infiltrating Bioretention #18",null,"Permeable Pavement Facility #18","Permeable Pavement Surface #18",null,null,null,null,"Non-Infiltrating Bioretention #18","Vegetated Roof System #18","Residential Cistern #18",null,"Trees #18",null,"Water Quality BMP in lieu of NIB #18","Infiltrating Soil Cell Bioretention with Tree #18","Infiltrating Soil Cell Bioretention without Tree #18","Non-Infiltrating Soil Cell Bioretention with Tree #18"]
[null,"Infiltration Trench #19","Dry Well #19","Rain Garden #19","Infiltrating Bioretention #19",null,"Permeable Pavement Facility #19","Permeable Pavement Surface #19",null,null,null,null,"Non-Infiltrating Bioretention #19","Vegetated Roof System #19","Residential Cistern #19",null,"Trees #19",null,"Water Quality BMP in lieu of NIB #19","Infiltrating Soil Cell Bioretention with Tree #19","Infiltrating Soil Cell Bioretention without Tree #19","Non-Infiltrating Soil Cell Bioretention with Tree #19"]
[null,"Infiltration Trench #20","Dry Well #20","Rain Garden #20","Infiltrating Bioretention #20",null,"Permeable Pavement Facility #20","Permeable Pavement Surface #20",null,null,null,null,"Non-Infiltrating Bioretention #20","Vegetated Roof System #20","Residential Cistern #20",null,"Trees #20",null,"Water Quality BMP in lieu of NIB #20","Infiltrating Soil Cell Bioretention with Tree #20","Infiltrating Soil Cell Bioretention without Tree #20","Non-Infiltrating Soil Cell Bioretention with Tree #20"]
[]
[null,"List 1","List 1","List 1","List 1",null,"List 1",null,null,null,null,null,"List 1","List 1",null,null,"List 1","List 1",null,"List 1",null,"List 1"]
[null,18,4,2,2,null,6,null,null,null,null,null,2,"Single-Course",null,null,"New Deciduous","< 10",null,2,null,2]
[null,36,null,6,6,null,12,null,null,null,null,null,6,"Multi-Course",null,null,"New Evergreen","≥ 10",null,6,null,6]
[null,null,null,null,12,null,null,null,null,null,null,null,12,null,null,null,"Retain Deciduous",null,null,12,null,12]
[null,null,null,"List 2","List 2",null,"List 2",null,null,null,null,null,"List 2","List 2",null,null,"Retain Evergreen",null,null,"List 2"]
[null,null,null,"Sloped sides","Sloped sides",null,"0%",null,null,null,null,null,"Sloped sides",4,null,null,null,null,null,"Underdrain"]
[null,null,null,"Vertical sides","Vertical sides",null,"5%",null,null,null,null,null,"Vertical sides",8,null,null,"List 2",null,null,"No Underdrain"]
[null,null,null,null,null,null,"10%",null,null,null,null,null,null,null,null,null,1]
[null,null,null,null,"List 3",null,"15%",null,null,null,null,null,null,"List 3",null,null,2,null,null,"List 3","Minimum Tree Soil Volume","List 2"]
[null,null,null,null,"Underdrain",null,"20%",null,null,null,null,null,null,null,null,null,3,null,null,"Constrained Site Tree",{"$f":"250-48","v":202},"Constrained Site Tree"]
[null,null,null,null,"No Underdrain",null,"25%",null,null,null,null,null,null,null,null,null,4,null,null,"Small Tree",{"$f":"500-48","v":452},"Small Tree"]
[null,null,null,null,null,null,"30%",null,null,null,null,null,null,null,null,null,5,null,null,"Small/Medium Tree",{"$f":"1000-48","v":952},"Small/Medium Tree"]
[null,null,null,null,null,null,"35%",null,null,null,null,null,null,null,null,null,6,null,null,"Medium/Large Tree",{"$f":"1000-48","v":952},"Medium/Large Tree"]
[null,null,null,null,null,null,"40%",null,null,null,null,null,null,null,null,null,7,null,null,"Large Tree",{"$f":"1200-48","v":1152},"Large Tree"]
[null,null,null,null,null,null,"45%",null,null,null,null,null,null,null,null,null,8]
[null,null,null,null,null,null,"50%",null,null,null,null,null,null,null,null,null,9,null,null,"List 4",null,"List 3"]
[null,null,null,null,null,null,"55%",null,null,null,null,null,null,null,null,null,10,null,null,18,null,18]
[null,null,null,null,null,null,"60%",null,null,null,null,null,null,null,null,null,11,null,null,24,null,24]
[null,null,null,null,null,null,"65%",null,null,null,null,null,null,null,null,null,12,null,null,32,null,32]
[null,null,null,null,null,null,"70%",null,null,null,null,null,null,null,null,null,13]
[null,null,null,null,null,null,"75%",null,null,null,null,null,null,null,null,null,14]
[null,null,null,null,null,null,"80%",null,null,null,null,null,null,null,null,null,15]
[null,null,null,null,null,null,"85%",null,null,null,null,null,null,null,null,null,16]
[null,null,null,null,null,null,"90%",null,null,null,null,null,null,null,null,null,17]
[null,null,null,null,null,null,"95%",null,null,null,null,null,null,null,null,null,18]
[null,null,null,null,null,null,"100%",null,null,null,null,null,null,null,null,null,19]
[null,null,null,null,null,null,null,null,null,null,null,null,null,null,null,null,20]
["BMPs","List More than One BMP option","Sizing Input 1","Sizing Input 2","Sizing Input 3","Sizing Input 4","Units 1","Units 2","Infiltrating BMP",null,null,null,null,null,null,null,21]
["Full Dispersion",false,{"$f":"NA()","v":{"$error":"#N/A"}},{"$f":"NA()","v":{"$error":"#N/A"}},{"$f":"NA()","v":{"$error":"#N/A"}},{"$f":"NA()","v":{"$error":"#N/A"}},{"$f":"NA()","v":{"$error":"#N/A"}},{"$f":"NA()","v":{"$error":"#N/A"}},false,null,null,null,null,null,null,null,22]
["Infiltration Trench",true,{"$f":"NA()","v":{"$error":"#N/A"}},{"$f":"NA()","v":{"$error":"#N/A"}},{"$f":"NA()","v":{"$error":"#N/A"}},{"$f":"NA()","v":{"$error":"#N/A"}},{"$f":"NA()","v":{"$error":"#N/A"}},{"$f":"NA()","v":{"$error":"#N/A"}},true,null,null,null,null,null,null,null,23]
["Dry Well",true,"Aggregate Depth (ft)",{"$f":"NA()","v":{"$error":"#N/A"}},{"$f":"NA()","v":{"$error":"#N/A"}},{"$f":"NA()","v":{"$error":"#N/A"}},"ft",{"$f":"NA()","v":{"$error":"#N/A"}},true,null,null,null,null,null,null,null,24]
["Rain Garden",true,"Ponding Depth (inch)","Sideslopes",{"$f":"NA()","v":{"$error":"#N/A"}},{"$f":"NA()","v":{"$error":"#N/A"}},"inch",{"$f":"NA()","v":{"$error":"#N/A"}},true,null,null,null,null,null,null,null,25]
["Infiltrating Bioretention",true,"Ponding Depth (inch)","Sideslopes","Underdrain",{"$f":"NA()","v":{"$error":"#N/A"}},"inch",{"$f":"NA()","v":{"$error":"#N/A"}},true,null,null,null,null,null,null,null,26]
["Infiltrating Soil Cell Bioretention with Tree",true,"Ponding Depth (inch)","Underdrain","Tree size","BSM Depth (inch)","inch",{"$error":"#N/A"},true,null,null,null,null,null,null,null,27]
["Rainwater Harvesting - Category 1",false,{"$error":"#N/A"},{"$error":"#N/A"},{"$error":"#N/A"},{"$error":"#N/A"},"gal",{"$error":"#N/A"},false,null,null,null,null,null,null,null,28]
["Rainwater Harvesting - Category 2",false,{"$f":"NA()","v":{"$error":"#N/A"}},{"$f":"NA()","v":{"$error":"#N/A"}},{"$f":"NA()","v":{"$error":"#N/A"}},{"$error":"#N/A"},"gal",{"$f":"NA()","v":{"$error":"#N/A"}},false,null,null,null,null,null,null,null,29]
["Rainwater Harvesting - Category 4",false,{"$f":"NA()","v":{"$error":"#N/A"}},{"$f":"NA()","v":{"$error":"#N/A"}},{"$f":"NA()","v":{"$error":"#N/A"}},{"$error":"#N/A"},{"$f":"NA()","v":{"$error":"#N/A"}},{"$f":"NA()","v":{"$error":"#N/A"}},false,null,null,null,null,null,null,null,30]
["Permeable Pavement Facility",true,"Avg. Storage Depth (inch)","% Pollution Generating",{"$f":"NA()","v":{"$error":"#N/A"}},{"$error":"#N/A"},"inch","PGHS",true,null,null,null,null,null,null,null,31]
["Permeable Pavement Surface",true,{"$f":"NA()","v":{"$error":"#N/A"}},{"$f":"NA()","v":{"$error":"#N/A"}},{"$f":"NA()","v":{"$error":"#N/A"}},{"$error":"#N/A"},{"$f":"NA()","v":{"$error":"#N/A"}},{"$f":"NA()","v":{"$error":"#N/A"}},false,null,null,null,null,null,null,null,32]
["Infiltrating Soil Cell Bioretention without Tree",true,"Ponding Depth (inch)","Underdrain",{"$error":"#N/A"},{"$error":"#N/A"},"inch",{"$error":"#N/A"},true,null,null,null,null,null,null,null,33]
["Sheet Flow Dispersion",false,{"$f":"NA()","v":{"$error":"#N/A"}},{"$f":"NA()","v":{"$error":"#N/A"}},{"$f":"NA()","v":{"$error":"#N/A"}},{"$error":"#N/A"},{"$f":"NA()","v":{"$error":"#N/A"}},{"$f":"NA()","v":{"$error":"#N/A"}},false,null,null,null,null,null,null,null,34]
["Concentrated Flow Dispersion",false,{"$f":"NA()","v":{"$error":"#N/A"}},{"$f":"NA()","v":{"$error":"#N/A"}},{"$f":"NA()","v":{"$error":"#N/A"}},{"$error":"#N/A"},{"$f":"NA()","v":{"$error":"#N/A"}},{"$f":"NA()","v":{"$error":"#N/A"}},false,null,null,null,null,null,null,null,35]
["Splashblock Downspout Dispersion",false,{"$f":"NA()","v":{"$error":"#N/A"}},{"$f":"NA()","v":{"$error":"#N/A"}},{"$f":"NA()","v":{"$error":"#N/A"}},{"$error":"#N/A"},{"$f":"NA()","v":{"$error":"#N/A"}},{"$f":"NA()","v":{"$error":"#N/A"}},false,null,null,null,null,null,null,null,36]
["Trench Downspout Dispersion",false,{"$f":"NA()","v":{"$error":"#N/A"}},{"$f":"NA()","v":{"$error":"#N/A"}},{"$f":"NA()","v":{"$error":"#N/A"}},{"$error":"#N/A"},{"$f":"NA()","v":{"$error":"#N/A"}},{"$f":"NA()","v":{"$error":"#N/A"}},false,null,null,null,null,null,null,null,37]
["Non-Infiltrating Bioretention",true,"Ponding Depth (inch)","Sideslopes",{"$f":"NA()","v":{"$error":"#N/A"}},{"$error":"#N/A"},"inch",{"$f":"NA()","v":{"$error":"#N/A"}},false,null,null,null,null,null,null,null,38]
["Non-Infiltrating Soil Cell Bioretention with Tree",true,"Ponding Depth (inch)","Tree size","BSM Depth (inch)",{"$error":"#N/A"},"inch",{"$error":"#N/A"},false,null,null,null,null,null,null,null,39]
["Vegetated Roof System",true,"Course","Media Depth (inch)",{"$f":"NA()","v":{"$error":"#N/A"}},{"$error":"#N/A"},{"$f":"NA()","v":{"$error":"#N/A"}},"inch",false,null,null,null,null,null,null,null,40]
["Perforated Stub-out Connection",false,{"$f":"NA()","v":{"$error":"#N/A"}},{"$f":"NA()","v":{"$error":"#N/A"}},{"$f":"NA()","v":{"$error":"#N/A"}},{"$error":"#N/A"},{"$f":"NA()","v":{"$error":"#N/A"}},{"$f":"NA()","v":{"$error":"#N/A"}},true,null,null,null,null,null,null,null,41]
["Residential Cistern",true,{"$f":"NA()","v":{"$error":"#N/A"}},{"$f":"NA()","v":{"$error":"#N/A"}},{"$f":"NA()","v":{"$error":"#N/A"}},{"$error":"#N/A"},{"$f":"NA()","v":{"$error":"#N/A"}},{"$f":"NA()","v":{"$error":"#N/A"}},false,null,null,null,null,null,null,null,42]
["Trees",true,"Type","Number",{"$f":"NA()","v":{"$error":"#N/A"}},{"$error":"#N/A"},{"$f":"NA()","v":{"$error":"#N/A"}},{"$f":"NA()","v":{"$error":"#N/A"}},false,null,null,null,null,null,null,null,43]
["Sidewalk/Trail Compost-Amended Strip",false,{"$error":"#N/A"},{"$f":"NA()","v":{"$error":"#N/A"}},{"$f":"NA()","v":{"$error":"#N/A"}},{"$error":"#N/A"},"ft",{"$f":"NA()","v":{"$error":"#N/A"}},true,null,null,null,null,null,null,null,44]
["None Feasible",false,{"$error":"#N/A"},{"$error":"#N/A"},{"$error":"#N/A"},{"$error":"#N/A"},{"$error":"#N/A"},{"$error":"#N/A"},false,null,null,null,null,null,null,null,45]
["Water Quality BMP in lieu of NIB",true,{"$error":"#N/A"},{"$error":"#N/A"},{"$error":"#N/A"},{"$error":"#N/A"},{"$error":"#N/A"},{"$error":"#N/A"},true]
[]
["BMP","List 1","List 2","List 3","List 4","Combined Lookup","Sizing Factor","Volume Managed CF/SF","Facility Units","Notes"]
["Full Dispersion",null,null,null,null,{"$f":"TRIM(CONCATENATE(A97,B97,C97,D97))","v":"Full Dispersion"},{"$f":"NA()","v":{"$error":"#N/A"}},{"$f":"2.1*0.768","v":1.6128}]
["Sidewalk/Trail Compost-Amended Strip","≥ 10",null,null,null,{"$f":"A98","v":"Sidewalk/Trail Compost-Amended Strip"},{"$f":"IF(InfRate<0.15,0,IF(InfRate<0.3,0.42, IF(InfRate<0.06,0.29,0.21)))","v":0},{"$f":"2.1*0.828","v":1.7387999999999999},"sf"]
["Sidewalk/Trail Compost-Amended Strip","< 10",null,null,null,{"$f":"A99","v":"Sidewalk/Trail Compost-Amended Strip"},{"$f":"IF(InfRate<0.15,0,IF(InfRate<0.3,0.33,IF(InfRate<0.06,0.21,0.13)))","v":0},{"$f":"2.1*0.828","v":1.7387999999999999},"sf"]
["Infiltration Trench",null,null,null,null,{"$f":"TRIM(CONCATENATE(A100,B100,C100,D100))","v":"Infiltration Trench"},{"$f":"IF(InfRate<1,0,IF(InfRate<2.5,0.15,IF(InfRate<5,0.105,IF(InfRate<7.5,0.057,IF(InfRate<10,0.048,0.04)))))","v":0},{"$f":"IF(G100=0,NA(),2.3*0.8108811)","v":{"$error":"#N/A"}},"sf","Volume Managed modeling done specifically for tool. See Volume Managed.xlsx. 1.5' Trench, 0.25 in/hr."]
["Dry Well",4,null,null,null,"Dry Well4",{"$f":"IF(InfRate<2.5,0,IF(InfRate<5,0.024,IF(InfRate<7.5,0.024,IF(InfRate<10,0.023,0.021))))","v":0},{"$f":"IF(G101=0,NA(),2.1*0.8149233)","v":{"$error":"#N/A"}},"sf","Modeling done specifically for tool. See Volume Managed.xlsx. 4' Drywell, 0.25 in/hr."]
["Rain Garden",2,"Sloped sides",null,null,"Rain Garden2Sloped sides",{"$f":"IF(InfRate<0.15,0,IF(InfRate<0.3,0.061, 0.045))","v":0},{"$f":"IF(G102=0,NA(),2.1*0.864)","v":{"$error":"#N/A"}},"sf","To develop sizing that meets Ecology’s requirements, we first developed sizing factors that provide a 5% wetted surface area (Table 1 below) and sizing factors that meet the LID Performance Standard for a forest condition (Table 2 below).  We then selected the larger of the two sizing factors for each ponding depth/infitlration rate scenario (highlighted in red in the tables below) and used them for the On-site List Sizing (provided in the table above). [[refer to O:\\proj\\Y2019\\19-07117-001\\Modeling\\ and 20-1116_OnSiteList_Sizing.xlsx and On-site List Sizing for Bioretention (Stormwater Manual Volume 3  ̶   Table 5.21)]]"]
["Rain Garden",6,"Sloped sides",null,null,"Rain Garden6Sloped sides",{"$f":"IF(OR(ProjectTypeCell=Roadway,ProjectTypeCell=TrailSidewalk),-999,IF(InfRate<0.3,0,0.035))","v":0},{"$f":"IF(OR(G103=0, G103=-999),NA(),2.1*0.864)","v":{"$error":"#N/A"}},"sf","Green cells updated 2020"]
["Rain Garden",2,"Vertical sides",null,null,"Rain Garden2Vertical sides",-999,{"$f":"NA()","v":{"$error":"#N/A"}},"sf"]
["Rain Garden",6,"Vertical sides",null,null,"Rain Garden6Vertical sides",{"$f":"IF(OR(ProjectTypeCell=Roadway,ProjectTypeCell=TrailSidewalk),-999,IF(InfRate<0.3,0,0.05))","v":0},{"$f":"IF(OR(G105=0,G105=-999),NA(),2.1*0.844)","v":{"$error":"#N/A"}},"sf","Rain garden ponding over 3\" not allowed for Road or Trail projects"]
["Infiltrating Bioretention",2,"Sloped sides","No Underdrain",null,"Infiltrating Bioretention2Sloped sidesNo Underdrain",{"$f":"IF(InfRate<0.3,0,0.045)","v":0},{"$f":"IF(G106=0,NA(),2.1*0.864)","v":{"$error":"#N/A"}},"sf"]
["Infiltrating Bioretention",6,"Sloped sides","No Underdrain",null,"Infiltrating Bioretention6Sloped sidesNo Underdrain",{"$f":"IF(InfRate<0.3,0,0.035)","v":0},{"$f":"IF(G107=0,NA(),2.1*0.864)","v":{"$error":"#N/A"}},"sf"]
["Infiltrating Bioretention",12,"Sloped sides","No Underdrain",null,"Infiltrating Bioretention12Sloped sidesNo Underdrain",{"$f":"IF(InfRate<0.6,0,0.023)","v":0},{"$f":"IF(G108=0,NA(),2.1*0.864)","v":{"$error":"#N/A"}},"sf"]
["Infiltrating Bioretention",2,"Vertical sides","No Underdrain",null,"Infiltrating Bioretention2Vertical sidesNo Underdrain",{"$f":"IF(InfRate<0.3,0,IF(InfRate<0.6,0.062,0.05))","v":0},{"$f":"IF(G109=0,NA(),2.1*0.864)","v":{"$error":"#N/A"}},"sf","Updated with allowable sizing factors March 2026"]
["Infiltrating Bioretention",6,"Vertical sides","No Underdrain",null,"Infiltrating Bioretention6Vertical sidesNo Underdrain",{"$f":"IF(InfRate<0.3,0,0.05)","v":0},{"$f":"IF(OR(G110=0,G110=-999),NA(),2.1*0.844)","v":{"$error":"#N/A"}},"sf"]
["Infiltrating Bioretention",12,"Vertical sides","No Underdrain",null,"Infiltrating Bioretention12Vertical sidesNo Underdrain",{"$f":"IF(InfRate<0.6,0,0.05)","v":0},{"$f":"IF(G111=0,NA(),2.1*0.844)","v":{"$error":"#N/A"}},"sf"]
["Infiltrating Bioretention",2,"Sloped sides","Underdrain",null,"Infiltrating Bioretention2Sloped sidesUnderdrain",{"$f":"IF(InfRate<0.15,0,IF(InfRate<0.3,0.068,0.05))","v":0},{"$f":"IF(G112=0,NA(),2.1*0.864)","v":{"$error":"#N/A"}},"sf"]
["Infiltrating Bioretention",6,"Sloped sides","Underdrain",null,"Infiltrating Bioretention6Sloped sidesUnderdrain",{"$f":"IF(InfRate<0.15,0,IF(InfRate<0.3,0.047,0.039))","v":0},{"$f":"IF(G113=0,NA(),2.1*0.864)","v":{"$error":"#N/A"}},"sf"]
["Infiltrating Bioretention",12,"Sloped sides","Underdrain",null,"Infiltrating Bioretention12Sloped sidesUnderdrain",{"$f":"IF(InfRate<0.15,0,IF(InfRate<0.3,0.028,0.026))","v":0},{"$f":"IF(G114=0,NA(),2.1*0.864)","v":{"$error":"#N/A"}},"sf"]
["Infiltrating Bioretention",2,"Vertical sides","Underdrain",null,"Infiltrating Bioretention2Vertical sidesUnderdrain",{"$f":"IF(InfRate<0.015,0,IF(InfRate<0.3,0.092,IF(InfRate<0.6,0.069,0.056)))","v":0},{"$f":"IF(G115=0,NA(),2.1*0.864)","v":{"$error":"#N/A"}},"sf","Updated with allowable sizing factors March 2026"]
["Infiltrating Bioretention",6,"Vertical sides","Underdrain",null,"Infiltrating Bioretention6Vertical sidesUnderdrain",{"$f":"IF(InfRate<0.15,0,IF(InfRate<0.3,0.072,0.056))","v":0},{"$f":"IF(OR(G116=0,G116=-999),NA(),2.1*0.844)","v":{"$error":"#N/A"}},"sf"]
["Infiltrating Bioretention",12,"Vertical sides","Underdrain",null,"Infiltrating Bioretention12Vertical sidesUnderdrain",{"$f":"IF(InfRate<0.15,0,IF(InfRate<0.3,0.057,0.056))","v":0},{"$f":"IF(G117=0,NA(),2.1*0.844)","v":{"$error":"#N/A"}},"sf"]
["Infiltrating Soil Cell Bioretention with Tree",2,"No Underdrain","constrained site tree",18,{"$f":"TRIM(CONCATENATE(A118,B118,C118,D118,E118))","v":"Infiltrating Soil Cell Bioretention with Tree2No Underdrainconstrained site tree18"},{"$f":"IF(InfRate<0.3,0,IF(InfRate<0.6,0.068,0.055))","v":0},{"$f":"$H$110","v":{"$error":"#N/A"}},"sf","Added March 2026, assuming same performance as vertical walled bioretention planters"]
["Infiltrating Soil Cell Bioretention with Tree",2,"No Underdrain","small tree",18,{"$f":"TRIM(CONCATENATE(A119,B119,C119,D119,E119))","v":"Infiltrating Soil Cell Bioretention with Tree2No Underdrainsmall tree18"},0,{"$f":"$H$110","v":{"$error":"#N/A"}},"sf"]
["Infiltrating Soil Cell Bioretention with Tree",2,"No Underdrain","small/medium tree",18,"Infiltrating Soil Cell Bioretention with Tree2No Underdrainsmall/medium tree18",0,{"$error":"#N/A"},"sf"]
["Infiltrating Soil Cell Bioretention with Tree",2,"No Underdrain","medium/large tree",18,"Infiltrating Soil Cell Bioretention with Tree2No Underdrainmedium/large tree18",0,{"$error":"#N/A"},"sf"]
["Infiltrating Soil Cell Bioretention with Tree",2,"No Underdrain","large tree",18,"Infiltrating Soil Cell Bioretention with Tree2No Underdrainlarge tree18",0,{"$error":"#N/A"},"sf"]
["Infiltrating Soil Cell Bioretention with Tree",2,"No Underdrain","constrained site tree",24,{"$f":"TRIM(CONCATENATE(A123,B123,C123,D123,E123))","v":"Infiltrating Soil Cell Bioretention with Tree2No Underdrainconstrained site tree24"},0,{"$error":"#N/A"},"sf"]
["Infiltrating Soil Cell Bioretention with Tree",2,"No Underdrain","small tree",24,{"$f":"TRIM(CONCATENATE(A124,B124,C124,D124,E124))","v":"Infiltrating Soil Cell Bioretention with Tree2No Underdrainsmall tree24"},0,{"$error":"#N/A"},"sf"]
["Infiltrating Soil Cell Bioretention with Tree",2,"No Underdrain","small/medium tree",24,"Infiltrating Soil Cell Bioretention with Tree2No Underdrainsmall/medium tree24",0,{"$error":"#N/A"},"sf"]
["Infiltrating Soil Cell Bioretention with Tree",2,"No Underdrain","medium/large tree",24,"Infiltrating Soil Cell Bioretention with Tree2No Underdrainmedium/large tree24",0,{"$error":"#N/A"},"sf"]
["Infiltrating Soil Cell Bioretention with Tree",2,"No Underdrain","large tree",24,"Infiltrating Soil Cell Bioretention with Tree2No Underdrainlarge tree24",0,{"$error":"#N/A"},"sf"]
["Infiltrating Soil Cell Bioretention with Tree",2,"No Underdrain","constrained site tree",32,{"$f":"TRIM(CONCATENATE(A128,B128,C128,D128,E128))","v":"Infiltrating Soil Cell Bioretention with Tree2No Underdrainconstrained site tree32"},0,{"$error":"#N/A"},"sf"]
["Infiltrating Soil Cell Bioretention with Tree",2,"No Underdrain","small tree",32,{"$f":"TRIM(CONCATENATE(A129,B129,C129,D129,E129))","v":"Infiltrating Soil Cell Bioretention with Tree2No Underdrainsmall tree32"},0,{"$error":"#N/A"},"sf"]
["Infiltrating Soil Cell Bioretention with Tree",2,"No Underdrain","small/medium tree",32,"Infiltrating Soil Cell Bioretention with Tree2No Underdrainsmall/medium tree32",0,{"$error":"#N/A"},"sf"]
["Infiltrating Soil Cell Bioretention with Tree",2,"No Underdrain","medium/large tree",32,"Infiltrating Soil Cell Bioretention with Tree2No Underdrainmedium/large tree32",0,{"$error":"#N/A"},"sf"]
["Infiltrating Soil Cell Bioretention with Tree",2,"No Underdrain","large tree",32,"Infiltrating Soil Cell Bioretention with Tree2No Underdrainlarge tree32",0,{"$error":"#N/A"},"sf"]
["Infiltrating Soil Cell Bioretention with Tree",6,"No Underdrain","constrained site tree",18,"Infiltrating Soil Cell Bioretention with Tree6No Underdrainconstrained site tree18",{"$f":"IF(InfRate<0.3,0,0.055)","v":0},{"$f":"$H$110","v":{"$error":"#N/A"}},"sf"]
["Infiltrating Soil Cell Bioretention with Tree",6,"No Underdrain","small tree",18,{"$f":"TRIM(CONCATENATE(A134,B134,C134,D134,E134))","v":"Infiltrating Soil Cell Bioretention with Tree6No Underdrainsmall tree18"},0,{"$error":"#N/A"},"sf"]
["Infiltrating Soil Cell Bioretention with Tree",6,"No Underdrain","small/medium tree",18,"Infiltrating Soil Cell Bioretention with Tree6No Underdrainsmall/medium tree18",0,{"$error":"#N/A"},"sf"]
["Infiltrating Soil Cell Bioretention with Tree",6,"No Underdrain","medium/large tree",18,"Infiltrating Soil Cell Bioretention with Tree6No Underdrainmedium/large tree18",0,{"$error":"#N/A"},"sf"]
["Infiltrating Soil Cell Bioretention with Tree",6,"No Underdrain","large tree",18,"Infiltrating Soil Cell Bioretention with Tree6No Underdrainlarge tree18",0,{"$error":"#N/A"},"sf"]
["Infiltrating Soil Cell Bioretention with Tree",6,"No Underdrain","constrained site tree",24,"Infiltrating Soil Cell Bioretention with Tree6No Underdrainconstrained site tree24",0,{"$error":"#N/A"},"sf"]
["Infiltrating Soil Cell Bioretention with Tree",6,"No Underdrain","small tree",24,{"$f":"TRIM(CONCATENATE(A139,B139,C139,D139,E139))","v":"Infiltrating Soil Cell Bioretention with Tree6No Underdrainsmall tree24"},0,{"$error":"#N/A"},"sf"]
["Infiltrating Soil Cell Bioretention with Tree",6,"No Underdrain","small/medium tree",24,"Infiltrating Soil Cell Bioretention with Tree6No Underdrainsmall/medium tree24",0,{"$error":"#N/A"},"sf"]
["Infiltrating Soil Cell Bioretention with Tree",6,"No Underdrain","medium/large tree",24,"Infiltrating Soil Cell Bioretention with Tree6No Underdrainmedium/large tree24",0,{"$error":"#N/A"},"sf"]
["Infiltrating Soil Cell Bioretention with Tree",6,"No Underdrain","large tree",24,"Infiltrating Soil Cell Bioretention with Tree6No Underdrainlarge tree24",0,{"$error":"#N/A"},"sf"]
["Infiltrating Soil Cell Bioretention with Tree",6,"No Underdrain","constrained site tree",32,"Infiltrating Soil Cell Bioretention with Tree6No Underdrainconstrained site tree32",0,{"$error":"#N/A"},"sf"]
["Infiltrating Soil Cell Bioretention with Tree",6,"No Underdrain","small tree",32,{"$f":"TRIM(CONCATENATE(A144,B144,C144,D144,E144))","v":"Infiltrating Soil Cell Bioretention with Tree6No Underdrainsmall tree32"},0,{"$error":"#N/A"},"sf"]
["Infiltrating Soil Cell Bioretention with Tree",6,"No Underdrain","small/medium tree",32,"Infiltrating Soil Cell Bioretention with Tree6No Underdrainsmall/medium tree32",0,{"$error":"#N/A"},"sf"]
["Infiltrating Soil Cell Bioretention with Tree",6,"No Underdrain","medium/large tree",32,"Infiltrating Soil Cell Bioretention with Tree6No Underdrainmedium/large tree32",0,{"$error":"#N/A"},"sf"]
["Infiltrating Soil Cell Bioretention with Tree",6,"No Underdrain","large tree",32,"Infiltrating Soil Cell Bioretention with Tree6No Underdrainlarge tree32",0,{"$error":"#N/A"},"sf"]
["Infiltrating Soil Cell Bioretention with Tree",12,"No Underdrain","constrained site tree",18,"Infiltrating Soil Cell Bioretention with Tree12No Underdrainconstrained site tree18",{"$f":"IF(InfRate<0.6,0,0.055)","v":0},{"$f":"IF(G148=0,NA(),2.1*0.864)","v":{"$error":"#N/A"}},"sf"]
["Infiltrating Soil Cell Bioretention with Tree",12,"No Underdrain","small tree",18,{"$f":"TRIM(CONCATENATE(A149,B149,C149,D149,E149))","v":"Infiltrating Soil Cell Bioretention with Tree12No Underdrainsmall tree18"},0,{"$error":"#N/A"},"sf"]
["Infiltrating Soil Cell Bioretention with Tree",12,"No Underdrain","small/medium tree",18,"Infiltrating Soil Cell Bioretention with Tree12No Underdrainsmall/medium tree18",0,{"$error":"#N/A"},"sf"]
["Infiltrating Soil Cell Bioretention with Tree",12,"No Underdrain","medium/large tree",18,"Infiltrating Soil Cell Bioretention with Tree12No Underdrainmedium/large tree18",0,{"$error":"#N/A"},"sf"]
["Infiltrating Soil Cell Bioretention with Tree",12,"No Underdrain","large tree",18,"Infiltrating Soil Cell Bioretention with Tree12No Underdrainlarge tree18",0,{"$error":"#N/A"},"sf"]
["Infiltrating Soil Cell Bioretention with Tree",12,"No Underdrain","constrained site tree",24,"Infiltrating Soil Cell Bioretention with Tree12No Underdrainconstrained site tree24",0,{"$error":"#N/A"},"sf"]
["Infiltrating Soil Cell Bioretention with Tree",12,"No Underdrain","small tree",24,{"$f":"TRIM(CONCATENATE(A154,B154,C154,D154,E154))","v":"Infiltrating Soil Cell Bioretention with Tree12No Underdrainsmall tree24"},0,{"$error":"#N/A"},"sf"]
["Infiltrating Soil Cell Bioretention with Tree",12,"No Underdrain","small/medium tree",24,"Infiltrating Soil Cell Bioretention with Tree12No Underdrainsmall/medium tree24",0,{"$error":"#N/A"},"sf"]
["Infiltrating Soil Cell Bioretention with Tree",12,"No Underdrain","medium/large tree",24,"Infiltrating Soil Cell Bioretention with Tree12No Underdrainmedium/large tree24",0,{"$error":"#N/A"},"sf"]
["Infiltrating Soil Cell Bioretention with Tree",12,"No Underdrain","large tree",24,"Infiltrating Soil Cell Bioretention with Tree12No Underdrainlarge tree24",0,{"$error":"#N/A"},"sf"]
["Infiltrating Soil Cell Bioretention with Tree",12,"No Underdrain","constrained site tree",32,"Infiltrating Soil Cell Bioretention with Tree12No Underdrainconstrained site tree32",0,{"$error":"#N/A"},"sf"]
["Infiltrating Soil Cell Bioretention with Tree",12,"No Underdrain","small tree",32,{"$f":"TRIM(CONCATENATE(A159,B159,C159,D159,E159))","v":"Infiltrating Soil Cell Bioretention with Tree12No Underdrainsmall tree32"},0,{"$error":"#N/A"},"sf"]
["Infiltrating Soil Cell Bioretention with Tree",12,"No Underdrain","small/medium tree",32,"Infiltrating Soil Cell Bioretention with Tree12No Underdrainsmall/medium tree32",0,{"$error":"#N/A"},"sf"]
["Infiltrating Soil Cell Bioretention with Tree",12,"No Underdrain","medium/large tree",32,"Infiltrating Soil Cell Bioretention with Tree12No Underdrainmedium/large tree32",0,{"$error":"#N/A"},"sf"]
["Infiltrating Soil Cell Bioretention with Tree",12,"No Underdrain","large tree",32,"Infiltrating Soil Cell Bioretention with Tree12No Underdrainlarge tree32",0,{"$error":"#N/A"},"sf"]
["Infiltrating Soil Cell Bioretention with Tree",2,"Underdrain","constrained site tree",18,"Infiltrating Soil Cell Bioretention with Tree2Underdrainconstrained site tree18",{"$f":"IF(InfRate<0.15,0,IF(InfRate<0.3,0.102,IF(InfRate<0.6,0.076,0.061)))","v":0},{"$error":"#N/A"},"sf"]
["Infiltrating Soil Cell Bioretention with Tree",2,"Underdrain","small tree",18,{"$f":"TRIM(CONCATENATE(A164,B164,C164,D164,E164))","v":"Infiltrating Soil Cell Bioretention with Tree2Underdrainsmall tree18"},0,{"$error":"#N/A"},"sf"]
["Infiltrating Soil Cell Bioretention with Tree",2,"Underdrain","small/medium tree",18,"Infiltrating Soil Cell Bioretention with Tree2Underdrainsmall/medium tree18",0,{"$error":"#N/A"},"sf"]
["Infiltrating Soil Cell Bioretention with Tree",2,"Underdrain","medium/large tree",18,"Infiltrating Soil Cell Bioretention with Tree2Underdrainmedium/large tree18",0,{"$error":"#N/A"},"sf"]
["Infiltrating Soil Cell Bioretention with Tree",2,"Underdrain","large tree",18,"Infiltrating Soil Cell Bioretention with Tree2Underdrainlarge tree18",0,{"$error":"#N/A"},"sf"]
["Infiltrating Soil Cell Bioretention with Tree",2,"Underdrain","constrained site tree",24,"Infiltrating Soil Cell Bioretention with Tree2Underdrainconstrained site tree24",0,{"$error":"#N/A"},"sf"]
["Infiltrating Soil Cell Bioretention with Tree",2,"Underdrain","small tree",24,"Infiltrating Soil Cell Bioretention with Tree2Underdrainsmall tree24",0,{"$error":"#N/A"},"sf"]
["Infiltrating Soil Cell Bioretention with Tree",2,"Underdrain","small/medium tree",24,"Infiltrating Soil Cell Bioretention with Tree2Underdrainsmall/medium tree24",0,{"$error":"#N/A"},"sf"]
["Infiltrating Soil Cell Bioretention with Tree",2,"Underdrain","medium/large tree",24,"Infiltrating Soil Cell Bioretention with Tree2Underdrainmedium/large tree24",0,{"$error":"#N/A"},"sf"]
["Infiltrating Soil Cell Bioretention with Tree",2,"Underdrain","large tree",24,"Infiltrating Soil Cell Bioretention with Tree2Underdrainlarge tree24",0,{"$error":"#N/A"},"sf"]
["Infiltrating Soil Cell Bioretention with Tree",2,"Underdrain","constrained site tree",32,"Infiltrating Soil Cell Bioretention with Tree2Underdrainconstrained site tree32",0,{"$error":"#N/A"},"sf"]
["Infiltrating Soil Cell Bioretention with Tree",2,"Underdrain","small tree",32,"Infiltrating Soil Cell Bioretention with Tree2Underdrainsmall tree32",0,{"$error":"#N/A"},"sf"]
["Infiltrating Soil Cell Bioretention with Tree",2,"Underdrain","small/medium tree",32,"Infiltrating Soil Cell Bioretention with Tree2Underdrainsmall/medium tree32",0,{"$error":"#N/A"},"sf"]
["Infiltrating Soil Cell Bioretention with Tree",2,"Underdrain","medium/large tree",32,"Infiltrating Soil Cell Bioretention with Tree2Underdrainmedium/large tree32",0,{"$error":"#N/A"},"sf"]
["Infiltrating Soil Cell Bioretention with Tree",2,"Underdrain","large tree",32,"Infiltrating Soil Cell Bioretention with Tree2Underdrainlarge tree32",0,{"$error":"#N/A"},"sf"]
["Infiltrating Soil Cell Bioretention with Tree",6,"Underdrain","constrained site tree",18,"Infiltrating Soil Cell Bioretention with Tree6Underdrainconstrained site tree18",{"$f":"IF(InfRate<0.15,0,IF(InfRate<0.3,0.079,0.061))","v":0},{"$error":"#N/A"},"sf"]
["Infiltrating Soil Cell Bioretention with Tree",6,"Underdrain","small tree",18,{"$f":"TRIM(CONCATENATE(A179,B179,C179,D179,E179))","v":"Infiltrating Soil Cell Bioretention with Tree6Underdrainsmall tree18"},0,{"$error":"#N/A"},"sf"]
["Infiltrating Soil Cell Bioretention with Tree",6,"Underdrain","small/medium tree",18,"Infiltrating Soil Cell Bioretention with Tree6Underdrainsmall/medium tree18",0,{"$error":"#N/A"},"sf"]
["Infiltrating Soil Cell Bioretention with Tree",6,"Underdrain","medium/large tree",18,"Infiltrating Soil Cell Bioretention with Tree6Underdrainmedium/large tree18",0,{"$error":"#N/A"},"sf"]
["Infiltrating Soil Cell Bioretention with Tree",6,"Underdrain","large tree",18,"Infiltrating Soil Cell Bioretention with Tree6Underdrainlarge tree18",0,{"$error":"#N/A"},"sf"]
["Infiltrating Soil Cell Bioretention with Tree",6,"Underdrain","constrained site tree",24,"Infiltrating Soil Cell Bioretention with Tree6Underdrainconstrained site tree24",0,{"$error":"#N/A"},"sf"]
["Infiltrating Soil Cell Bioretention with Tree",6,"Underdrain","small tree",24,"Infiltrating Soil Cell Bioretention with Tree6Underdrainsmall tree24",0,{"$error":"#N/A"},"sf"]
["Infiltrating Soil Cell Bioretention with Tree",6,"Underdrain","small/medium tree",24,"Infiltrating Soil Cell Bioretention with Tree6Underdrainsmall/medium tree24",0,{"$error":"#N/A"},"sf"]
["Infiltrating Soil Cell Bioretention with Tree",6,"Underdrain","medium/large tree",24,"Infiltrating Soil Cell Bioretention with Tree6Underdrainmedium/large tree24",0,{"$error":"#N/A"},"sf"]
["Infiltrating Soil Cell Bioretention with Tree",6,"Underdrain","large tree",24,"Infiltrating Soil Cell Bioretention with Tree6Underdrainlarge tree24",0,{"$error":"#N/A"},"sf"]
["Infiltrating Soil Cell Bioretention with Tree",6,"Underdrain","constrained site tree",32,"Infiltrating Soil Cell Bioretention with Tree6Underdrainconstrained site tree32",0,{"$error":"#N/A"},"sf"]
["Infiltrating Soil Cell Bioretention with Tree",6,"Underdrain","small tree",32,"Infiltrating Soil Cell Bioretention with Tree6Underdrainsmall tree32",0,{"$error":"#N/A"},"sf"]
["Infiltrating Soil Cell Bioretention with Tree",6,"Underdrain","small/medium tree",32,"Infiltrating Soil Cell Bioretention with Tree6Underdrainsmall/medium tree32",0,{"$error":"#N/A"},"sf"]
["Infiltrating Soil Cell Bioretention with Tree",6,"Underdrain","medium/large tree",32,"Infiltrating Soil Cell Bioretention with Tree6Underdrainmedium/large tree32",0,{"$error":"#N/A"},"sf"]
["Infiltrating Soil Cell Bioretention with Tree",6,"Underdrain","large tree",32,"Infiltrating Soil Cell Bioretention with Tree6Underdrainlarge tree32",0,{"$error":"#N/A"},"sf"]
["Infiltrating Soil Cell Bioretention with Tree",12,"Underdrain","constrained site tree",18,"Infiltrating Soil Cell Bioretention with Tree12Underdrainconstrained site tree18",{"$f":"IF(InfRate<0.15,0,IF(InfRate<0.3,0.063,0.061))","v":0},{"$error":"#N/A"},"sf"]
["Infiltrating Soil Cell Bioretention with Tree",12,"Underdrain","small tree",18,{"$f":"TRIM(CONCATENATE(A194,B194,C194,D194,E194))","v":"Infiltrating Soil Cell Bioretention with Tree12Underdrainsmall tree18"},0,{"$error":"#N/A"},"sf"]
["Infiltrating Soil Cell Bioretention with Tree",12,"Underdrain","small/medium tree",18,"Infiltrating Soil Cell Bioretention with Tree12Underdrainsmall/medium tree18",0,{"$error":"#N/A"},"sf"]
["Infiltrating Soil Cell Bioretention with Tree",12,"Underdrain","medium/large tree",18,"Infiltrating Soil Cell Bioretention with Tree12Underdrainmedium/large tree18",0,{"$error":"#N/A"},"sf"]
["Infiltrating Soil Cell Bioretention with Tree",12,"Underdrain","large tree",18,"Infiltrating Soil Cell Bioretention with Tree12Underdrainlarge tree18",0,{"$error":"#N/A"},"sf"]
["Infiltrating Soil Cell Bioretention with Tree",12,"Underdrain","constrained site tree",24,"Infiltrating Soil Cell Bioretention with Tree12Underdrainconstrained site tree24",0,{"$error":"#N/A"},"sf"]
["Infiltrating Soil Cell Bioretention with Tree",12,"Underdrain","small tree",24,"Infiltrating Soil Cell Bioretention with Tree12Underdrainsmall tree24",0,{"$error":"#N/A"},"sf"]
["Infiltrating Soil Cell Bioretention with Tree",12,"Underdrain","small/medium tree",24,"Infiltrating Soil Cell Bioretention with Tree12Underdrainsmall/medium tree24",0,{"$error":"#N/A"},"sf"]
["Infiltrating Soil Cell Bioretention with Tree",12,"Underdrain","medium/large tree",24,"Infiltrating Soil Cell Bioretention with Tree12Underdrainmedium/large tree24",0,{"$error":"#N/A"},"sf"]
["Infiltrating Soil Cell Bioretention with Tree",12,"Underdrain","large tree",24,"Infiltrating Soil Cell Bioretention with Tree12Underdrainlarge tree24",0,{"$error":"#N/A"},"sf"]
["Infiltrating Soil Cell Bioretention with Tree",12,"Underdrain","constrained site tree",32,"Infiltrating Soil Cell Bioretention with Tree12Underdrainconstrained site tree32",0,{"$error":"#N/A"},"sf"]
["Infiltrating Soil Cell Bioretention with Tree",12,"Underdrain","small tree",32,"Infiltrating Soil Cell Bioretention with Tree12Underdrainsmall tree32",0,{"$error":"#N/A"},"sf"]
["Infiltrating Soil Cell Bioretention with Tree",12,"Underdrain","small/medium tree",32,"Infiltrating Soil Cell Bioretention with Tree12Underdrainsmall/medium tree32",0,{"$error":"#N/A"},"sf"]
["Infiltrating Soil Cell Bioretention with Tree",12,"Underdrain","medium/large tree",32,"Infiltrating Soil Cell Bioretention with Tree12Underdrainmedium/large tree32",0,{"$error":"#N/A"},"sf"]
["Infiltrating Soil Cell Bioretention with Tree",12,"Underdrain","large tree",32,"Infiltrating Soil Cell Bioretention with Tree12Underdrainlarge tree32",0,{"$error":"#N/A"},"sf"]
["Infiltrating Soil Cell Bioretention without Tree",2,"No Underdrain",null,null,"Infiltrating Soil Cell Bioretention without Tree2No Underdrain",{"$f":"IF(InfRate<0.3,0,IF(InfRate<0.6,0.068,0.055))","v":0},{"$f":"$H$110","v":{"$error":"#N/A"}},"sf"]
["Infiltrating Soil Cell Bioretention without Tree",6,"No Underdrain",null,null,"Infiltrating Soil Cell Bioretention without Tree6No Underdrain",{"$f":"IF(InfRate<0.3,0,0.055)","v":0},{"$error":"#N/A"},"sf"]
["Infiltrating Soil Cell Bioretention without Tree",12,"No Underdrain",null,null,"Infiltrating Soil Cell Bioretention without Tree12No Underdrain",{"$f":"IF(InfRate<0.6,0,0.055)","v":0},{"$error":"#N/A"},"sf"]
["Infiltrating Soil Cell Bioretention without Tree",2,"Underdrain",null,null,"Infiltrating Soil Cell Bioretention without Tree2Underdrain",{"$f":"IF(InfRate<0.15,0,IF(InfRate<0.3,0.102,IF(InfRate<0.6,0.076,0.061)))","v":0},{"$error":"#N/A"},"sf"]
["Infiltrating Soil Cell Bioretention without Tree",6,"Underdrain",null,null,"Infiltrating Soil Cell Bioretention without Tree6Underdrain",{"$f":"IF(InfRate<0.15,0,IF(InfRate<0.3,0.079,0.061))","v":0},{"$error":"#N/A"},"sf"]
["Infiltrating Soil Cell Bioretention without Tree",12,"Underdrain",null,null,"Infiltrating Soil Cell Bioretention without Tree12Underdrain",{"$f":"IF(InfRate<0.15,0,IF(InfRate<0.3,0.063,0.061))","v":0},{"$error":"#N/A"},"sf"]
["Rainwater Harvesting - Category 1",null,null,null,null,"Rainwater Harvesting - Category 1",1,{"$f":"NA()","v":{"$error":"#N/A"}},"gal"]
["Rainwater Harvesting - Category 2",null,null,null,null,"Rainwater Harvesting - Category 2",1,{"$f":"NA()","v":{"$error":"#N/A"}},"gal"]
["Rainwater Harvesting - Category 4",null,null,null,null,{"$f":"TRIM(CONCATENATE(A216,B216,C216,D216))","v":"Rainwater Harvesting - Category 4"},1,{"$f":"NA()","v":{"$error":"#N/A"}},"gal"]
["Permeable Pavement Facility",6,"0%",null,null,"Permeable Pavement Facility60%",{"$f":"0.3*C217+0.2","v":0.2},{"$f":"2.1","v":2.1},"sf","Area weighted sizing factor. 50% for PGHS, 20% for Non-PGHS"]
["Permeable Pavement Facility",6,"5%",null,null,"Permeable Pavement Facility65%",{"$f":"0.3*C218+0.2","v":0.21500000000000002},{"$f":"2.1","v":2.1},"sf"]
["Permeable Pavement Facility",6,"10%",null,null,"Permeable Pavement Facility610%",0.23,{"$f":"2.1","v":2.1},"sf"]
["Permeable Pavement Facility",6,"15%",null,null,"Permeable Pavement Facility615%",0.245,2.1,"sf"]
["Permeable Pavement Facility",6,"20%",null,null,"Permeable Pavement Facility620%",0.26,2.1,"sf"]
["Permeable Pavement Facility",6,"25%",null,null,"Permeable Pavement Facility625%",0.27500000000000002,2.1,"sf"]
["Permeable Pavement Facility",6,"30%",null,null,"Permeable Pavement Facility630%",0.29000000000000004,2.1,"sf"]
["Permeable Pavement Facility",6,"35%",null,null,"Permeable Pavement Facility635%",0.30499999999999999,2.1,"sf"]
["Permeable Pavement Facility",6,"40%",null,null,"Permeable Pavement Facility640%",0.32,2.1,"sf"]
["Permeable Pavement Facility",6,"45%",null,null,"Permeable Pavement Facility645%",0.33500000000000002,2.1,"sf"]
["Permeable Pavement Facility",6,"50%",null,null,"Permeable Pavement Facility650%",0.35,2.1,"sf"]
["Permeable Pavement Facility",6,"55%",null,null,"Permeable Pavement Facility655%",0.36499999999999999,2.1,"sf"]
["Permeable Pavement Facility",6,"60%",null,null,"Permeable Pavement Facility660%",0.38,2.1,"sf"]
["Permeable Pavement Facility",6,"65%",null,null,"Permeable Pavement Facility665%",0.39500000000000002,2.1,"sf"]
["Permeable Pavement Facility",6,"70%",null,null,"Permeable Pavement Facility670%",0.41000000000000003,2.1,"sf"]
["Permeable Pavement Facility",6,"75%",null,null,"Permeable Pavement Facility675%",0.42499999999999999,2.1,"sf"]
["Permeable Pavement Facility",6,"80%",null,null,"Permeable Pavement Facility680%",0.44,2.1,"sf"]
["Permeable Pavement Facility",6,"85%",null,null,"Permeable Pavement Facility685%",0.45500000000000002,2.1,"sf"]
["Permeable Pavement Facility",6,"90%",null,null,"Permeable Pavement Facility690%",0.47000000000000003,2.1,"sf"]
["Permeable Pavement Facility",6,"95%",null,null,"Permeable Pavement Facility695%",0.48499999999999999,2.1,"sf"]
["Permeable Pavement Facility",6,"100%",null,null,"Permeable Pavement Facility6100%",0.5,2.1,"sf"]
["Permeable Pavement Facility",12,"0%",null,null,"Permeable Pavement Facility120%",{"$f":"0.3*C238+0.2","v":0.2},{"$f":"2.1","v":2.1},"sf"]
["Permeable Pavement Facility",12,"5%",null,null,"Permeable Pavement Facility125%",{"$f":"0.3*C239+0.2","v":0.21500000000000002},{"$f":"2.1","v":2.1},"sf"]
["Permeable Pavement Facility",12,"10%",null,null,"Permeable Pavement Facility1210%",0.23,{"$f":"2.1","v":2.1},"sf"]
["Permeable Pavement Facility",12,"15%",null,null,"Permeable Pavement Facility1215%",0.245,2.1,"sf"]
["Permeable Pavement Facility",12,"20%",null,null,"Permeable Pavement Facility1220%",0.26,2.1,"sf"]
["Permeable Pavement Facility",12,"25%",null,null,"Permeable Pavement Facility1225%",0.27500000000000002,2.1,"sf"]
["Permeable Pavement Facility",12,"30%",null,null,"Permeable Pavement Facility1230%",0.29000000000000004,2.1,"sf"]
["Permeable Pavement Facility",12,"35%",null,null,"Permeable Pavement Facility1235%",0.30499999999999999,2.1,"sf"]
["Permeable Pavement Facility",12,"40%",null,null,"Permeable Pavement Facility1240%",0.32,2.1,"sf"]
["Permeable Pavement Facility",12,"45%",null,null,"Permeable Pavement Facility1245%",0.33500000000000002,2.1,"sf"]
["Permeable Pavement Facility",12,"50%",null,null,{"$f":"TRIM(CONCATENATE(A248,B248,C248,D248))","v":"Permeable Pavement Facility1250%"},0.35,2.1,"sf"]
["Permeable Pavement Facility",12,"55%",null,null,"Permeable Pavement Facility1255%",0.36499999999999999,2.1,"sf"]
["Permeable Pavement Facility",12,"60%",null,null,"Permeable Pavement Facility1260%",0.38,2.1,"sf"]
["Permeable Pavement Facility",12,"65%",null,null,"Permeable Pavement Facility1265%",0.39500000000000002,2.1,"sf"]
["Permeable Pavement Facility",12,"70%",null,null,"Permeable Pavement Facility1270%",0.41000000000000003,2.1,"sf"]
["Permeable Pavement Facility",12,"75%",null,null,"Permeable Pavement Facility1275%",0.42499999999999999,2.1,"sf"]
["Permeable Pavement Facility",12,"80%",null,null,"Permeable Pavement Facility1280%",0.44,2.1,"sf"]
["Permeable Pavement Facility",12,"85%",null,null,"Permeable Pavement Facility1285%",0.45500000000000002,2.1,"sf"]
["Permeable Pavement Facility",12,"90%",null,null,"Permeable Pavement Facility1290%",0.47000000000000003,2.1,"sf"]
["Permeable Pavement Facility",12,"95%",null,null,"Permeable Pavement Facility1295%",0.48499999999999999,2.1,"sf"]
["Permeable Pavement Facility",12,"100%",null,null,"Permeable Pavement Facility12100%",0.5,2.1,"sf"]
["Permeable Pavement Surface",null,null,null,null,"Permeable Pavement Surface",1,{"$f":"2.1*(1+0.85)/2","v":1.9425000000000001},"sf"]
["Sheet Flow Dispersion",null,null,null,null,"Sheet Flow Dispersion",{"$f":"NA()","v":{"$error":"#N/A"}},{"$f":"2.1*0.768","v":1.6128}]
["Concentrated Flow Dispersion",null,null,null,null,"Concentrated Flow Dispersion",{"$f":"NA()","v":{"$error":"#N/A"}},{"$f":"2.1*0.768","v":1.6128}]
["Splashblock Downspout Dispersion",null,null,null,null,"Splashblock Downspout Dispersion",{"$f":"NA()","v":{"$error":"#N/A"}},{"$f":"2.1*0.768","v":1.6128}]
["Trench Downspout Dispersion",null,null,null,null,"Trench Downspout Dispersion",{"$f":"NA()","v":{"$error":"#N/A"}},{"$f":"2.1*0.768","v":1.6128}]
["Non-Infiltrating Bioretention",2,"Sloped sides",null,null,"Non-Infiltrating Bioretention2Sloped sides",4.4999999999999998E-2,{"$f":"0.46*2.1","v":0.96600000000000008},"sf"]
["Non-Infiltrating Bioretention",6,"Sloped sides",null,null,"Non-Infiltrating Bioretention6Sloped sides",{"$f":"NA()","v":{"$error":"#N/A"}},{"$f":"0.46*2.1","v":0.96600000000000008},"sf","Updated March 2026, 6-inch sloped sides is DMA dependent, handled on BMP Sizing tab for <2000 SF and >2000 SF drainage area"]
["Non-Infiltrating Bioretention",12,"Sloped sides",null,null,"Non-Infiltrating Bioretention12Sloped sides",0.02,0.96600000000000008,"sf"]
["Non-Infiltrating Bioretention",2,"Vertical sides",null,null,"Non-Infiltrating Bioretention2Vertical sides",0.06,0.96600000000000008,"sf"]
["Non-Infiltrating Bioretention",6,"Vertical sides",null,null,"Non-Infiltrating Bioretention6Vertical sides",0.04,0.96600000000000008,"sf"]
["Non-Infiltrating Bioretention",12,"Vertical sides",null,null,"Non-Infiltrating Bioretention12Vertical sides",2.8000000000000001E-2,0.96600000000000008,"sf"]
["Non-Infiltrating Soil Cell Bioretention with Tree",2,"constrained site tree",18,null,"Non-Infiltrating Soil Cell Bioretention with Tree2constrained site tree18",6.6000000000000003E-2,{"$f":"$H$268","v":0.96600000000000008},"sf","Added March 2026, assuming same performance as vertical walled non-infiltrating bioretention planters"]
["Non-Infiltrating Soil Cell Bioretention with Tree",2,"small tree",18,null,{"$f":"TRIM(CONCATENATE(A271,B271,C271,D271))","v":"Non-Infiltrating Soil Cell Bioretention with Tree2small tree18"},6.6000000000000003E-2,{"$f":"$H$268","v":0.96600000000000008},"sf"]
["Non-Infiltrating Soil Cell Bioretention with Tree",2,"small/medium tree",18,null,"Non-Infiltrating Soil Cell Bioretention with Tree2small/medium tree18",6.6000000000000003E-2,0.96600000000000008,"sf"]
["Non-Infiltrating Soil Cell Bioretention with Tree",2,"medium/large tree",18,null,"Non-Infiltrating Soil Cell Bioretention with Tree2medium/large tree18",6.6000000000000003E-2,0.96600000000000008,"sf"]
["Non-Infiltrating Soil Cell Bioretention with Tree",2,"large tree",18,null,"Non-Infiltrating Soil Cell Bioretention with Tree2large tree18",6.6000000000000003E-2,0.96600000000000008,"sf"]
["Non-Infiltrating Soil Cell Bioretention with Tree",2,"constrained site tree",24,null,"Non-Infiltrating Soil Cell Bioretention with Tree2constrained site tree24",6.6000000000000003E-2,{"$f":"$H$268","v":0.96600000000000008},"sf","Added March 2026, assuming same performance as vertical walled non-infiltrating bioretention planters"]
["Non-Infiltrating Soil Cell Bioretention with Tree",2,"small tree",24,null,{"$f":"TRIM(CONCATENATE(A276,B276,C276,D276))","v":"Non-Infiltrating Soil Cell Bioretention with Tree2small tree24"},6.6000000000000003E-2,0.96600000000000008,"sf"]
["Non-Infiltrating Soil Cell Bioretention with Tree",2,"small/medium tree",24,null,"Non-Infiltrating Soil Cell Bioretention with Tree2small/medium tree24",6.6000000000000003E-2,0.96600000000000008,"sf"]
["Non-Infiltrating Soil Cell Bioretention with Tree",2,"medium/large tree",24,null,"Non-Infiltrating Soil Cell Bioretention with Tree2medium/large tree24",6.6000000000000003E-2,0.96600000000000008,"sf"]
["Non-Infiltrating Soil Cell Bioretention with Tree",2,"large tree",24,null,"Non-Infiltrating Soil Cell Bioretention with Tree2large tree24",6.6000000000000003E-2,0.96600000000000008,"sf"]
["Non-Infiltrating Soil Cell Bioretention with Tree",2,"constrained site tree",32,null,"Non-Infiltrating Soil Cell Bioretention with Tree2constrained site tree32",6.6000000000000003E-2,{"$f":"$H$268","v":0.96600000000000008},"sf","Added March 2026, assuming same performance as vertical walled non-infiltrating bioretention planters"]
["Non-Infiltrating Soil Cell Bioretention with Tree",2,"small tree",32,null,{"$f":"TRIM(CONCATENATE(A281,B281,C281,D281))","v":"Non-Infiltrating Soil Cell Bioretention with Tree2small tree32"},6.6000000000000003E-2,0.96600000000000008,"sf"]
["Non-Infiltrating Soil Cell Bioretention with Tree",2,"small/medium tree",32,null,"Non-Infiltrating Soil Cell Bioretention with Tree2small/medium tree32",6.6000000000000003E-2,0.96600000000000008,"sf"]
["Non-Infiltrating Soil Cell Bioretention with Tree",2,"medium/large tree",32,null,"Non-Infiltrating Soil Cell Bioretention with Tree2medium/large tree32",6.6000000000000003E-2,0.96600000000000008,"sf"]
["Non-Infiltrating Soil Cell Bioretention with Tree",2,"large tree",32,null,"Non-Infiltrating Soil Cell Bioretention with Tree2large tree32",6.6000000000000003E-2,0.96600000000000008,"sf"]
["Non-Infiltrating Soil Cell Bioretention with Tree",6,"constrained site tree",18,null,"Non-Infiltrating Soil Cell Bioretention with Tree6constrained site tree18",4.3999999999999997E-2,{"$f":"$H$268","v":0.96600000000000008},"sf"]
["Non-Infiltrating Soil Cell Bioretention with Tree",6,"small tree",18,null,{"$f":"TRIM(CONCATENATE(A286,B286,C286,D286))","v":"Non-Infiltrating Soil Cell Bioretention with Tree6small tree18"},4.3999999999999997E-2,{"$f":"$H$268","v":0.96600000000000008},"sf"]
["Non-Infiltrating Soil Cell Bioretention with Tree",6,"small/medium tree",18,null,"Non-Infiltrating Soil Cell Bioretention with Tree6small/medium tree18",4.3999999999999997E-2,0.96600000000000008,"sf"]
["Non-Infiltrating Soil Cell Bioretention with Tree",6,"medium/large tree",18,null,"Non-Infiltrating Soil Cell Bioretention with Tree6medium/large tree18",4.3999999999999997E-2,0.96600000000000008,"sf"]
["Non-Infiltrating Soil Cell Bioretention with Tree",6,"large tree",18,null,"Non-Infiltrating Soil Cell Bioretention with Tree6large tree18",4.3999999999999997E-2,0.96600000000000008,"sf"]
["Non-Infiltrating Soil Cell Bioretention with Tree",6,"constrained site tree",24,null,"Non-Infiltrating Soil Cell Bioretention with Tree6constrained site tree24",4.3999999999999997E-2,{"$f":"$H$268","v":0.96600000000000008},"sf"]
["Non-Infiltrating Soil Cell Bioretention with Tree",6,"small tree",24,null,{"$f":"TRIM(CONCATENATE(A291,B291,C291,D291))","v":"Non-Infiltrating Soil Cell Bioretention with Tree6small tree24"},4.3999999999999997E-2,0.96600000000000008,"sf"]
["Non-Infiltrating Soil Cell Bioretention with Tree",6,"small/medium tree",24,null,"Non-Infiltrating Soil Cell Bioretention with Tree6small/medium tree24",4.3999999999999997E-2,0.96600000000000008,"sf"]
["Non-Infiltrating Soil Cell Bioretention with Tree",6,"medium/large tree",24,null,"Non-Infiltrating Soil Cell Bioretention with Tree6medium/large tree24",4.3999999999999997E-2,0.96600000000000008,"sf"]
["Non-Infiltrating Soil Cell Bioretention with Tree",6,"large tree",24,null,"Non-Infiltrating Soil Cell Bioretention with Tree6large tree24",4.3999999999999997E-2,0.96600000000000008,"sf"]
["Non-Infiltrating Soil Cell Bioretention with Tree",6,"constrained site tree",32,null,"Non-Infiltrating Soil Cell Bioretention with Tree6constrained site tree32",4.3999999999999997E-2,{"$f":"$H$268","v":0.96600000000000008},"sf"]
["Non-Infiltrating Soil Cell Bioretention with Tree",6,"small tree",32,null,{"$f":"TRIM(CONCATENATE(A296,B296,C296,D296))","v":"Non-Infiltrating Soil Cell Bioretention with Tree6small tree32"},4.3999999999999997E-2,0.96600000000000008,"sf"]
["Non-Infiltrating Soil Cell Bioretention with Tree",6,"small/medium tree",32,null,"Non-Infiltrating Soil Cell Bioretention with Tree6small/medium tree32",4.3999999999999997E-2,0.96600000000000008,"sf"]
["Non-Infiltrating Soil Cell Bioretention with Tree",6,"medium/large tree",32,null,"Non-Infiltrating Soil Cell Bioretention with Tree6medium/large tree32",4.3999999999999997E-2,0.96600000000000008,"sf"]
["Non-Infiltrating Soil Cell Bioretention with Tree",6,"large tree",32,null,"Non-Infiltrating Soil Cell Bioretention with Tree6large tree32",4.3999999999999997E-2,0.96600000000000008,"sf"]
["Non-Infiltrating Soil Cell Bioretention with Tree",12,"constrained site tree",18,null,"Non-Infiltrating Soil Cell Bioretention with Tree12constrained site tree18",3.1E-2,{"$f":"$H$268","v":0.96600000000000008},"sf"]
["Non-Infiltrating Soil Cell Bioretention with Tree",12,"small tree",18,null,{"$f":"TRIM(CONCATENATE(A301,B301,C301,D301))","v":"Non-Infiltrating Soil Cell Bioretention with Tree12small tree18"},3.1E-2,{"$f":"$H$268","v":0.96600000000000008},"sf"]
["Non-Infiltrating Soil Cell Bioretention with Tree",12,"small/medium tree",18,null,"Non-Infiltrating Soil Cell Bioretention with Tree12small/medium tree18",3.1E-2,0.96600000000000008,"sf"]
["Non-Infiltrating Soil Cell Bioretention with Tree",12,"medium/large tree",18,null,"Non-Infiltrating Soil Cell Bioretention with Tree12medium/large tree18",3.1E-2,0.96600000000000008,"sf"]
["Non-Infiltrating Soil Cell Bioretention with Tree",12,"large tree",18,null,"Non-Infiltrating Soil Cell Bioretention with Tree12large tree18",3.1E-2,0.96600000000000008,"sf"]
["Non-Infiltrating Soil Cell Bioretention with Tree",12,"constrained site tree",24,null,"Non-Infiltrating Soil Cell Bioretention with Tree12constrained site tree24",3.1E-2,{"$f":"$H$268","v":0.96600000000000008},"sf"]
["Non-Infiltrating Soil Cell Bioretention with Tree",12,"small tree",24,null,{"$f":"TRIM(CONCATENATE(A306,B306,C306,D306))","v":"Non-Infiltrating Soil Cell Bioretention with Tree12small tree24"},3.1E-2,0.96600000000000008,"sf"]
["Non-Infiltrating Soil Cell Bioretention with Tree",12,"small/medium tree",24,null,"Non-Infiltrating Soil Cell Bioretention with Tree12small/medium tree24",3.1E-2,0.96600000000000008,"sf"]
["Non-Infiltrating Soil Cell Bioretention with Tree",12,"medium/large tree",24,null,"Non-Infiltrating Soil Cell Bioretention with Tree12medium/large tree24",3.1E-2,0.96600000000000008,"sf"]
["Non-Infiltrating Soil Cell Bioretention with Tree",12,"large tree",24,null,"Non-Infiltrating Soil Cell Bioretention with Tree12large tree24",3.1E-2,0.96600000000000008,"sf"]
["Non-Infiltrating Soil Cell Bioretention with Tree",12,"constrained site tree",32,null,"Non-Infiltrating Soil Cell Bioretention with Tree12constrained site tree32",3.1E-2,{"$f":"$H$268","v":0.96600000000000008},"sf"]
["Non-Infiltrating Soil Cell Bioretention with Tree",12,"small tree",32,null,{"$f":"TRIM(CONCATENATE(A311,B311,C311,D311))","v":"Non-Infiltrating Soil Cell Bioretention with Tree12small tree32"},3.1E-2,0.96600000000000008,"sf"]
["Non-Infiltrating Soil Cell Bioretention with Tree",12,"small/medium tree",32,null,"Non-Infiltrating Soil Cell Bioretention with Tree12small/medium tree32",3.1E-2,0.96600000000000008,"sf"]
["Non-Infiltrating Soil Cell Bioretention with Tree",12,"medium/large tree",32,null,"Non-Infiltrating Soil Cell Bioretention with Tree12medium/large tree32",3.1E-2,0.96600000000000008,"sf"]
["Non-Infiltrating Soil Cell Bioretention with Tree",12,"large tree",32,null,"Non-Infiltrating Soil Cell Bioretention with Tree12large tree32",3.1E-2,0.96600000000000008,"sf"]
["Vegetated Roof System","Single-Course",4,null,null,"Vegetated Roof SystemSingle-Course4",0.8,{"$f":"2.1*0.458","v":0.9618000000000001},"sf"]
["Vegetated Roof System","Multi-Course",4,null,null,"Vegetated Roof SystemMulti-Course4",0.8,{"$f":"2.1*0.458","v":0.9618000000000001},"sf"]
["Vegetated Roof System","Single-Course",8,null,null,"Vegetated Roof SystemSingle-Course8",0.8,{"$f":"2.1*0.458","v":0.9618000000000001},"sf"]
["Vegetated Roof System","Multi-Course",8,null,null,"Vegetated Roof SystemMulti-Course8",0.8,{"$f":"2.1*0.458","v":0.9618000000000001},"sf"]
["Perforated Stub-out Connection",null,null,null,null,"Perforated Stub-out Connection",{"$f":"NA()","v":{"$error":"#N/A"}},{"$f":"2.1*IF(InfRate<0.05,0.07,IF(InfRate<0.15,0.13,0.18))","v":0.14700000000000002},null,"From meghan modeling for perf stub outs 09/28/2015"]
["Residential Cistern",0,null,null,null,"Residential Cistern0",0,0,"sf"]
["Residential Cistern",400,null,null,null,"Residential Cistern400",3.5999999999999997E-2,{"$f":"2.1*0.95","v":1.9949999999999999},"min. 3 ft depth",{"$f":"RIGHT(I321,15)","v":"min. 3 ft depth"}]
["Residential Cistern",500,null,null,null,{"$f":"TRIM(CONCATENATE(A322,B322,C322,D322))","v":"Residential Cistern500"},3.5999999999999997E-2,1.9949999999999999,"min. 3 ft depth"]
["Residential Cistern",600,null,null,null,"Residential Cistern600",3.5999999999999997E-2,1.9949999999999999,"min. 3 ft depth"]
["Residential Cistern",700,null,null,null,"Residential Cistern700",3.5999999999999997E-2,1.9949999999999999,"min. 3 ft depth"]
["Residential Cistern",800,null,null,null,"Residential Cistern800",2.8000000000000001E-2,1.9949999999999999,"min. 4 ft depth"]
["Residential Cistern",900,null,null,null,"Residential Cistern900",2.4E-2,1.9949999999999999,"min. 4 ft depth"]
["Residential Cistern",1000,null,null,null,"Residential Cistern1000",0.02,1.9949999999999999,"min. 4 ft depth"]
["Residential Cistern",1100,null,null,null,"Residential Cistern1100",1.7000000000000001E-2,1.9949999999999999,"in.. 4 ft depth"]
["Residential Cistern",1200,null,null,null,"Residential Cistern1200",1.4E-2,1.9949999999999999,"min. 4 ft depth"]
["Residential Cistern",1300,null,null,null,"Residential Cistern1300",1.4E-2,1.9949999999999999,"min. 5 ft depth"]
["Residential Cistern",1400,null,null,null,"Residential Cistern1400",1.2999999999999999E-2,1.9949999999999999,"min. 5 ft depth"]
["Residential Cistern",1500,null,null,null,"Residential Cistern1500",1.2999999999999999E-2,1.9949999999999999,"min. 5 ft depth"]
["Residential Cistern",1600,null,null,null,"Residential Cistern1600",1.2999999999999999E-2,1.9949999999999999,"min. 5 ft depth"]
["Residential Cistern",1700,null,null,null,"Residential Cistern1700",1.2999999999999999E-2,1.9949999999999999,"min. 5 ft depth"]
["Residential Cistern",1800,null,null,null,"Residential Cistern1800",1.2999999999999999E-2,1.9949999999999999,"min. 5 ft depth"]
["Residential Cistern",1900,null,null,null,"Residential Cistern1900",1.2E-2,1.9949999999999999,"min. 5 ft depth"]
["Residential Cistern",2000,null,null,null,"Residential Cistern2000",1.6E-2,1.9949999999999999,"min. 5 ft depth"]
["Residential Cistern",2100,null,null,null,"Residential Cistern2100",1.6E-2,1.9949999999999999,"min. 5 ft depth"]
["Residential Cistern",2200,null,null,null,"Residential Cistern2200",1.6E-2,1.9949999999999999,"min. 5 ft depth"]
["Residential Cistern",2300,null,null,null,"Residential Cistern2300",1.6E-2,1.9949999999999999,"min. 5 ft depth"]
["Residential Cistern",2400,null,null,null,"Residential Cistern2400",1.6E-2,1.9949999999999999,"min. 5 ft depth"]
["Residential Cistern",2500,null,null,null,"Residential Cistern2500",1.6E-2,1.9949999999999999,"min. 5 ft depth"]
["Residential Cistern",2600,null,null,null,"Residential Cistern2600",1.6E-2,1.9949999999999999,"min. 5 ft depth"]
["Residential Cistern",2700,null,null,null,"Residential Cistern2700",1.6E-2,1.9949999999999999,"min. 5 ft depth"]
["Residential Cistern",2800,null,null,null,"Residential Cistern2800",1.6E-2,1.9949999999999999,"min. 5 ft depth"]
["Residential Cistern",2900,null,null,null,"Residential Cistern2900",1.6E-2,1.9949999999999999,"min. 5 ft depth"]
["Residential Cistern",3000,null,null,null,"Residential Cistern3000",1.9E-2,1.9949999999999999,"min. 5 ft depth"]
["Residential Cistern",3100,null,null,null,"Residential Cistern3100",1.9E-2,1.9949999999999999,"min. 5 ft depth"]
["Residential Cistern",3200,null,null,null,"Residential Cistern3200",1.9E-2,1.9949999999999999,"min. 5 ft depth"]
["Residential Cistern",3300,null,null,null,"Residential Cistern3300",1.9E-2,1.9949999999999999,"min. 5 ft depth"]
["Residential Cistern",3400,null,null,null,"Residential Cistern3400",1.9E-2,1.9949999999999999,"min. 5 ft depth"]
["Residential Cistern",3500,null,null,null,"Residential Cistern3500",1.9E-2,1.9949999999999999,"min. 5 ft depth"]
["Residential Cistern",3600,null,null,null,"Residential Cistern3600",1.9E-2,1.9949999999999999,"min. 5 ft depth"]
["Residential Cistern",3700,null,null,null,{"$f":"TRIM(CONCATENATE(A354,B354,C354,D354))","v":"Residential Cistern3700"},1.9E-2,1.9949999999999999,"min. 5 ft depth"]
["Residential Cistern",3800,null,null,null,"Residential Cistern3800",1.9E-2,1.9949999999999999,"min. 5 ft depth"]
["Residential Cistern",3900,null,null,null,"Residential Cistern3900",1.9E-2,1.9949999999999999,"min. 5 ft depth"]
["Residential Cistern",4000,null,null,null,"Residential Cistern4000",1.9E-2,1.9949999999999999,"min. 5 ft depth"]
["Residential Cistern",4100,null,null,null,"Residential Cistern4100",1.9E-2,1.9949999999999999,"min. 5 ft depth"]
["Residential Cistern",4200,null,null,null,"Residential Cistern4200",1.9E-2,1.9949999999999999,"min. 5 ft depth"]
["Residential Cistern",4201,null,null,null,"Residential Cistern4201",-999,0]
["Trees","New Deciduous",null,null,null,"TreesNew Deciduous",1E-10,{"$f":"20*2.1","v":42},"new trees"]
["Trees","New Evergreen",null,null,null,"TreesNew Evergreen",1E-10,{"$f":"50*2.1","v":105},"sf canopy"]
["Trees","Retain Deciduous",null,null,null,"TreesRetain Deciduous",1E-10,{"$f":"50*2.1","v":105},"new trees"]
["Trees","Retain Evergreen",null,null,null,"TreesRetain Evergreen",1E-10,{"$f":"100*2.1","v":210},"sf canopy"]
["Water Quality BMP in lieu of NIB",null,null,null,null,"Water Quality BMP in lieu of NIB",{"$f":"NA()","v":{"$error":"#N/A"}},{"$f":"0.46*2.1","v":0.96600000000000008},"sf",{"$f":"H365*1000*7.48052","v":7226.1823200000008}]
[null,null,null,null,null,""]
[]
["Infeasibility Criteria Lists"]
["Full Dispersion","Infiltration Trench","Dry Well","Rain Garden","Infiltrating Bioretention","Rainwater Harvesting","Permeable Pavement Facility","Permeable Pavement Surface","Sidewalk/Trail Compost-Amended Strip","Sheet Flow Dispersion","Concentrated Dispersion","Splashblock Downspout Dispersion","Trench Downspout Dispersion","Non-Infiltrating Bioretention","Vegetated Roof","Perforated Stub-out Connection","Trees","Residential Cistern","Infiltrating Soil Cell Bioretention","Non-infiltrating Soil Cell Bioretention"]
["A licensed professional recommends dispersion not be used anywhere within project site due to reasonable concerns of erosion, slope failure, or flooding.",{"$f":"IF(AND('Project Summary'!Q60=\"No\",'Project Summary'!AA60=\"Site is mapped as \"\"infltr. investigation not required\"\"\"),\"Site is mapped as \"\"Infiltration investigation not required.\"\"\",IF('Project Summary'!Q62=\"No\",IF('Project Summary'!Y62=\"\",\"Infiltration on site is infeasible\",'Project Summary'!Y62),\"The measured infiltration rate is below 2 inches per hour.\"))","v":"The measured infiltration rate is below 2 inches per hour."},{"$f":"IF(AND('Project Summary'!Q60=\"No\",'Project Summary'!AA60=\"Site is mapped as \"\"infltr. investigation not required\"\"\"),\"Site is mapped as \"\"Infiltration investigation not required.\"\"\",IF('Project Summary'!Q62=\"No\",IF('Project Summary'!Y62=\"\",\"Infiltration on site is infeasible\",'Project Summary'!Y62),\"The measured infiltration rate is below 5 inches per hour.\"))","v":"The measured infiltration rate is below 5 inches per hour."},{"$f":"IF(AND('Project Summary'!Q60=\"No\",'Project Summary'!AA60=\"Site is mapped as \"\"infltr. investigation not required\"\"\"),\"Site is mapped as \"\"Infiltration investigation not required.\"\"\",IF('Project Summary'!Q62=\"No\",IF('Project Summary'!Y62=\"\",\"Infiltration on site is infeasible\",'Project Summary'!Y62),\"The measured infiltration rate is below 0.3 inches per hour.\"))","v":"The measured infiltration rate is below 0.3 inches per hour."},{"$f":"IF(AND('Project Summary'!Q60=\"No\",'Project Summary'!AA60=\"Site is mapped as \"\"infltr. investigation not required\"\"\"),\"Site is mapped as \"\"Infiltration investigation not required.\"\"\",IF('Project Summary'!Q62=\"No\",IF('Project Summary'!Y62=\"\",\"Infiltration on site is infeasible\",'Project Summary'!Y62),\"The measured infiltration rate is below 0.3 inches per hour.\"))","v":"The measured infiltration rate is below 0.3 inches per hour."},null,{"$f":"IF(AND('Project Summary'!Q60=\"No\",'Project Summary'!AA60=\"Site is mapped as \"\"infltr. investigation not required\"\"\"),\"Site is mapped as \"\"Infiltration investigation not required.\"\"\",IF('Project Summary'!Q62=\"No\",IF('Project Summary'!Y62=\"\",\"Infiltration on site is infeasible\",'Project Summary'!Y62),\"The measured infiltration rate is below 0.3 inches per hour.\"))","v":"The measured infiltration rate is below 0.3 inches per hour."},{"$f":"IF(AND('Project Summary'!Q60=\"No\",'Project Summary'!AA60=\"Site is mapped as \"\"infltr. investigation not required\"\"\"),\"Site is mapped as \"\"Infiltration investigation not required.\"\"\",IF('Project Summary'!Q62=\"No\",IF('Project Summary'!Y62=\"\",\"Infiltration on site is infeasible\",'Project Summary'!Y62),\"The measured infiltration rate is below 0.3 inches per hour.\"))","v":"The measured infiltration rate is below 0.3 inches per hour."},"Design soil infiltration rate less than 0.15 inch per hour",null,null,null,null,null,null,{"$f":"IF(AND('Project Summary'!Q60=\"No\",'Project Summary'!AA60=\"Site is mapped as \"\"infltr. investigation not required\"\"\"),\"Site is mapped as \"\"Infiltration investigation not required.\"\"\",IF('Project Summary'!Q62=\"No\",IF('Project Summary'!Y62=\"\",\"Infiltration on site is infeasible\",'Project Summary'!Y62),\"The measured infiltration rate is below 0.3 inches per hour.\"))","v":"The measured infiltration rate is below 0.3 inches per hour."},null,null,{"$f":"IF(AND('Project Summary'!Q60=\"No\",'Project Summary'!AA60=\"Site is mapped as \"\"infltr. investigation not required\"\"\"),\"Site is mapped as \"\"Infiltration investigation not required.\"\"\",IF('Project Summary'!Q62=\"No\",IF('Project Summary'!Y62=\"\",\"Infiltration on site is infeasible\",'Project Summary'!Y62),\"The measured infiltration rate is below 0.3 inches per hour.\"))","v":"The measured infiltration rate is below 0.3 inches per hour."}]
["1 The site has less than a 65 to 10 ratio of the native vegetation area to the impervious area.","1 Field testing indicates potential infiltration trench site(s) have a measured underlying soil infiltration rate less than 2 inches per hour (Volume 3, Section 5.4.2).","1 Field testing indicates potential drywell site(s) have a measured underlying soil infiltration rate less than 5 inches per hour (Volume 3, Section 5.4.3).","1 Field testing indicates soils have a measured underlying soil infiltration rate less than 0.3 inches per hour.","1 Evaluation of infiltration is not required per the “Infiltration Investigation Map”.","1 Installation requires removal of an existing tree. ","1 Evaluation of infiltration is not required per the “Infiltration Investigation Map”.","1 Field testing indicates soils have a measured underlying soil infiltration rate less than 0.3 inches per hour (Note: field infiltration tests are not required for permeable pavement surfaces, but must be used to demonstrate infeasibility).","1 A licensed professional recommends dispersion not be used anywhere within project site due to reasonable concerns of erosion, slope failure, or flooding. (Requires site-specific evaluation and documentation by a licensed professional.) ","1 A licensed professional recommends dispersion not be used anywhere within project site due to reasonable concerns of erosion, slope failure, or flooding. (Requires site-specific evaluation and documentation by a licensed professional.) ","1 A licensed professional recommends dispersion not be used anywhere within project site due to reasonable concerns of erosion, slope failure, or flooding. (Requires site-specific evaluation and documentation by a licensed professional.) ","1 A licensed professional recommends dispersion not be used anywhere within project site due to reasonable concerns of erosion, slope failure, or flooding. (Requires site-specific evaluation and documentation by a licensed professional.) ","1 A licensed professional recommends dispersion not be used anywhere within project site due to reasonable concerns of erosion, slope failure, or flooding. (Requires site-specific evaluation and documentation by a licensed professional.) ","1 Installation requires removal of an existing tree. ","1 Project does not include a roof.","1 Evaluation of infiltration is not required per the “Infiltration Investigation Map”.","1 Installation requires removal of an existing tree. ","1 Installation requires removal of an existing tree. ","1 Evaluation of infiltration is not required per the “Infiltration Investigation Map”.","1 Installation requires removal of an existing tree."]
["2 The minimum native vegetation flowpath length is less than 100 feet.","2 Evaluation of infiltration is not required per the “Infiltration Investigation Map”.","2 Evaluation of infiltration is not required per the “Infiltration Investigation Map”.","2 Evaluation of infiltration is not required per the “Infiltration Investigation Map”.","2 Field testing indicates soils have a measured underlying soil infiltration rate less than 0.3 inches per hour.","2 Installation is prohibited per Regulations for Environmentally Critical Areas (SMC Chapter 25.09).","2 Field testing indicates soils have a measured underlying soil infiltration rate less than 0.3 inches per hour.","2 Subsurface investigation demonstrate groundwater or hydraulically-restrictive layer is too shallow per the Minimum Vertical Separation table in Appendix C.","2 The dispersion flow path area does not provide positive drainage.","2 The dispersion flow path area does not provide positive drainage.","2 The dispersion flow path area does not provide positive drainage.","2 The dispersion flow path area does not provide positive drainage.","2 The dispersion flow path area does not provide positive drainage.","2 Where BMP installation is prohibited per Regulations for Environmentally Critical Areas (SMC Chapter 25.09).","2 Roof design has a slope less than 1 degree (0.2:12) or greater than 10 degrees (2:12).","2 Field testing indicates soils have a measured underlying soil infiltration rate less than 0.3 inches per hour (Note: field infiltration tests are not required for permeable pavement surfaces, but must be used to demonstrate infeasibility).","2 Where BMP installation is prohibited per Regulations for Environmentally Critical Areas (SMC Chapter 25.09).","2 Where BMP installation is prohibited per Regulations for Environmentally Critical Areas (SMC Chapter 25.09).","2 Field testing indicates soils have  a measured underlying soil infiltration rate less than 0.3 inch per hour.","2 Installation is prohibited per Regulations for Environmentally Critical Areas (SMC Chapter 25.09)."]
["3 A licensed professional recommends dispersion not be used anywhere within project site due to reasonable concerns of erosion, slope failure, or flooding.","3 The area available for siting does not allow for overflow conveyance to an approved point of discharge per Volume 3, Section 4.3.2.","3 The area available for siting does not allow for overflow conveyance to an approved point of discharge per Volume 3, Section 4.3.2.","3 The facility is located within a 1/4 mile of Green Lake (nutrient critical water body), unless the optional HPBSM and polishing layer are used.","3 Field testing indicates soils have a measured underlying soil infiltration rate less than 0.6 inches per hour and an underdrain cannot be installed per the design criteria.","3 Installation would require pumping to a designated point of discharge, but failure of the pump may destabilize a steep slope.","3 The area available for siting does not allow for overflow conveyance to an approved point of discharge per Volume 3, Section 4.3.2.","3 The subgrade slope exceeds 6 percent after reasonable efforts to grade.","3 The dispersion flowpath area is within a landslide-prone area (SMC, Section 25.09.080).","3 The dispersion flowpath area is within a landslide-prone area (SMC, Section 25.09.080).","3 The dispersion flowpath area is within a landslide-prone area (SMC, Section 25.09.080).","3 The dispersion flowpath area is within a landslide-prone area (SMC, Section 25.09.080).","3 The dispersion flowpath area is within a landslide-prone area (SMC, Section 25.09.080).","3 Installation would require pumping to a designated point of discharge, but failure of the pump may destabilize a steep slope.","3 Installation is not economically feasible based on reasonable consideration of financial cost (refer to Appendix H). Documentation is required.","3 Installation would require pumping to a designated point of discharge, but failure of the pump may destabilize a steep slope.","3 Unable to maintain a desired access of 36 inches in a required building setback from a property line. ","3 Installation would require pumping to a designated point of discharge, but failure of the pump may destabilize a steep slope.","3 Field testing indicates soils have  a measured underlying soil infiltration rate less than 0.6 inch  per hour and an underdrain cannot be installed per the design criteria.","3 Installation would require pumping to a designated point of discharge, but failure of the pump may destabilize a steep slope."]
["4 The dispersion flow path area does not provide positive drainage.","4 The area available for siting is within an ECA steep slope area or land-slide prone area (or setback) (refer to Volume 3, Section 3.2).","4 The area available for siting is within an ECA steep slope area or land-slide prone area (or setback) (refer to Volume 3, Section 3.2).","4 The area available for siting does not allow for overflow conveyance to an approved point of discharge per Volume 3, Section 4.3.2.","4 The facility is located within a 1/4 mile of Green Lake (nutrient critical water body), unless the optional HPBSM and polishing layer are used.","4 Unable to maintain a desired access of 36 inches in a required building setback from a property line. ","4 The area available for siting is within a steep slope area or land-slide prone area (or setback) (refer to Volume 3, Section 3.2).","4 The permeable pavement wearing course slope exceeds 6 percent after reasonable efforts to grade.","4 The dispersion flowpath area is within 100 feet of a contaminated site or landfill (active or closed).","4 The dispersion flowpath area is within 100 feet of a contaminated site or landfill (active or closed).","4 The dispersion flowpath area is within 100 feet of a contaminated site or landfill (active or closed).","4 The dispersion flowpath area is within 100 feet of a contaminated site or landfill (active or closed).","4 The dispersion flowpath area is within 100 feet of a contaminated site or landfill (active or closed).","4 Unable to maintain a desired access of 36 inches in a required building setback from a property line. ","4 This portion of the roof is an amenity area subject to pedestrian use (e.g. balcony, patio, walkway, pet runs, etc.).","4 Installation would require a pump when a pump is not already required to provide site storm drainage.","4 Unable to maintain clearance for required ingress, egress, or ADA pathways.","4 Unable to maintain a desired access of 36 inches in a required building setback from a property line, ","4 The minimum vertical separation from groundwater or a hydraulically restrictive soil per Appendix D, Section D-2.2.4, or solid rock, cannot be met.","4 Unable to maintain a desired access of 36 inches in a required building setback from a property line."]
["5 The dispersion flowpath area is within a landslide-prone area (SMC, Section 25.09.080).","5 The area available for siting does not meet the minimum horizontal setback requirements (refer to Volume 3, Section 3.2).","5 The area available for siting does not meet the minimum horizontal setback requirements (refer to Volume 3, Section 3.2).","5 The area available for siting is within an ECA steep slope area or land-slide prone area (or setback) (refer to Volume 3, Section 3.2).","5 The area available for siting does not allow for overflow conveyance to an approved point of discharge per Volume 3, Section 4.3.2.","5 Unable to maintain clearance for required ingress, egress, or ADA pathways.","5 The area available for siting does not meet the minimum horizontal setback requirements (refer to Volume 3, Section 3.2).","5 For projects in the right-of-way, the permeable pavement surface area would be less than 2,000 square feet of contiguous pavement and the project discharges to: a designated receiving water body, a combined system, or a capacity constrained system which does not drain to a creek wetland or small lake.","5 The dispersion flowpath area is in a steep slope area (SMC, Section 25.09.020) or within a setback to a steep slope area (calculated as 10 times the height of the steep slope to a 500 foot maximum setback).","5 The dispersion flowpath area is in a steep slope area (SMC, Section 25.09.020) or within a setback to a steep slope area (calculated as 10 times the height of the steep slope to a 500 foot maximum setback).","5 The dispersion flowpath area is in a steep slope area (SMC, Section 25.09.020) or within a setback to a steep slope area (calculated as 10 times the height of the steep slope to a 500 foot maximum setback).","5 The dispersion flowpath area is in a steep slope area (SMC, Section 25.09.020) or within a setback to a steep slope area (calculated as 10 times the height of the steep slope to a 500 foot maximum setback).","5 The dispersion flowpath area is in a steep slope area (SMC, Section 25.09.020) or within a setback to a steep slope area (calculated as 10 times the height of the steep slope to a 500 foot maximum setback).","5 Unable to maintain clearance for required ingress, egress, or ADA pathways.","5 The portion of the roof is required for HVAC equipment and/or maintenance access ways (e.g., window washing, HVAC maintenance, etc.).","5 The minimum vertical separation from groundwater or a hydraulically restrictive soil per Appendix D, Section D-2.2.4, or solid rock, cannot be met.","5 The area available for tree planting is unsuitable for approved trees that reach a mature height of 15 feet, possess a mature canopy spread of 15 feet, or have a rooting depth necessary for such trees. The approved species lists are found on the Green Factor Tree List available on the SDCI website for parcels and the SDOT’s Approved Street Tree List for the right-of-way.","5 Unable to maintain clearance for required ingress, egress, or ADA pathways.","5 The area available for siting does not allow for overflow conveyance to an approved point of discharge per Volume 3, Section 4.3.2.","5 Unable to maintain clearance for required ingress, egress, or ADA pathways."]
["6 The dispersion flowpath area is within 100 feet of a contaminated site or landfill (active or closed).","6 The area available for siting does not meet the minimum vertical setback requirements (refer to Volume 3, Section 3.2, and Appendix D).","6 The area available for siting does not meet the minimum vertical setback requirements (refer to Volume 3, Section 3.2, and Appendix D).","6 The area available for siting does not meet the minimum horizontal setback requirements (refer to Volume 3, Section 3.2).","6 The area available for siting is within an ECA steep slope area or land-slide prone area (or setback) (refer to Volume 3, Section 3.2).","6 Installation would require a pump when a pump is not already required to provide site storm drainage. (Requiring a pump as the result of using the Rainwater Harvesting BMP does not make this BMP infeasible.)","6 The area available for siting does not meet the minimum vertical setback requirements (refer to Volume 3, Section 3.2, and Appendix D).","6 The anticipated mature tree spread (based on tree species) would overhang more than 50 percent of permeable pavement area.","6 The dispersion flowpath area is within 30 feet of a proposed or existing septic system drainfield or reserve area or within 10 feet of sewage septic tanks and distribution boxes. ","6 The dispersion flowpath area is within 30 feet of a proposed or existing septic system drainfield or reserve area or within 10 feet of sewage septic tanks and distribution boxes. ","6 The dispersion flowpath area is within 30 feet of a proposed or existing septic system drainfield or reserve area or within 10 feet of sewage septic tanks and distribution boxes. ","6 The dispersion flowpath area is within 30 feet of a proposed or existing septic system drainfield or reserve area or within 10 feet of sewage septic tanks and distribution boxes. ","6 The dispersion flowpath area is within 30 feet of a proposed or existing septic system drainfield or reserve area or within 10 feet of sewage septic tanks and distribution boxes. ","6 Installation would require a pump when a pump is not already required to provide site storm drainage.","6 This portion of the roof is completely covered with Solar Panels.","6 The area available for siting does not allow for overflow conveyance to an approved point of discharge per Volume 3, Section 4.3.2.",null,"6 Installation would require a pump when a pump is not already required to provide site storm drainage.","6 The area available for siting is within a steep slope area or land-slide prone area (or setback) (refer to Volume 3, Section 3.2).","6 Installation would require a pump when a pump is not already required to provide site storm drainage."]
["7 The dispersion flowpath area is in a steep slope area (SMC, Section 25.09.020) or within a setback to a steep slope area (calculated as 10 times the height of the steep slope to a 500 foot maximum setback).","7 The minimum vertical separation from groundwater or a hydraulically restrictive soil per Appendix D, Section D-2.2.4, or solid rock, cannot be met.","7 The minimum vertical separation from groundwater or a hydraulically restrictive soil per Appendix D, Section D-2.2.4, or solid rock, cannot be met.","7 The area available for siting does not meet the minimum vertical setback requirements (refer to Volume 3, Section 3.2, and Appendix D).","7 The area available for siting does not meet the minimum horizontal setback requirements (refer to Volume 3, Section 3.2).","7 Project lacks non-pollution-generating roof from which to harvest rainwater.","7 Infiltration is restricted due to contaminated soil or groundwater (refer to Volume 3, Section 3.2).","7 The pavement is over a structure, such as, but not limited to: parking garages, box culverts, and bridges.","7 The sidewalk or trail to be dispersed exceeds a lateral slope of 5 percent or a longitudinal slope of 8 percent.","7 The area to be dispersed (e.g., driveway, patio) exceeds a slope of 15 percent.","7 There are no concentrated flows to disperse.","7 There are no downspouts.","7 There are no downspouts.","7 In the right-of-way, the infiltrating bioretention facility would have a linear geometry and roadway with an overall a longitudinal slope greater than 8 percent.",null,"7 The area available for siting is within a steep slope area or land-slide prone area (or setback) (refer to Volume 3, Section 3.2).",null,"7 Project does not include non-pollution generating surfaces.","7 The area available for siting does not meet the minimum horizontal setback requirements (refer to Volume 3, Section 3.2).","7 The non-infiltrating soil cell bioretention would have a linear geometry with a longitudinal slope greater than 5 percent or a bottom slope greater than 3 percent."]
["8 The dispersion flowpath area is within 10 feet of a proposed or existing septic system or drainfield. ","8 Infiltration is restricted due to contaminated soil or groundwater (refer to Volume 3, Section 3.2).","8 Infiltration is restricted due to contaminated soil or groundwater (refer to Volume 3, Section 3.2).","8 The minimum vertical separation from groundwater or a hydraulically restrictive soil per Appendix D, Section D-2.2.4, or solid rock, cannot be met.","8 The area available for siting does not meet the minimum vertical setback requirements (refer to Volume 3, Section 3.2, and Appendix D).","8 Non-potable water demand is insufficient to meet the On-site Performance Standard per modeling conducted in accordance with Volume 3, Section 5.5.1.6.","8 The minimum vertical separation from groundwater or a hydraulically restrictive soil per Appendix D, Section D-2.2.4, or solid rock, cannot be met.","8 The pavement is subject to long-term excessive sediment deposition (e.g., construction and landscaping material yards).","8 The sidewalk or trail to be dispersed has a lateral slope of less than 1 percent.","8 The minimum vegetated flow path for sheet flow dispersion cannot be met. Note: A 10 foot flowpath is required to disperse runoff from a contributing flow length of up to 20 feet. An additional 10 feet of flow path is required for each additional 20 feet of contributing flow path or fraction thereof. Refer to Volume 3, Figure 5.5.","8 The minimum dispersion trench length of 10 feet cannot be met.","8 The vegetated flowpath is less than 50 feet.","8 The minimum dispersion trench length of 10 feet for every 700 square feet of drainage area cannot be met.","8 The minimum bottom width of the non-infiltrating bioretention facility (2 feet) cannot be met due to, but not limited to: encroachment within the critical root zone of an existing tree(s), minimum setbacks to structures / utilities, or project limits/planting strip too small.",null,"8 The area available for siting does not meet the minimum horizontal setback requirements (refer to Volume 3, Section 3.2).",null,"8 The cistern would be within restricted setbacks.","8 The area available for siting does not meet the minimum vertical setback requirements (refer to Volume 3, Section 3.2, and Appendix D).","8 The minimum bottom width of the non-infiltrating soil cell bioretention (2 feet) cannot be met."]
["9 Installation requires removal of an existing tree. ","9 Installation requires removal of an existing tree. ","9 Installation requires removal of an existing tree. ","9 Infiltration is restricted due to contaminated soil or groundwater (refer to Volume 3, Section 3.2).","9 The minimum vertical separation from groundwater or a hydraulically restrictive soil per Appendix D, Section D-2.2.4, or solid rock, cannot be met.","9 Installation is not economically feasible based on reasonable consideration of financial cost (e.g., roof area is less than 20,000 sf or the ratio of roof area to average daily rainwater demand is less than 10,000 square feet/gpm) (refer to Appendix H). Documentation is required. ","9 The subgrade slope exceeds 6 percent after reasonable efforts to grade.","9 Underlying soils are unsuitable for supporting traffic loads when saturated (e.g., a residential access road has a California Bearing Ratio of 5 percent or less).","9 Field testing indicates underlying soils have a design soil infiltration rate less than 0.15 inch per hour. Note that field infiltration tests are not required for Sidewalk/Trail Compost-Amended Strip, but must be used to demonstrate infeasibility.","9 The flowpath does not meet the minimum horizontal setback requirements to property lines, structures and other flowpaths (refer to Volume 3, Section 5.3.5).","9 The vegetated flow path for the dispersion trench is less than 25 feet","9 Greater than 700 square feet of surface area drains to the BMP.","9 The vegetated flowpath is less than 25 feet.","9 Minimum vertical and horizontal clearances from utilities are unachievable as required by utility owner.",null,"9 The area available for siting does not meet the minimum vertical setback requirements (refer to Volume 3, Section 3.2, and Appendix D).",null,null,"9 Infiltration is restricted due to contaminated soil or groundwater (refer to Volume 3, Section 3.2).","9 Minimum vertical and horizontal clearances from utilities are unachievable as required by utility owner."]
["10 Installation is prohibited per Regulations for Environmentally Critical Areas (SMC Chapter 25.09).","10 Where BMP installation is prohibited per Regulations for Environmentally Critical Areas (SMC Chapter 25.09).","10 Where BMP installation is prohibited per Regulations for Environmentally Critical Areas (SMC Chapter 25.09).","10 In the right-of-way, the longitudinal road slope exceeds 8 percent.","10 Infiltration is restricted due to contaminated soil or groundwater (refer to Volume 3, Section 3.2).",null,"10 The permeable pavement wearing course slope exceeds 6 percent after reasonable efforts to grade.","10 Pavement is replacing an existing pollution-generating hard surface in the right-of-way.","10 The minimum Sidewalk/Trail Compost-Amended Strip design criteria cannot be met.","10 Installation requires removal of an existing tree. ","10 The vegetated flow path for a rock pad is less than 50 feet.","10 The flowpath does not meet the minimum horizontal setback requirements to property lines, structures and other flowpaths (refer to Volume 3, Section 5.3.3). ","10 The flowpath is within the setbacks to property lines, structures and other flowpaths (refer to Volume 3, Section 5.3.4).","10 The facility would route underdrained water to Green Lake (nutrient-critical receiving water) unless the optional HPBSM and polishing layer are used.",null,"10 Infiltration is restricted due to contaminated soil or groundwater (refer to Volume 3, Section 3.2).",null,null,"10 The infiltrating soil cell bioretention would have a linear geometry with a longitudinal slope greater than 5 percent or a bottom slope greater than 3 percent.","10 The facility would route underdrained water to Green Lake (nutrient-critical receiving water) unless the optional HPBSM and polishing layer are used."]
["11 Installation would require pumping to a designated point of discharge, but failure of the pump may destabilize a steep slope.","11 Installation would require pumping to a designated point of discharge, but failure of the pump may destabilize a steep slope.","11 Installation would require pumping to a designated point of discharge, but failure of the pump may destabilize a steep slope.","11 The rain garden would have a linear geometry with a longitudinal slope greater than 8 percent.","11 In the right-of-way the infiltrating bioretention facility would have a linear geometry with a longitudinal slope greater than 8 percent.",null,"11 For projects in the right-of-way, the permeable pavement surface area would be less than 2,000 square feet of contiguous pavement and the project discharges to: a designated receiving water body, a combined system, or a capacity constrained system which does not drain to a creek wetland or small lake.","11 The street type is classified as arterial or collector rather than local access. Refer to RCW 35.78.010, RCW 36.86.070, and RCW 47.05.021. Note: This infeasibility criterion does not extend to sidewalks and other non-traffic bearing surfaces associated with the collector or arterial.","11 Installation requires removal of an existing tree. ","11 Where BMP installation is prohibited per Regulations for Environmentally Critical Areas (SMC Chapter 25.09).","11 Greater than 700 square feet of surface area drains to the BMP.","11 Installation requires removal of an existing tree. ","11 Installation requires removal of an existing tree. ","11 The area available for siting is within a setback equal to the height of the slope to a maximum of 50 feet from the top of steep slope and known landslide area.",null,"11 The location for the perforated pipe portion of the system is under impervious or heavily compacted (e.g., driveways and parking areas) surfaces.",null,null,"11 The minimum bottom width (2 feet) of the infiltrating soil cell bioretention cannot be met.","11 The area available for siting is within a setback equal to the height of the slope to a maximum of 50 feet from the top of steep slope and known landslide area."]
["12 Unable to maintain a desired access of 36 inches in a required building setback from a property line. ","12 Installation would require a pump when a pump is not already required to provide site storm drainage.","12 Installation would require a pump when a pump is not already required to provide site storm drainage.","12 The minimum bottom width (12-inch average) or side slopes of the rain garden cannot be met due to, but not limited to: encroachment within the critical root zone of an existing tree(s) or minimum setbacks to structures, utilities, or property lines.","12 The minimum bottom width of the infiltrating bioretention facility (2 feet for facilities with vertical sides and 18 inch average for facilities with sloped sides) cannot be met due to, but not limited to: encroachment within the critical root zone of an existing tree(s) or minimum setbacks to structures, utilities, or property lines.",null,"12 The anticipated mature tree spread (based on tree species) would overhang more than 50 percent of permeable pavement area.","12 Streets that receive more than very low traffic volumes, and areas having more than very low truck traffic. Streets with a projected average daily traffic volume of 400 vehicles or less are very low volume roads (AASHTO, 2001)(U.S. Dept. of Transportation, 2013). Areas with very low truck traffic volumes are streets and other areas not subject to through truck traffic but may receive up to weekly use by utility trucks (e.g., garbage, recycling), daily school bus use, and multiple daily use by pick-up trucks, mail/parcel delivery trucks, and maintenance vehicles. Note: This infeasibility criterion does not extend to sidewalks and other non-traffic bearing surfaces.","12 Installation is prohibited per Regulations for Environmentally Critical Areas (SMC Chapter 25.09).",null,"12 The flowpath does not meet the minimum horizontal setback requirements to property lines, structures and other flowpaths (refer to Volume 3, Section 5.3.6).","12 Where BMP installation is prohibited per Regulations for Environmentally Critical Areas (SMC Chapter 25.09).","12 Where BMP installation is prohibited per Regulations for Environmentally Critical Areas (SMC Chapter 25.09).","12 The BMP would be located on a structure or roof that cannot provide sufficient structural support for the BMP.",null,"12 The minimum perforated stub-out length of 10 feet per 5,000 square feet of contributing roof area cannot be met.",null,null,"12 The infiltration area is within the minimum vertical and horizontal clearance from utilities, according to clearances required by the utility owner.","12 Less than 1 foot between the liner and seasonal high groundwater elevation."]
["13 Unable to maintain clearance for required ingress, egress, or ADA pathways.","13 Infiltration is not recommended due to reasonable concerns about erosion, slope failure, or flooding. (Requires site-specific evaluation and documentation by a licensed professional.) ","13 Infiltration is not recommended due to reasonable concerns about erosion, slope failure, or flooding. (Requires site-specific evaluation and documentation by a licensed professional.) ","13 The infiltration area is within the minimum vertical or horizontal clearance from utilities, according to clearances required by the utility owner.","13 The infiltration area is within the minimum vertical and horizontal clearance from utilities, according to clearances required by the utility owner.",null,"13 The pavement is over a structure, such as, but not limited to: parking garages, box culverts, and bridges.","13 The pavement area is defined as a “high use site” in SMC, Section 22.801.090.",null,null,"13 Installation requires removal of an existing tree. ",null,null,"13 Less than 1 foot between the liner and seasonal high groundwater elevation.",null,"13 Where the site cannot be reasonably designed to locate a catch basin between the perforated stub-out and point of connection to the public system.",null,null,"13 The facility is located within a 1/4 mile of Green Lake (nutrient critical water body), unless the optional HPBSM and polishing layer are used.","13 The minimum non-infiltrating soil cell bioretention design criteria cannot be met."]
["14 Installation would require a pump when a pump is not already required to provide site storm drainage.","14 The area available for siting would threaten the safety or reliability of pre-existing underground utilities, pre-existing underground storage tanks, pre-existing structures, or pre-existing road or parking lot surfaces or subgrades.  (Requires site-specific evaluation and documentation by a licensed professional.) ","14 The area available for siting would threaten the safety or reliability of pre-existing underground utilities, pre-existing underground storage tanks, pre-existing structures, or pre-existing road or parking lot surfaces or subgrades.  (Requires site-specific evaluation and documentation by a licensed professional.) ","14 For projects in the right-of-way, the total rain garden top area would be less than 500 square feet and the project discharges to: A designated receiving water body or, A combined system, or A capacity constrained system which does not drain to a creek wetland or small lake.","14 The facility with an underdrain would route underdrained water to Green Lake (nutrient-critical receiving water) unless the optional HPBSM and polishing layer are used.",null,"14 The pavement is subject to long-term excessive sediment deposition (e.g., construction and landscaping material yards).","14 In areas with “industrial activity” as identified in 40 CFR 122.26(b)(14).",null,null,"14 Where BMP installation is prohibited per Regulations for Environmentally Critical Areas (SMC Chapter 25.09).",null,null,"14 A vertical wall facility is required to provide sufficient bottom area and the depth to the bottom of the ponding area from the surrounding grade would need to be 22 inches or more to accommodate gravity flow.",null,"14 Installation requires removal of an existing tree. ",null,null,"14 The facility with an underdrain would route underdrained water to Green Lake (nutrient-critical receiving water) unless the optional HPBSM and polishing layer are used."]
[null,"15 The area available for siting would threaten shoreline structures such as bulkheads. (Requires site-specific evaluation and documentation by a licensed professional.) ","15 The area available for siting would threaten shoreline structures such as bulkheads. (Requires site-specific evaluation and documentation by a licensed professional.) ","15 Installation requires removal of an existing tree. ","15 In the right-of-way, installation requires a vertical walled facility.",null,"15 Underlying soils are unsuitable for supporting traffic loads when saturated (e.g., a residential access road has a California Bearing Ratio of 5 percent or less).","15 Where the risk of concentrated pollutant spills is more likely, including, but not limited to, gas stations, truck stops, and industrial chemical storage sites.",null,null,null,null,null,null,null,"15 Where BMP installation is prohibited per Regulations for Environmentally Critical Areas (SMC Chapter 25.09).",null,null,"15 The minimum infiltrating soil cell bioretention design criteria cannot be met."]
[null,"16 The area available for siting would threaten existing or proposed buildings or structures. (Requires site-specific evaluation and documentation by a licensed professional.) ","16 The area available for siting would threaten existing or proposed buildings or structures. (Requires site-specific evaluation and documentation by a licensed professional.) ","16 Where BMP installation is prohibited per Regulations for Environmentally Critical Areas (SMC Chapter 25.09).","16 A vertical wall facility is required to provide sufficient bottom area and the depth to the bottom of the ponding area from the surrounding grade would need to be 22 inches or more.",null,"16 Pavement is replacing an existing pollution-generating hard surface in the right-of-way.","16 In areas where routine, heavy roadway applications of sand occur in frequent snow zones to maintain traction during weeks of snow and ice accumulation, including sidewalks within 7 feet of roadways with sand application.",null,null,null,null,null,null,null,"16 Infiltration is not recommended due to reasonable concerns about erosion, slope failure, or flooding. (Requires site-specific evaluation and documentation by a licensed professional.) ",null,null,"16 The mature height, size, and/or rooting depth is not compatible with trees listed as approved species in the Green Factor Tree List posted on SDCI’s website for parcels and SDOT’s Approved Street Tree List for the ROW."]
[null,"17 Infiltration is not recommended based on the results of a Groundwater Mounding analysis or a Characterization of Infiltration Receptor analysis per Appendix D, Sections D-5 and D-6. (Requires site-specific evaluation and documentation by a licensed professional.) ","17 Infiltration is not recommended based on the results of a Groundwater Mounding analysis or a Characterization of Infiltration Receptor analysis per Appendix D, Sections D-5 and D-6. (Requires site-specific evaluation and documentation by a licensed professional.) ","17 Installation would require pumping to a designated point of discharge, but failure of the pump may destabilize a steep slope.","17 Installation requires removal of an existing tree. ",null,"17 The street type is classified as arterial or collector rather than local access. Refer to RCW 35.78.010, RCW 36.86.070, and RCW 47.05.021. Note: This infeasibility criterion does not extend to sidewalks and other non-traffic bearing surfaces associated with the collector or arterial.","17 Where runon from unstabilized erodible areas would occur without presettling.",null,null,null,null,null,null,null,"17 The area available for siting would threaten the safety or reliability of pre-existing underground utilities, pre-existing underground storage tanks, pre-existing structures, or pre-existing road or parking lot surfaces or subgrades.  (Requires site-specific evaluation and documentation by a licensed professional.) ",null,null,"17 Installation requires removal of an existing tree. "]
[null,"18 Where the site cannot be reasonably designed to locate a catch basin between the infiltration trench and point of connection to the public system.","18 Where the site cannot be reasonably designed to locate a catch basin between the drywell and point of connection to the public system.","18 Unable to maintain a desired access of 36 inches in a required building setback from a property line. ","18 Where BMP installation is prohibited per Regulations for Environmentally Critical Areas (SMC Chapter 25.09).",null,"18 Streets that receive more than very low traffic volumes, and areas having more than very low truck traffic. Streets with a projected average daily traffic volume of 400 vehicles or less are very low volume roads (AASHTO, 2001)(U.S. Dept. of Transportation, 2013). Areas with very low truck traffic volumes are streets and other areas not subject to through truck traffic but may receive up to weekly use by utility trucks (e.g., garbage, recycling), daily school bus use, and multiple daily use by pick-up trucks, mail/parcel delivery trucks, and maintenance vehicles. Note: This infeasibility criterion does not extend to sidewalks and other non-traffic bearing surfaces.","18 The site is a contaminated site or abandoned landfill.",null,null,null,null,null,null,null,"18 The area available for siting would threaten shoreline structures such as bulkheads. (Requires site-specific evaluation and documentation by a licensed professional.) ",null,null,"18 Installation is prohibited per Regulations for Environmentally Critical Areas (SMC Chapter 25.09)."]
[null,null,null,"19 Unable to maintain clearance for required ingress, egress, or ADA pathways.","19 Installation would require pumping to a designated point of discharge, but failure of the pump may destabilize a steep slope.",null,"19 The pavement area is defined as a “high use site” in SMC, Section 22.801.090.","19 Installation is within 10 feet of a petroleum, chemical, or liquid hazardous waste storage tank or connecting underground pipes.",null,null,null,null,null,null,null,"19 The area available for siting would threaten existing or proposed buildings or structures. (Requires site-specific evaluation and documentation by a licensed professional.) ",null,null,"19 Installation would require pumping to a designated point of discharge, but failure of the pump may destabilize a steep slope."]
[null,null,null,"20 Installation would require a pump when a pump is not already required to provide site storm drainage.","20 Unable to maintain a desired access of 36 inches in a required building setback from a property line. ",null,"20 In areas with “industrial activity” as identified in 40 CFR 122.26(b)(14).","20 Run-on from an adjacent impervious area is greater than 10 percent of the permeable pavement surface area.",null,null,null,null,null,null,null,"20 Infiltration is not recommended based on the results of a Groundwater Mounding analysis or a Characterization of Infiltration Receptor analysis per Appendix D, Sections D-5 and D-6. (Requires site-specific evaluation and documentation by a licensed professional.) ",null,null,"20 Unable to maintain a desired access of 36 inches in a required building setback from a property line. "]
[null,null,null,"21 Infiltration is not recommended due to reasonable concerns about erosion, slope failure, or flooding. (Requires site-specific evaluation and documentation by a licensed professional.) ","21 Unable to maintain clearance for required ingress, egress, or ADA pathways.",null,"21 Where the risk of concentrated pollutant spills is more likely, including, but not limited to, gas stations, truck stops, and industrial chemical storage sites.","21 A licensed professional (as defined in Appendix D, Section D-1) recommends permeable pavement not be used anywhere within the project site due to reasonable concerns of erosion, slope failure, or flooding (requires a signed and stamped written determination based on site-specific conditions from a licensed professional).",null,null,null,null,null,null,null,null,null,null,"21 Unable to maintain clearance for required ingress, egress, or ADA pathways."]
[null,null,null,"22 The area available for siting would threaten the safety or reliability of pre-existing underground utilities, pre-existing underground storage tanks, pre-existing structures, or pre-existing road or parking lot surfaces or subgrades.  (Requires site-specific evaluation and documentation by a licensed professional.) ","22 Installation would require a pump when a pump is not already required to provide site storm drainage.",null,"22 In areas where routine, heavy roadway applications of sand occur in frequent snow zones to maintain traction during weeks of snow and ice accumulation, including sidewalks within 7 feet of roadways with sand application.","22 The Director has determined that permeable pavement in active zones of a skate park, bike park, or sport court violates safety standards.",null,null,null,null,null,null,null,null,null,null,"22 Installation would require a pump when a pump is not already required to provide site storm drainage."]
[null,null,null,"23 The area available for siting would threaten shoreline structures such as bulkheads. (Requires site-specific evaluation and documentation by a licensed professional.) ","23 Infiltration is not recommended due to reasonable concerns about erosion, slope failure, or flooding. (Requires site-specific evaluation and documentation by a licensed professional.) ",null,"23 Where run-on from unstabilized erodible areas would occur without presettling.","23 The hard surface in question is a set of stairs or a 6 foot long or less landing between sets of stairs.",null,null,null,null,null,null,null,null,null,null,"23 Infiltration is not recommended due to reasonable concerns about erosion, slope failure, or flooding. (Requires site-specific evaluation and documentation by a licensed professional.) "]
[null,null,null,"24 The area available for siting would threaten existing or proposed buildings or structures. (Requires site-specific evaluation and documentation by a licensed professional.) ","24 The area available for siting would threaten the safety or reliability of pre-existing underground utilities, pre-existing underground storage tanks, pre-existing structures, or pre-existing road or parking lot surfaces or subgrades.  (Requires site-specific evaluation and documentation by a licensed professional.) ",null,"24 The areas contributing runoff to the permeable pavement facilities exceed the maximum run-on limits: Pollution-generating impervious surfaces (e.g., roadways, parking lots) exceed the maximum run-on area ratio of 2:1, Non-pollution generating impervious surfaces (e.g., roofs, sidewalks) and stabilized pervious surfaces exceed the maximum run-on area ratio of 5:1","24 Installation requires removal of an existing tree.",null,null,null,null,null,null,null,null,null,null,"24 The area available for siting would threaten the safety or reliability of pre-existing underground utilities, pre-existing underground storage tanks, pre-existing structures, or pre-existing road or parking lot surfaces or subgrades.  (Requires site-specific evaluation and documentation by a licensed professional.) "]
[null,null,null,"25 Infiltration is not recommended based on the results of a Groundwater Mounding analysis or a Characterization of Infiltration Receptor analysis per Appendix D, Sections D-5 and D-6. (Requires site-specific evaluation and documentation by a licensed professional.) ","25 The area available for siting would threaten shoreline structures such as bulkheads. (Requires site-specific evaluation and documentation by a licensed professional.) ",null,"25 The Director has determined that permeable pavement in active zones of a skate park, bike park, or sport court violates safety standards.","25 Where BMP installation is prohibited per Regulations for Environmentally Critical Areas (SMC Chapter 25.09).",null,null,null,null,null,null,null,null,null,null,"25 The area available for siting would threaten shoreline structures such as bulkheads. (Requires site-specific evaluation and documentation by a licensed professional.) "]
[null,null,null,null,"26 The area available for siting would threaten existing or proposed buildings or structures. (Requires site-specific evaluation and documentation by a licensed professional.) ",null,"26 Installation requires removal of an existing tree. ","26 Installation would require pumping to a designated point of discharge, but failure of the pump may destabilize a steep slope.",null,null,null,null,null,null,null,null,null,null,"26 The area available for siting would threaten existing or proposed buildings or structures. (Requires site-specific evaluation and documentation by a licensed professional.) "]
[null,null,null,null,"27 Infiltration is not recommended based on the results of a Groundwater Mounding analysis or a Characterization of Infiltration Receptor analysis per Appendix D, Sections D-5 and D-6. (Requires site-specific evaluation and documentation by a licensed professional.) ",null,"27 Where BMP installation is prohibited per Regulations for Environmentally Critical Areas (SMC Chapter 25.09).","27 Infiltrating or ponding water below pavement area would compromise adjacent pavements. (Requires site-specific evaluation and documentation by a licensed professional.) ",null,null,null,null,null,null,null,null,null,null,"27 Infiltration is not recommended based on the results of a Groundwater Mounding analysis or a Characterization of Infiltration Receptor analysis per Appendix D, Sections D-5 and D-6. (Requires site-specific evaluation and documentation by a licensed professional.) "]
[null,null,null,null,null,null,"28 Installation would require pumping to a designated point of discharge, but failure of the pump may destabilize a steep slope.","28 Fill soils are used that can become unstable when saturated. (Requires site-specific evaluation and documentation by a licensed professional.) "]
[null,null,null,null,null,null,"29 Installation would require a pump when a pump is not already required to provide site storm drainage.","29 The permeable pavement design does not provide sufficient strength to support heavy loads in areas with “industrial activity” as identified in 40 CFR 122.26(b)(14). (Requires site-specific evaluation and documentation by a licensed professional.) "]
[null,null,null,null,null,null,"30 Infiltrating or ponding water below pavement area would compromise adjacent pavements. (Requires site-specific evaluation and documentation by a licensed professional.) "]
[null,null,null,null,null,null,"31 Fill soils are used that can become unstable when saturated. (Requires site-specific evaluation and documentation by a licensed professional.) "]
[null,null,null,null,null,null,"32 The permeable pavement design does not provide sufficient strength to support heavy loads in areas with “industrial activity” as identified in 40 CFR 122.26(b)(14). (Requires site-specific evaluation and documentation by a licensed professional.) "]
[null,null,null,null,null,null,"33 Infiltration is not recommended due to reasonable concerns about erosion, slope failure, or flooding. (Requires site-specific evaluation and documentation by a licensed professional.) "]
[null,null,null,null,null,null,"34 The area available for siting would threaten the safety or reliability of pre-existing underground utilities, pre-existing underground storage tanks, pre-existing structures, or pre-existing road or parking lot surfaces or subgrades.  (Requires site-specific evaluation and documentation by a licensed professional.) "]
[null,null,null,null,null,null,"35 The area available for siting would threaten shoreline structures such as bulkheads. (Requires site-specific evaluation and documentation by a licensed professional.) "]
[null,null,null,null,null,null,"36 The area available for siting would threaten existing or proposed buildings or structures. (Requires site-specific evaluation and documentation by a licensed professional.) "]
[null,null,null,null,null,null,"37 Infiltration is not recommended based on the results of a Groundwater Mounding analysis or a Characterization of Infiltration Receptor analysis per Appendix D, Sections D-5 and D-6. (Requires site-specific evaluation and documentation by a licensed professional.) "]

{"sheet":"BMP Modeling","index":7,"n_rows":50,"n_cols":44,"rows_kept":50,"cut":false,"hidden":true,"merged":[[7,0,7,2],[39,1,39,2],[23,1,23,2],[19,3,19,7],[21,3,21,7],[23,3,23,7],[25,3,25,7],[15,15,15,21],[17,15,17,21],[19,15,19,21],[21,15,21,21],[23,15,23,21],[25,15,25,21],[27,15,27,21],[29,15,29,21],[31,15,31,21],[33,15,33,21],[35,15,35,21],[37,15,37,21],[39,15,39,21],[7,9,7,13],[9,9,9,13],[11,9,11,13],[13,9,13,13],[37,3,37,7],[27,9,27,13],[29,9,29,13],[31,9,31,13],[33,9,33,13],[35,9,35,13],[37,9,37,13],[29,1,29,2],[27,1,27,2],[31,1,31,2],[33,1,33,2],[35,3,35,7],[27,3,27,7],[29,3,29,7],[31,3,31,7],[29,31,29,35],[27,23,27,29],[15,3,15,7],[35,1,35,2],[35,37,35,41],[27,37,27,41],[15,9,15,13],[17,9,17,13],[19,9,19,13],[21,9,21,13],[23,9,23,13],[31,37,31,41],[33,37,33,41],[23,37,23,41],[25,1,25,2],[25,37,25,41],[17,37,17,41],[17,3,17,7],[45,3,45,7],[45,23,45,29],[39,9,39,13],[43,15,43,21],[45,15,45,21],[41,15,41,21],[47,31,47,35],[9,1,9,2],[9,37,9,41],[37,1,37,2],[25,9,25,13],[35,31,35,35],[33,31,33,35],[33,3,33,7],[29,37,29,41],[21,31,21,35],[19,1,19,2],[19,37,19,41],[21,1,21,2],[37,37,37,41],[37,31,37,35],[23,31,23,35],[25,31,25,35],[27,31,27,35],[45,37,45,41],[45,31,45,35],[47,1,47,2],[39,23,39,29],[41,23,41,29],[43,23,43,29],[39,31,39,35],[39,3,39,7],[41,9,41,13],[43,9,43,13],[45,9,45,13],[47,9,47,13],[39,37,39,41],[41,1,41,2],[41,37,41,41],[43,1,43,2],[43,37,43,41],[47,15,47,21],[47,37,47,41],[45,1,45,2],[43,31,43,35],[41,31,41,35],[41,3,41,7],[43,3,43,7],[0,0,0,71],[1,0,1,71],[13,31,13,35],[9,31,9,35],[11,31,11,35],[21,37,21,41],[11,1,11,2],[13,1,13,2],[13,37,13,41],[15,1,15,2],[15,37,15,41],[9,3,9,7],[11,3,11,7],[13,3,13,7],[4,1,6,69],[7,3,7,7],[11,43,11,70],[13,43,13,70],[15,43,15,70],[11,37,11,41],[17,1,17,2],[17,43,17,70],[19,43,19,70],[21,43,21,70],[23,43,23,70],[25,43,25,70],[9,43,9,70],[7,37,7,41],[7,31,7,35],[7,23,7,29],[11,23,11,29],[13,23,13,29],[15,23,15,29],[17,23,17,29],[19,23,19,29],[9,23,9,29],[21,23,21,29],[23,23,23,29],[25,23,25,29],[15,31,15,35],[17,31,17,35],[19,31,19,35],[7,15,7,21],[9,15,9,21],[11,15,11,21],[13,15,13,21],[49,1,50,70],[27,43,27,70],[29,43,29,70],[31,43,31,70],[33,43,33,70],[35,43,35,70],[37,43,37,70],[39,43,39,70],[41,43,41,70],[43,43,43,70],[29,23,29,29],[31,23,31,29],[33,23,33,29],[35,23,35,29],[37,23,37,29],[47,3,47,7],[47,23,47,29],[45,43,45,70],[47,43,47,70],[31,31,31,35]]}
["On-site Stormwater Management Calculator"]
["BMP Modeling Results"]
[{"$f":"Version","v":"Version 05-22-2026"}]
[]
[null,"For the On-Site Performance Standard the modeling approach for each BMP design shall be applied. Refer to Section 4.1.3 and Appendix F in the Seattle Stormwater Manual for modeling requirements and guidelines."]
[]
[]
["Surface",null,null,"Contributing Area (sf)",null,null,null,null,null,"Hard Surface Type",null,null,null,null,null,"Hard Surface Description",null,null,null,null,null,null,null,"BMP Name",null,null,null,null,null,null,null,"Facility Size (sf)",null,null,null,null,null,"Total Volume Infiltrated (cf)*",null,null,null,null,null,"Optional Notes"]
[]
[null,1]
[]
[null,2]
[]
[null,3]
[]
[null,4]
[]
[null,5]
[]
[null,6]
[]
[null,7]
[]
[null,8]
[]
[null,9]
[]
[null,10]
[]
[null,11]
[]
[null,12]
[]
[null,13]
[]
[null,14]
[]
[null,15]
[]
[null,16]
[]
[null,17]
[]
[null,18]
[]
[null,19]
[]
[null,20]
[]
[null,"* Total volume infiltrated over the required 158-year continuous runoff model simulation in cubic feet (i.e. total volume infiltrated from the WWHM or MGS Flood output). The calculator will convert the volume to gallons and display the average annual volume infiltrated on the Project Summary tab. (If a pre-sized table is used rather than modeling, leave this field blank.)"]

{"sheet":"BMP Sizing","index":8,"n_rows":249,"n_cols":46,"rows_kept":249,"cut":false,"hidden":false,"merged":[[248,1,248,36],[98,1,98,12],[88,21,88,26],[94,13,94,20],[94,21,94,26],[92,13,92,20],[70,13,70,20],[88,13,88,20],[68,1,68,12],[70,7,70,11],[80,7,80,11],[90,7,90,11],[108,21,108,26],[98,13,98,20],[108,13,108,20],[104,13,104,20],[104,21,104,26],[246,21,246,26],[136,21,136,26],[146,21,146,26],[156,21,156,26],[166,21,166,26],[176,21,176,26],[186,21,186,26],[68,21,68,26],[58,13,58,20],[68,13,68,20],[72,13,72,20],[62,13,62,20],[78,13,78,20],[60,21,60,26],[70,21,70,26],[74,21,74,26],[72,21,72,26],[74,13,74,20],[66,21,66,26],[76,21,76,26],[48,28,48,36],[6,10,6,25],[128,1,128,12],[128,13,128,20],[128,21,128,26],[118,13,118,20],[120,13,120,20],[118,1,118,12],[108,1,108,12],[78,1,78,12],[80,13,80,20],[80,21,80,26],[82,21,82,26],[88,1,88,12],[78,21,78,26],[82,13,82,20],[112,21,112,26],[112,13,112,20],[98,21,98,26],[102,21,102,26],[100,21,100,26],[90,21,90,26],[92,21,92,26],[84,13,84,20],[58,28,58,36],[68,28,68,36],[42,26,42,37],[4,5,4,8],[6,5,6,8],[8,5,8,8],[10,5,10,8],[20,5,20,8],[50,13,50,20],[48,21,48,26],[48,13,48,20],[50,21,50,26],[6,26,6,37],[8,26,8,37],[10,26,10,37],[12,26,12,37],[14,26,14,37],[16,26,16,37],[18,10,18,25],[16,10,16,25],[14,10,14,25],[12,10,12,25],[10,10,10,25],[28,26,28,37],[48,1,48,12],[58,1,58,12],[54,13,54,20],[54,21,54,26],[64,13,64,20],[64,21,64,26],[52,21,52,26],[62,21,62,26],[60,13,60,20],[61,13,61,20],[52,13,52,20],[50,7,50,11],[60,7,60,11],[56,21,56,26],[58,21,58,26],[0,0,0,37],[1,0,1,37],[3,1,3,36],[45,5,45,7],[4,1,4,4],[6,1,6,4],[8,1,8,4],[10,1,10,4],[12,1,12,4],[14,1,14,4],[16,1,16,4],[18,1,18,4],[20,1,20,4],[22,1,22,4],[24,1,24,4],[22,5,22,8],[42,5,42,8],[42,10,42,25],[8,10,8,25],[22,10,22,25],[20,10,20,25],[18,5,18,8],[26,1,26,4],[26,5,26,8],[4,10,4,24],[36,1,36,4],[36,5,36,8],[36,10,36,25],[36,26,36,37],[38,1,38,4],[38,5,38,8],[24,5,24,8],[12,5,12,8],[14,5,14,8],[16,5,16,8],[18,26,18,37],[20,26,20,37],[22,26,22,37],[24,10,24,25],[28,10,28,25],[26,10,26,25],[26,26,26,37],[28,1,28,4],[28,5,28,8],[24,26,24,37],[50,28,50,36],[30,1,30,4],[30,5,30,8],[30,10,30,25],[30,26,30,37],[32,1,32,4],[32,5,32,8],[32,10,32,25],[32,26,32,37],[34,1,34,4],[34,5,34,8],[34,10,34,25],[34,26,34,37],[38,10,38,25],[38,26,38,37],[40,1,40,4],[40,5,40,8],[40,10,40,25],[40,26,40,37],[42,1,42,4],[44,5,44,8],[44,10,44,25],[44,26,44,37],[44,1,44,4],[150,13,150,20],[150,21,150,26],[150,28,150,36],[148,13,148,20],[148,21,148,26],[148,28,148,36],[142,21,142,26],[142,13,142,20],[144,13,144,20],[144,21,144,26],[140,13,140,20],[140,21,140,26],[138,13,138,20],[60,28,60,36],[70,28,70,36],[80,28,80,36],[90,28,90,36],[100,28,100,36],[110,28,110,36],[140,28,140,36],[128,28,128,36],[138,28,138,36],[120,28,120,36],[110,13,110,20],[134,21,134,26],[78,28,78,36],[88,28,88,36],[98,28,98,36],[108,28,108,36],[118,28,118,36],[84,21,84,26],[90,13,90,20],[130,21,130,26],[132,21,132,26],[100,13,100,20],[102,13,102,20],[118,21,118,26],[110,21,110,26],[86,21,86,26],[96,21,96,26],[106,21,106,26],[116,21,116,26],[126,21,126,26],[158,28,158,36],[160,13,160,20],[160,21,160,26],[160,28,160,36],[162,13,162,20],[162,21,162,26],[114,21,114,26],[124,13,124,20],[124,21,124,26],[134,13,134,20],[122,21,122,26],[122,13,122,20],[130,13,130,20],[152,13,152,20],[152,21,152,26],[154,13,154,20],[154,21,154,26],[158,13,158,20],[158,21,158,26],[138,21,138,26],[130,28,130,36],[120,21,120,26],[132,13,132,20],[114,13,114,20],[164,13,164,20],[164,21,164,26],[168,1,168,12],[168,13,168,20],[168,21,168,26],[168,28,168,36],[170,13,170,20],[170,21,170,26],[170,28,170,36],[172,13,172,20],[172,21,172,26],[174,13,174,20],[174,21,174,26],[178,1,178,12],[178,13,178,20],[178,21,178,26],[178,28,178,36],[180,13,180,20],[180,21,180,26],[180,28,180,36],[182,13,182,20],[182,21,182,26],[184,13,184,20],[184,21,184,26],[188,1,188,12],[188,13,188,20],[188,21,188,26],[188,28,188,36],[190,13,190,20],[190,21,190,26],[190,28,190,36],[190,7,190,11],[192,13,192,20],[192,21,192,26],[194,13,194,20],[194,21,194,26],[198,1,198,12],[198,13,198,20],[198,21,198,26],[198,28,198,36],[200,13,200,20],[200,21,200,26],[200,28,200,36],[200,7,200,11],[196,21,196,26],[202,13,202,20],[202,21,202,26],[204,13,204,20],[204,21,204,26],[208,1,208,12],[208,13,208,20],[208,21,208,26],[208,28,208,36],[210,13,210,20],[210,21,210,26],[210,28,210,36],[210,7,210,11],[206,21,206,26],[212,13,212,20],[212,21,212,26],[214,13,214,20],[214,21,214,26],[218,1,218,12],[218,13,218,20],[218,21,218,26],[218,28,218,36],[220,13,220,20],[220,21,220,26],[220,28,220,36],[220,7,220,11],[216,21,216,26],[238,28,238,36],[240,13,240,20],[240,21,240,26],[240,28,240,36],[222,13,222,20],[222,21,222,26],[224,13,224,20],[224,21,224,26],[228,1,228,12],[228,13,228,20],[228,21,228,26],[228,28,228,36],[230,13,230,20],[230,21,230,26],[230,28,230,36],[230,7,230,11],[226,21,226,26],[236,21,236,26],[242,13,242,20],[242,21,242,26],[244,13,244,20],[244,21,244,26],[232,13,232,20],[232,21,232,26],[234,13,234,20],[234,21,234,26],[238,1,238,12],[238,13,238,20],[238,21,238,26],[240,7,240,11],[100,7,100,11],[110,7,110,11],[120,7,120,11],[130,7,130,11],[140,7,140,11],[150,7,150,11],[160,7,160,11],[170,7,170,11],[180,7,180,11],[138,1,138,12],[158,1,158,12],[148,1,148,12]]}
["On-site Stormwater Management Calculator - List Approach"]
["BMP Sizing"]
[{"$f":"Version","v":"Version 05-22-2026"}]
[null,"\nMore than one surface can drain to the same BMP. For example, a garage roof and driveway may be managed by a single infiltration trench. Please indicate which surfaces are draining to which BMPs in the dropdown menus.\n\n"]
[null,"Surface",null,null,null,"Area (sf)",null,null,null,null,"Select BMP",null,null,null,null,null,null,null,null,null,null,null,null,null,null,null,null,null,null,null,null,null,null,null,null,null,null,null,null,"Dropdown List","Unique Count","BMP Type","Can there be more than one BMP","Match"]
[]
[null,1,null,null,null,{"$f":"IFERROR(INDEX('Project Summary'!$W$79:$W$83,MATCH(B7,'Project Summary'!$AS$79:$AS$83,0)),\"\")","v":""},null,null,null,null,null,null,null,null,null,null,null,null,null,null,null,null,null,null,null,null,{"$f":"IFERROR(IF(AND(K7<>\"\",NOT(AR7)),IF(AN7=\"\",\"Select BMP on Surface Tab.\",\"Selected BMP doesn't match Surface Tab.\"),\"\"),\"\")","v":""},null,null,null,null,null,null,null,null,null,null,null,null,{"$f":"IFERROR(INDEX('Project Summary'!$AX$79:$AX$83,MATCH(B7,'Project Summary'!$AS$79:$AS$83,0)),\"NoLIst\")","v":"NoLIst"},{"$f":"IF(LEFT(K7,3)=LEFT(AN7,3),IF(K7<>\"\",1,\"\"),\"\")","v":""},{"$f":"IFERROR(INDEX('Project Summary'!$AT$79:$AT$83,MATCH(B7,'Project Summary'!$AS$79:$AS$83,0)),\"\")","v":""},{"$f":"INDEX(Lookup!$B$70:$B$94,MATCH(AP7,Lookup!$A$70:$A$94,0))","v":{"$error":"#N/A"}},{"$f":"OR(LEFT(K7,LEN(K7)-LEN(AO7)-2)=AP7,K7=AP7,LEFT(K7,LEN(K7)-LEN(AO7)-1)=AP7)","v":{"$error":"#VALUE!"}},null,""]
[]
[null,2,2,null,null,{"$f":"IFERROR(INDEX('Project Summary'!$W$79:$W$83,MATCH(B9,'Project Summary'!$AS$79:$AS$83,0)),\"\")","v":""},null,null,null,null,null,null,null,null,null,null,null,null,null,null,null,null,null,null,null,null,{"$f":"IFERROR(IF(AND(K9<>\"\",NOT(AR9)),IF(AN9=\"\",\"Select BMP on Surface Tab.\",\"Selected BMP doesn't match Surface Tab.\"),\"\"),\"\")","v":""},null,null,null,null,null,null,null,null,null,null,null,null,{"$f":"IFERROR(INDEX('Project Summary'!$AX$79:$AX$83,MATCH(B9,'Project Summary'!$AS$79:$AS$83,0)),\"NoLIst\")","v":"NoLIst"},{"$f":"IF(OR(K9=\"\",LEFT(K9,3)<>LEFT(AN9,3)),\"\",IF(AQ9,IFERROR(INDEX($AO$7:AO8,MATCH(K9,$K$7:K9,0)),MAX($AO$7:AO8)+1),MAX($AO$7:AO8)+1))","v":""},{"$f":"IFERROR(INDEX('Project Summary'!$AT$79:$AT$83,MATCH(B9,'Project Summary'!$AS$79:$AS$83,0)),\"\")","v":""},{"$f":"INDEX(Lookup!$B$70:$B$94,MATCH(AP9,Lookup!$A$70:$A$94,0))","v":{"$error":"#N/A"}},{"$f":"OR(LEFT(K9,LEN(K9)-LEN(AO9)-2)=AP9,K9=AP9,LEFT(K9,LEN(K9)-LEN(AO9)-1)=AP9)","v":{"$error":"#VALUE!"}}]
[]
[null,3,3,null,null,{"$f":"IFERROR(INDEX('Project Summary'!$W$79:$W$83,MATCH(B11,'Project Summary'!$AS$79:$AS$83,0)),\"\")","v":""},null,null,null,null,null,null,null,null,null,null,null,null,null,null,null,null,null,null,null,null,{"$f":"IFERROR(IF(AND(K11<>\"\",NOT(AR11)),IF(AN11=\"\",\"Select BMP on Surface Tab.\",\"Selected BMP doesn't match Surface Tab.\"),\"\"),\"\")","v":""},null,null,null,null,null,null,null,null,null,null,null,null,{"$f":"IFERROR(INDEX('Project Summary'!$AX$79:$AX$83,MATCH(B11,'Project Summary'!$AS$79:$AS$83,0)),\"NoLIst\")","v":"NoLIst"},{"$f":"IF(OR(K11=\"\",LEFT(K11,3)<>LEFT(AN11,3)),\"\",IF(AQ11,IFERROR(INDEX($AO$7:AO10,MATCH(K11,$K$7:K11,0)),MAX($AO$7:AO10)+1),MAX($AO$7:AO10)+1))","v":""},{"$f":"IFERROR(INDEX('Project Summary'!$AT$79:$AT$83,MATCH(B11,'Project Summary'!$AS$79:$AS$83,0)),\"\")","v":""},{"$f":"INDEX(Lookup!$B$70:$B$94,MATCH(AP11,Lookup!$A$70:$A$94,0))","v":{"$error":"#N/A"}},{"$f":"OR(LEFT(K11,LEN(K11)-LEN(AO11)-2)=AP11,K11=AP11,LEFT(K11,LEN(K11)-LEN(AO11)-1)=AP11)","v":{"$error":"#VALUE!"}}]
[]
[null,4,4,null,null,{"$f":"IFERROR(INDEX('Project Summary'!$W$79:$W$83,MATCH(B13,'Project Summary'!$AS$79:$AS$83,0)),\"\")","v":""},null,null,null,null,null,null,null,null,null,null,null,null,null,null,null,null,null,null,null,null,{"$f":"IFERROR(IF(AND(K13<>\"\",NOT(AR13)),IF(AN13=\"\",\"Select BMP on Surface Tab.\",\"Selected BMP doesn't match Surface Tab.\"),\"\"),\"\")","v":""},null,null,null,null,null,null,null,null,null,null,null,null,{"$f":"IFERROR(INDEX('Project Summary'!$AX$79:$AX$83,MATCH(B13,'Project Summary'!$AS$79:$AS$83,0)),\"NoLIst\")","v":"NoLIst"},{"$f":"IF(OR(K13=\"\",LEFT(K13,3)<>LEFT(AN13,3)),\"\",IF(AQ13,IFERROR(INDEX($AO$7:AO12,MATCH(K13,$K$7:K13,0)),MAX($AO$7:AO12)+1),MAX($AO$7:AO12)+1))","v":""},{"$f":"IFERROR(INDEX('Project Summary'!$AT$79:$AT$83,MATCH(B13,'Project Summary'!$AS$79:$AS$83,0)),\"\")","v":""},{"$f":"INDEX(Lookup!$B$70:$B$94,MATCH(AP13,Lookup!$A$70:$A$94,0))","v":{"$error":"#N/A"}},{"$f":"OR(LEFT(K13,LEN(K13)-LEN(AO13)-2)=AP13,K13=AP13,LEFT(K13,LEN(K13)-LEN(AO13)-1)=AP13)","v":{"$error":"#VALUE!"}}]
[]
[null,5,5,null,null,{"$f":"IFERROR(INDEX('Project Summary'!$W$79:$W$83,MATCH(B15,'Project Summary'!$AS$79:$AS$83,0)),\"\")","v":""},null,null,null,null,null,null,null,null,null,null,null,null,null,null,null,null,null,null,null,null,{"$f":"IFERROR(IF(AND(K15<>\"\",NOT(AR15)),IF(AN15=\"\",\"Select BMP on Surface Tab.\",\"Selected BMP doesn't match Surface Tab.\"),\"\"),\"\")","v":""},null,null,null,null,null,null,null,null,null,null,null,null,{"$f":"IFERROR(INDEX('Project Summary'!$AX$79:$AX$83,MATCH(B15,'Project Summary'!$AS$79:$AS$83,0)),\"NoLIst\")","v":"NoLIst"},{"$f":"IF(OR(K15=\"\",LEFT(K15,3)<>LEFT(AN15,3)),\"\",IF(AQ15,IFERROR(INDEX($AO$7:AO14,MATCH(K15,$K$7:K15,0)),MAX($AO$7:AO14)+1),MAX($AO$7:AO14)+1))","v":""},{"$f":"IFERROR(INDEX('Project Summary'!$AT$79:$AT$83,MATCH(B15,'Project Summary'!$AS$79:$AS$83,0)),\"\")","v":""},{"$f":"INDEX(Lookup!$B$70:$B$94,MATCH(AP15,Lookup!$A$70:$A$94,0))","v":{"$error":"#N/A"}},{"$f":"OR(LEFT(K15,LEN(K15)-LEN(AO15)-2)=AP15,K15=AP15,LEFT(K15,LEN(K15)-LEN(AO15)-1)=AP15)","v":{"$error":"#VALUE!"}}]
[]
[null,6,6,null,null,{"$f":"IFERROR(INDEX('Project Summary'!$W$79:$W$83,MATCH(B17,'Project Summary'!$AS$79:$AS$83,0)),\"\")","v":""},null,null,null,null,null,null,null,null,null,null,null,null,null,null,null,null,null,null,null,null,{"$f":"IFERROR(IF(AND(K17<>\"\",NOT(AR17)),IF(AN17=\"\",\"Select BMP on Surface Tab.\",\"Selected BMP doesn't match Surface Tab.\"),\"\"),\"\")","v":""},null,null,null,null,null,null,null,null,null,null,null,null,{"$f":"IFERROR(INDEX('Project Summary'!$AX$79:$AX$83,MATCH(B17,'Project Summary'!$AS$79:$AS$83,0)),\"NoLIst\")","v":"NoLIst"},{"$f":"IF(OR(K17=\"\",LEFT(K17,3)<>LEFT(AN17,3)),\"\",IF(AQ17,IFERROR(INDEX($AO$7:AO16,MATCH(K17,$K$7:K17,0)),MAX($AO$7:AO16)+1),MAX($AO$7:AO16)+1))","v":""},{"$f":"IFERROR(INDEX('Project Summary'!$AT$79:$AT$83,MATCH(B17,'Project Summary'!$AS$79:$AS$83,0)),\"\")","v":""},{"$f":"INDEX(Lookup!$B$70:$B$94,MATCH(AP17,Lookup!$A$70:$A$94,0))","v":{"$error":"#N/A"}},{"$f":"OR(LEFT(K17,LEN(K17)-LEN(AO17)-2)=AP17,K17=AP17,LEFT(K17,LEN(K17)-LEN(AO17)-1)=AP17)","v":{"$error":"#VALUE!"}}]
[]
[null,7,7,null,null,{"$f":"IFERROR(INDEX('Project Summary'!$W$79:$W$83,MATCH(B19,'Project Summary'!$AS$79:$AS$83,0)),\"\")","v":""},null,null,null,null,null,null,null,null,null,null,null,null,null,null,null,null,null,null,null,null,{"$f":"IFERROR(IF(AND(K19<>\"\",NOT(AR19)),IF(AN19=\"\",\"Select BMP on Surface Tab.\",\"Selected BMP doesn't match Surface Tab.\"),\"\"),\"\")","v":""},null,null,null,null,null,null,null,null,null,null,null,null,{"$f":"IFERROR(INDEX('Project Summary'!$AX$79:$AX$83,MATCH(B19,'Project Summary'!$AS$79:$AS$83,0)),\"NoLIst\")","v":"NoLIst"},{"$f":"IF(OR(K19=\"\",LEFT(K19,3)<>LEFT(AN19,3)),\"\",IF(AQ19,IFERROR(INDEX($AO$7:AO18,MATCH(K19,$K$7:K19,0)),MAX($AO$7:AO18)+1),MAX($AO$7:AO18)+1))","v":""},{"$f":"IFERROR(INDEX('Project Summary'!$AT$79:$AT$83,MATCH(B19,'Project Summary'!$AS$79:$AS$83,0)),\"\")","v":""},{"$f":"INDEX(Lookup!$B$70:$B$94,MATCH(AP19,Lookup!$A$70:$A$94,0))","v":{"$error":"#N/A"}},{"$f":"OR(LEFT(K19,LEN(K19)-LEN(AO19)-2)=AP19,K19=AP19,LEFT(K19,LEN(K19)-LEN(AO19)-1)=AP19)","v":{"$error":"#VALUE!"}}]
[]
[null,8,8,null,null,{"$f":"IFERROR(INDEX('Project Summary'!$W$79:$W$83,MATCH(B21,'Project Summary'!$AS$79:$AS$83,0)),\"\")","v":""},null,null,null,null,null,null,null,null,null,null,null,null,null,null,null,null,null,null,null,null,{"$f":"IFERROR(IF(AND(K21<>\"\",NOT(AR21)),IF(AN21=\"\",\"Select BMP on Surface Tab.\",\"Selected BMP doesn't match Surface Tab.\"),\"\"),\"\")","v":""},null,null,null,null,null,null,null,null,null,null,null,null,{"$f":"IFERROR(INDEX('Project Summary'!$AX$79:$AX$83,MATCH(B21,'Project Summary'!$AS$79:$AS$83,0)),\"NoLIst\")","v":"NoLIst"},{"$f":"IF(OR(K21=\"\",LEFT(K21,3)<>LEFT(AN21,3)),\"\",IF(AQ21,IFERROR(INDEX($AO$7:AO20,MATCH(K21,$K$7:K21,0)),MAX($AO$7:AO20)+1),MAX($AO$7:AO20)+1))","v":""},{"$f":"IFERROR(INDEX('Project Summary'!$AT$79:$AT$83,MATCH(B21,'Project Summary'!$AS$79:$AS$83,0)),\"\")","v":""},{"$f":"INDEX(Lookup!$B$70:$B$94,MATCH(AP21,Lookup!$A$70:$A$94,0))","v":{"$error":"#N/A"}},{"$f":"OR(LEFT(K21,LEN(K21)-LEN(AO21)-2)=AP21,K21=AP21,LEFT(K21,LEN(K21)-LEN(AO21)-1)=AP21)","v":{"$error":"#VALUE!"}}]
[]
[null,9,9,null,null,{"$f":"IFERROR(INDEX('Project Summary'!$W$79:$W$83,MATCH(B23,'Project Summary'!$AS$79:$AS$83,0)),\"\")","v":""},null,null,null,null,null,null,null,null,null,null,null,null,null,null,null,null,null,null,null,null,{"$f":"IFERROR(IF(AND(K23<>\"\",NOT(AR23)),IF(AN23=\"\",\"Select BMP on Surface Tab.\",\"Selected BMP doesn't match Surface Tab.\"),\"\"),\"\")","v":""},null,null,null,null,null,null,null,null,null,null,null,null,{"$f":"IFERROR(INDEX('Project Summary'!$AX$79:$AX$83,MATCH(B23,'Project Summary'!$AS$79:$AS$83,0)),\"NoLIst\")","v":"NoLIst"},{"$f":"IF(OR(K23=\"\",LEFT(K23,3)<>LEFT(AN23,3)),\"\",IF(AQ23,IFERROR(INDEX($AO$7:AO22,MATCH(K23,$K$7:K23,0)),MAX($AO$7:AO22)+1),MAX($AO$7:AO22)+1))","v":""},{"$f":"IFERROR(INDEX('Project Summary'!$AT$79:$AT$83,MATCH(B23,'Project Summary'!$AS$79:$AS$83,0)),\"\")","v":""},{"$f":"INDEX(Lookup!$B$70:$B$94,MATCH(AP23,Lookup!$A$70:$A$94,0))","v":{"$error":"#N/A"}},{"$f":"OR(LEFT(K23,LEN(K23)-LEN(AO23)-2)=AP23,K23=AP23,LEFT(K23,LEN(K23)-LEN(AO23)-1)=AP23)","v":{"$error":"#VALUE!"}}]
[]
[null,10,10,null,null,{"$f":"IFERROR(INDEX('Project Summary'!$W$79:$W$83,MATCH(B25,'Project Summary'!$AS$79:$AS$83,0)),\"\")","v":""},null,null,null,null,null,null,null,null,null,null,null,null,null,null,null,null,null,null,null,null,{"$f":"IFERROR(IF(AND(K25<>\"\",NOT(AR25)),IF(AN25=\"\",\"Select BMP on Surface Tab.\",\"Selected BMP doesn't match Surface Tab.\"),\"\"),\"\")","v":""},null,null,null,null,null,null,null,null,null,null,null,null,{"$f":"IFERROR(INDEX('Project Summary'!$AX$79:$AX$83,MATCH(B25,'Project Summary'!$AS$79:$AS$83,0)),\"NoLIst\")","v":"NoLIst"},{"$f":"IF(OR(K25=\"\",LEFT(K25,3)<>LEFT(AN25,3)),\"\",IF(AQ25,IFERROR(INDEX($AO$7:AO24,MATCH(K25,$K$7:K25,0)),MAX($AO$7:AO24)+1),MAX($AO$7:AO24)+1))","v":""},{"$f":"IFERROR(INDEX('Project Summary'!$AT$79:$AT$83,MATCH(B25,'Project Summary'!$AS$79:$AS$83,0)),\"\")","v":""},{"$f":"INDEX(Lookup!$B$70:$B$94,MATCH(AP25,Lookup!$A$70:$A$94,0))","v":{"$error":"#N/A"}},{"$f":"OR(LEFT(K25,LEN(K25)-LEN(AO25)-2)=AP25,K25=AP25,LEFT(K25,LEN(K25)-LEN(AO25)-1)=AP25)","v":{"$error":"#VALUE!"}}]
[]
[null,11,10,null,null,{"$f":"IFERROR(INDEX('Project Summary'!$W$79:$W$83,MATCH(B27,'Project Summary'!$AS$79:$AS$83,0)),\"\")","v":""},null,null,null,null,null,null,null,null,null,null,null,null,null,null,null,null,null,null,null,null,{"$f":"IFERROR(IF(AND(K27<>\"\",NOT(AR27)),IF(AN27=\"\",\"Select BMP on Surface Tab.\",\"Selected BMP doesn't match Surface Tab.\"),\"\"),\"\")","v":""},null,null,null,null,null,null,null,null,null,null,null,null,{"$f":"IFERROR(INDEX('Project Summary'!$AX$79:$AX$83,MATCH(B27,'Project Summary'!$AS$79:$AS$83,0)),\"NoLIst\")","v":"NoLIst"},{"$f":"IF(OR(K27=\"\",LEFT(K27,3)<>LEFT(AN27,3)),\"\",IF(AQ27,IFERROR(INDEX($AO$7:AO26,MATCH(K27,$K$7:K27,0)),MAX($AO$7:AO26)+1),MAX($AO$7:AO26)+1))","v":""},{"$f":"IFERROR(INDEX('Project Summary'!$AT$79:$AT$83,MATCH(B27,'Project Summary'!$AS$79:$AS$83,0)),\"\")","v":""},{"$f":"INDEX(Lookup!$B$70:$B$94,MATCH(AP27,Lookup!$A$70:$A$94,0))","v":{"$error":"#N/A"}},{"$f":"OR(LEFT(K27,LEN(K27)-LEN(AO27)-2)=AP27,K27=AP27,LEFT(K27,LEN(K27)-LEN(AO27)-1)=AP27)","v":{"$error":"#VALUE!"}}]
[]
[null,12,10,null,null,{"$f":"IFERROR(INDEX('Project Summary'!$W$79:$W$83,MATCH(B29,'Project Summary'!$AS$79:$AS$83,0)),\"\")","v":""},null,null,null,null,null,null,null,null,null,null,null,null,null,null,null,null,null,null,null,null,{"$f":"IFERROR(IF(AND(K29<>\"\",NOT(AR29)),IF(AN29=\"\",\"Select BMP on Surface Tab.\",\"Selected BMP doesn't match Surface Tab.\"),\"\"),\"\")","v":""},null,null,null,null,null,null,null,null,null,null,null,null,{"$f":"IFERROR(INDEX('Project Summary'!$AX$79:$AX$83,MATCH(B29,'Project Summary'!$AS$79:$AS$83,0)),\"NoLIst\")","v":"NoLIst"},{"$f":"IF(OR(K29=\"\",LEFT(K29,3)<>LEFT(AN29,3)),\"\",IF(AQ29,IFERROR(INDEX($AO$7:AO28,MATCH(K29,$K$7:K29,0)),MAX($AO$7:AO28)+1),MAX($AO$7:AO28)+1))","v":""},{"$f":"IFERROR(INDEX('Project Summary'!$AT$79:$AT$83,MATCH(B29,'Project Summary'!$AS$79:$AS$83,0)),\"\")","v":""},{"$f":"INDEX(Lookup!$B$70:$B$94,MATCH(AP29,Lookup!$A$70:$A$94,0))","v":{"$error":"#N/A"}},{"$f":"OR(LEFT(K29,LEN(K29)-LEN(AO29)-2)=AP29,K29=AP29,LEFT(K29,LEN(K29)-LEN(AO29)-1)=AP29)","v":{"$error":"#VALUE!"}}]
[]
[null,13,10,null,null,{"$f":"IFERROR(INDEX('Project Summary'!$W$79:$W$83,MATCH(B31,'Project Summary'!$AS$79:$AS$83,0)),\"\")","v":""},null,null,null,null,null,null,null,null,null,null,null,null,null,null,null,null,null,null,null,null,{"$f":"IFERROR(IF(AND(K31<>\"\",NOT(AR31)),IF(AN31=\"\",\"Select BMP on Surface Tab.\",\"Selected BMP doesn't match Surface Tab.\"),\"\"),\"\")","v":""},null,null,null,null,null,null,null,null,null,null,null,null,{"$f":"IFERROR(INDEX('Project Summary'!$AX$79:$AX$83,MATCH(B31,'Project Summary'!$AS$79:$AS$83,0)),\"NoLIst\")","v":"NoLIst"},{"$f":"IF(OR(K31=\"\",LEFT(K31,3)<>LEFT(AN31,3)),\"\",IF(AQ31,IFERROR(INDEX($AO$7:AO30,MATCH(K31,$K$7:K31,0)),MAX($AO$7:AO30)+1),MAX($AO$7:AO30)+1))","v":""},{"$f":"IFERROR(INDEX('Project Summary'!$AT$79:$AT$83,MATCH(B31,'Project Summary'!$AS$79:$AS$83,0)),\"\")","v":""},{"$f":"INDEX(Lookup!$B$70:$B$94,MATCH(AP31,Lookup!$A$70:$A$94,0))","v":{"$error":"#N/A"}},{"$f":"OR(LEFT(K31,LEN(K31)-LEN(AO31)-2)=AP31,K31=AP31,LEFT(K31,LEN(K31)-LEN(AO31)-1)=AP31)","v":{"$error":"#VALUE!"}}]
[]
[null,14,10,null,null,{"$f":"IFERROR(INDEX('Project Summary'!$W$79:$W$83,MATCH(B33,'Project Summary'!$AS$79:$AS$83,0)),\"\")","v":""},null,null,null,null,null,null,null,null,null,null,null,null,null,null,null,null,null,null,null,null,{"$f":"IFERROR(IF(AND(K33<>\"\",NOT(AR33)),IF(AN33=\"\",\"Select BMP on Surface Tab.\",\"Selected BMP doesn't match Surface Tab.\"),\"\"),\"\")","v":""},null,null,null,null,null,null,null,null,null,null,null,null,{"$f":"IFERROR(INDEX('Project Summary'!$AX$79:$AX$83,MATCH(B33,'Project Summary'!$AS$79:$AS$83,0)),\"NoLIst\")","v":"NoLIst"},{"$f":"IF(OR(K33=\"\",LEFT(K33,3)<>LEFT(AN33,3)),\"\",IF(AQ33,IFERROR(INDEX($AO$7:AO32,MATCH(K33,$K$7:K33,0)),MAX($AO$7:AO32)+1),MAX($AO$7:AO32)+1))","v":""},{"$f":"IFERROR(INDEX('Project Summary'!$AT$79:$AT$83,MATCH(B33,'Project Summary'!$AS$79:$AS$83,0)),\"\")","v":""},{"$f":"INDEX(Lookup!$B$70:$B$94,MATCH(AP33,Lookup!$A$70:$A$94,0))","v":{"$error":"#N/A"}},{"$f":"OR(LEFT(K33,LEN(K33)-LEN(AO33)-2)=AP33,K33=AP33,LEFT(K33,LEN(K33)-LEN(AO33)-1)=AP33)","v":{"$error":"#VALUE!"}}]
[]
[null,15,10,null,null,{"$f":"IFERROR(INDEX('Project Summary'!$W$79:$W$83,MATCH(B35,'Project Summary'!$AS$79:$AS$83,0)),\"\")","v":""},null,null,null,null,null,null,null,null,null,null,null,null,null,null,null,null,null,null,null,null,{"$f":"IFERROR(IF(AND(K35<>\"\",NOT(AR35)),IF(AN35=\"\",\"Select BMP on Surface Tab.\",\"Selected BMP doesn't match Surface Tab.\"),\"\"),\"\")","v":""},null,null,null,null,null,null,null,null,null,null,null,null,{"$f":"IFERROR(INDEX('Project Summary'!$AX$79:$AX$83,MATCH(B35,'Project Summary'!$AS$79:$AS$83,0)),\"NoLIst\")","v":"NoLIst"},{"$f":"IF(OR(K35=\"\",LEFT(K35,3)<>LEFT(AN35,3)),\"\",IF(AQ35,IFERROR(INDEX($AO$7:AO34,MATCH(K35,$K$7:K35,0)),MAX($AO$7:AO34)+1),MAX($AO$7:AO34)+1))","v":""},{"$f":"IFERROR(INDEX('Project Summary'!$AT$79:$AT$83,MATCH(B35,'Project Summary'!$AS$79:$AS$83,0)),\"\")","v":""},{"$f":"INDEX(Lookup!$B$70:$B$94,MATCH(AP35,Lookup!$A$70:$A$94,0))","v":{"$error":"#N/A"}},{"$f":"OR(LEFT(K35,LEN(K35)-LEN(AO35)-2)=AP35,K35=AP35,LEFT(K35,LEN(K35)-LEN(AO35)-1)=AP35)","v":{"$error":"#VALUE!"}}]
[]
[null,16,10,null,null,{"$f":"IFERROR(INDEX('Project Summary'!$W$79:$W$83,MATCH(B37,'Project Summary'!$AS$79:$AS$83,0)),\"\")","v":""},null,null,null,null,null,null,null,null,null,null,null,null,null,null,null,null,null,null,null,null,{"$f":"IFERROR(IF(AND(K37<>\"\",NOT(AR37)),IF(AN37=\"\",\"Select BMP on Surface Tab.\",\"Selected BMP doesn't match Surface Tab.\"),\"\"),\"\")","v":""},null,null,null,null,null,null,null,null,null,null,null,null,{"$f":"IFERROR(INDEX('Project Summary'!$AX$79:$AX$83,MATCH(B37,'Project Summary'!$AS$79:$AS$83,0)),\"NoLIst\")","v":"NoLIst"},{"$f":"IF(OR(K37=\"\",LEFT(K37,3)<>LEFT(AN37,3)),\"\",IF(AQ37,IFERROR(INDEX($AO$7:AO36,MATCH(K37,$K$7:K37,0)),MAX($AO$7:AO36)+1),MAX($AO$7:AO36)+1))","v":""},{"$f":"IFERROR(INDEX('Project Summary'!$AT$79:$AT$83,MATCH(B37,'Project Summary'!$AS$79:$AS$83,0)),\"\")","v":""},{"$f":"INDEX(Lookup!$B$70:$B$94,MATCH(AP37,Lookup!$A$70:$A$94,0))","v":{"$error":"#N/A"}},{"$f":"OR(LEFT(K37,LEN(K37)-LEN(AO37)-2)=AP37,K37=AP37,LEFT(K37,LEN(K37)-LEN(AO37)-1)=AP37)","v":{"$error":"#VALUE!"}}]
[]
[null,17,10,null,null,{"$f":"IFERROR(INDEX('Project Summary'!$W$79:$W$83,MATCH(B39,'Project Summary'!$AS$79:$AS$83,0)),\"\")","v":""},null,null,null,null,null,null,null,null,null,null,null,null,null,null,null,null,null,null,null,null,{"$f":"IFERROR(IF(AND(K39<>\"\",NOT(AR39)),IF(AN39=\"\",\"Select BMP on Surface Tab.\",\"Selected BMP doesn't match Surface Tab.\"),\"\"),\"\")","v":""},null,null,null,null,null,null,null,null,null,null,null,null,{"$f":"IFERROR(INDEX('Project Summary'!$AX$79:$AX$83,MATCH(B39,'Project Summary'!$AS$79:$AS$83,0)),\"NoLIst\")","v":"NoLIst"},{"$f":"IF(OR(K39=\"\",LEFT(K39,3)<>LEFT(AN39,3)),\"\",IF(AQ39,IFERROR(INDEX($AO$7:AO38,MATCH(K39,$K$7:K39,0)),MAX($AO$7:AO38)+1),MAX($AO$7:AO38)+1))","v":""},{"$f":"IFERROR(INDEX('Project Summary'!$AT$79:$AT$83,MATCH(B39,'Project Summary'!$AS$79:$AS$83,0)),\"\")","v":""},{"$f":"INDEX(Lookup!$B$70:$B$94,MATCH(AP39,Lookup!$A$70:$A$94,0))","v":{"$error":"#N/A"}},{"$f":"OR(LEFT(K39,LEN(K39)-LEN(AO39)-2)=AP39,K39=AP39,LEFT(K39,LEN(K39)-LEN(AO39)-1)=AP39)","v":{"$error":"#VALUE!"}}]
[]
[null,18,10,null,null,{"$f":"IFERROR(INDEX('Project Summary'!$W$79:$W$83,MATCH(B41,'Project Summary'!$AS$79:$AS$83,0)),\"\")","v":""},null,null,null,null,null,null,null,null,null,null,null,null,null,null,null,null,null,null,null,null,{"$f":"IFERROR(IF(AND(K41<>\"\",NOT(AR41)),IF(AN41=\"\",\"Select BMP on Surface Tab.\",\"Selected BMP doesn't match Surface Tab.\"),\"\"),\"\")","v":""},null,null,null,null,null,null,null,null,null,null,null,null,{"$f":"IFERROR(INDEX('Project Summary'!$AX$79:$AX$83,MATCH(B41,'Project Summary'!$AS$79:$AS$83,0)),\"NoLIst\")","v":"NoLIst"},{"$f":"IF(OR(K41=\"\",LEFT(K41,3)<>LEFT(AN41,3)),\"\",IF(AQ41,IFERROR(INDEX($AO$7:AO40,MATCH(K41,$K$7:K41,0)),MAX($AO$7:AO40)+1),MAX($AO$7:AO40)+1))","v":""},{"$f":"IFERROR(INDEX('Project Summary'!$AT$79:$AT$83,MATCH(B41,'Project Summary'!$AS$79:$AS$83,0)),\"\")","v":""},{"$f":"INDEX(Lookup!$B$70:$B$94,MATCH(AP41,Lookup!$A$70:$A$94,0))","v":{"$error":"#N/A"}},{"$f":"OR(LEFT(K41,LEN(K41)-LEN(AO41)-2)=AP41,K41=AP41,LEFT(K41,LEN(K41)-LEN(AO41)-1)=AP41)","v":{"$error":"#VALUE!"}}]
[]
[null,19,10,null,null,{"$f":"IFERROR(INDEX('Project Summary'!$W$79:$W$83,MATCH(B43,'Project Summary'!$AS$79:$AS$83,0)),\"\")","v":""},null,null,null,null,null,null,null,null,null,null,null,null,null,null,null,null,null,null,null,null,{"$f":"IFERROR(IF(AND(K43<>\"\",NOT(AR43)),IF(AN43=\"\",\"Select BMP on Surface Tab.\",\"Selected BMP doesn't match Surface Tab.\"),\"\"),\"\")","v":""},null,null,null,null,null,null,null,null,null,null,null,null,{"$f":"IFERROR(INDEX('Project Summary'!$AX$79:$AX$83,MATCH(B43,'Project Summary'!$AS$79:$AS$83,0)),\"NoLIst\")","v":"NoLIst"},{"$f":"IF(OR(K43=\"\",LEFT(K43,3)<>LEFT(AN43,3)),\"\",IF(AQ43,IFERROR(INDEX($AO$7:AO42,MATCH(K43,$K$7:K43,0)),MAX($AO$7:AO42)+1),MAX($AO$7:AO42)+1))","v":""},{"$f":"IFERROR(INDEX('Project Summary'!$AT$79:$AT$83,MATCH(B43,'Project Summary'!$AS$79:$AS$83,0)),\"\")","v":""},{"$f":"INDEX(Lookup!$B$70:$B$94,MATCH(AP43,Lookup!$A$70:$A$94,0))","v":{"$error":"#N/A"}},{"$f":"OR(LEFT(K43,LEN(K43)-LEN(AO43)-2)=AP43,K43=AP43,LEFT(K43,LEN(K43)-LEN(AO43)-1)=AP43)","v":{"$error":"#VALUE!"}}]
[]
[null,20,10,null,null,{"$f":"IFERROR(INDEX('Project Summary'!$W$79:$W$83,MATCH(B45,'Project Summary'!$AS$79:$AS$83,0)),\"\")","v":""},null,null,null,null,null,null,null,null,null,null,null,null,null,null,null,null,null,null,null,null,{"$f":"IFERROR(IF(AND(K45<>\"\",NOT(AR45)),IF(AN45=\"\",\"Select BMP on Surface Tab.\",\"Selected BMP doesn't match Surface Tab.\"),\"\"),\"\")","v":""},null,null,null,null,null,null,null,null,null,null,null,null,{"$f":"IFERROR(INDEX('Project Summary'!$AX$79:$AX$83,MATCH(B45,'Project Summary'!$AS$79:$AS$83,0)),\"NoLIst\")","v":"NoLIst"},{"$f":"IF(OR(K45=\"\",LEFT(K45,3)<>LEFT(AN45,3)),\"\",IF(AQ45,IFERROR(INDEX($AO$7:AO44,MATCH(K45,$K$7:K45,0)),MAX($AO$7:AO44)+1),MAX($AO$7:AO44)+1))","v":""},{"$f":"IFERROR(INDEX('Project Summary'!$AT$79:$AT$83,MATCH(B45,'Project Summary'!$AS$79:$AS$83,0)),\"\")","v":""},{"$f":"INDEX(Lookup!$B$70:$B$94,MATCH(AP45,Lookup!$A$70:$A$94,0))","v":{"$error":"#N/A"}},{"$f":"OR(LEFT(K45,LEN(K45)-LEN(AO45)-2)=AP45,K45=AP45,LEFT(K45,LEN(K45)-LEN(AO45)-1)=AP45)","v":{"$error":"#VALUE!"}}]
[]
[null,null,null,null,null,null,null,null,null,null,null,null,null,null,null,null,null,null,null,null,null,null,null,null,null,null,null,null,null,null,null,null,null,null,null,null,null,null,null,"Unique count lookup","Dropdown lookup","Sizing Factor & Units","Facility Size","Units","Volume Mangaed gal/yr","Data Entered when This was List"]
[null,"BMP",null,null,null,null,null,null,null,null,null,null,null,"BMP Facility Inputs",null,null,null,null,null,null,null,null,null,null,null,null,null,null,"BMP Size and Performance*"]
[null,{"$f":"IFERROR(IF(INDEX($K$7:$K$46,MATCH(AN49,$AO$7:$AO$46,0))=\"\",\"\",INDEX($K$7:$K$46,MATCH(AN49,$AO$7:$AO$46,0))),\"\")","v":""},null,null,null,null,null,null,null,null,null,null,null,{"$f":"IF(B49=\"\",\"\",IF(AO49=\"Vegetated Roof System\",\"Roof Area\",\"Contributing Area (sf)\"))","v":""},null,null,null,null,null,null,null,{"$f":"IF(B49=\"\",\"\",SUMIF($AO$7:$AO$46,AN49,$F$7:$I$46))","v":""},null,null,null,null,null,null,{"$f":"IFERROR(IF(AO49=\"Water Quality BMP in lieu of NIB\",\"Submit sizing documentation separately.\",\nIF(AP49=-999,\"Configuration not allowed.\",IF(AP49=0,\"Configuration not allowed.\",IF(AO49=\"Trees\",\"As many as feasible.\",\nIF(AP49=\"equation\",TEXT(AQ49,\"#,##0\")&\" \"&AR49,\nTEXT(IF(OR(AO49=\"Permeable Pavement Facility\",AO49=\"Vegetated Roof System\",AO49=\"Rainwater Harvesting - Category 1\", AO49=\"Rainwater Harvesting - Category 4\"),H51,\nIF(AO49=\"Sidewalk/Trail Compost-Amended Strip\",MAX(V49/H51,AP49*V49),\nIF(OR(AO49=\"Infiltrating Soil Cell Bioretention with Tree\",AO49=\"Non-Infiltrating Soil Cell Bioretention with Tree\"),MAX(AP49*V49,AQ57),\nAP49*V49))),\"#,##0\")&\" \"&AR49))))),\"\")","v":""},null,null,null,null,null,null,null,null,null,null,1,{"$f":"INDEX($AP$7:$AP$46,MATCH(AN49,$AO$7:$AO$46,0))","v":{"$error":"#N/A"}},{"$f":"IF(AO49=\"Trees\", INDEX(Lookup!$G$97:$G$365,MATCH(TRIM(CONCATENATE(AO49,V51)),Lookup!$F$97:$F$365,0)),\nIF(AO49=\"Residential Cistern\", INDEX(Lookup!$G$97:$G$365,MATCH(TRIM(CONCATENATE(AO49,IF(V49<400,0,IF(V49>4200,4201,ROUNDDOWN(V49,-2))))),Lookup!$F$97:$F$365,0)),\nIF(AO49=\"Sidewalk/Trail Compost-Amended Strip\", IF(H51=\"\",NA(),IF(H51<10,Lookup!$G$99,Lookup!$G$98)),\nIF(AND(AO49=\"Non-Infiltrating Bioretention\",V53=\"Sloped sides\",V51=6),IF(V49<=2000,0.025,0.028),\nINDEX(Lookup!$G$97:$G$365,MATCH(TRIM(CONCATENATE(AO49,V51,V53,V55,V57)),Lookup!$F$97:$F$365,0))))))","v":{"$error":"#N/A"}},{"$f":"IF(AP49<=0,NA(),IF(OR(AO49=\"Permeable Pavement Facility\",AO49=\"Vegetated Roof System\",AO49=\"Rainwater Harvesting - Category 1\",AO49=\"Rainwater Harvesting - Category 4\"),H51,\nIF(AO49=\"Sidewalk/Trail Compost-Amended Strip\",MAX(V49/H51,AP49*V49),\nIF(OR(AO49=\"Infiltrating Soil Cell Bioretention with Tree\",AO49=\"Non-Infiltrating Soil Cell Bioretention with Tree\"),MAX(AP49*V49,AQ57),\nAP49*V49))))","v":{"$error":"#N/A"}},{"$f":"IF(AO49=\"Residential Cistern\",\n\"sf\",INDEX(Lookup!$I$97:$I$365,MATCH(TRIM(CONCATENATE(AO49,V51,V53,V55,V57)),Lookup!$F$97:$F$365,0)))","v":{"$error":"#N/A"}},{"$f":"IF(AO49=\"Trees\", INDEX(Lookup!$H$97:$H$365,MATCH(TRIM(CONCATENATE(AO49,V51)),Lookup!$F$97:$F$365,0))*V53,\nIF(AO49=\"Residential Cistern\", INDEX(Lookup!$H$97:$H$365,MATCH(TRIM(CONCATENATE(AO49,IF(V49<400,0,IF(V49>4200,4201,ROUNDDOWN(V49,-2))))),Lookup!$F$97:$F$365,0))*V49,\nIF(AND(AO49=\"Sidewalk/Trail Compost-Amended Strip\",OR(H51=\"\",InfRate=0)),NA(),\nINDEX(Lookup!$H$97:$H$365,MATCH(TRIM(CONCATENATE(AO49,V51,V53,V55,V57)),Lookup!$F$97:$F$365,0))*V49)))*7.48052\n*IF(OR(AO49=\"Permeable Pavement Facility\",AO49=\"Vegetated Roof System\"),MIN(1,H51/(AP49*V49)),1)\n+IF(AO49=\"Permeable Pavement Facility\",H51*2.1*7.48052,1)","v":{"$error":"#N/A"}},{"$f":"IFERROR(\nIF(AO49=\"Residential Cistern\",INDEX(Lookup!$I$97:$I$365,MATCH(TRIM(CONCATENATE(AO49,IF(V49<400,0,IF(V49>4200,4201,ROUNDDOWN(V49,-2))))),Lookup!$F$97:$F$365,0)),\nIF(AO49=\"Sidewalk/Trail Compost-Amended Strip\",ROUND(AQ49/(V49/H51),1) &\" ft wide x \"& ROUND(V49/H51,0)&\" ft long\",\nIF(OR(AO49=\"Rainwater Harvesting - Category 1\",AO49=\"Rainwater Harvesting - Category 4\"),\" required minimum live storage\",\nIF(AO49=\"Water Quality BMP in lieu of NIB\",\"See Plan\",\nIF(AND(V51=\"\",V53=\"\",V55=\"\"),\"\",TRIM(V53&\" \"&AP53&\" \"&V51&\" \"&AP51&\" \"&V55&\" \"&AP55)))))),\"\")","v":""}]
[]
[null,{"$f":"IFERROR(\nIF(AO49=\"Permeable Pavement Facility\",\"Facility Area (sf)\",\nIF(AO49=\"Vegetated Roof System\",\"Vegetated Area (sf)\",\nIF(AO49=\"Sidewalk/Trail Compost-Amended Strip\",\"Sidewalk/Trail Width (ft)\",\nIF(OR(AO49=\"Rainwater Harvesting - Category 1\",AO49=\"Rainwater Harvesting - Category 4\"),\"Live Storage Volume (gal)\",\n\"\")))),\"\")","v":""},null,null,null,null,null,null,null,null,null,null,null,{"$f":"IFERROR(INDEX(Lookup!$C$70:$C$94,MATCH(AO49,Lookup!$A$70:$A$94,0)),\"\")","v":""},null,null,null,null,null,null,null,null,null,null,null,null,null,null,{"$f":"IFERROR(TEXT(AS49,\"#,##0\")&\" gal managed/year\",IFERROR(IF(AP49=0,\"Infiltration rate too low.\",\"\"),\"\"))","v":""},null,null,null,null,null,null,null,null,null,null,null,{"$f":"TRIM(SUBSTITUTE(SUBSTITUTE(SUBSTITUTE(AO49,\" \",\"\"),\"-\",\"\"),\"/\",\"\")&\"List1\")","v":{"$error":"#N/A"}},{"$f":"IFERROR(INDEX(Lookup!$G$70:$G$94,MATCH(AO49,Lookup!$A$70:$A$94,0)),\"\")","v":""},null,null,null,{"$error":"#N/A"}]
[]
[null,{"$f":"IFERROR(\nIF(OR(AO49=\"Permeable Pavement Facility\",AO49=\"Vegetated Roof System\"),\"Minimum Facility Area \"&TEXT((AP49*V49),\"#,###\")&\" sf\",\nIF(OR(AO49=\"Rainwater Harvesting - Category 1\",AO49=\"Rainwater Harvesting - Category 4\"),\"Continuous runoff modeling required by\",\n\"\")),\"\")","v":""},null,null,null,null,null,null,null,null,null,null,null,{"$f":"IFERROR(INDEX(Lookup!$D$70:$D$94,MATCH(AO49,Lookup!$A$70:$A$94,0)),\"\")","v":""},null,null,null,null,null,null,null,null,null,null,null,null,null,null,{"$f":"IFERROR(IF(AO49=\"Sidewalk/Trail Compost-Amended Strip\",ROUND(AQ49/(V49/H51),1) &\" ft wide compost-amended strip\",\nIF(OR(AO49=\"Infiltrating Soil Cell Bioretention with Tree\",AO49=\"Non-Infiltrating Soil Cell Bioretention with Tree\"),\"BMP size excludes tree planting area\",\nIF(AO49=\"Residential Cistern\",IF(AQ49=-999,\"\",IF(V49<800,3,IF(V49<1300,4,5)))&\" ft live storage\",\n\n\"\"))),\"\")","v":""},null,null,null,null,null,null,null,null,null,null,null,{"$f":"TRIM(SUBSTITUTE(SUBSTITUTE(SUBSTITUTE(AO49,\" \",\"\"),\"-\",\"\"),\"/\",\"\")&\"List2\")","v":{"$error":"#N/A"}},{"$f":"IFERROR(INDEX(Lookup!$H$70:$H$94,MATCH(AO49,Lookup!$A$70:$A$94,0)),\"\")","v":""},null,null,null,{"$error":"#N/A"}]
[]
[null,{"$f":"IFERROR(IF(OR(AO49=\"Rainwater Harvesting - Category 1\",AO49=\"Rainwater Harvesting - Category 4\"),\"professional engineer.\",\n\"\"),\"\")","v":""},null,null,null,null,null,null,null,null,null,null,null,{"$f":"IFERROR(INDEX(Lookup!$E$70:$E$94,MATCH(AO49,Lookup!$A$70:$A$94,0)),\"\")","v":""},null,null,null,null,null,null,null,null,null,null,null,null,null,null,{"$f":"IFERROR(IF(AO49=\"Sidewalk/Trail Compost-Amended Strip\",IF(AND(AC53=\"\",H51<>\"\"),\"\",\"along full \"& ROUND(V49/H51,0) &\" ft trail/sidewalk\"),\"\"),\"\")","v":""},null,null,null,null,null,null,null,null,null,null,null,{"$f":"TRIM(SUBSTITUTE(SUBSTITUTE(SUBSTITUTE(AO49,\" \",\"\"),\"-\",\"\"),\"/\",\"\")&\"List3\")","v":{"$error":"#N/A"}},{"$f":"IFERROR(INDEX(Lookup!$H$70:$H$94,MATCH(AO51,Lookup!$A$70:$A$94,0)),\"\")","v":""},{"$f":"IF(OR(AO49=\"Infiltrating Soil Cell Bioretention with Tree\",AO49=\"Non-Infiltrating Soil Cell Bioretention with Tree\"),\"min footprint to meet soil volume\",\"\")","v":{"$error":"#N/A"}},{"$f":"IF(OR(AO49=\"Infiltrating Soil Cell Bioretention with Tree\",AO49=\"Non-Infiltrating Soil Cell Bioretention with Tree\"),\"min soil volume\",\"\")","v":{"$error":"#N/A"}},null,"InfiltratingSoilCellBioretentionwithTreeList3"]
[]
[null,null,null,null,null,null,null,null,null,null,null,null,null,{"$f":"IFERROR(INDEX(Lookup!$F$70:$F$94,MATCH(AO49,Lookup!$A$70:$A$94,0)),\"\")","v":""},null,null,null,null,null,null,null,null,null,null,null,null,null,null,null,null,null,null,null,null,null,null,null,null,null,null,{"$f":"TRIM(SUBSTITUTE(SUBSTITUTE(SUBSTITUTE(AO49,\" \",\"\"),\"-\",\"\"),\"/\",\"\")&\"List4\")","v":{"$error":"#N/A"}},null,{"$f":"IF(AO49=\"Infiltrating Soil Cell Bioretention with Tree\",AR57/(V57/12),\nIF(AO49=\"Non-Infiltrating Soil Cell Bioretention with Tree\",AR57/(V55/12),\"\"))","v":{"$error":"#N/A"}},{"$f":"IF(AO49=\"Infiltrating Soil Cell Bioretention with Tree\",_xlfn.XLOOKUP(V55,InfiltratingSoilCellBioretentionwithTreeList3,Lookup!$U$51:$U$55),\nIF(AO49=\"Non-Infiltrating Soil Cell Bioretention with Tree\",_xlfn.XLOOKUP(V53,NonInfiltratingSoilCellBioretentionwithTreeList2,Lookup!$U$51:$U$55,\"\")))","v":{"$error":"#N/A"}},null,"InfiltratingSoilCellBioretentionwithTreeList4"]
[null,null,null,null,null,null,null,null,null,null,null,null,null," "]
[null,{"$f":"IFERROR(IF(INDEX($K$7:$K$46,MATCH(AN59,$AO$7:$AO$46,0))=\"\",\"\",INDEX($K$7:$K$46,MATCH(AN59,$AO$7:$AO$46,0))),\"\")","v":""},null,null,null,null,null,null,null,null,null,null,null,{"$f":"IF(B59=\"\",\"\",IF(AO59=\"Vegetated Roof System\",\"Roof Area\",\"Contributing Area (sf)\"))","v":""},null,null,null,null,null,null,null,{"$f":"IF(B59=\"\",\"\",SUMIF($AO$7:$AO$46,AN59,$F$7:$I$46))","v":""},null,null,null,null,null,null,{"$f":"IFERROR(IF(AO59=\"Water Quality BMP in lieu of NIB\",\"Submit sizing documentation separately.\",\nIF(AP59=-999,\"Configuration not allowed.\",IF(AP59=0,\"Configuration not allowed.\",IF(AO59=\"Trees\",\"As many as feasible.\",\nIF(AP59=\"equation\",TEXT(AQ59,\"#,##0\")&\" \"&AR59,\nTEXT(IF(OR(AO59=\"Permeable Pavement Facility\",AO59=\"Vegetated Roof System\",AO59=\"Rainwater Harvesting - Category 1\", AO59=\"Rainwater Harvesting - Category 4\"),H61,\nIF(AO59=\"Sidewalk/Trail Compost-Amended Strip\",MAX(V59/H61,AP59*V59),\nIF(OR(AO59=\"Infiltrating Soil Cell Bioretention with Tree\",AO59=\"Non-Infiltrating Soil Cell Bioretention with Tree\"),MAX(AP59*V59,AQ67),\nAP59*V59))),\"#,##0\")&\" \"&AR59))))),\"\")","v":""},null,null,null,null,null,null,null,null,null,null,2,{"$f":"INDEX($AP$7:$AP$46,MATCH(AN59,$AO$7:$AO$46,0))","v":{"$error":"#N/A"}},{"$f":"IF(AO59=\"Trees\", INDEX(Lookup!$G$97:$G$365,MATCH(TRIM(CONCATENATE(AO59,V61)),Lookup!$F$97:$F$365,0)),\nIF(AO59=\"Residential Cistern\", INDEX(Lookup!$G$97:$G$365,MATCH(TRIM(CONCATENATE(AO59,IF(V59<400,0,IF(V59>4200,4201,ROUNDDOWN(V59,-2))))),Lookup!$F$97:$F$365,0)),\nIF(AO59=\"Sidewalk/Trail Compost-Amended Strip\", IF(H61=\"\",NA(),IF(H61<10,Lookup!$G$99,Lookup!$G$98)),\nIF(AND(AO59=\"Non-Infiltrating Bioretention\",V63=\"Sloped sides\",V61=6),IF(V59<=2000,0.025,0.028),\nINDEX(Lookup!$G$97:$G$365,MATCH(TRIM(CONCATENATE(AO59,V61,V63,V65,V67)),Lookup!$F$97:$F$365,0))))))","v":{"$error":"#N/A"}},{"$f":"IF(AP59<=0,NA(),IF(OR(AO59=\"Permeable Pavement Facility\",AO59=\"Vegetated Roof System\",AO59=\"Rainwater Harvesting - Category 1\",AO59=\"Rainwater Harvesting - Category 4\"),H61,\nIF(AO59=\"Sidewalk/Trail Compost-Amended Strip\",MAX(V59/H61,AP59*V59),\nIF(OR(AO59=\"Infiltrating Soil Cell Bioretention with Tree\",AO59=\"Non-Infiltrating Soil Cell Bioretention with Tree\"),MAX(AP59*V59,AQ67),\nAP59*V59))))","v":{"$error":"#N/A"}},{"$f":"IF(AO59=\"Residential Cistern\",\n\"sf\",INDEX(Lookup!$I$97:$I$365,MATCH(TRIM(CONCATENATE(AO59,V61,V63,V65,V67)),Lookup!$F$97:$F$365,0)))","v":{"$error":"#N/A"}},{"$f":"IF(AO59=\"Trees\", INDEX(Lookup!$H$97:$H$365,MATCH(TRIM(CONCATENATE(AO59,V61)),Lookup!$F$97:$F$365,0))*V63,\nIF(AO59=\"Residential Cistern\", INDEX(Lookup!$H$97:$H$365,MATCH(TRIM(CONCATENATE(AO59,IF(V59<400,0,IF(V59>4200,4201,ROUNDDOWN(V59,-2))))),Lookup!$F$97:$F$365,0))*V59,\nIF(AND(AO59=\"Sidewalk/Trail Compost-Amended Strip\",OR(H61=\"\",InfRate=0)),NA(),\nINDEX(Lookup!$H$97:$H$365,MATCH(TRIM(CONCATENATE(AO59,V61,V63,V65,V67)),Lookup!$F$97:$F$365,0))*V59)))*7.48052\n*IF(OR(AO59=\"Permeable Pavement Facility\",AO59=\"Vegetated Roof System\"),MIN(1,H61/(AP59*V59)),1)\n+IF(AO59=\"Permeable Pavement Facility\",H61*2.1*7.48052,1)","v":{"$error":"#N/A"}},{"$f":"IFERROR(\nIF(AO59=\"Residential Cistern\",INDEX(Lookup!$I$97:$I$365,MATCH(TRIM(CONCATENATE(AO59,IF(V59<400,0,IF(V59>4200,4201,ROUNDDOWN(V59,-2))))),Lookup!$F$97:$F$365,0)),\nIF(AO59=\"Sidewalk/Trail Compost-Amended Strip\",ROUND(AQ59/(V59/H61),1) &\" ft wide x \"& ROUND(V59/H61,0)&\" ft long\",\nIF(OR(AO59=\"Rainwater Harvesting - Category 1\",AO59=\"Rainwater Harvesting - Category 4\"),\" required minimum live storage\",\nIF(AO59=\"Water Quality BMP in lieu of NIB\",\"See Plan\",\nIF(AND(V61=\"\",V63=\"\",V65=\"\"),\"\",TRIM(V63&\" \"&AP63&\" \"&V61&\" \"&AP61&\" \"&V65&\" \"&AP65)))))),\"\")","v":""}]
[]
[null,{"$f":"IFERROR(\nIF(AO59=\"Permeable Pavement Facility\",\"Facility Area (sf)\",\nIF(AO59=\"Vegetated Roof System\",\"Vegetated Area (sf)\",\nIF(AO59=\"Sidewalk/Trail Compost-Amended Strip\",\"Sidewalk/Trail Width (ft)\",\nIF(OR(AO59=\"Rainwater Harvesting - Category 1\",AO59=\"Rainwater Harvesting - Category 4\"),\"Live Storage Volume (gal)\",\n\"\")))),\"\")","v":""},null,null,null,null,null,null,null,null,null,null,null,{"$f":"IFERROR(INDEX(Lookup!$C$70:$C$94,MATCH(AO59,Lookup!$A$70:$A$94,0)),\"\")","v":""},null,null,null,null,null,null,null,null,null,null,null,null,null,null,{"$f":"IFERROR(TEXT(AS59,\"#,##0\")&\" gal managed/year\",IFERROR(IF(AP59=0,\"Infiltration rate too low.\",\"\"),\"\"))","v":""},null,null,null,null,null,null,null,null,null,null,null,{"$f":"TRIM(SUBSTITUTE(SUBSTITUTE(SUBSTITUTE(AO59,\" \",\"\"),\"-\",\"\"),\"/\",\"\")&\"List1\")","v":{"$error":"#N/A"}},{"$f":"IFERROR(INDEX(Lookup!$G$70:$G$94,MATCH(AO59,Lookup!$A$70:$A$94,0)),\"\")","v":""},null,null,null,"NonInfiltratingSoilCellBioretentionwithTreeList1"]
[null,null,null,null,null,null,null,null,null,null,null,null,null,{"$f":"IFERROR(INDEX(Lookup!$D$70:$D$94,MATCH(AO53,Lookup!$A$70:$A$94,0)),\"\")","v":""}]
[null,{"$f":"IFERROR(\nIF(OR(AO59=\"Permeable Pavement Facility\",AO59=\"Vegetated Roof System\"),\"Minimum Facility Area \"&TEXT((AP59*V59),\"#,###\")&\" sf\",\nIF(OR(AO59=\"Rainwater Harvesting - Category 1\",AO59=\"Rainwater Harvesting - Category 4\"),\"Continuous runoff modeling required by\",\n\"\")),\"\")","v":""},null,null,null,null,null,null,null,null,null,null,null,{"$f":"IFERROR(INDEX(Lookup!$D$70:$D$94,MATCH(AO59,Lookup!$A$70:$A$94,0)),\"\")","v":""},null,null,null,null,null,null,null,null,null,null,null,null,null,null,{"$f":"IFERROR(IF(AO59=\"Sidewalk/Trail Compost-Amended Strip\",ROUND(AQ59/(V59/H61),1) &\" ft wide compost-amended strip\",\nIF(OR(AO59=\"Infiltrating Soil Cell Bioretention with Tree\",AO59=\"Non-Infiltrating Soil Cell Bioretention with Tree\"),\"BMP size excludes tree planting area\",\nIF(AO59=\"Residential Cistern\",IF(AQ59=-999,\"\",IF(V59<800,3,IF(V59<1300,4,5)))&\" ft live storage\",\n\n\"\"))),\"\")","v":""},null,null,null,null,null,null,null,null,null,null,null,{"$f":"TRIM(SUBSTITUTE(SUBSTITUTE(SUBSTITUTE(AO59,\" \",\"\"),\"-\",\"\"),\"/\",\"\")&\"List2\")","v":{"$error":"#N/A"}},{"$f":"IFERROR(INDEX(Lookup!$H$70:$H$94,MATCH(AO59,Lookup!$A$70:$A$94,0)),\"\")","v":""},null,null,null,"NonInfiltratingSoilCellBioretentionwithTreeList2"]
[]
[null,{"$f":"IFERROR(IF(OR(AO59=\"Rainwater Harvesting - Category 1\",AO59=\"Rainwater Harvesting - Category 4\"),\"professional engineer.\",\n\"\"),\"\")","v":""},null,null,null,null,null,null,null,null,null,null,null,{"$f":"IFERROR(INDEX(Lookup!$E$70:$E$94,MATCH(AO59,Lookup!$A$70:$A$94,0)),\"\")","v":""},null,null,null,null,null,null,null,null,null,null,null,null,null,null,{"$f":"IFERROR(IF(AO59=\"Sidewalk/Trail Compost-Amended Strip\",IF(AND(AC63=\"\",H61<>\"\"),\"\",\"along full \"& ROUND(V59/H61,0) &\" ft trail/sidewalk\"),\"\"),\"\")","v":""},null,null,null,null,null,null,null,null,null,null,null,{"$f":"TRIM(SUBSTITUTE(SUBSTITUTE(SUBSTITUTE(AO59,\" \",\"\"),\"-\",\"\"),\"/\",\"\")&\"List3\")","v":{"$error":"#N/A"}},{"$f":"IFERROR(INDEX(Lookup!$H$70:$H$94,MATCH(AO61,Lookup!$A$70:$A$94,0)),\"\")","v":""},{"$f":"IF(OR(AO59=\"Infiltrating Soil Cell Bioretention with Tree\",AO59=\"Non-Infiltrating Soil Cell Bioretention with Tree\"),\"min footprint to meet soil volume\",\"\")","v":{"$error":"#N/A"}},{"$f":"IF(OR(AO59=\"Infiltrating Soil Cell Bioretention with Tree\",AO59=\"Non-Infiltrating Soil Cell Bioretention with Tree\"),\"min soil volume\",\"\")","v":{"$error":"#N/A"}},null,"NonInfiltratingSoilCellBioretentionwithTreeList3"]
[]
[null,null,null,null,null,null,null,null,null,null,null,null,null,{"$f":"IFERROR(INDEX(Lookup!$F$70:$F$94,MATCH(AO59,Lookup!$A$70:$A$94,0)),\"\")","v":""},null,null,null,null,null,null,null,null,null,null,null,null,null,null,null,null,null,null,null,null,null,null,null,null,null,null,{"$f":"TRIM(SUBSTITUTE(SUBSTITUTE(SUBSTITUTE(AO59,\" \",\"\"),\"-\",\"\"),\"/\",\"\")&\"List4\")","v":{"$error":"#N/A"}},null,{"$f":"IF(AO59=\"Infiltrating Soil Cell Bioretention with Tree\",AR67/(V67/12),\nIF(AO59=\"Non-Infiltrating Soil Cell Bioretention with Tree\",AR67/(V65/12),\"\"))","v":{"$error":"#N/A"}},{"$f":"IF(AO59=\"Infiltrating Soil Cell Bioretention with Tree\",_xlfn.XLOOKUP(V65,InfiltratingSoilCellBioretentionwithTreeList3,Lookup!$U$51:$U$55),\nIF(AO59=\"Non-Infiltrating Soil Cell Bioretention with Tree\",_xlfn.XLOOKUP(V63,NonInfiltratingSoilCellBioretentionwithTreeList2,Lookup!$U$51:$U$55,\"\")))","v":{"$error":"#N/A"}},null,"InfiltratingSoilCellBioretentionwithTreeList4"]
[null,null,null,null,null,null,null,null,null,null,null,null,null," "]
[null,{"$f":"IFERROR(IF(INDEX($K$7:$K$46,MATCH(AN69,$AO$7:$AO$46,0))=\"\",\"\",INDEX($K$7:$K$46,MATCH(AN69,$AO$7:$AO$46,0))),\"\")","v":""},null,null,null,null,null,null,null,null,null,null,null,{"$f":"IF(B69=\"\",\"\",IF(AO69=\"Vegetated Roof System\",\"Roof Area\",\"Contributing Area (sf)\"))","v":""},null,null,null,null,null,null,null,{"$f":"IF(B69=\"\",\"\",SUMIF($AO$7:$AO$46,AN69,$F$7:$I$46))","v":""},null,null,null,null,null,null,{"$f":"IFERROR(IF(AO69=\"Water Quality BMP in lieu of NIB\",\"Submit sizing documentation separately.\",\nIF(AP69=-999,\"Configuration not allowed.\",IF(AP69=0,\"Configuration not allowed.\",IF(AO69=\"Trees\",\"As many as feasible.\",\nIF(AP69=\"equation\",TEXT(AQ69,\"#,##0\")&\" \"&AR69,\nTEXT(IF(OR(AO69=\"Permeable Pavement Facility\",AO69=\"Vegetated Roof System\",AO69=\"Rainwater Harvesting - Category 1\", AO69=\"Rainwater Harvesting - Category 4\"),H71,\nIF(AO69=\"Sidewalk/Trail Compost-Amended Strip\",MAX(V69/H71,AP69*V69),\nIF(OR(AO69=\"Infiltrating Soil Cell Bioretention with Tree\",AO69=\"Non-Infiltrating Soil Cell Bioretention with Tree\"),MAX(AP69*V69,AQ77),\nAP69*V69))),\"#,##0\")&\" \"&AR69))))),\"\")","v":""},null,null,null,null,null,null,null,null,null,null,3,{"$f":"INDEX($AP$7:$AP$46,MATCH(AN69,$AO$7:$AO$46,0))","v":{"$error":"#N/A"}},{"$f":"IF(AO69=\"Trees\", INDEX(Lookup!$G$97:$G$365,MATCH(TRIM(CONCATENATE(AO69,V71)),Lookup!$F$97:$F$365,0)),\nIF(AO69=\"Residential Cistern\", INDEX(Lookup!$G$97:$G$365,MATCH(TRIM(CONCATENATE(AO69,IF(V69<400,0,IF(V69>4200,4201,ROUNDDOWN(V69,-2))))),Lookup!$F$97:$F$365,0)),\nIF(AO69=\"Sidewalk/Trail Compost-Amended Strip\", IF(H71=\"\",NA(),IF(H71<10,Lookup!$G$99,Lookup!$G$98)),\nIF(AND(AO69=\"Non-Infiltrating Bioretention\",V73=\"Sloped sides\",V71=6),IF(V69<=2000,0.025,0.028),\nINDEX(Lookup!$G$97:$G$365,MATCH(TRIM(CONCATENATE(AO69,V71,V73,V75,V77)),Lookup!$F$97:$F$365,0))))))","v":{"$error":"#N/A"}},{"$f":"IF(AP69<=0,NA(),IF(OR(AO69=\"Permeable Pavement Facility\",AO69=\"Vegetated Roof System\",AO69=\"Rainwater Harvesting - Category 1\",AO69=\"Rainwater Harvesting - Category 4\"),H71,\nIF(AO69=\"Sidewalk/Trail Compost-Amended Strip\",MAX(V69/H71,AP69*V69),\nIF(OR(AO69=\"Infiltrating Soil Cell Bioretention with Tree\",AO69=\"Non-Infiltrating Soil Cell Bioretention with Tree\"),MAX(AP69*V69,AQ77),\nAP69*V69))))","v":{"$error":"#N/A"}},{"$f":"IF(AO69=\"Residential Cistern\",\n\"sf\",INDEX(Lookup!$I$97:$I$365,MATCH(TRIM(CONCATENATE(AO69,V71,V73,V75,V77)),Lookup!$F$97:$F$365,0)))","v":{"$error":"#N/A"}},{"$f":"IF(AO69=\"Trees\", INDEX(Lookup!$H$97:$H$365,MATCH(TRIM(CONCATENATE(AO69,V71)),Lookup!$F$97:$F$365,0))*V73,\nIF(AO69=\"Residential Cistern\", INDEX(Lookup!$H$97:$H$365,MATCH(TRIM(CONCATENATE(AO69,IF(V69<400,0,IF(V69>4200,4201,ROUNDDOWN(V69,-2))))),Lookup!$F$97:$F$365,0))*V69,\nIF(AND(AO69=\"Sidewalk/Trail Compost-Amended Strip\",OR(H71=\"\",InfRate=0)),NA(),\nINDEX(Lookup!$H$97:$H$365,MATCH(TRIM(CONCATENATE(AO69,V71,V73,V75,V77)),Lookup!$F$97:$F$365,0))*V69)))*7.48052\n*IF(OR(AO69=\"Permeable Pavement Facility\",AO69=\"Vegetated Roof System\"),MIN(1,H71/(AP69*V69)),1)\n+IF(AO69=\"Permeable Pavement Facility\",H71*2.1*7.48052,1)","v":{"$error":"#N/A"}},{"$f":"IFERROR(\nIF(AO69=\"Residential Cistern\",INDEX(Lookup!$I$97:$I$365,MATCH(TRIM(CONCATENATE(AO69,IF(V69<400,0,IF(V69>4200,4201,ROUNDDOWN(V69,-2))))),Lookup!$F$97:$F$365,0)),\nIF(AO69=\"Sidewalk/Trail Compost-Amended Strip\",ROUND(AQ69/(V69/H71),1) &\" ft wide x \"& ROUND(V69/H71,0)&\" ft long\",\nIF(OR(AO69=\"Rainwater Harvesting - Category 1\",AO69=\"Rainwater Harvesting - Category 4\"),\" required minimum live storage\",\nIF(AO69=\"Water Quality BMP in lieu of NIB\",\"See Plan\",\nIF(AND(V71=\"\",V73=\"\",V75=\"\"),\"\",TRIM(V73&\" \"&AP73&\" \"&V71&\" \"&AP71&\" \"&V75&\" \"&AP75)))))),\"\")","v":""}]
[]
[null,{"$f":"IFERROR(\nIF(AO69=\"Permeable Pavement Facility\",\"Facility Area (sf)\",\nIF(AO69=\"Vegetated Roof System\",\"Vegetated Area (sf)\",\nIF(AO69=\"Sidewalk/Trail Compost-Amended Strip\",\"Sidewalk/Trail Width (ft)\",\nIF(OR(AO69=\"Rainwater Harvesting - Category 1\",AO69=\"Rainwater Harvesting - Category 4\"),\"Live Storage Volume (gal)\",\n\"\")))),\"\")","v":""},null,null,null,null,null,null,null,null,null,null,null,{"$f":"IFERROR(INDEX(Lookup!$C$70:$C$94,MATCH(AO69,Lookup!$A$70:$A$94,0)),\"\")","v":""},null,null,null,null,null,null,null,null,null,null,null,null,null,null,{"$f":"IFERROR(TEXT(AS69,\"#,##0\")&\" gal managed/year\",IFERROR(IF(AP69=0,\"Infiltration rate too low.\",\"\"),\"\"))","v":""},null,null,null,null,null,null,null,null,null,null,null,{"$f":"TRIM(SUBSTITUTE(SUBSTITUTE(SUBSTITUTE(AO69,\" \",\"\"),\"-\",\"\"),\"/\",\"\")&\"List1\")","v":{"$error":"#N/A"}},{"$f":"IFERROR(INDEX(Lookup!$G$70:$G$94,MATCH(AO69,Lookup!$A$70:$A$94,0)),\"\")","v":""},null,null,null,"InfiltratingSoilCellBioretentionwithTreeList1"]
[]
[null,{"$f":"IFERROR(\nIF(OR(AO69=\"Permeable Pavement Facility\",AO69=\"Vegetated Roof System\"),\"Minimum Facility Area \"&TEXT((AP69*V69),\"#,###\")&\" sf\",\nIF(OR(AO69=\"Rainwater Harvesting - Category 1\",AO69=\"Rainwater Harvesting - Category 4\"),\"Continuous runoff modeling required by\",\n\"\")),\"\")","v":""},null,null,null,null,null,null,null,null,null,null,null,{"$f":"IFERROR(INDEX(Lookup!$D$70:$D$94,MATCH(AO69,Lookup!$A$70:$A$94,0)),\"\")","v":""},null,null,null,null,null,null,null,null,null,null,null,null,null,null,{"$f":"IFERROR(IF(AO69=\"Sidewalk/Trail Compost-Amended Strip\",ROUND(AQ69/(V69/H71),1) &\" ft wide compost-amended strip\",\nIF(OR(AO69=\"Infiltrating Soil Cell Bioretention with Tree\",AO69=\"Non-Infiltrating Soil Cell Bioretention with Tree\"),\"BMP size excludes tree planting area\",\nIF(AO69=\"Residential Cistern\",IF(AQ69=-999,\"\",IF(V69<800,3,IF(V69<1300,4,5)))&\" ft live storage\",\n\n\"\"))),\"\")","v":""},null,null,null,null,null,null,null,null,null,null,null,{"$f":"TRIM(SUBSTITUTE(SUBSTITUTE(SUBSTITUTE(AO69,\" \",\"\"),\"-\",\"\"),\"/\",\"\")&\"List2\")","v":{"$error":"#N/A"}},{"$f":"IFERROR(INDEX(Lookup!$H$70:$H$94,MATCH(AO69,Lookup!$A$70:$A$94,0)),\"\")","v":""},null,null,null,"InfiltratingSoilCellBioretentionwithTreeList2"]
[]
[null,{"$f":"IFERROR(IF(OR(AO69=\"Rainwater Harvesting - Category 1\",AO69=\"Rainwater Harvesting - Category 4\"),\"professional engineer.\",\n\"\"),\"\")","v":""},null,null,null,null,null,null,null,null,null,null,null,{"$f":"IFERROR(INDEX(Lookup!$E$70:$E$94,MATCH(AO69,Lookup!$A$70:$A$94,0)),\"\")","v":""},null,null,null,null,null,null,null,null,null,null,null,null,null,null,{"$f":"IFERROR(IF(AO69=\"Sidewalk/Trail Compost-Amended Strip\",IF(AND(AC73=\"\",H71<>\"\"),\"\",\"along full \"& ROUND(V69/H71,0) &\" ft trail/sidewalk\"),\"\"),\"\")","v":""},null,null,null,null,null,null,null,null,null,null,null,{"$f":"TRIM(SUBSTITUTE(SUBSTITUTE(SUBSTITUTE(AO69,\" \",\"\"),\"-\",\"\"),\"/\",\"\")&\"List3\")","v":{"$error":"#N/A"}},{"$f":"IFERROR(INDEX(Lookup!$H$70:$H$94,MATCH(AO71,Lookup!$A$70:$A$94,0)),\"\")","v":""},{"$f":"IF(OR(AO69=\"Infiltrating Soil Cell Bioretention with Tree\",AO69=\"Non-Infiltrating Soil Cell Bioretention with Tree\"),\"min footprint to meet soil volume\",\"\")","v":{"$error":"#N/A"}},{"$f":"IF(OR(AO69=\"Infiltrating Soil Cell Bioretention with Tree\",AO69=\"Non-Infiltrating Soil Cell Bioretention with Tree\"),\"min soil volume\",\"\")","v":{"$error":"#N/A"}},null,"InfiltratingSoilCellBioretentionwithTreeList3"]
[]
[null,null,null,null,null,null,null,null,null,null,null,null,null,{"$f":"IFERROR(INDEX(Lookup!$F$70:$F$94,MATCH(AO69,Lookup!$A$70:$A$94,0)),\"\")","v":""},null,null,null,null,null,null,null,null,null,null,null,null,null,null,null,null,null,null,null,null,null,null,null,null,null,null,{"$f":"TRIM(SUBSTITUTE(SUBSTITUTE(SUBSTITUTE(AO69,\" \",\"\"),\"-\",\"\"),\"/\",\"\")&\"List4\")","v":{"$error":"#N/A"}},null,{"$f":"IF(AO69=\"Infiltrating Soil Cell Bioretention with Tree\",AR77/(V77/12),\nIF(AO69=\"Non-Infiltrating Soil Cell Bioretention with Tree\",AR77/(V75/12),\"\"))","v":{"$error":"#N/A"}},{"$f":"IF(AO69=\"Infiltrating Soil Cell Bioretention with Tree\",_xlfn.XLOOKUP(V75,InfiltratingSoilCellBioretentionwithTreeList3,Lookup!$U$51:$U$55),\nIF(AO69=\"Non-Infiltrating Soil Cell Bioretention with Tree\",_xlfn.XLOOKUP(V73,NonInfiltratingSoilCellBioretentionwithTreeList2,Lookup!$U$51:$U$55,\"\")))","v":{"$error":"#N/A"}},null,"InfiltratingSoilCellBioretentionwithTreeList4"]
[null,null,null,null,null,null,null,null,null,null,null,null,null," "]
[null,{"$f":"IFERROR(IF(INDEX($K$7:$K$46,MATCH(AN79,$AO$7:$AO$46,0))=\"\",\"\",INDEX($K$7:$K$46,MATCH(AN79,$AO$7:$AO$46,0))),\"\")","v":""},null,null,null,null,null,null,null,null,null,null,null,{"$f":"IF(B79=\"\",\"\",IF(AO79=\"Vegetated Roof System\",\"Roof Area\",\"Contributing Area (sf)\"))","v":""},null,null,null,null,null,null,null,{"$f":"IF(B79=\"\",\"\",SUMIF($AO$7:$AO$46,AN79,$F$7:$I$46))","v":""},null,null,null,null,null,null,{"$f":"IFERROR(IF(AO79=\"Water Quality BMP in lieu of NIB\",\"Submit sizing documentation separately.\",\nIF(AP79=-999,\"Configuration not allowed.\",IF(AP79=0,\"Configuration not allowed.\",IF(AO79=\"Trees\",\"As many as feasible.\",\nIF(AP79=\"equation\",TEXT(AQ79,\"#,##0\")&\" \"&AR79,\nTEXT(IF(OR(AO79=\"Permeable Pavement Facility\",AO79=\"Vegetated Roof System\",AO79=\"Rainwater Harvesting - Category 1\", AO79=\"Rainwater Harvesting - Category 4\"),H81,\nIF(AO79=\"Sidewalk/Trail Compost-Amended Strip\",MAX(V79/H81,AP79*V79),\nIF(OR(AO79=\"Infiltrating Soil Cell Bioretention with Tree\",AO79=\"Non-Infiltrating Soil Cell Bioretention with Tree\"),MAX(AP79*V79,AQ87),\nAP79*V79))),\"#,##0\")&\" \"&AR79))))),\"\")","v":""},null,null,null,null,null,null,null,null,null,null,4,{"$f":"INDEX($AP$7:$AP$46,MATCH(AN79,$AO$7:$AO$46,0))","v":{"$error":"#N/A"}},{"$f":"IF(AO79=\"Trees\", INDEX(Lookup!$G$97:$G$365,MATCH(TRIM(CONCATENATE(AO79,V81)),Lookup!$F$97:$F$365,0)),\nIF(AO79=\"Residential Cistern\", INDEX(Lookup!$G$97:$G$365,MATCH(TRIM(CONCATENATE(AO79,IF(V79<400,0,IF(V79>4200,4201,ROUNDDOWN(V79,-2))))),Lookup!$F$97:$F$365,0)),\nIF(AO79=\"Sidewalk/Trail Compost-Amended Strip\", IF(H81=\"\",NA(),IF(H81<10,Lookup!$G$99,Lookup!$G$98)),\nIF(AND(AO79=\"Non-Infiltrating Bioretention\",V83=\"Sloped sides\",V81=6),IF(V79<=2000,0.025,0.028),\nINDEX(Lookup!$G$97:$G$365,MATCH(TRIM(CONCATENATE(AO79,V81,V83,V85,V87)),Lookup!$F$97:$F$365,0))))))","v":{"$error":"#N/A"}},{"$f":"IF(AP79<=0,NA(),IF(OR(AO79=\"Permeable Pavement Facility\",AO79=\"Vegetated Roof System\",AO79=\"Rainwater Harvesting - Category 1\",AO79=\"Rainwater Harvesting - Category 4\"),H81,\nIF(AO79=\"Sidewalk/Trail Compost-Amended Strip\",MAX(V79/H81,AP79*V79),\nIF(OR(AO79=\"Infiltrating Soil Cell Bioretention with Tree\",AO79=\"Non-Infiltrating Soil Cell Bioretention with Tree\"),MAX(AP79*V79,AQ87),\nAP79*V79))))","v":{"$error":"#N/A"}},{"$f":"IF(AO79=\"Residential Cistern\",\n\"sf\",INDEX(Lookup!$I$97:$I$365,MATCH(TRIM(CONCATENATE(AO79,V81,V83,V85,V87)),Lookup!$F$97:$F$365,0)))","v":{"$error":"#N/A"}},{"$f":"IF(AO79=\"Trees\", INDEX(Lookup!$H$97:$H$365,MATCH(TRIM(CONCATENATE(AO79,V81)),Lookup!$F$97:$F$365,0))*V83,\nIF(AO79=\"Residential Cistern\", INDEX(Lookup!$H$97:$H$365,MATCH(TRIM(CONCATENATE(AO79,IF(V79<400,0,IF(V79>4200,4201,ROUNDDOWN(V79,-2))))),Lookup!$F$97:$F$365,0))*V79,\nIF(AND(AO79=\"Sidewalk/Trail Compost-Amended Strip\",OR(H81=\"\",InfRate=0)),NA(),\nINDEX(Lookup!$H$97:$H$365,MATCH(TRIM(CONCATENATE(AO79,V81,V83,V85,V87)),Lookup!$F$97:$F$365,0))*V79)))*7.48052\n*IF(OR(AO79=\"Permeable Pavement Facility\",AO79=\"Vegetated Roof System\"),MIN(1,H81/(AP79*V79)),1)\n+IF(AO79=\"Permeable Pavement Facility\",H81*2.1*7.48052,1)","v":{"$error":"#N/A"}},{"$f":"IFERROR(\nIF(AO79=\"Residential Cistern\",INDEX(Lookup!$I$97:$I$365,MATCH(TRIM(CONCATENATE(AO79,IF(V79<400,0,IF(V79>4200,4201,ROUNDDOWN(V79,-2))))),Lookup!$F$97:$F$365,0)),\nIF(AO79=\"Sidewalk/Trail Compost-Amended Strip\",ROUND(AQ79/(V79/H81),1) &\" ft wide x \"& ROUND(V79/H81,0)&\" ft long\",\nIF(OR(AO79=\"Rainwater Harvesting - Category 1\",AO79=\"Rainwater Harvesting - Category 4\"),\" required minimum live storage\",\nIF(AO79=\"Water Quality BMP in lieu of NIB\",\"See Plan\",\nIF(AND(V81=\"\",V83=\"\",V85=\"\"),\"\",TRIM(V83&\" \"&AP83&\" \"&V81&\" \"&AP81&\" \"&V85&\" \"&AP85)))))),\"\")","v":""}]
[]
[null,{"$f":"IFERROR(\nIF(AO79=\"Permeable Pavement Facility\",\"Facility Area (sf)\",\nIF(AO79=\"Vegetated Roof System\",\"Vegetated Area (sf)\",\nIF(AO79=\"Sidewalk/Trail Compost-Amended Strip\",\"Sidewalk/Trail Width (ft)\",\nIF(OR(AO79=\"Rainwater Harvesting - Category 1\",AO79=\"Rainwater Harvesting - Category 4\"),\"Live Storage Volume (gal)\",\n\"\")))),\"\")","v":""},null,null,null,null,null,null,null,null,null,null,null,{"$f":"IFERROR(INDEX(Lookup!$C$70:$C$94,MATCH(AO79,Lookup!$A$70:$A$94,0)),\"\")","v":""},null,null,null,null,null,null,null,null,null,null,null,null,null,null,{"$f":"IFERROR(TEXT(AS79,\"#,##0\")&\" gal managed/year\",IFERROR(IF(AP79=0,\"Infiltration rate too low.\",\"\"),\"\"))","v":""},null,null,null,null,null,null,null,null,null,null,null,{"$f":"TRIM(SUBSTITUTE(SUBSTITUTE(SUBSTITUTE(AO79,\" \",\"\"),\"-\",\"\"),\"/\",\"\")&\"List1\")","v":{"$error":"#N/A"}},{"$f":"IFERROR(INDEX(Lookup!$G$70:$G$94,MATCH(AO79,Lookup!$A$70:$A$94,0)),\"\")","v":""}]
[]
[null,{"$f":"IFERROR(\nIF(OR(AO79=\"Permeable Pavement Facility\",AO79=\"Vegetated Roof System\"),\"Minimum Facility Area \"&TEXT((AP79*V79),\"#,###\")&\" sf\",\nIF(OR(AO79=\"Rainwater Harvesting - Category 1\",AO79=\"Rainwater Harvesting - Category 4\"),\"Continuous runoff modeling required by\",\n\"\")),\"\")","v":""},null,null,null,null,null,null,null,null,null,null,null,{"$f":"IFERROR(INDEX(Lookup!$D$70:$D$94,MATCH(AO79,Lookup!$A$70:$A$94,0)),\"\")","v":""},null,null,null,null,null,null,null,null,null,null,null,null,null,null,{"$f":"IFERROR(IF(AO79=\"Sidewalk/Trail Compost-Amended Strip\",ROUND(AQ79/(V79/H81),1) &\" ft wide compost-amended strip\",\nIF(OR(AO79=\"Infiltrating Soil Cell Bioretention with Tree\",AO79=\"Non-Infiltrating Soil Cell Bioretention with Tree\"),\"BMP size excludes tree planting area\",\nIF(AO79=\"Residential Cistern\",IF(AQ79=-999,\"\",IF(V79<800,3,IF(V79<1300,4,5)))&\" ft live storage\",\n\n\"\"))),\"\")","v":""},null,null,null,null,null,null,null,null,null,null,null,{"$f":"TRIM(SUBSTITUTE(SUBSTITUTE(SUBSTITUTE(AO79,\" \",\"\"),\"-\",\"\"),\"/\",\"\")&\"List2\")","v":{"$error":"#N/A"}},{"$f":"IFERROR(INDEX(Lookup!$H$70:$H$94,MATCH(AO79,Lookup!$A$70:$A$94,0)),\"\")","v":""}]
[]
[null,{"$f":"IFERROR(IF(OR(AO79=\"Rainwater Harvesting - Category 1\",AO79=\"Rainwater Harvesting - Category 4\"),\"professional engineer.\",\n\"\"),\"\")","v":""},null,null,null,null,null,null,null,null,null,null,null,{"$f":"IFERROR(INDEX(Lookup!$E$70:$E$94,MATCH(AO79,Lookup!$A$70:$A$94,0)),\"\")","v":""},null,null,null,null,null,null,null,null,null,null,null,null,null,null,{"$f":"IFERROR(IF(AO79=\"Sidewalk/Trail Compost-Amended Strip\",IF(AND(AC83=\"\",H81<>\"\"),\"\",\"along full \"& ROUND(V79/H81,0) &\" ft trail/sidewalk\"),\"\"),\"\")","v":""},null,null,null,null,null,null,null,null,null,null,null,{"$f":"TRIM(SUBSTITUTE(SUBSTITUTE(SUBSTITUTE(AO79,\" \",\"\"),\"-\",\"\"),\"/\",\"\")&\"List3\")","v":{"$error":"#N/A"}},{"$f":"IFERROR(INDEX(Lookup!$H$70:$H$94,MATCH(AO81,Lookup!$A$70:$A$94,0)),\"\")","v":""},{"$f":"IF(OR(AO79=\"Infiltrating Soil Cell Bioretention with Tree\",AO79=\"Non-Infiltrating Soil Cell Bioretention with Tree\"),\"min footprint to meet soil volume\",\"\")","v":{"$error":"#N/A"}},{"$f":"IF(OR(AO79=\"Infiltrating Soil Cell Bioretention with Tree\",AO79=\"Non-Infiltrating Soil Cell Bioretention with Tree\"),\"min soil volume\",\"\")","v":{"$error":"#N/A"}}]
[]
[null,null,null,null,null,null,null,null,null,null,null,null,null,{"$f":"IFERROR(INDEX(Lookup!$F$70:$F$94,MATCH(AO79,Lookup!$A$70:$A$94,0)),\"\")","v":""},null,null,null,null,null,null,null,null,null,null,null,null,null,null,null,null,null,null,null,null,null,null,null,null,null,null,{"$f":"TRIM(SUBSTITUTE(SUBSTITUTE(SUBSTITUTE(AO79,\" \",\"\"),\"-\",\"\"),\"/\",\"\")&\"List4\")","v":{"$error":"#N/A"}},null,{"$f":"IF(AO79=\"Infiltrating Soil Cell Bioretention with Tree\",AR87/(V87/12),\nIF(AO79=\"Non-Infiltrating Soil Cell Bioretention with Tree\",AR87/(V85/12),\"\"))","v":{"$error":"#N/A"}},{"$f":"IF(AO79=\"Infiltrating Soil Cell Bioretention with Tree\",_xlfn.XLOOKUP(V85,InfiltratingSoilCellBioretentionwithTreeList3,Lookup!$U$51:$U$55),\nIF(AO79=\"Non-Infiltrating Soil Cell Bioretention with Tree\",_xlfn.XLOOKUP(V83,NonInfiltratingSoilCellBioretentionwithTreeList2,Lookup!$U$51:$U$55,\"\")))","v":{"$error":"#N/A"}}]
[null,null,null,null,null,null,null,null,null,null,null,null,null," "]
[null,{"$f":"IFERROR(IF(INDEX($K$7:$K$46,MATCH(AN89,$AO$7:$AO$46,0))=\"\",\"\",INDEX($K$7:$K$46,MATCH(AN89,$AO$7:$AO$46,0))),\"\")","v":""},null,null,null,null,null,null,null,null,null,null,null,{"$f":"IF(B89=\"\",\"\",IF(AO89=\"Vegetated Roof System\",\"Roof Area\",\"Contributing Area (sf)\"))","v":""},null,null,null,null,null,null,null,{"$f":"IF(B89=\"\",\"\",SUMIF($AO$7:$AO$46,AN89,$F$7:$I$46))","v":""},null,null,null,null,null,null,{"$f":"IFERROR(IF(AO89=\"Water Quality BMP in lieu of NIB\",\"Submit sizing documentation separately.\",\nIF(AP89=-999,\"Configuration not allowed.\",IF(AP89=0,\"Configuration not allowed.\",IF(AO89=\"Trees\",\"As many as feasible.\",\nIF(AP89=\"equation\",TEXT(AQ89,\"#,##0\")&\" \"&AR89,\nTEXT(IF(OR(AO89=\"Permeable Pavement Facility\",AO89=\"Vegetated Roof System\",AO89=\"Rainwater Harvesting - Category 1\", AO89=\"Rainwater Harvesting - Category 4\"),H91,\nIF(AO89=\"Sidewalk/Trail Compost-Amended Strip\",MAX(V89/H91,AP89*V89),\nIF(OR(AO89=\"Infiltrating Soil Cell Bioretention with Tree\",AO89=\"Non-Infiltrating Soil Cell Bioretention with Tree\"),MAX(AP89*V89,AQ97),\nAP89*V89))),\"#,##0\")&\" \"&AR89))))),\"\")","v":""},null,null,null,null,null,null,null,null,null,null,5,{"$f":"INDEX($AP$7:$AP$46,MATCH(AN89,$AO$7:$AO$46,0))","v":{"$error":"#N/A"}},{"$f":"IF(AO89=\"Trees\", INDEX(Lookup!$G$97:$G$365,MATCH(TRIM(CONCATENATE(AO89,V91)),Lookup!$F$97:$F$365,0)),\nIF(AO89=\"Residential Cistern\", INDEX(Lookup!$G$97:$G$365,MATCH(TRIM(CONCATENATE(AO89,IF(V89<400,0,IF(V89>4200,4201,ROUNDDOWN(V89,-2))))),Lookup!$F$97:$F$365,0)),\nIF(AO89=\"Sidewalk/Trail Compost-Amended Strip\", IF(H91=\"\",NA(),IF(H91<10,Lookup!$G$99,Lookup!$G$98)),\nIF(AND(AO89=\"Non-Infiltrating Bioretention\",V93=\"Sloped sides\",V91=6),IF(V89<=2000,0.025,0.028),\nINDEX(Lookup!$G$97:$G$365,MATCH(TRIM(CONCATENATE(AO89,V91,V93,V95,V97)),Lookup!$F$97:$F$365,0))))))","v":{"$error":"#N/A"}},{"$f":"IF(AP89<=0,NA(),IF(OR(AO89=\"Permeable Pavement Facility\",AO89=\"Vegetated Roof System\",AO89=\"Rainwater Harvesting - Category 1\",AO89=\"Rainwater Harvesting - Category 4\"),H91,\nIF(AO89=\"Sidewalk/Trail Compost-Amended Strip\",MAX(V89/H91,AP89*V89),\nIF(OR(AO89=\"Infiltrating Soil Cell Bioretention with Tree\",AO89=\"Non-Infiltrating Soil Cell Bioretention with Tree\"),MAX(AP89*V89,AQ97),\nAP89*V89))))","v":{"$error":"#N/A"}},{"$f":"IF(AO89=\"Residential Cistern\",\n\"sf\",INDEX(Lookup!$I$97:$I$365,MATCH(TRIM(CONCATENATE(AO89,V91,V93,V95,V97)),Lookup!$F$97:$F$365,0)))","v":{"$error":"#N/A"}},{"$f":"IF(AO89=\"Trees\", INDEX(Lookup!$H$97:$H$365,MATCH(TRIM(CONCATENATE(AO89,V91)),Lookup!$F$97:$F$365,0))*V93,\nIF(AO89=\"Residential Cistern\", INDEX(Lookup!$H$97:$H$365,MATCH(TRIM(CONCATENATE(AO89,IF(V89<400,0,IF(V89>4200,4201,ROUNDDOWN(V89,-2))))),Lookup!$F$97:$F$365,0))*V89,\nIF(AND(AO89=\"Sidewalk/Trail Compost-Amended Strip\",OR(H91=\"\",InfRate=0)),NA(),\nINDEX(Lookup!$H$97:$H$365,MATCH(TRIM(CONCATENATE(AO89,V91,V93,V95,V97)),Lookup!$F$97:$F$365,0))*V89)))*7.48052\n*IF(OR(AO89=\"Permeable Pavement Facility\",AO89=\"Vegetated Roof System\"),MIN(1,H91/(AP89*V89)),1)\n+IF(AO89=\"Permeable Pavement Facility\",H91*2.1*7.48052,1)","v":{"$error":"#N/A"}},{"$f":"IFERROR(\nIF(AO89=\"Residential Cistern\",INDEX(Lookup!$I$97:$I$365,MATCH(TRIM(CONCATENATE(AO89,IF(V89<400,0,IF(V89>4200,4201,ROUNDDOWN(V89,-2))))),Lookup!$F$97:$F$365,0)),\nIF(AO89=\"Sidewalk/Trail Compost-Amended Strip\",ROUND(AQ89/(V89/H91),1) &\" ft wide x \"& ROUND(V89/H91,0)&\" ft long\",\nIF(OR(AO89=\"Rainwater Harvesting - Category 1\",AO89=\"Rainwater Harvesting - Category 4\"),\" required minimum live storage\",\nIF(AO89=\"Water Quality BMP in lieu of NIB\",\"See Plan\",\nIF(AND(V91=\"\",V93=\"\",V95=\"\"),\"\",TRIM(V93&\" \"&AP93&\" \"&V91&\" \"&AP91&\" \"&V95&\" \"&AP95)))))),\"\")","v":""}]
[]
[null,{"$f":"IFERROR(\nIF(AO89=\"Permeable Pavement Facility\",\"Facility Area (sf)\",\nIF(AO89=\"Vegetated Roof System\",\"Vegetated Area (sf)\",\nIF(AO89=\"Sidewalk/Trail Compost-Amended Strip\",\"Sidewalk/Trail Width (ft)\",\nIF(OR(AO89=\"Rainwater Harvesting - Category 1\",AO89=\"Rainwater Harvesting - Category 4\"),\"Live Storage Volume (gal)\",\n\"\")))),\"\")","v":""},null,null,null,null,null,null,null,null,null,null,null,{"$f":"IFERROR(INDEX(Lookup!$C$70:$C$94,MATCH(AO89,Lookup!$A$70:$A$94,0)),\"\")","v":""},null,null,null,null,null,null,null,null,null,null,null,null,null,null,{"$f":"IFERROR(TEXT(AS89,\"#,##0\")&\" gal managed/year\",IFERROR(IF(AP89=0,\"Infiltration rate too low.\",\"\"),\"\"))","v":""},null,null,null,null,null,null,null,null,null,null,null,{"$f":"TRIM(SUBSTITUTE(SUBSTITUTE(SUBSTITUTE(AO89,\" \",\"\"),\"-\",\"\"),\"/\",\"\")&\"List1\")","v":{"$error":"#N/A"}},{"$f":"IFERROR(INDEX(Lookup!$G$70:$G$94,MATCH(AO89,Lookup!$A$70:$A$94,0)),\"\")","v":""}]
[]
[null,{"$f":"IFERROR(\nIF(OR(AO89=\"Permeable Pavement Facility\",AO89=\"Vegetated Roof System\"),\"Minimum Facility Area \"&TEXT((AP89*V89),\"#,###\")&\" sf\",\nIF(OR(AO89=\"Rainwater Harvesting - Category 1\",AO89=\"Rainwater Harvesting - Category 4\"),\"Continuous runoff modeling required by\",\n\"\")),\"\")","v":""},null,null,null,null,null,null,null,null,null,null,null,{"$f":"IFERROR(INDEX(Lookup!$D$70:$D$94,MATCH(AO89,Lookup!$A$70:$A$94,0)),\"\")","v":""},null,null,null,null,null,null,null,null,null,null,null,null,null,null,{"$f":"IFERROR(IF(AO89=\"Sidewalk/Trail Compost-Amended Strip\",ROUND(AQ89/(V89/H91),1) &\" ft wide compost-amended strip\",\nIF(OR(AO89=\"Infiltrating Soil Cell Bioretention with Tree\",AO89=\"Non-Infiltrating Soil Cell Bioretention with Tree\"),\"BMP size excludes tree planting area\",\nIF(AO89=\"Residential Cistern\",IF(AQ89=-999,\"\",IF(V89<800,3,IF(V89<1300,4,5)))&\" ft live storage\",\n\n\"\"))),\"\")","v":""},null,null,null,null,null,null,null,null,null,null,null,{"$f":"TRIM(SUBSTITUTE(SUBSTITUTE(SUBSTITUTE(AO89,\" \",\"\"),\"-\",\"\"),\"/\",\"\")&\"List2\")","v":{"$error":"#N/A"}},{"$f":"IFERROR(INDEX(Lookup!$H$70:$H$94,MATCH(AO89,Lookup!$A$70:$A$94,0)),\"\")","v":""}]
[]
[null,{"$f":"IFERROR(IF(OR(AO89=\"Rainwater Harvesting - Category 1\",AO89=\"Rainwater Harvesting - Category 4\"),\"professional engineer.\",\n\"\"),\"\")","v":""},null,null,null,null,null,null,null,null,null,null,null,{"$f":"IFERROR(INDEX(Lookup!$E$70:$E$94,MATCH(AO89,Lookup!$A$70:$A$94,0)),\"\")","v":""},null,null,null,null,null,null,null,null,null,null,null,null,null,null,{"$f":"IFERROR(IF(AO89=\"Sidewalk/Trail Compost-Amended Strip\",IF(AND(AC93=\"\",H91<>\"\"),\"\",\"along full \"& ROUND(V89/H91,0) &\" ft trail/sidewalk\"),\"\"),\"\")","v":""},null,null,null,null,null,null,null,null,null,null,null,{"$f":"TRIM(SUBSTITUTE(SUBSTITUTE(SUBSTITUTE(AO89,\" \",\"\"),\"-\",\"\"),\"/\",\"\")&\"List3\")","v":{"$error":"#N/A"}},{"$f":"IFERROR(INDEX(Lookup!$H$70:$H$94,MATCH(AO91,Lookup!$A$70:$A$94,0)),\"\")","v":""},{"$f":"IF(OR(AO89=\"Infiltrating Soil Cell Bioretention with Tree\",AO89=\"Non-Infiltrating Soil Cell Bioretention with Tree\"),\"min footprint to meet soil volume\",\"\")","v":{"$error":"#N/A"}},{"$f":"IF(OR(AO89=\"Infiltrating Soil Cell Bioretention with Tree\",AO89=\"Non-Infiltrating Soil Cell Bioretention with Tree\"),\"min soil volume\",\"\")","v":{"$error":"#N/A"}}]
[]
[null,null,null,null,null,null,null,null,null,null,null,null,null,{"$f":"IFERROR(INDEX(Lookup!$F$70:$F$94,MATCH(AO89,Lookup!$A$70:$A$94,0)),\"\")","v":""},null,null,null,null,null,null,null,null,null,null,null,null,null,null,null,null,null,null,null,null,null,null,null,null,null,null,{"$f":"TRIM(SUBSTITUTE(SUBSTITUTE(SUBSTITUTE(AO89,\" \",\"\"),\"-\",\"\"),\"/\",\"\")&\"List4\")","v":{"$error":"#N/A"}},null,{"$f":"IF(AO89=\"Infiltrating Soil Cell Bioretention with Tree\",AR97/(V97/12),\nIF(AO89=\"Non-Infiltrating Soil Cell Bioretention with Tree\",AR97/(V95/12),\"\"))","v":{"$error":"#N/A"}},{"$f":"IF(AO89=\"Infiltrating Soil Cell Bioretention with Tree\",_xlfn.XLOOKUP(V95,InfiltratingSoilCellBioretentionwithTreeList3,Lookup!$U$51:$U$55),\nIF(AO89=\"Non-Infiltrating Soil Cell Bioretention with Tree\",_xlfn.XLOOKUP(V93,NonInfiltratingSoilCellBioretentionwithTreeList2,Lookup!$U$51:$U$55,\"\")))","v":{"$error":"#N/A"}}]
[null,null,null,null,null,null,null,null,null,null,null,null,null," "]
[null,{"$f":"IFERROR(IF(INDEX($K$7:$K$46,MATCH(AN99,$AO$7:$AO$46,0))=\"\",\"\",INDEX($K$7:$K$46,MATCH(AN99,$AO$7:$AO$46,0))),\"\")","v":""},null,null,null,null,null,null,null,null,null,null,null,{"$f":"IF(B99=\"\",\"\",IF(AO99=\"Vegetated Roof System\",\"Roof Area\",\"Contributing Area (sf)\"))","v":""},null,null,null,null,null,null,null,{"$f":"IF(B99=\"\",\"\",SUMIF($AO$7:$AO$46,AN99,$F$7:$I$46))","v":""},null,null,null,null,null,null,{"$f":"IFERROR(IF(AO99=\"Water Quality BMP in lieu of NIB\",\"Submit sizing documentation separately.\",\nIF(AP99=-999,\"Configuration not allowed.\",IF(AP99=0,\"Configuration not allowed.\",IF(AO99=\"Trees\",\"As many as feasible.\",\nIF(AP99=\"equation\",TEXT(AQ99,\"#,##0\")&\" \"&AR99,\nTEXT(IF(OR(AO99=\"Permeable Pavement Facility\",AO99=\"Vegetated Roof System\",AO99=\"Rainwater Harvesting - Category 1\", AO99=\"Rainwater Harvesting - Category 4\"),H101,\nIF(AO99=\"Sidewalk/Trail Compost-Amended Strip\",MAX(V99/H101,AP99*V99),\nIF(OR(AO99=\"Infiltrating Soil Cell Bioretention with Tree\",AO99=\"Non-Infiltrating Soil Cell Bioretention with Tree\"),MAX(AP99*V99,AQ107),\nAP99*V99))),\"#,##0\")&\" \"&AR99))))),\"\")","v":""},null,null,null,null,null,null,null,null,null,null,6,{"$f":"INDEX($AP$7:$AP$46,MATCH(AN99,$AO$7:$AO$46,0))","v":{"$error":"#N/A"}},{"$f":"IF(AO99=\"Trees\", INDEX(Lookup!$G$97:$G$365,MATCH(TRIM(CONCATENATE(AO99,V101)),Lookup!$F$97:$F$365,0)),\nIF(AO99=\"Residential Cistern\", INDEX(Lookup!$G$97:$G$365,MATCH(TRIM(CONCATENATE(AO99,IF(V99<400,0,IF(V99>4200,4201,ROUNDDOWN(V99,-2))))),Lookup!$F$97:$F$365,0)),\nIF(AO99=\"Sidewalk/Trail Compost-Amended Strip\", IF(H101=\"\",NA(),IF(H101<10,Lookup!$G$99,Lookup!$G$98)),\nIF(AND(AO99=\"Non-Infiltrating Bioretention\",V103=\"Sloped sides\",V101=6),IF(V99<=2000,0.025,0.028),\nINDEX(Lookup!$G$97:$G$365,MATCH(TRIM(CONCATENATE(AO99,V101,V103,V105,V107)),Lookup!$F$97:$F$365,0))))))","v":{"$error":"#N/A"}},{"$f":"IF(AP99<=0,NA(),IF(OR(AO99=\"Permeable Pavement Facility\",AO99=\"Vegetated Roof System\",AO99=\"Rainwater Harvesting - Category 1\",AO99=\"Rainwater Harvesting - Category 4\"),H101,\nIF(AO99=\"Sidewalk/Trail Compost-Amended Strip\",MAX(V99/H101,AP99*V99),\nIF(OR(AO99=\"Infiltrating Soil Cell Bioretention with Tree\",AO99=\"Non-Infiltrating Soil Cell Bioretention with Tree\"),MAX(AP99*V99,AQ107),\nAP99*V99))))","v":{"$error":"#N/A"}},{"$f":"IF(AO99=\"Residential Cistern\",\n\"sf\",INDEX(Lookup!$I$97:$I$365,MATCH(TRIM(CONCATENATE(AO99,V101,V103,V105,V107)),Lookup!$F$97:$F$365,0)))","v":{"$error":"#N/A"}},{"$f":"IF(AO99=\"Trees\", INDEX(Lookup!$H$97:$H$365,MATCH(TRIM(CONCATENATE(AO99,V101)),Lookup!$F$97:$F$365,0))*V103,\nIF(AO99=\"Residential Cistern\", INDEX(Lookup!$H$97:$H$365,MATCH(TRIM(CONCATENATE(AO99,IF(V99<400,0,IF(V99>4200,4201,ROUNDDOWN(V99,-2))))),Lookup!$F$97:$F$365,0))*V99,\nIF(AND(AO99=\"Sidewalk/Trail Compost-Amended Strip\",OR(H101=\"\",InfRate=0)),NA(),\nINDEX(Lookup!$H$97:$H$365,MATCH(TRIM(CONCATENATE(AO99,V101,V103,V105,V107)),Lookup!$F$97:$F$365,0))*V99)))*7.48052\n*IF(OR(AO99=\"Permeable Pavement Facility\",AO99=\"Vegetated Roof System\"),MIN(1,H101/(AP99*V99)),1)\n+IF(AO99=\"Permeable Pavement Facility\",H101*2.1*7.48052,1)","v":{"$error":"#N/A"}},{"$f":"IFERROR(\nIF(AO99=\"Residential Cistern\",INDEX(Lookup!$I$97:$I$365,MATCH(TRIM(CONCATENATE(AO99,IF(V99<400,0,IF(V99>4200,4201,ROUNDDOWN(V99,-2))))),Lookup!$F$97:$F$365,0)),\nIF(AO99=\"Sidewalk/Trail Compost-Amended Strip\",ROUND(AQ99/(V99/H101),1) &\" ft wide x \"& ROUND(V99/H101,0)&\" ft long\",\nIF(OR(AO99=\"Rainwater Harvesting - Category 1\",AO99=\"Rainwater Harvesting - Category 4\"),\" required minimum live storage\",\nIF(AO99=\"Water Quality BMP in lieu of NIB\",\"See Plan\",\nIF(AND(V101=\"\",V103=\"\",V105=\"\"),\"\",TRIM(V103&\" \"&AP103&\" \"&V101&\" \"&AP101&\" \"&V105&\" \"&AP105)))))),\"\")","v":""}]
[]
[null,{"$f":"IFERROR(\nIF(AO99=\"Permeable Pavement Facility\",\"Facility Area (sf)\",\nIF(AO99=\"Vegetated Roof System\",\"Vegetated Area (sf)\",\nIF(AO99=\"Sidewalk/Trail Compost-Amended Strip\",\"Sidewalk/Trail Width (ft)\",\nIF(OR(AO99=\"Rainwater Harvesting - Category 1\",AO99=\"Rainwater Harvesting - Category 4\"),\"Live Storage Volume (gal)\",\n\"\")))),\"\")","v":""},null,null,null,null,null,null,null,null,null,null,null,{"$f":"IFERROR(INDEX(Lookup!$C$70:$C$94,MATCH(AO99,Lookup!$A$70:$A$94,0)),\"\")","v":""},null,null,null,null,null,null,null,null,null,null,null,null,null,null,{"$f":"IFERROR(TEXT(AS99,\"#,##0\")&\" gal managed/year\",IFERROR(IF(AP99=0,\"Infiltration rate too low.\",\"\"),\"\"))","v":""},null,null,null,null,null,null,null,null,null,null,null,{"$f":"TRIM(SUBSTITUTE(SUBSTITUTE(SUBSTITUTE(AO99,\" \",\"\"),\"-\",\"\"),\"/\",\"\")&\"List1\")","v":{"$error":"#N/A"}},{"$f":"IFERROR(INDEX(Lookup!$G$70:$G$94,MATCH(AO99,Lookup!$A$70:$A$94,0)),\"\")","v":""}]
[]
[null,{"$f":"IFERROR(\nIF(OR(AO99=\"Permeable Pavement Facility\",AO99=\"Vegetated Roof System\"),\"Minimum Facility Area \"&TEXT((AP99*V99),\"#,###\")&\" sf\",\nIF(OR(AO99=\"Rainwater Harvesting - Category 1\",AO99=\"Rainwater Harvesting - Category 4\"),\"Continuous runoff modeling required by\",\n\"\")),\"\")","v":""},null,null,null,null,null,null,null,null,null,null,null,{"$f":"IFERROR(INDEX(Lookup!$D$70:$D$94,MATCH(AO99,Lookup!$A$70:$A$94,0)),\"\")","v":""},null,null,null,null,null,null,null,null,null,null,null,null,null,null,{"$f":"IFERROR(IF(AO99=\"Sidewalk/Trail Compost-Amended Strip\",ROUND(AQ99/(V99/H101),1) &\" ft wide compost-amended strip\",\nIF(OR(AO99=\"Infiltrating Soil Cell Bioretention with Tree\",AO99=\"Non-Infiltrating Soil Cell Bioretention with Tree\"),\"BMP size excludes tree planting area\",\nIF(AO99=\"Residential Cistern\",IF(AQ99=-999,\"\",IF(V99<800,3,IF(V99<1300,4,5)))&\" ft live storage\",\n\n\"\"))),\"\")","v":""},null,null,null,null,null,null,null,null,null,null,null,{"$f":"TRIM(SUBSTITUTE(SUBSTITUTE(SUBSTITUTE(AO99,\" \",\"\"),\"-\",\"\"),\"/\",\"\")&\"List2\")","v":{"$error":"#N/A"}},{"$f":"IFERROR(INDEX(Lookup!$H$70:$H$94,MATCH(AO99,Lookup!$A$70:$A$94,0)),\"\")","v":""}]
[]
[null,{"$f":"IFERROR(IF(OR(AO99=\"Rainwater Harvesting - Category 1\",AO99=\"Rainwater Harvesting - Category 4\"),\"professional engineer.\",\n\"\"),\"\")","v":""},null,null,null,null,null,null,null,null,null,null,null,{"$f":"IFERROR(INDEX(Lookup!$E$70:$E$94,MATCH(AO99,Lookup!$A$70:$A$94,0)),\"\")","v":""},null,null,null,null,null,null,null,null,null,null,null,null,null,null,{"$f":"IFERROR(IF(AO99=\"Sidewalk/Trail Compost-Amended Strip\",IF(AND(AC103=\"\",H101<>\"\"),\"\",\"along full \"& ROUND(V99/H101,0) &\" ft trail/sidewalk\"),\"\"),\"\")","v":""},null,null,null,null,null,null,null,null,null,null,null,{"$f":"TRIM(SUBSTITUTE(SUBSTITUTE(SUBSTITUTE(AO99,\" \",\"\"),\"-\",\"\"),\"/\",\"\")&\"List3\")","v":{"$error":"#N/A"}},{"$f":"IFERROR(INDEX(Lookup!$H$70:$H$94,MATCH(AO101,Lookup!$A$70:$A$94,0)),\"\")","v":""},{"$f":"IF(OR(AO99=\"Infiltrating Soil Cell Bioretention with Tree\",AO99=\"Non-Infiltrating Soil Cell Bioretention with Tree\"),\"min footprint to meet soil volume\",\"\")","v":{"$error":"#N/A"}},{"$f":"IF(OR(AO99=\"Infiltrating Soil Cell Bioretention with Tree\",AO99=\"Non-Infiltrating Soil Cell Bioretention with Tree\"),\"min soil volume\",\"\")","v":{"$error":"#N/A"}}]
[]
[null,null,null,null,null,null,null,null,null,null,null,null,null,{"$f":"IFERROR(INDEX(Lookup!$F$70:$F$94,MATCH(AO99,Lookup!$A$70:$A$94,0)),\"\")","v":""},null,null,null,null,null,null,null,null,null,null,null,null,null,null,null,null,null,null,null,null,null,null,null,null,null,null,{"$f":"TRIM(SUBSTITUTE(SUBSTITUTE(SUBSTITUTE(AO99,\" \",\"\"),\"-\",\"\"),\"/\",\"\")&\"List4\")","v":{"$error":"#N/A"}},null,{"$f":"IF(AO99=\"Infiltrating Soil Cell Bioretention with Tree\",AR107/(V107/12),\nIF(AO99=\"Non-Infiltrating Soil Cell Bioretention with Tree\",AR107/(V105/12),\"\"))","v":{"$error":"#N/A"}},{"$f":"IF(AO99=\"Infiltrating Soil Cell Bioretention with Tree\",_xlfn.XLOOKUP(V105,InfiltratingSoilCellBioretentionwithTreeList3,Lookup!$U$51:$U$55),\nIF(AO99=\"Non-Infiltrating Soil Cell Bioretention with Tree\",_xlfn.XLOOKUP(V103,NonInfiltratingSoilCellBioretentionwithTreeList2,Lookup!$U$51:$U$55,\"\")))","v":{"$error":"#N/A"}}]
[null,null,null,null,null,null,null,null,null,null,null,null,null," ",null,null,null,null,null,null," "]
[null,{"$f":"IFERROR(IF(INDEX($K$7:$K$46,MATCH(AN109,$AO$7:$AO$46,0))=\"\",\"\",INDEX($K$7:$K$46,MATCH(AN109,$AO$7:$AO$46,0))),\"\")","v":""},null,null,null,null,null,null,null,null,null,null,null,{"$f":"IF(B109=\"\",\"\",IF(AO109=\"Vegetated Roof System\",\"Roof Area\",\"Contributing Area (sf)\"))","v":""},null,null,null,null,null,null,null,{"$f":"IF(B109=\"\",\"\",SUMIF($AO$7:$AO$46,AN109,$F$7:$I$46))","v":""},null,null,null,null,null,null,{"$f":"IFERROR(IF(AO109=\"Water Quality BMP in lieu of NIB\",\"Submit sizing documentation separately.\",\nIF(AP109=-999,\"Configuration not allowed.\",IF(AP109=0,\"Configuration not allowed.\",IF(AO109=\"Trees\",\"As many as feasible.\",\nIF(AP109=\"equation\",TEXT(AQ109,\"#,##0\")&\" \"&AR109,\nTEXT(IF(OR(AO109=\"Permeable Pavement Facility\",AO109=\"Vegetated Roof System\",AO109=\"Rainwater Harvesting - Category 1\", AO109=\"Rainwater Harvesting - Category 4\"),H111,\nIF(AO109=\"Sidewalk/Trail Compost-Amended Strip\",MAX(V109/H111,AP109*V109),\nIF(OR(AO109=\"Infiltrating Soil Cell Bioretention with Tree\",AO109=\"Non-Infiltrating Soil Cell Bioretention with Tree\"),MAX(AP109*V109,AQ117),\nAP109*V109))),\"#,##0\")&\" \"&AR109))))),\"\")","v":""},null,null,null,null,null,null,null,null,null,null,7,{"$f":"INDEX($AP$7:$AP$46,MATCH(AN109,$AO$7:$AO$46,0))","v":{"$error":"#N/A"}},{"$f":"IF(AO109=\"Trees\", INDEX(Lookup!$G$97:$G$365,MATCH(TRIM(CONCATENATE(AO109,V111)),Lookup!$F$97:$F$365,0)),\nIF(AO109=\"Residential Cistern\", INDEX(Lookup!$G$97:$G$365,MATCH(TRIM(CONCATENATE(AO109,IF(V109<400,0,IF(V109>4200,4201,ROUNDDOWN(V109,-2))))),Lookup!$F$97:$F$365,0)),\nIF(AO109=\"Sidewalk/Trail Compost-Amended Strip\", IF(H111=\"\",NA(),IF(H111<10,Lookup!$G$99,Lookup!$G$98)),\nIF(AND(AO109=\"Non-Infiltrating Bioretention\",V113=\"Sloped sides\",V111=6),IF(V109<=2000,0.025,0.028),\nINDEX(Lookup!$G$97:$G$365,MATCH(TRIM(CONCATENATE(AO109,V111,V113,V115,V117)),Lookup!$F$97:$F$365,0))))))","v":{"$error":"#N/A"}},{"$f":"IF(AP109<=0,NA(),IF(OR(AO109=\"Permeable Pavement Facility\",AO109=\"Vegetated Roof System\",AO109=\"Rainwater Harvesting - Category 1\",AO109=\"Rainwater Harvesting - Category 4\"),H111,\nIF(AO109=\"Sidewalk/Trail Compost-Amended Strip\",MAX(V109/H111,AP109*V109),\nIF(OR(AO109=\"Infiltrating Soil Cell Bioretention with Tree\",AO109=\"Non-Infiltrating Soil Cell Bioretention with Tree\"),MAX(AP109*V109,AQ117),\nAP109*V109))))","v":{"$error":"#N/A"}},{"$f":"IF(AO109=\"Residential Cistern\",\n\"sf\",INDEX(Lookup!$I$97:$I$365,MATCH(TRIM(CONCATENATE(AO109,V111,V113,V115,V117)),Lookup!$F$97:$F$365,0)))","v":{"$error":"#N/A"}},{"$f":"IF(AO109=\"Trees\", INDEX(Lookup!$H$97:$H$365,MATCH(TRIM(CONCATENATE(AO109,V111)),Lookup!$F$97:$F$365,0))*V113,\nIF(AO109=\"Residential Cistern\", INDEX(Lookup!$H$97:$H$365,MATCH(TRIM(CONCATENATE(AO109,IF(V109<400,0,IF(V109>4200,4201,ROUNDDOWN(V109,-2))))),Lookup!$F$97:$F$365,0))*V109,\nIF(AND(AO109=\"Sidewalk/Trail Compost-Amended Strip\",OR(H111=\"\",InfRate=0)),NA(),\nINDEX(Lookup!$H$97:$H$365,MATCH(TRIM(CONCATENATE(AO109,V111,V113,V115,V117)),Lookup!$F$97:$F$365,0))*V109)))*7.48052\n*IF(OR(AO109=\"Permeable Pavement Facility\",AO109=\"Vegetated Roof System\"),MIN(1,H111/(AP109*V109)),1)\n+IF(AO109=\"Permeable Pavement Facility\",H111*2.1*7.48052,1)","v":{"$error":"#N/A"}},{"$f":"IFERROR(\nIF(AO109=\"Residential Cistern\",INDEX(Lookup!$I$97:$I$365,MATCH(TRIM(CONCATENATE(AO109,IF(V109<400,0,IF(V109>4200,4201,ROUNDDOWN(V109,-2))))),Lookup!$F$97:$F$365,0)),\nIF(AO109=\"Sidewalk/Trail Compost-Amended Strip\",ROUND(AQ109/(V109/H111),1) &\" ft wide x \"& ROUND(V109/H111,0)&\" ft long\",\nIF(OR(AO109=\"Rainwater Harvesting - Category 1\",AO109=\"Rainwater Harvesting - Category 4\"),\" required minimum live storage\",\nIF(AO109=\"Water Quality BMP in lieu of NIB\",\"See Plan\",\nIF(AND(V111=\"\",V113=\"\",V115=\"\"),\"\",TRIM(V113&\" \"&AP113&\" \"&V111&\" \"&AP111&\" \"&V115&\" \"&AP115)))))),\"\")","v":""}]
[]
[null,{"$f":"IFERROR(\nIF(AO109=\"Permeable Pavement Facility\",\"Facility Area (sf)\",\nIF(AO109=\"Vegetated Roof System\",\"Vegetated Area (sf)\",\nIF(AO109=\"Sidewalk/Trail Compost-Amended Strip\",\"Sidewalk/Trail Width (ft)\",\nIF(OR(AO109=\"Rainwater Harvesting - Category 1\",AO109=\"Rainwater Harvesting - Category 4\"),\"Live Storage Volume (gal)\",\n\"\")))),\"\")","v":""},null,null,null,null,null,null,null,null,null,null,null,{"$f":"IFERROR(INDEX(Lookup!$C$70:$C$94,MATCH(AO109,Lookup!$A$70:$A$94,0)),\"\")","v":""},null,null,null,null,null,null,null,null,null,null,null,null,null,null,{"$f":"IFERROR(TEXT(AS109,\"#,##0\")&\" gal managed/year\",IFERROR(IF(AP109=0,\"Infiltration rate too low.\",\"\"),\"\"))","v":""},null,null,null,null,null,null,null,null,null,null,null,{"$f":"TRIM(SUBSTITUTE(SUBSTITUTE(SUBSTITUTE(AO109,\" \",\"\"),\"-\",\"\"),\"/\",\"\")&\"List1\")","v":{"$error":"#N/A"}},{"$f":"IFERROR(INDEX(Lookup!$G$70:$G$94,MATCH(AO109,Lookup!$A$70:$A$94,0)),\"\")","v":""}]
[]
[null,{"$f":"IFERROR(\nIF(OR(AO109=\"Permeable Pavement Facility\",AO109=\"Vegetated Roof System\"),\"Minimum Facility Area \"&TEXT((AP109*V109),\"#,###\")&\" sf\",\nIF(OR(AO109=\"Rainwater Harvesting - Category 1\",AO109=\"Rainwater Harvesting - Category 4\"),\"Continuous runoff modeling required by\",\n\"\")),\"\")","v":""},null,null,null,null,null,null,null,null,null,null,null,{"$f":"IFERROR(INDEX(Lookup!$D$70:$D$94,MATCH(AO109,Lookup!$A$70:$A$94,0)),\"\")","v":""},null,null,null,null,null,null,null,null,null,null,null,null,null,null,{"$f":"IFERROR(IF(AO109=\"Sidewalk/Trail Compost-Amended Strip\",ROUND(AQ109/(V109/H111),1) &\" ft wide compost-amended strip\",\nIF(OR(AO109=\"Infiltrating Soil Cell Bioretention with Tree\",AO109=\"Non-Infiltrating Soil Cell Bioretention with Tree\"),\"BMP size excludes tree planting area\",\nIF(AO109=\"Residential Cistern\",IF(AQ109=-999,\"\",IF(V109<800,3,IF(V109<1300,4,5)))&\" ft live storage\",\n\n\"\"))),\"\")","v":""},null,null,null,null,null,null,null,null,null,null,null,{"$f":"TRIM(SUBSTITUTE(SUBSTITUTE(SUBSTITUTE(AO109,\" \",\"\"),\"-\",\"\"),\"/\",\"\")&\"List2\")","v":{"$error":"#N/A"}},{"$f":"IFERROR(INDEX(Lookup!$H$70:$H$94,MATCH(AO109,Lookup!$A$70:$A$94,0)),\"\")","v":""}]
[]
[null,{"$f":"IFERROR(IF(OR(AO109=\"Rainwater Harvesting - Category 1\",AO109=\"Rainwater Harvesting - Category 4\"),\"professional engineer.\",\n\"\"),\"\")","v":""},null,null,null,null,null,null,null,null,null,null,null,{"$f":"IFERROR(INDEX(Lookup!$E$70:$E$94,MATCH(AO109,Lookup!$A$70:$A$94,0)),\"\")","v":""},null,null,null,null,null,null,null,null,null,null,null,null,null,null,{"$f":"IFERROR(IF(AO109=\"Sidewalk/Trail Compost-Amended Strip\",IF(AND(AC113=\"\",H111<>\"\"),\"\",\"along full \"& ROUND(V109/H111,0) &\" ft trail/sidewalk\"),\"\"),\"\")","v":""},null,null,null,null,null,null,null,null,null,null,null,{"$f":"TRIM(SUBSTITUTE(SUBSTITUTE(SUBSTITUTE(AO109,\" \",\"\"),\"-\",\"\"),\"/\",\"\")&\"List3\")","v":{"$error":"#N/A"}},{"$f":"IFERROR(INDEX(Lookup!$H$70:$H$94,MATCH(AO111,Lookup!$A$70:$A$94,0)),\"\")","v":""},{"$f":"IF(OR(AO109=\"Infiltrating Soil Cell Bioretention with Tree\",AO109=\"Non-Infiltrating Soil Cell Bioretention with Tree\"),\"min footprint to meet soil volume\",\"\")","v":{"$error":"#N/A"}},{"$f":"IF(OR(AO109=\"Infiltrating Soil Cell Bioretention with Tree\",AO109=\"Non-Infiltrating Soil Cell Bioretention with Tree\"),\"min soil volume\",\"\")","v":{"$error":"#N/A"}}]
[]
[null,null,null,null,null,null,null,null,null,null,null,null,null,{"$f":"IFERROR(INDEX(Lookup!$F$70:$F$94,MATCH(AO109,Lookup!$A$70:$A$94,0)),\"\")","v":""},null,null,null,null,null,null,null,null,null,null,null,null,null,null,null,null,null,null,null,null,null,null,null,null,null,null,{"$f":"TRIM(SUBSTITUTE(SUBSTITUTE(SUBSTITUTE(AO109,\" \",\"\"),\"-\",\"\"),\"/\",\"\")&\"List4\")","v":{"$error":"#N/A"}},null,{"$f":"IF(AO109=\"Infiltrating Soil Cell Bioretention with Tree\",AR117/(V117/12),\nIF(AO109=\"Non-Infiltrating Soil Cell Bioretention with Tree\",AR117/(V115/12),\"\"))","v":{"$error":"#N/A"}},{"$f":"IF(AO109=\"Infiltrating Soil Cell Bioretention with Tree\",_xlfn.XLOOKUP(V115,InfiltratingSoilCellBioretentionwithTreeList3,Lookup!$U$51:$U$55),\nIF(AO109=\"Non-Infiltrating Soil Cell Bioretention with Tree\",_xlfn.XLOOKUP(V113,NonInfiltratingSoilCellBioretentionwithTreeList2,Lookup!$U$51:$U$55,\"\")))","v":{"$error":"#N/A"}}]
[null,null,null,null,null,null,null,null,null,null,null,null,null," ",null,null,null,null,null,null," "]
[null,{"$f":"IFERROR(IF(INDEX($K$7:$K$46,MATCH(AN119,$AO$7:$AO$46,0))=\"\",\"\",INDEX($K$7:$K$46,MATCH(AN119,$AO$7:$AO$46,0))),\"\")","v":""},null,null,null,null,null,null,null,null,null,null,null,{"$f":"IF(B119=\"\",\"\",IF(AO119=\"Vegetated Roof System\",\"Roof Area\",\"Contributing Area (sf)\"))","v":""},null,null,null,null,null,null,null,{"$f":"IF(B119=\"\",\"\",SUMIF($AO$7:$AO$46,AN119,$F$7:$I$46))","v":""},null,null,null,null,null,null,{"$f":"IFERROR(IF(AO119=\"Water Quality BMP in lieu of NIB\",\"Submit sizing documentation separately.\",\nIF(AP119=-999,\"Configuration not allowed.\",IF(AP119=0,\"Configuration not allowed.\",IF(AO119=\"Trees\",\"As many as feasible.\",\nIF(AP119=\"equation\",TEXT(AQ119,\"#,##0\")&\" \"&AR119,\nTEXT(IF(OR(AO119=\"Permeable Pavement Facility\",AO119=\"Vegetated Roof System\",AO119=\"Rainwater Harvesting - Category 1\", AO119=\"Rainwater Harvesting - Category 4\"),H121,\nIF(AO119=\"Sidewalk/Trail Compost-Amended Strip\",MAX(V119/H121,AP119*V119),\nIF(OR(AO119=\"Infiltrating Soil Cell Bioretention with Tree\",AO119=\"Non-Infiltrating Soil Cell Bioretention with Tree\"),MAX(AP119*V119,AQ127),\nAP119*V119))),\"#,##0\")&\" \"&AR119))))),\"\")","v":""},null,null,null,null,null,null,null,null,null,null,8,{"$f":"INDEX($AP$7:$AP$46,MATCH(AN119,$AO$7:$AO$46,0))","v":{"$error":"#N/A"}},{"$f":"IF(AO119=\"Trees\", INDEX(Lookup!$G$97:$G$365,MATCH(TRIM(CONCATENATE(AO119,V121)),Lookup!$F$97:$F$365,0)),\nIF(AO119=\"Residential Cistern\", INDEX(Lookup!$G$97:$G$365,MATCH(TRIM(CONCATENATE(AO119,IF(V119<400,0,IF(V119>4200,4201,ROUNDDOWN(V119,-2))))),Lookup!$F$97:$F$365,0)),\nIF(AO119=\"Sidewalk/Trail Compost-Amended Strip\", IF(H121=\"\",NA(),IF(H121<10,Lookup!$G$99,Lookup!$G$98)),\nIF(AND(AO119=\"Non-Infiltrating Bioretention\",V123=\"Sloped sides\",V121=6),IF(V119<=2000,0.025,0.028),\nINDEX(Lookup!$G$97:$G$365,MATCH(TRIM(CONCATENATE(AO119,V121,V123,V125,V127)),Lookup!$F$97:$F$365,0))))))","v":{"$error":"#N/A"}},{"$f":"IF(AP119<=0,NA(),IF(OR(AO119=\"Permeable Pavement Facility\",AO119=\"Vegetated Roof System\",AO119=\"Rainwater Harvesting - Category 1\",AO119=\"Rainwater Harvesting - Category 4\"),H121,\nIF(AO119=\"Sidewalk/Trail Compost-Amended Strip\",MAX(V119/H121,AP119*V119),\nIF(OR(AO119=\"Infiltrating Soil Cell Bioretention with Tree\",AO119=\"Non-Infiltrating Soil Cell Bioretention with Tree\"),MAX(AP119*V119,AQ127),\nAP119*V119))))","v":{"$error":"#N/A"}},{"$f":"IF(AO119=\"Residential Cistern\",\n\"sf\",INDEX(Lookup!$I$97:$I$365,MATCH(TRIM(CONCATENATE(AO119,V121,V123,V125,V127)),Lookup!$F$97:$F$365,0)))","v":{"$error":"#N/A"}},{"$f":"IF(AO119=\"Trees\", INDEX(Lookup!$H$97:$H$365,MATCH(TRIM(CONCATENATE(AO119,V121)),Lookup!$F$97:$F$365,0))*V123,\nIF(AO119=\"Residential Cistern\", INDEX(Lookup!$H$97:$H$365,MATCH(TRIM(CONCATENATE(AO119,IF(V119<400,0,IF(V119>4200,4201,ROUNDDOWN(V119,-2))))),Lookup!$F$97:$F$365,0))*V119,\nIF(AND(AO119=\"Sidewalk/Trail Compost-Amended Strip\",OR(H121=\"\",InfRate=0)),NA(),\nINDEX(Lookup!$H$97:$H$365,MATCH(TRIM(CONCATENATE(AO119,V121,V123,V125,V127)),Lookup!$F$97:$F$365,0))*V119)))*7.48052\n*IF(OR(AO119=\"Permeable Pavement Facility\",AO119=\"Vegetated Roof System\"),MIN(1,H121/(AP119*V119)),1)\n+IF(AO119=\"Permeable Pavement Facility\",H121*2.1*7.48052,1)","v":{"$error":"#N/A"}},{"$f":"IFERROR(\nIF(AO119=\"Residential Cistern\",INDEX(Lookup!$I$97:$I$365,MATCH(TRIM(CONCATENATE(AO119,IF(V119<400,0,IF(V119>4200,4201,ROUNDDOWN(V119,-2))))),Lookup!$F$97:$F$365,0)),\nIF(AO119=\"Sidewalk/Trail Compost-Amended Strip\",ROUND(AQ119/(V119/H121),1) &\" ft wide x \"& ROUND(V119/H121,0)&\" ft long\",\nIF(OR(AO119=\"Rainwater Harvesting - Category 1\",AO119=\"Rainwater Harvesting - Category 4\"),\" required minimum live storage\",\nIF(AO119=\"Water Quality BMP in lieu of NIB\",\"See Plan\",\nIF(AND(V121=\"\",V123=\"\",V125=\"\"),\"\",TRIM(V123&\" \"&AP123&\" \"&V121&\" \"&AP121&\" \"&V125&\" \"&AP125)))))),\"\")","v":""}]
[]
[null,{"$f":"IFERROR(\nIF(AO119=\"Permeable Pavement Facility\",\"Facility Area (sf)\",\nIF(AO119=\"Vegetated Roof System\",\"Vegetated Area (sf)\",\nIF(AO119=\"Sidewalk/Trail Compost-Amended Strip\",\"Sidewalk/Trail Width (ft)\",\nIF(OR(AO119=\"Rainwater Harvesting - Category 1\",AO119=\"Rainwater Harvesting - Category 4\"),\"Live Storage Volume (gal)\",\n\"\")))),\"\")","v":""},null,null,null,null,null,null,null,null,null,null,null,{"$f":"IFERROR(INDEX(Lookup!$C$70:$C$94,MATCH(AO119,Lookup!$A$70:$A$94,0)),\"\")","v":""},null,null,null,null,null,null,null,null,null,null,null,null,null,null,{"$f":"IFERROR(TEXT(AS119,\"#,##0\")&\" gal managed/year\",IFERROR(IF(AP119=0,\"Infiltration rate too low.\",\"\"),\"\"))","v":""},null,null,null,null,null,null,null,null,null,null,null,{"$f":"TRIM(SUBSTITUTE(SUBSTITUTE(SUBSTITUTE(AO119,\" \",\"\"),\"-\",\"\"),\"/\",\"\")&\"List1\")","v":{"$error":"#N/A"}},{"$f":"IFERROR(INDEX(Lookup!$G$70:$G$94,MATCH(AO119,Lookup!$A$70:$A$94,0)),\"\")","v":""}]
[]
[null,{"$f":"IFERROR(\nIF(OR(AO119=\"Permeable Pavement Facility\",AO119=\"Vegetated Roof System\"),\"Minimum Facility Area \"&TEXT((AP119*V119),\"#,###\")&\" sf\",\nIF(OR(AO119=\"Rainwater Harvesting - Category 1\",AO119=\"Rainwater Harvesting - Category 4\"),\"Continuous runoff modeling required by\",\n\"\")),\"\")","v":""},null,null,null,null,null,null,null,null,null,null,null,{"$f":"IFERROR(INDEX(Lookup!$D$70:$D$94,MATCH(AO119,Lookup!$A$70:$A$94,0)),\"\")","v":""},null,null,null,null,null,null,null,null,null,null,null,null,null,null,{"$f":"IFERROR(IF(AO119=\"Sidewalk/Trail Compost-Amended Strip\",ROUND(AQ119/(V119/H121),1) &\" ft wide compost-amended strip\",\nIF(OR(AO119=\"Infiltrating Soil Cell Bioretention with Tree\",AO119=\"Non-Infiltrating Soil Cell Bioretention with Tree\"),\"BMP size excludes tree planting area\",\nIF(AO119=\"Residential Cistern\",IF(AQ119=-999,\"\",IF(V119<800,3,IF(V119<1300,4,5)))&\" ft live storage\",\n\n\"\"))),\"\")","v":""},null,null,null,null,null,null,null,null,null,null,null,{"$f":"TRIM(SUBSTITUTE(SUBSTITUTE(SUBSTITUTE(AO119,\" \",\"\"),\"-\",\"\"),\"/\",\"\")&\"List2\")","v":{"$error":"#N/A"}},{"$f":"IFERROR(INDEX(Lookup!$H$70:$H$94,MATCH(AO119,Lookup!$A$70:$A$94,0)),\"\")","v":""}]
[]
[null,{"$f":"IFERROR(IF(OR(AO119=\"Rainwater Harvesting - Category 1\",AO119=\"Rainwater Harvesting - Category 4\"),\"professional engineer.\",\n\"\"),\"\")","v":""},null,null,null,null,null,null,null,null,null,null,null,{"$f":"IFERROR(INDEX(Lookup!$E$70:$E$94,MATCH(AO119,Lookup!$A$70:$A$94,0)),\"\")","v":""},null,null,null,null,null,null,null,null,null,null,null,null,null,null,{"$f":"IFERROR(IF(AO119=\"Sidewalk/Trail Compost-Amended Strip\",IF(AND(AC123=\"\",H121<>\"\"),\"\",\"along full \"& ROUND(V119/H121,0) &\" ft trail/sidewalk\"),\"\"),\"\")","v":""},null,null,null,null,null,null,null,null,null,null,null,{"$f":"TRIM(SUBSTITUTE(SUBSTITUTE(SUBSTITUTE(AO119,\" \",\"\"),\"-\",\"\"),\"/\",\"\")&\"List3\")","v":{"$error":"#N/A"}},{"$f":"IFERROR(INDEX(Lookup!$H$70:$H$94,MATCH(AO121,Lookup!$A$70:$A$94,0)),\"\")","v":""},{"$f":"IF(OR(AO119=\"Infiltrating Soil Cell Bioretention with Tree\",AO119=\"Non-Infiltrating Soil Cell Bioretention with Tree\"),\"min footprint to meet soil volume\",\"\")","v":{"$error":"#N/A"}},{"$f":"IF(OR(AO119=\"Infiltrating Soil Cell Bioretention with Tree\",AO119=\"Non-Infiltrating Soil Cell Bioretention with Tree\"),\"min soil volume\",\"\")","v":{"$error":"#N/A"}}]
[]
[null,null,null,null,null,null,null,null,null,null,null,null,null,{"$f":"IFERROR(INDEX(Lookup!$F$70:$F$94,MATCH(AO119,Lookup!$A$70:$A$94,0)),\"\")","v":""},null,null,null,null,null,null,null,null,null,null,null,null,null,null,null,null,null,null,null,null,null,null,null,null,null,null,{"$f":"TRIM(SUBSTITUTE(SUBSTITUTE(SUBSTITUTE(AO119,\" \",\"\"),\"-\",\"\"),\"/\",\"\")&\"List4\")","v":{"$error":"#N/A"}},null,{"$f":"IF(AO119=\"Infiltrating Soil Cell Bioretention with Tree\",AR127/(V127/12),\nIF(AO119=\"Non-Infiltrating Soil Cell Bioretention with Tree\",AR127/(V125/12),\"\"))","v":{"$error":"#N/A"}},{"$f":"IF(AO119=\"Infiltrating Soil Cell Bioretention with Tree\",_xlfn.XLOOKUP(V125,InfiltratingSoilCellBioretentionwithTreeList3,Lookup!$U$51:$U$55),\nIF(AO119=\"Non-Infiltrating Soil Cell Bioretention with Tree\",_xlfn.XLOOKUP(V123,NonInfiltratingSoilCellBioretentionwithTreeList2,Lookup!$U$51:$U$55,\"\")))","v":{"$error":"#N/A"}}]
[null,null,null,null,null,null,null,null,null,null,null,null,null," ",null,null,null,null,null,null," "]
[null,{"$f":"IFERROR(IF(INDEX($K$7:$K$46,MATCH(AN129,$AO$7:$AO$46,0))=\"\",\"\",INDEX($K$7:$K$46,MATCH(AN129,$AO$7:$AO$46,0))),\"\")","v":""},null,null,null,null,null,null,null,null,null,null,null,{"$f":"IF(B129=\"\",\"\",IF(AO129=\"Vegetated Roof System\",\"Roof Area\",\"Contributing Area (sf)\"))","v":""},null,null,null,null,null,null,null,{"$f":"IF(B129=\"\",\"\",SUMIF($AO$7:$AO$46,AN129,$F$7:$I$46))","v":""},null,null,null,null,null,null,{"$f":"IFERROR(IF(AO129=\"Water Quality BMP in lieu of NIB\",\"Submit sizing documentation separately.\",\nIF(AP129=-999,\"Configuration not allowed.\",IF(AP129=0,\"Configuration not allowed.\",IF(AO129=\"Trees\",\"As many as feasible.\",\nIF(AP129=\"equation\",TEXT(AQ129,\"#,##0\")&\" \"&AR129,\nTEXT(IF(OR(AO129=\"Permeable Pavement Facility\",AO129=\"Vegetated Roof System\",AO129=\"Rainwater Harvesting - Category 1\", AO129=\"Rainwater Harvesting - Category 4\"),H131,\nIF(AO129=\"Sidewalk/Trail Compost-Amended Strip\",MAX(V129/H131,AP129*V129),\nIF(OR(AO129=\"Infiltrating Soil Cell Bioretention with Tree\",AO129=\"Non-Infiltrating Soil Cell Bioretention with Tree\"),MAX(AP129*V129,AQ137),\nAP129*V129))),\"#,##0\")&\" \"&AR129))))),\"\")","v":""},null,null,null,null,null,null,null,null,null,null,9,{"$f":"INDEX($AP$7:$AP$46,MATCH(AN129,$AO$7:$AO$46,0))","v":{"$error":"#N/A"}},{"$f":"IF(AO129=\"Trees\", INDEX(Lookup!$G$97:$G$365,MATCH(TRIM(CONCATENATE(AO129,V131)),Lookup!$F$97:$F$365,0)),\nIF(AO129=\"Residential Cistern\", INDEX(Lookup!$G$97:$G$365,MATCH(TRIM(CONCATENATE(AO129,IF(V129<400,0,IF(V129>4200,4201,ROUNDDOWN(V129,-2))))),Lookup!$F$97:$F$365,0)),\nIF(AO129=\"Sidewalk/Trail Compost-Amended Strip\", IF(H131=\"\",NA(),IF(H131<10,Lookup!$G$99,Lookup!$G$98)),\nIF(AND(AO129=\"Non-Infiltrating Bioretention\",V133=\"Sloped sides\",V131=6),IF(V129<=2000,0.025,0.028),\nINDEX(Lookup!$G$97:$G$365,MATCH(TRIM(CONCATENATE(AO129,V131,V133,V135,V137)),Lookup!$F$97:$F$365,0))))))","v":{"$error":"#N/A"}},{"$f":"IF(AP129<=0,NA(),IF(OR(AO129=\"Permeable Pavement Facility\",AO129=\"Vegetated Roof System\",AO129=\"Rainwater Harvesting - Category 1\",AO129=\"Rainwater Harvesting - Category 4\"),H131,\nIF(AO129=\"Sidewalk/Trail Compost-Amended Strip\",MAX(V129/H131,AP129*V129),\nIF(OR(AO129=\"Infiltrating Soil Cell Bioretention with Tree\",AO129=\"Non-Infiltrating Soil Cell Bioretention with Tree\"),MAX(AP129*V129,AQ137),\nAP129*V129))))","v":{"$error":"#N/A"}},{"$f":"IF(AO129=\"Residential Cistern\",\n\"sf\",INDEX(Lookup!$I$97:$I$365,MATCH(TRIM(CONCATENATE(AO129,V131,V133,V135,V137)),Lookup!$F$97:$F$365,0)))","v":{"$error":"#N/A"}},{"$f":"IF(AO129=\"Trees\", INDEX(Lookup!$H$97:$H$365,MATCH(TRIM(CONCATENATE(AO129,V131)),Lookup!$F$97:$F$365,0))*V133,\nIF(AO129=\"Residential Cistern\", INDEX(Lookup!$H$97:$H$365,MATCH(TRIM(CONCATENATE(AO129,IF(V129<400,0,IF(V129>4200,4201,ROUNDDOWN(V129,-2))))),Lookup!$F$97:$F$365,0))*V129,\nIF(AND(AO129=\"Sidewalk/Trail Compost-Amended Strip\",OR(H131=\"\",InfRate=0)),NA(),\nINDEX(Lookup!$H$97:$H$365,MATCH(TRIM(CONCATENATE(AO129,V131,V133,V135,V137)),Lookup!$F$97:$F$365,0))*V129)))*7.48052\n*IF(OR(AO129=\"Permeable Pavement Facility\",AO129=\"Vegetated Roof System\"),MIN(1,H131/(AP129*V129)),1)\n+IF(AO129=\"Permeable Pavement Facility\",H131*2.1*7.48052,1)","v":{"$error":"#N/A"}},{"$f":"IFERROR(\nIF(AO129=\"Residential Cistern\",INDEX(Lookup!$I$97:$I$365,MATCH(TRIM(CONCATENATE(AO129,IF(V129<400,0,IF(V129>4200,4201,ROUNDDOWN(V129,-2))))),Lookup!$F$97:$F$365,0)),\nIF(AO129=\"Sidewalk/Trail Compost-Amended Strip\",ROUND(AQ129/(V129/H131),1) &\" ft wide x \"& ROUND(V129/H131,0)&\" ft long\",\nIF(OR(AO129=\"Rainwater Harvesting - Category 1\",AO129=\"Rainwater Harvesting - Category 4\"),\" required minimum live storage\",\nIF(AO129=\"Water Quality BMP in lieu of NIB\",\"See Plan\",\nIF(AND(V131=\"\",V133=\"\",V135=\"\"),\"\",TRIM(V133&\" \"&AP133&\" \"&V131&\" \"&AP131&\" \"&V135&\" \"&AP135)))))),\"\")","v":""}]
[]
[null,{"$f":"IFERROR(\nIF(AO129=\"Permeable Pavement Facility\",\"Facility Area (sf)\",\nIF(AO129=\"Vegetated Roof System\",\"Vegetated Area (sf)\",\nIF(AO129=\"Sidewalk/Trail Compost-Amended Strip\",\"Sidewalk/Trail Width (ft)\",\nIF(OR(AO129=\"Rainwater Harvesting - Category 1\",AO129=\"Rainwater Harvesting - Category 4\"),\"Live Storage Volume (gal)\",\n\"\")))),\"\")","v":""},null,null,null,null,null,null,null,null,null,null,null,{"$f":"IFERROR(INDEX(Lookup!$C$70:$C$94,MATCH(AO129,Lookup!$A$70:$A$94,0)),\"\")","v":""},null,null,null,null,null,null,null,null,null,null,null,null,null,null,{"$f":"IFERROR(TEXT(AS129,\"#,##0\")&\" gal managed/year\",IFERROR(IF(AP129=0,\"Infiltration rate too low.\",\"\"),\"\"))","v":""},null,null,null,null,null,null,null,null,null,null,null,{"$f":"TRIM(SUBSTITUTE(SUBSTITUTE(SUBSTITUTE(AO129,\" \",\"\"),\"-\",\"\"),\"/\",\"\")&\"List1\")","v":{"$error":"#N/A"}},{"$f":"IFERROR(INDEX(Lookup!$G$70:$G$94,MATCH(AO129,Lookup!$A$70:$A$94,0)),\"\")","v":""}]
[]
[null,{"$f":"IFERROR(\nIF(OR(AO129=\"Permeable Pavement Facility\",AO129=\"Vegetated Roof System\"),\"Minimum Facility Area \"&TEXT((AP129*V129),\"#,###\")&\" sf\",\nIF(OR(AO129=\"Rainwater Harvesting - Category 1\",AO129=\"Rainwater Harvesting - Category 4\"),\"Continuous runoff modeling required by\",\n\"\")),\"\")","v":""},null,null,null,null,null,null,null,null,null,null,null,{"$f":"IFERROR(INDEX(Lookup!$D$70:$D$94,MATCH(AO129,Lookup!$A$70:$A$94,0)),\"\")","v":""},null,null,null,null,null,null,null,null,null,null,null,null,null,null,{"$f":"IFERROR(IF(AO129=\"Sidewalk/Trail Compost-Amended Strip\",ROUND(AQ129/(V129/H131),1) &\" ft wide compost-amended strip\",\nIF(OR(AO129=\"Infiltrating Soil Cell Bioretention with Tree\",AO129=\"Non-Infiltrating Soil Cell Bioretention with Tree\"),\"BMP size excludes tree planting area\",\nIF(AO129=\"Residential Cistern\",IF(AQ129=-999,\"\",IF(V129<800,3,IF(V129<1300,4,5)))&\" ft live storage\",\n\n\"\"))),\"\")","v":""},null,null,null,null,null,null,null,null,null,null,null,{"$f":"TRIM(SUBSTITUTE(SUBSTITUTE(SUBSTITUTE(AO129,\" \",\"\"),\"-\",\"\"),\"/\",\"\")&\"List2\")","v":{"$error":"#N/A"}},{"$f":"IFERROR(INDEX(Lookup!$H$70:$H$94,MATCH(AO129,Lookup!$A$70:$A$94,0)),\"\")","v":""}]
[]
[null,{"$f":"IFERROR(IF(OR(AO129=\"Rainwater Harvesting - Category 1\",AO129=\"Rainwater Harvesting - Category 4\"),\"professional engineer.\",\n\"\"),\"\")","v":""},null,null,null,null,null,null,null,null,null,null,null,{"$f":"IFERROR(INDEX(Lookup!$E$70:$E$94,MATCH(AO129,Lookup!$A$70:$A$94,0)),\"\")","v":""},null,null,null,null,null,null,null,null,null,null,null,null,null,null,{"$f":"IFERROR(IF(AO129=\"Sidewalk/Trail Compost-Amended Strip\",IF(AND(AC133=\"\",H131<>\"\"),\"\",\"along full \"& ROUND(V129/H131,0) &\" ft trail/sidewalk\"),\"\"),\"\")","v":""},null,null,null,null,null,null,null,null,null,null,null,{"$f":"TRIM(SUBSTITUTE(SUBSTITUTE(SUBSTITUTE(AO129,\" \",\"\"),\"-\",\"\"),\"/\",\"\")&\"List3\")","v":{"$error":"#N/A"}},{"$f":"IFERROR(INDEX(Lookup!$H$70:$H$94,MATCH(AO131,Lookup!$A$70:$A$94,0)),\"\")","v":""},{"$f":"IF(OR(AO129=\"Infiltrating Soil Cell Bioretention with Tree\",AO129=\"Non-Infiltrating Soil Cell Bioretention with Tree\"),\"min footprint to meet soil volume\",\"\")","v":{"$error":"#N/A"}},{"$f":"IF(OR(AO129=\"Infiltrating Soil Cell Bioretention with Tree\",AO129=\"Non-Infiltrating Soil Cell Bioretention with Tree\"),\"min soil volume\",\"\")","v":{"$error":"#N/A"}}]
[]
[null,null,null,null,null,null,null,null,null,null,null,null,null,{"$f":"IFERROR(INDEX(Lookup!$F$70:$F$94,MATCH(AO129,Lookup!$A$70:$A$94,0)),\"\")","v":""},null,null,null,null,null,null,null,null,null,null,null,null,null,null,null,null,null,null,null,null,null,null,null,null,null,null,{"$f":"TRIM(SUBSTITUTE(SUBSTITUTE(SUBSTITUTE(AO129,\" \",\"\"),\"-\",\"\"),\"/\",\"\")&\"List4\")","v":{"$error":"#N/A"}},null,{"$f":"IF(AO129=\"Infiltrating Soil Cell Bioretention with Tree\",AR137/(V137/12),\nIF(AO129=\"Non-Infiltrating Soil Cell Bioretention with Tree\",AR137/(V135/12),\"\"))","v":{"$error":"#N/A"}},{"$f":"IF(AO129=\"Infiltrating Soil Cell Bioretention with Tree\",_xlfn.XLOOKUP(V135,InfiltratingSoilCellBioretentionwithTreeList3,Lookup!$U$51:$U$55),\nIF(AO129=\"Non-Infiltrating Soil Cell Bioretention with Tree\",_xlfn.XLOOKUP(V133,NonInfiltratingSoilCellBioretentionwithTreeList2,Lookup!$U$51:$U$55,\"\")))","v":{"$error":"#N/A"}}]
[null,null,null,null,null,null,null,null,null,null,null,null,null," ",null,null,null,null,null,null," "]
[null,{"$f":"IFERROR(IF(INDEX($K$7:$K$46,MATCH(AN139,$AO$7:$AO$46,0))=\"\",\"\",INDEX($K$7:$K$46,MATCH(AN139,$AO$7:$AO$46,0))),\"\")","v":""},null,null,null,null,null,null,null,null,null,null,null,{"$f":"IF(B139=\"\",\"\",IF(AO139=\"Vegetated Roof System\",\"Roof Area\",\"Contributing Area (sf)\"))","v":""},null,null,null,null,null,null,null,{"$f":"IF(B139=\"\",\"\",SUMIF($AO$7:$AO$46,AN139,$F$7:$I$46))","v":""},null,null,null,null,null,null,{"$f":"IFERROR(IF(AO139=\"Water Quality BMP in lieu of NIB\",\"Submit sizing documentation separately.\",\nIF(AP139=-999,\"Configuration not allowed.\",IF(AP139=0,\"Configuration not allowed.\",IF(AO139=\"Trees\",\"As many as feasible.\",\nIF(AP139=\"equation\",TEXT(AQ139,\"#,##0\")&\" \"&AR139,\nTEXT(IF(OR(AO139=\"Permeable Pavement Facility\",AO139=\"Vegetated Roof System\",AO139=\"Rainwater Harvesting - Category 1\", AO139=\"Rainwater Harvesting - Category 4\"),H141,\nIF(AO139=\"Sidewalk/Trail Compost-Amended Strip\",MAX(V139/H141,AP139*V139),\nIF(OR(AO139=\"Infiltrating Soil Cell Bioretention with Tree\",AO139=\"Non-Infiltrating Soil Cell Bioretention with Tree\"),MAX(AP139*V139,AQ147),\nAP139*V139))),\"#,##0\")&\" \"&AR139))))),\"\")","v":""},null,null,null,null,null,null,null,null,null,null,10,{"$f":"INDEX($AP$7:$AP$46,MATCH(AN139,$AO$7:$AO$46,0))","v":{"$error":"#N/A"}},{"$f":"IF(AO139=\"Trees\", INDEX(Lookup!$G$97:$G$365,MATCH(TRIM(CONCATENATE(AO139,V141)),Lookup!$F$97:$F$365,0)),\nIF(AO139=\"Residential Cistern\", INDEX(Lookup!$G$97:$G$365,MATCH(TRIM(CONCATENATE(AO139,IF(V139<400,0,IF(V139>4200,4201,ROUNDDOWN(V139,-2))))),Lookup!$F$97:$F$365,0)),\nIF(AO139=\"Sidewalk/Trail Compost-Amended Strip\", IF(H141=\"\",NA(),IF(H141<10,Lookup!$G$99,Lookup!$G$98)),\nIF(AND(AO139=\"Non-Infiltrating Bioretention\",V143=\"Sloped sides\",V141=6),IF(V139<=2000,0.025,0.028),\nINDEX(Lookup!$G$97:$G$365,MATCH(TRIM(CONCATENATE(AO139,V141,V143,V145,V147)),Lookup!$F$97:$F$365,0))))))","v":{"$error":"#N/A"}},{"$f":"IF(AP139<=0,NA(),IF(OR(AO139=\"Permeable Pavement Facility\",AO139=\"Vegetated Roof System\",AO139=\"Rainwater Harvesting - Category 1\",AO139=\"Rainwater Harvesting - Category 4\"),H141,\nIF(AO139=\"Sidewalk/Trail Compost-Amended Strip\",MAX(V139/H141,AP139*V139),\nIF(OR(AO139=\"Infiltrating Soil Cell Bioretention with Tree\",AO139=\"Non-Infiltrating Soil Cell Bioretention with Tree\"),MAX(AP139*V139,AQ147),\nAP139*V139))))","v":{"$error":"#N/A"}},{"$f":"IF(AO139=\"Residential Cistern\",\n\"sf\",INDEX(Lookup!$I$97:$I$365,MATCH(TRIM(CONCATENATE(AO139,V141,V143,V145,V147)),Lookup!$F$97:$F$365,0)))","v":{"$error":"#N/A"}},{"$f":"IF(AO139=\"Trees\", INDEX(Lookup!$H$97:$H$365,MATCH(TRIM(CONCATENATE(AO139,V141)),Lookup!$F$97:$F$365,0))*V143,\nIF(AO139=\"Residential Cistern\", INDEX(Lookup!$H$97:$H$365,MATCH(TRIM(CONCATENATE(AO139,IF(V139<400,0,IF(V139>4200,4201,ROUNDDOWN(V139,-2))))),Lookup!$F$97:$F$365,0))*V139,\nIF(AND(AO139=\"Sidewalk/Trail Compost-Amended Strip\",OR(H141=\"\",InfRate=0)),NA(),\nINDEX(Lookup!$H$97:$H$365,MATCH(TRIM(CONCATENATE(AO139,V141,V143,V145,V147)),Lookup!$F$97:$F$365,0))*V139)))*7.48052\n*IF(OR(AO139=\"Permeable Pavement Facility\",AO139=\"Vegetated Roof System\"),MIN(1,H141/(AP139*V139)),1)\n+IF(AO139=\"Permeable Pavement Facility\",H141*2.1*7.48052,1)","v":{"$error":"#N/A"}},{"$f":"IFERROR(\nIF(AO139=\"Residential Cistern\",INDEX(Lookup!$I$97:$I$365,MATCH(TRIM(CONCATENATE(AO139,IF(V139<400,0,IF(V139>4200,4201,ROUNDDOWN(V139,-2))))),Lookup!$F$97:$F$365,0)),\nIF(AO139=\"Sidewalk/Trail Compost-Amended Strip\",ROUND(AQ139/(V139/H141),1) &\" ft wide x \"& ROUND(V139/H141,0)&\" ft long\",\nIF(OR(AO139=\"Rainwater Harvesting - Category 1\",AO139=\"Rainwater Harvesting - Category 4\"),\" required minimum live storage\",\nIF(AO139=\"Water Quality BMP in lieu of NIB\",\"See Plan\",\nIF(AND(V141=\"\",V143=\"\",V145=\"\"),\"\",TRIM(V143&\" \"&AP143&\" \"&V141&\" \"&AP141&\" \"&V145&\" \"&AP145)))))),\"\")","v":""}]
[]
[null,{"$f":"IFERROR(\nIF(AO139=\"Permeable Pavement Facility\",\"Facility Area (sf)\",\nIF(AO139=\"Vegetated Roof System\",\"Vegetated Area (sf)\",\nIF(AO139=\"Sidewalk/Trail Compost-Amended Strip\",\"Sidewalk/Trail Width (ft)\",\nIF(OR(AO139=\"Rainwater Harvesting - Category 1\",AO139=\"Rainwater Harvesting - Category 4\"),\"Live Storage Volume (gal)\",\n\"\")))),\"\")","v":""},null,null,null,null,null,null,null,null,null,null,null,{"$f":"IFERROR(INDEX(Lookup!$C$70:$C$94,MATCH(AO139,Lookup!$A$70:$A$94,0)),\"\")","v":""},null,null,null,null,null,null,null,null,null,null,null,null,null,null,{"$f":"IFERROR(TEXT(AS139,\"#,##0\")&\" gal managed/year\",IFERROR(IF(AP139=0,\"Infiltration rate too low.\",\"\"),\"\"))","v":""},null,null,null,null,null,null,null,null,null,null,null,{"$f":"TRIM(SUBSTITUTE(SUBSTITUTE(SUBSTITUTE(AO139,\" \",\"\"),\"-\",\"\"),\"/\",\"\")&\"List1\")","v":{"$error":"#N/A"}},{"$f":"IFERROR(INDEX(Lookup!$G$70:$G$94,MATCH(AO139,Lookup!$A$70:$A$94,0)),\"\")","v":""}]
[]
[null,{"$f":"IFERROR(\nIF(OR(AO139=\"Permeable Pavement Facility\",AO139=\"Vegetated Roof System\"),\"Minimum Facility Area \"&TEXT((AP139*V139),\"#,###\")&\" sf\",\nIF(OR(AO139=\"Rainwater Harvesting - Category 1\",AO139=\"Rainwater Harvesting - Category 4\"),\"Continuous runoff modeling required by\",\n\"\")),\"\")","v":""},null,null,null,null,null,null,null,null,null,null,null,{"$f":"IFERROR(INDEX(Lookup!$D$70:$D$94,MATCH(AO139,Lookup!$A$70:$A$94,0)),\"\")","v":""},null,null,null,null,null,null,null,null,null,null,null,null,null,null,{"$f":"IFERROR(IF(AO139=\"Sidewalk/Trail Compost-Amended Strip\",ROUND(AQ139/(V139/H141),1) &\" ft wide compost-amended strip\",\nIF(OR(AO139=\"Infiltrating Soil Cell Bioretention with Tree\",AO139=\"Non-Infiltrating Soil Cell Bioretention with Tree\"),\"BMP size excludes tree planting area\",\nIF(AO139=\"Residential Cistern\",IF(AQ139=-999,\"\",IF(V139<800,3,IF(V139<1300,4,5)))&\" ft live storage\",\n\n\"\"))),\"\")","v":""},null,null,null,null,null,null,null,null,null,null,null,{"$f":"TRIM(SUBSTITUTE(SUBSTITUTE(SUBSTITUTE(AO139,\" \",\"\"),\"-\",\"\"),\"/\",\"\")&\"List2\")","v":{"$error":"#N/A"}},{"$f":"IFERROR(INDEX(Lookup!$H$70:$H$94,MATCH(AO139,Lookup!$A$70:$A$94,0)),\"\")","v":""}]
[]
[null,{"$f":"IFERROR(IF(OR(AO139=\"Rainwater Harvesting - Category 1\",AO139=\"Rainwater Harvesting - Category 4\"),\"professional engineer.\",\n\"\"),\"\")","v":""},null,null,null,null,null,null,null,null,null,null,null,{"$f":"IFERROR(INDEX(Lookup!$E$70:$E$94,MATCH(AO139,Lookup!$A$70:$A$94,0)),\"\")","v":""},null,null,null,null,null,null,null,null,null,null,null,null,null,null,{"$f":"IFERROR(IF(AO139=\"Sidewalk/Trail Compost-Amended Strip\",IF(AND(AC143=\"\",H141<>\"\"),\"\",\"along full \"& ROUND(V139/H141,0) &\" ft trail/sidewalk\"),\"\"),\"\")","v":""},null,null,null,null,null,null,null,null,null,null,null,{"$f":"TRIM(SUBSTITUTE(SUBSTITUTE(SUBSTITUTE(AO139,\" \",\"\"),\"-\",\"\"),\"/\",\"\")&\"List3\")","v":{"$error":"#N/A"}},{"$f":"IFERROR(INDEX(Lookup!$H$70:$H$94,MATCH(AO141,Lookup!$A$70:$A$94,0)),\"\")","v":""},{"$f":"IF(OR(AO139=\"Infiltrating Soil Cell Bioretention with Tree\",AO139=\"Non-Infiltrating Soil Cell Bioretention with Tree\"),\"min footprint to meet soil volume\",\"\")","v":{"$error":"#N/A"}},{"$f":"IF(OR(AO139=\"Infiltrating Soil Cell Bioretention with Tree\",AO139=\"Non-Infiltrating Soil Cell Bioretention with Tree\"),\"min soil volume\",\"\")","v":{"$error":"#N/A"}}]
[]
[null,null,null,null,null,null,null,null,null,null,null,null,null,{"$f":"IFERROR(INDEX(Lookup!$F$70:$F$94,MATCH(AO139,Lookup!$A$70:$A$94,0)),\"\")","v":""},null,null,null,null,null,null,null,null,null,null,null,null,null,null,null,null,null,null,null,null,null,null,null,null,null,null,{"$f":"TRIM(SUBSTITUTE(SUBSTITUTE(SUBSTITUTE(AO139,\" \",\"\"),\"-\",\"\"),\"/\",\"\")&\"List4\")","v":{"$error":"#N/A"}},null,{"$f":"IF(AO139=\"Infiltrating Soil Cell Bioretention with Tree\",AR147/(V147/12),\nIF(AO139=\"Non-Infiltrating Soil Cell Bioretention with Tree\",AR147/(V145/12),\"\"))","v":{"$error":"#N/A"}},{"$f":"IF(AO139=\"Infiltrating Soil Cell Bioretention with Tree\",_xlfn.XLOOKUP(V145,InfiltratingSoilCellBioretentionwithTreeList3,Lookup!$U$51:$U$55),\nIF(AO139=\"Non-Infiltrating Soil Cell Bioretention with Tree\",_xlfn.XLOOKUP(V143,NonInfiltratingSoilCellBioretentionwithTreeList2,Lookup!$U$51:$U$55,\"\")))","v":{"$error":"#N/A"}}]
[null,null,null,null,null,null,null,null,null,null,null,null,null," ",null,null,null,null,null,null," "]
[null,{"$f":"IFERROR(IF(INDEX($K$7:$K$46,MATCH(AN149,$AO$7:$AO$46,0))=\"\",\"\",INDEX($K$7:$K$46,MATCH(AN149,$AO$7:$AO$46,0))),\"\")","v":""},null,null,null,null,null,null,null,null,null,null,null,{"$f":"IF(B149=\"\",\"\",IF(AO149=\"Vegetated Roof System\",\"Roof Area\",\"Contributing Area (sf)\"))","v":""},null,null,null,null,null,null,null,{"$f":"IF(B149=\"\",\"\",SUMIF($AO$7:$AO$46,AN149,$F$7:$I$46))","v":""},null,null,null,null,null,null,{"$f":"IFERROR(IF(AO149=\"Water Quality BMP in lieu of NIB\",\"Submit sizing documentation separately.\",\nIF(AP149=-999,\"Configuration not allowed.\",IF(AP149=0,\"Configuration not allowed.\",IF(AO149=\"Trees\",\"As many as feasible.\",\nIF(AP149=\"equation\",TEXT(AQ149,\"#,##0\")&\" \"&AR149,\nTEXT(IF(OR(AO149=\"Permeable Pavement Facility\",AO149=\"Vegetated Roof System\",AO149=\"Rainwater Harvesting - Category 1\", AO149=\"Rainwater Harvesting - Category 4\"),H151,\nIF(AO149=\"Sidewalk/Trail Compost-Amended Strip\",MAX(V149/H151,AP149*V149),\nIF(OR(AO149=\"Infiltrating Soil Cell Bioretention with Tree\",AO149=\"Non-Infiltrating Soil Cell Bioretention with Tree\"),MAX(AP149*V149,AQ157),\nAP149*V149))),\"#,##0\")&\" \"&AR149))))),\"\")","v":""},null,null,null,null,null,null,null,null,null,null,11,{"$f":"INDEX($AP$7:$AP$46,MATCH(AN149,$AO$7:$AO$46,0))","v":{"$error":"#N/A"}},{"$f":"IF(AO149=\"Trees\", INDEX(Lookup!$G$97:$G$365,MATCH(TRIM(CONCATENATE(AO149,V151)),Lookup!$F$97:$F$365,0)),\nIF(AO149=\"Residential Cistern\", INDEX(Lookup!$G$97:$G$365,MATCH(TRIM(CONCATENATE(AO149,IF(V149<400,0,IF(V149>4200,4201,ROUNDDOWN(V149,-2))))),Lookup!$F$97:$F$365,0)),\nIF(AO149=\"Sidewalk/Trail Compost-Amended Strip\", IF(H151=\"\",NA(),IF(H151<10,Lookup!$G$99,Lookup!$G$98)),\nIF(AND(AO149=\"Non-Infiltrating Bioretention\",V153=\"Sloped sides\",V151=6),IF(V149<=2000,0.025,0.028),\nINDEX(Lookup!$G$97:$G$365,MATCH(TRIM(CONCATENATE(AO149,V151,V153,V155,V157)),Lookup!$F$97:$F$365,0))))))","v":{"$error":"#N/A"}},{"$f":"IF(AP149<=0,NA(),IF(OR(AO149=\"Permeable Pavement Facility\",AO149=\"Vegetated Roof System\",AO149=\"Rainwater Harvesting - Category 1\",AO149=\"Rainwater Harvesting - Category 4\"),H151,\nIF(AO149=\"Sidewalk/Trail Compost-Amended Strip\",MAX(V149/H151,AP149*V149),\nIF(OR(AO149=\"Infiltrating Soil Cell Bioretention with Tree\",AO149=\"Non-Infiltrating Soil Cell Bioretention with Tree\"),MAX(AP149*V149,AQ157),\nAP149*V149))))","v":{"$error":"#N/A"}},{"$f":"IF(AO149=\"Residential Cistern\",\n\"sf\",INDEX(Lookup!$I$97:$I$365,MATCH(TRIM(CONCATENATE(AO149,V151,V153,V155,V157)),Lookup!$F$97:$F$365,0)))","v":{"$error":"#N/A"}},{"$f":"IF(AO149=\"Trees\", INDEX(Lookup!$H$97:$H$365,MATCH(TRIM(CONCATENATE(AO149,V151)),Lookup!$F$97:$F$365,0))*V153,\nIF(AO149=\"Residential Cistern\", INDEX(Lookup!$H$97:$H$365,MATCH(TRIM(CONCATENATE(AO149,IF(V149<400,0,IF(V149>4200,4201,ROUNDDOWN(V149,-2))))),Lookup!$F$97:$F$365,0))*V149,\nIF(AND(AO149=\"Sidewalk/Trail Compost-Amended Strip\",OR(H151=\"\",InfRate=0)),NA(),\nINDEX(Lookup!$H$97:$H$365,MATCH(TRIM(CONCATENATE(AO149,V151,V153,V155,V157)),Lookup!$F$97:$F$365,0))*V149)))*7.48052\n*IF(OR(AO149=\"Permeable Pavement Facility\",AO149=\"Vegetated Roof System\"),MIN(1,H151/(AP149*V149)),1)\n+IF(AO149=\"Permeable Pavement Facility\",H151*2.1*7.48052,1)","v":{"$error":"#N/A"}},{"$f":"IFERROR(\nIF(AO149=\"Residential Cistern\",INDEX(Lookup!$I$97:$I$365,MATCH(TRIM(CONCATENATE(AO149,IF(V149<400,0,IF(V149>4200,4201,ROUNDDOWN(V149,-2))))),Lookup!$F$97:$F$365,0)),\nIF(AO149=\"Sidewalk/Trail Compost-Amended Strip\",ROUND(AQ149/(V149/H151),1) &\" ft wide x \"& ROUND(V149/H151,0)&\" ft long\",\nIF(OR(AO149=\"Rainwater Harvesting - Category 1\",AO149=\"Rainwater Harvesting - Category 4\"),\" required minimum live storage\",\nIF(AO149=\"Water Quality BMP in lieu of NIB\",\"See Plan\",\nIF(AND(V151=\"\",V153=\"\",V155=\"\"),\"\",TRIM(V153&\" \"&AP153&\" \"&V151&\" \"&AP151&\" \"&V155&\" \"&AP155)))))),\"\")","v":""}]
[]
[null,{"$f":"IFERROR(\nIF(AO149=\"Permeable Pavement Facility\",\"Facility Area (sf)\",\nIF(AO149=\"Vegetated Roof System\",\"Vegetated Area (sf)\",\nIF(AO149=\"Sidewalk/Trail Compost-Amended Strip\",\"Sidewalk/Trail Width (ft)\",\nIF(OR(AO149=\"Rainwater Harvesting - Category 1\",AO149=\"Rainwater Harvesting - Category 4\"),\"Live Storage Volume (gal)\",\n\"\")))),\"\")","v":""},null,null,null,null,null,null,null,null,null,null,null,{"$f":"IFERROR(INDEX(Lookup!$C$70:$C$94,MATCH(AO149,Lookup!$A$70:$A$94,0)),\"\")","v":""},null,null,null,null,null,null,null,null,null,null,null,null,null,null,{"$f":"IFERROR(TEXT(AS149,\"#,##0\")&\" gal managed/year\",IFERROR(IF(AP149=0,\"Infiltration rate too low.\",\"\"),\"\"))","v":""},null,null,null,null,null,null,null,null,null,null,null,{"$f":"TRIM(SUBSTITUTE(SUBSTITUTE(SUBSTITUTE(AO149,\" \",\"\"),\"-\",\"\"),\"/\",\"\")&\"List1\")","v":{"$error":"#N/A"}},{"$f":"IFERROR(INDEX(Lookup!$G$70:$G$94,MATCH(AO149,Lookup!$A$70:$A$94,0)),\"\")","v":""}]
[]
[null,{"$f":"IFERROR(\nIF(OR(AO149=\"Permeable Pavement Facility\",AO149=\"Vegetated Roof System\"),\"Minimum Facility Area \"&TEXT((AP149*V149),\"#,###\")&\" sf\",\nIF(OR(AO149=\"Rainwater Harvesting - Category 1\",AO149=\"Rainwater Harvesting - Category 4\"),\"Continuous runoff modeling required by\",\n\"\")),\"\")","v":""},null,null,null,null,null,null,null,null,null,null,null,{"$f":"IFERROR(INDEX(Lookup!$D$70:$D$94,MATCH(AO149,Lookup!$A$70:$A$94,0)),\"\")","v":""},null,null,null,null,null,null,null,null,null,null,null,null,null,null,{"$f":"IFERROR(IF(AO149=\"Sidewalk/Trail Compost-Amended Strip\",ROUND(AQ149/(V149/H151),1) &\" ft wide compost-amended strip\",\nIF(OR(AO149=\"Infiltrating Soil Cell Bioretention with Tree\",AO149=\"Non-Infiltrating Soil Cell Bioretention with Tree\"),\"BMP size excludes tree planting area\",\nIF(AO149=\"Residential Cistern\",IF(AQ149=-999,\"\",IF(V149<800,3,IF(V149<1300,4,5)))&\" ft live storage\",\n\n\"\"))),\"\")","v":""},null,null,null,null,null,null,null,null,null,null,null,{"$f":"TRIM(SUBSTITUTE(SUBSTITUTE(SUBSTITUTE(AO149,\" \",\"\"),\"-\",\"\"),\"/\",\"\")&\"List2\")","v":{"$error":"#N/A"}},{"$f":"IFERROR(INDEX(Lookup!$H$70:$H$94,MATCH(AO149,Lookup!$A$70:$A$94,0)),\"\")","v":""}]
[]
[null,{"$f":"IFERROR(IF(OR(AO149=\"Rainwater Harvesting - Category 1\",AO149=\"Rainwater Harvesting - Category 4\"),\"professional engineer.\",\n\"\"),\"\")","v":""},null,null,null,null,null,null,null,null,null,null,null,{"$f":"IFERROR(INDEX(Lookup!$E$70:$E$94,MATCH(AO149,Lookup!$A$70:$A$94,0)),\"\")","v":""},null,null,null,null,null,null,null,null,null,null,null,null,null,null,{"$f":"IFERROR(IF(AO149=\"Sidewalk/Trail Compost-Amended Strip\",IF(AND(AC153=\"\",H151<>\"\"),\"\",\"along full \"& ROUND(V149/H151,0) &\" ft trail/sidewalk\"),\"\"),\"\")","v":""},null,null,null,null,null,null,null,null,null,null,null,{"$f":"TRIM(SUBSTITUTE(SUBSTITUTE(SUBSTITUTE(AO149,\" \",\"\"),\"-\",\"\"),\"/\",\"\")&\"List3\")","v":{"$error":"#N/A"}},{"$f":"IFERROR(INDEX(Lookup!$H$70:$H$94,MATCH(AO151,Lookup!$A$70:$A$94,0)),\"\")","v":""},{"$f":"IF(OR(AO149=\"Infiltrating Soil Cell Bioretention with Tree\",AO149=\"Non-Infiltrating Soil Cell Bioretention with Tree\"),\"min footprint to meet soil volume\",\"\")","v":{"$error":"#N/A"}},{"$f":"IF(OR(AO149=\"Infiltrating Soil Cell Bioretention with Tree\",AO149=\"Non-Infiltrating Soil Cell Bioretention with Tree\"),\"min soil volume\",\"\")","v":{"$error":"#N/A"}}]
[]
[null,null,null,null,null,null,null,null,null,null,null,null,null,{"$f":"IFERROR(INDEX(Lookup!$F$70:$F$94,MATCH(AO149,Lookup!$A$70:$A$94,0)),\"\")","v":""},null,null,null,null,null,null,null,null,null,null,null,null,null,null,null,null,null,null,null,null,null,null,null,null,null,null,{"$f":"TRIM(SUBSTITUTE(SUBSTITUTE(SUBSTITUTE(AO149,\" \",\"\"),\"-\",\"\"),\"/\",\"\")&\"List4\")","v":{"$error":"#N/A"}},null,{"$f":"IF(AO149=\"Infiltrating Soil Cell Bioretention with Tree\",AR157/(V157/12),\nIF(AO149=\"Non-Infiltrating Soil Cell Bioretention with Tree\",AR157/(V155/12),\"\"))","v":{"$error":"#N/A"}},{"$f":"IF(AO149=\"Infiltrating Soil Cell Bioretention with Tree\",_xlfn.XLOOKUP(V155,InfiltratingSoilCellBioretentionwithTreeList3,Lookup!$U$51:$U$55),\nIF(AO149=\"Non-Infiltrating Soil Cell Bioretention with Tree\",_xlfn.XLOOKUP(V153,NonInfiltratingSoilCellBioretentionwithTreeList2,Lookup!$U$51:$U$55,\"\")))","v":{"$error":"#N/A"}}]
[null,null,null,null,null,null,null,null,null,null,null,null,null," ",null,null,null,null,null,null," "]
[null,{"$f":"IFERROR(IF(INDEX($K$7:$K$46,MATCH(AN159,$AO$7:$AO$46,0))=\"\",\"\",INDEX($K$7:$K$46,MATCH(AN159,$AO$7:$AO$46,0))),\"\")","v":""},null,null,null,null,null,null,null,null,null,null,null,{"$f":"IF(B159=\"\",\"\",IF(AO159=\"Vegetated Roof System\",\"Roof Area\",\"Contributing Area (sf)\"))","v":""},null,null,null,null,null,null,null,{"$f":"IF(B159=\"\",\"\",SUMIF($AO$7:$AO$46,AN159,$F$7:$I$46))","v":""},null,null,null,null,null,null,{"$f":"IFERROR(IF(AO159=\"Water Quality BMP in lieu of NIB\",\"Submit sizing documentation separately.\",\nIF(AP159=-999,\"Configuration not allowed.\",IF(AP159=0,\"Configuration not allowed.\",IF(AO159=\"Trees\",\"As many as feasible.\",\nIF(AP159=\"equation\",TEXT(AQ159,\"#,##0\")&\" \"&AR159,\nTEXT(IF(OR(AO159=\"Permeable Pavement Facility\",AO159=\"Vegetated Roof System\",AO159=\"Rainwater Harvesting - Category 1\", AO159=\"Rainwater Harvesting - Category 4\"),H161,\nIF(AO159=\"Sidewalk/Trail Compost-Amended Strip\",MAX(V159/H161,AP159*V159),\nIF(OR(AO159=\"Infiltrating Soil Cell Bioretention with Tree\",AO159=\"Non-Infiltrating Soil Cell Bioretention with Tree\"),MAX(AP159*V159,AQ167),\nAP159*V159))),\"#,##0\")&\" \"&AR159))))),\"\")","v":""},null,null,null,null,null,null,null,null,null,null,12,{"$f":"INDEX($AP$7:$AP$46,MATCH(AN159,$AO$7:$AO$46,0))","v":{"$error":"#N/A"}},{"$f":"IF(AO159=\"Trees\", INDEX(Lookup!$G$97:$G$365,MATCH(TRIM(CONCATENATE(AO159,V161)),Lookup!$F$97:$F$365,0)),\nIF(AO159=\"Residential Cistern\", INDEX(Lookup!$G$97:$G$365,MATCH(TRIM(CONCATENATE(AO159,IF(V159<400,0,IF(V159>4200,4201,ROUNDDOWN(V159,-2))))),Lookup!$F$97:$F$365,0)),\nIF(AO159=\"Sidewalk/Trail Compost-Amended Strip\", IF(H161=\"\",NA(),IF(H161<10,Lookup!$G$99,Lookup!$G$98)),\nIF(AND(AO159=\"Non-Infiltrating Bioretention\",V163=\"Sloped sides\",V161=6),IF(V159<=2000,0.025,0.028),\nINDEX(Lookup!$G$97:$G$365,MATCH(TRIM(CONCATENATE(AO159,V161,V163,V165,V167)),Lookup!$F$97:$F$365,0))))))","v":{"$error":"#N/A"}},{"$f":"IF(AP159<=0,NA(),IF(OR(AO159=\"Permeable Pavement Facility\",AO159=\"Vegetated Roof System\",AO159=\"Rainwater Harvesting - Category 1\",AO159=\"Rainwater Harvesting - Category 4\"),H161,\nIF(AO159=\"Sidewalk/Trail Compost-Amended Strip\",MAX(V159/H161,AP159*V159),\nIF(OR(AO159=\"Infiltrating Soil Cell Bioretention with Tree\",AO159=\"Non-Infiltrating Soil Cell Bioretention with Tree\"),MAX(AP159*V159,AQ167),\nAP159*V159))))","v":{"$error":"#N/A"}},{"$f":"IF(AO159=\"Residential Cistern\",\n\"sf\",INDEX(Lookup!$I$97:$I$365,MATCH(TRIM(CONCATENATE(AO159,V161,V163,V165,V167)),Lookup!$F$97:$F$365,0)))","v":{"$error":"#N/A"}},{"$f":"IF(AO159=\"Trees\", INDEX(Lookup!$H$97:$H$365,MATCH(TRIM(CONCATENATE(AO159,V161)),Lookup!$F$97:$F$365,0))*V163,\nIF(AO159=\"Residential Cistern\", INDEX(Lookup!$H$97:$H$365,MATCH(TRIM(CONCATENATE(AO159,IF(V159<400,0,IF(V159>4200,4201,ROUNDDOWN(V159,-2))))),Lookup!$F$97:$F$365,0))*V159,\nIF(AND(AO159=\"Sidewalk/Trail Compost-Amended Strip\",OR(H161=\"\",InfRate=0)),NA(),\nINDEX(Lookup!$H$97:$H$365,MATCH(TRIM(CONCATENATE(AO159,V161,V163,V165,V167)),Lookup!$F$97:$F$365,0))*V159)))*7.48052\n*IF(OR(AO159=\"Permeable Pavement Facility\",AO159=\"Vegetated Roof System\"),MIN(1,H161/(AP159*V159)),1)\n+IF(AO159=\"Permeable Pavement Facility\",H161*2.1*7.48052,1)","v":{"$error":"#N/A"}},{"$f":"IFERROR(\nIF(AO159=\"Residential Cistern\",INDEX(Lookup!$I$97:$I$365,MATCH(TRIM(CONCATENATE(AO159,IF(V159<400,0,IF(V159>4200,4201,ROUNDDOWN(V159,-2))))),Lookup!$F$97:$F$365,0)),\nIF(AO159=\"Sidewalk/Trail Compost-Amended Strip\",ROUND(AQ159/(V159/H161),1) &\" ft wide x \"& ROUND(V159/H161,0)&\" ft long\",\nIF(OR(AO159=\"Rainwater Harvesting - Category 1\",AO159=\"Rainwater Harvesting - Category 4\"),\" required minimum live storage\",\nIF(AO159=\"Water Quality BMP in lieu of NIB\",\"See Plan\",\nIF(AND(V161=\"\",V163=\"\",V165=\"\"),\"\",TRIM(V163&\" \"&AP163&\" \"&V161&\" \"&AP161&\" \"&V165&\" \"&AP165)))))),\"\")","v":""}]
[]
[null,{"$f":"IFERROR(\nIF(AO159=\"Permeable Pavement Facility\",\"Facility Area (sf)\",\nIF(AO159=\"Vegetated Roof System\",\"Vegetated Area (sf)\",\nIF(AO159=\"Sidewalk/Trail Compost-Amended Strip\",\"Sidewalk/Trail Width (ft)\",\nIF(OR(AO159=\"Rainwater Harvesting - Category 1\",AO159=\"Rainwater Harvesting - Category 4\"),\"Live Storage Volume (gal)\",\n\"\")))),\"\")","v":""},null,null,null,null,null,null,null,null,null,null,null,{"$f":"IFERROR(INDEX(Lookup!$C$70:$C$94,MATCH(AO159,Lookup!$A$70:$A$94,0)),\"\")","v":""},null,null,null,null,null,null,null,null,null,null,null,null,null,null,{"$f":"IFERROR(TEXT(AS159,\"#,##0\")&\" gal managed/year\",IFERROR(IF(AP159=0,\"Infiltration rate too low.\",\"\"),\"\"))","v":""},null,null,null,null,null,null,null,null,null,null,null,{"$f":"TRIM(SUBSTITUTE(SUBSTITUTE(SUBSTITUTE(AO159,\" \",\"\"),\"-\",\"\"),\"/\",\"\")&\"List1\")","v":{"$error":"#N/A"}},{"$f":"IFERROR(INDEX(Lookup!$G$70:$G$94,MATCH(AO159,Lookup!$A$70:$A$94,0)),\"\")","v":""}]
[]
[null,{"$f":"IFERROR(\nIF(OR(AO159=\"Permeable Pavement Facility\",AO159=\"Vegetated Roof System\"),\"Minimum Facility Area \"&TEXT((AP159*V159),\"#,###\")&\" sf\",\nIF(OR(AO159=\"Rainwater Harvesting - Category 1\",AO159=\"Rainwater Harvesting - Category 4\"),\"Continuous runoff modeling required by\",\n\"\")),\"\")","v":""},null,null,null,null,null,null,null,null,null,null,null,{"$f":"IFERROR(INDEX(Lookup!$D$70:$D$94,MATCH(AO159,Lookup!$A$70:$A$94,0)),\"\")","v":""},null,null,null,null,null,null,null,null,null,null,null,null,null,null,{"$f":"IFERROR(IF(AO159=\"Sidewalk/Trail Compost-Amended Strip\",ROUND(AQ159/(V159/H161),1) &\" ft wide compost-amended strip\",\nIF(OR(AO159=\"Infiltrating Soil Cell Bioretention with Tree\",AO159=\"Non-Infiltrating Soil Cell Bioretention with Tree\"),\"BMP size excludes tree planting area\",\nIF(AO159=\"Residential Cistern\",IF(AQ159=-999,\"\",IF(V159<800,3,IF(V159<1300,4,5)))&\" ft live storage\",\n\n\"\"))),\"\")","v":""},null,null,null,null,null,null,null,null,null,null,null,{"$f":"TRIM(SUBSTITUTE(SUBSTITUTE(SUBSTITUTE(AO159,\" \",\"\"),\"-\",\"\"),\"/\",\"\")&\"List2\")","v":{"$error":"#N/A"}},{"$f":"IFERROR(INDEX(Lookup!$H$70:$H$94,MATCH(AO159,Lookup!$A$70:$A$94,0)),\"\")","v":""}]
[]
[null,{"$f":"IFERROR(IF(OR(AO159=\"Rainwater Harvesting - Category 1\",AO159=\"Rainwater Harvesting - Category 4\"),\"professional engineer.\",\n\"\"),\"\")","v":""},null,null,null,null,null,null,null,null,null,null,null,{"$f":"IFERROR(INDEX(Lookup!$E$70:$E$94,MATCH(AO159,Lookup!$A$70:$A$94,0)),\"\")","v":""},null,null,null,null,null,null,null,null,null,null,null,null,null,null,{"$f":"IFERROR(IF(AO159=\"Sidewalk/Trail Compost-Amended Strip\",IF(AND(AC163=\"\",H161<>\"\"),\"\",\"along full \"& ROUND(V159/H161,0) &\" ft trail/sidewalk\"),\"\"),\"\")","v":""},null,null,null,null,null,null,null,null,null,null,null,{"$f":"TRIM(SUBSTITUTE(SUBSTITUTE(SUBSTITUTE(AO159,\" \",\"\"),\"-\",\"\"),\"/\",\"\")&\"List3\")","v":{"$error":"#N/A"}},{"$f":"IFERROR(INDEX(Lookup!$H$70:$H$94,MATCH(AO161,Lookup!$A$70:$A$94,0)),\"\")","v":""},{"$f":"IF(OR(AO159=\"Infiltrating Soil Cell Bioretention with Tree\",AO159=\"Non-Infiltrating Soil Cell Bioretention with Tree\"),\"min footprint to meet soil volume\",\"\")","v":{"$error":"#N/A"}},{"$f":"IF(OR(AO159=\"Infiltrating Soil Cell Bioretention with Tree\",AO159=\"Non-Infiltrating Soil Cell Bioretention with Tree\"),\"min soil volume\",\"\")","v":{"$error":"#N/A"}}]
[]
[null,null,null,null,null,null,null,null,null,null,null,null,null,{"$f":"IFERROR(INDEX(Lookup!$F$70:$F$94,MATCH(AO159,Lookup!$A$70:$A$94,0)),\"\")","v":""},null,null,null,null,null,null,null,null,null,null,null,null,null,null,null,null,null,null,null,null,null,null,null,null,null,null,{"$f":"TRIM(SUBSTITUTE(SUBSTITUTE(SUBSTITUTE(AO159,\" \",\"\"),\"-\",\"\"),\"/\",\"\")&\"List4\")","v":{"$error":"#N/A"}},null,{"$f":"IF(AO159=\"Infiltrating Soil Cell Bioretention with Tree\",AR167/(V167/12),\nIF(AO159=\"Non-Infiltrating Soil Cell Bioretention with Tree\",AR167/(V165/12),\"\"))","v":{"$error":"#N/A"}},{"$f":"IF(AO159=\"Infiltrating Soil Cell Bioretention with Tree\",_xlfn.XLOOKUP(V165,InfiltratingSoilCellBioretentionwithTreeList3,Lookup!$U$51:$U$55),\nIF(AO159=\"Non-Infiltrating Soil Cell Bioretention with Tree\",_xlfn.XLOOKUP(V163,NonInfiltratingSoilCellBioretentionwithTreeList2,Lookup!$U$51:$U$55,\"\")))","v":{"$error":"#N/A"}}]
[null,null,null,null,null,null,null,null,null,null,null,null,null," "]
[null,{"$f":"IFERROR(IF(INDEX($K$7:$K$46,MATCH(AN169,$AO$7:$AO$46,0))=\"\",\"\",INDEX($K$7:$K$46,MATCH(AN169,$AO$7:$AO$46,0))),\"\")","v":""},null,null,null,null,null,null,null,null,null,null,null,{"$f":"IF(B169=\"\",\"\",IF(AO169=\"Vegetated Roof System\",\"Roof Area\",\"Contributing Area (sf)\"))","v":""},null,null,null,null,null,null,null,{"$f":"IF(B169=\"\",\"\",SUMIF($AO$7:$AO$46,AN169,$F$7:$I$46))","v":""},null,null,null,null,null,null,{"$f":"IFERROR(IF(AO169=\"Water Quality BMP in lieu of NIB\",\"Submit sizing documentation separately.\",\nIF(AP169=-999,\"Configuration not allowed.\",IF(AP169=0,\"Configuration not allowed.\",IF(AO169=\"Trees\",\"As many as feasible.\",\nIF(AP169=\"equation\",TEXT(AQ169,\"#,##0\")&\" \"&AR169,\nTEXT(IF(OR(AO169=\"Permeable Pavement Facility\",AO169=\"Vegetated Roof System\",AO169=\"Rainwater Harvesting - Category 1\", AO169=\"Rainwater Harvesting - Category 4\"),H171,\nIF(AO169=\"Sidewalk/Trail Compost-Amended Strip\",MAX(V169/H171,AP169*V169),\nIF(OR(AO169=\"Infiltrating Soil Cell Bioretention with Tree\",AO169=\"Non-Infiltrating Soil Cell Bioretention with Tree\"),MAX(AP169*V169,AQ177),\nAP169*V169))),\"#,##0\")&\" \"&AR169))))),\"\")","v":""},null,null,null,null,null,null,null,null,null,null,13,{"$f":"INDEX($AP$7:$AP$46,MATCH(AN169,$AO$7:$AO$46,0))","v":{"$error":"#N/A"}},{"$f":"IF(AO169=\"Trees\", INDEX(Lookup!$G$97:$G$365,MATCH(TRIM(CONCATENATE(AO169,V171)),Lookup!$F$97:$F$365,0)),\nIF(AO169=\"Residential Cistern\", INDEX(Lookup!$G$97:$G$365,MATCH(TRIM(CONCATENATE(AO169,IF(V169<400,0,IF(V169>4200,4201,ROUNDDOWN(V169,-2))))),Lookup!$F$97:$F$365,0)),\nIF(AO169=\"Sidewalk/Trail Compost-Amended Strip\", IF(H171=\"\",NA(),IF(H171<10,Lookup!$G$99,Lookup!$G$98)),\nIF(AND(AO169=\"Non-Infiltrating Bioretention\",V173=\"Sloped sides\",V171=6),IF(V169<=2000,0.025,0.028),\nINDEX(Lookup!$G$97:$G$365,MATCH(TRIM(CONCATENATE(AO169,V171,V173,V175,V177)),Lookup!$F$97:$F$365,0))))))","v":{"$error":"#N/A"}},{"$f":"IF(AP169<=0,NA(),IF(OR(AO169=\"Permeable Pavement Facility\",AO169=\"Vegetated Roof System\",AO169=\"Rainwater Harvesting - Category 1\",AO169=\"Rainwater Harvesting - Category 4\"),H171,\nIF(AO169=\"Sidewalk/Trail Compost-Amended Strip\",MAX(V169/H171,AP169*V169),\nIF(OR(AO169=\"Infiltrating Soil Cell Bioretention with Tree\",AO169=\"Non-Infiltrating Soil Cell Bioretention with Tree\"),MAX(AP169*V169,AQ177),\nAP169*V169))))","v":{"$error":"#N/A"}},{"$f":"IF(AO169=\"Residential Cistern\",\n\"sf\",INDEX(Lookup!$I$97:$I$365,MATCH(TRIM(CONCATENATE(AO169,V171,V173,V175,V177)),Lookup!$F$97:$F$365,0)))","v":{"$error":"#N/A"}},{"$f":"IF(AO169=\"Trees\", INDEX(Lookup!$H$97:$H$365,MATCH(TRIM(CONCATENATE(AO169,V171)),Lookup!$F$97:$F$365,0))*V173,\nIF(AO169=\"Residential Cistern\", INDEX(Lookup!$H$97:$H$365,MATCH(TRIM(CONCATENATE(AO169,IF(V169<400,0,IF(V169>4200,4201,ROUNDDOWN(V169,-2))))),Lookup!$F$97:$F$365,0))*V169,\nIF(AND(AO169=\"Sidewalk/Trail Compost-Amended Strip\",OR(H171=\"\",InfRate=0)),NA(),\nINDEX(Lookup!$H$97:$H$365,MATCH(TRIM(CONCATENATE(AO169,V171,V173,V175,V177)),Lookup!$F$97:$F$365,0))*V169)))*7.48052\n*IF(OR(AO169=\"Permeable Pavement Facility\",AO169=\"Vegetated Roof System\"),MIN(1,H171/(AP169*V169)),1)\n+IF(AO169=\"Permeable Pavement Facility\",H171*2.1*7.48052,1)","v":{"$error":"#N/A"}},{"$f":"IFERROR(\nIF(AO169=\"Residential Cistern\",INDEX(Lookup!$I$97:$I$365,MATCH(TRIM(CONCATENATE(AO169,IF(V169<400,0,IF(V169>4200,4201,ROUNDDOWN(V169,-2))))),Lookup!$F$97:$F$365,0)),\nIF(AO169=\"Sidewalk/Trail Compost-Amended Strip\",ROUND(AQ169/(V169/H171),1) &\" ft wide x \"& ROUND(V169/H171,0)&\" ft long\",\nIF(OR(AO169=\"Rainwater Harvesting - Category 1\",AO169=\"Rainwater Harvesting - Category 4\"),\" required minimum live storage\",\nIF(AO169=\"Water Quality BMP in lieu of NIB\",\"See Plan\",\nIF(AND(V171=\"\",V173=\"\",V175=\"\"),\"\",TRIM(V173&\" \"&AP173&\" \"&V171&\" \"&AP171&\" \"&V175&\" \"&AP175)))))),\"\")","v":""}]
[]
[null,{"$f":"IFERROR(\nIF(AO169=\"Permeable Pavement Facility\",\"Facility Area (sf)\",\nIF(AO169=\"Vegetated Roof System\",\"Vegetated Area (sf)\",\nIF(AO169=\"Sidewalk/Trail Compost-Amended Strip\",\"Sidewalk/Trail Width (ft)\",\nIF(OR(AO169=\"Rainwater Harvesting - Category 1\",AO169=\"Rainwater Harvesting - Category 4\"),\"Live Storage Volume (gal)\",\n\"\")))),\"\")","v":""},null,null,null,null,null,null,null,null,null,null,null,{"$f":"IFERROR(INDEX(Lookup!$C$70:$C$94,MATCH(AO169,Lookup!$A$70:$A$94,0)),\"\")","v":""},null,null,null,null,null,null,null,null,null,null,null,null,null,null,{"$f":"IFERROR(TEXT(AS169,\"#,##0\")&\" gal managed/year\",IFERROR(IF(AP169=0,\"Infiltration rate too low.\",\"\"),\"\"))","v":""},null,null,null,null,null,null,null,null,null,null,null,{"$f":"TRIM(SUBSTITUTE(SUBSTITUTE(SUBSTITUTE(AO169,\" \",\"\"),\"-\",\"\"),\"/\",\"\")&\"List1\")","v":{"$error":"#N/A"}},{"$f":"IFERROR(INDEX(Lookup!$G$70:$G$94,MATCH(AO169,Lookup!$A$70:$A$94,0)),\"\")","v":""}]
[]
[null,{"$f":"IFERROR(\nIF(OR(AO169=\"Permeable Pavement Facility\",AO169=\"Vegetated Roof System\"),\"Minimum Facility Area \"&TEXT((AP169*V169),\"#,###\")&\" sf\",\nIF(OR(AO169=\"Rainwater Harvesting - Category 1\",AO169=\"Rainwater Harvesting - Category 4\"),\"Continuous runoff modeling required by\",\n\"\")),\"\")","v":""},null,null,null,null,null,null,null,null,null,null,null,{"$f":"IFERROR(INDEX(Lookup!$D$70:$D$94,MATCH(AO169,Lookup!$A$70:$A$94,0)),\"\")","v":""},null,null,null,null,null,null,null,null,null,null,null,null,null,null,{"$f":"IFERROR(IF(AO169=\"Sidewalk/Trail Compost-Amended Strip\",ROUND(AQ169/(V169/H171),1) &\" ft wide compost-amended strip\",\nIF(OR(AO169=\"Infiltrating Soil Cell Bioretention with Tree\",AO169=\"Non-Infiltrating Soil Cell Bioretention with Tree\"),\"BMP size excludes tree planting area\",\nIF(AO169=\"Residential Cistern\",IF(AQ169=-999,\"\",IF(V169<800,3,IF(V169<1300,4,5)))&\" ft live storage\",\n\n\"\"))),\"\")","v":""},null,null,null,null,null,null,null,null,null,null,null,{"$f":"TRIM(SUBSTITUTE(SUBSTITUTE(SUBSTITUTE(AO169,\" \",\"\"),\"-\",\"\"),\"/\",\"\")&\"List2\")","v":{"$error":"#N/A"}},{"$f":"IFERROR(INDEX(Lookup!$H$70:$H$94,MATCH(AO169,Lookup!$A$70:$A$94,0)),\"\")","v":""}]
[]
[null,{"$f":"IFERROR(IF(OR(AO169=\"Rainwater Harvesting - Category 1\",AO169=\"Rainwater Harvesting - Category 4\"),\"professional engineer.\",\n\"\"),\"\")","v":""},null,null,null,null,null,null,null,null,null,null,null,{"$f":"IFERROR(INDEX(Lookup!$E$70:$E$94,MATCH(AO169,Lookup!$A$70:$A$94,0)),\"\")","v":""},null,null,null,null,null,null,null,null,null,null,null,null,null,null,{"$f":"IFERROR(IF(AO169=\"Sidewalk/Trail Compost-Amended Strip\",IF(AND(AC173=\"\",H171<>\"\"),\"\",\"along full \"& ROUND(V169/H171,0) &\" ft trail/sidewalk\"),\"\"),\"\")","v":""},null,null,null,null,null,null,null,null,null,null,null,{"$f":"TRIM(SUBSTITUTE(SUBSTITUTE(SUBSTITUTE(AO169,\" \",\"\"),\"-\",\"\"),\"/\",\"\")&\"List3\")","v":{"$error":"#N/A"}},{"$f":"IFERROR(INDEX(Lookup!$H$70:$H$94,MATCH(AO171,Lookup!$A$70:$A$94,0)),\"\")","v":""},{"$f":"IF(OR(AO169=\"Infiltrating Soil Cell Bioretention with Tree\",AO169=\"Non-Infiltrating Soil Cell Bioretention with Tree\"),\"min footprint to meet soil volume\",\"\")","v":{"$error":"#N/A"}},{"$f":"IF(OR(AO169=\"Infiltrating Soil Cell Bioretention with Tree\",AO169=\"Non-Infiltrating Soil Cell Bioretention with Tree\"),\"min soil volume\",\"\")","v":{"$error":"#N/A"}}]
[]
[null,null,null,null,null,null,null,null,null,null,null,null,null,{"$f":"IFERROR(INDEX(Lookup!$F$70:$F$94,MATCH(AO169,Lookup!$A$70:$A$94,0)),\"\")","v":""},null,null,null,null,null,null,null,null,null,null,null,null,null,null,null,null,null,null,null,null,null,null,null,null,null,null,{"$f":"TRIM(SUBSTITUTE(SUBSTITUTE(SUBSTITUTE(AO169,\" \",\"\"),\"-\",\"\"),\"/\",\"\")&\"List4\")","v":{"$error":"#N/A"}},null,{"$f":"IF(AO169=\"Infiltrating Soil Cell Bioretention with Tree\",AR177/(V177/12),\nIF(AO169=\"Non-Infiltrating Soil Cell Bioretention with Tree\",AR177/(V175/12),\"\"))","v":{"$error":"#N/A"}},{"$f":"IF(AO169=\"Infiltrating Soil Cell Bioretention with Tree\",_xlfn.XLOOKUP(V175,InfiltratingSoilCellBioretentionwithTreeList3,Lookup!$U$51:$U$55),\nIF(AO169=\"Non-Infiltrating Soil Cell Bioretention with Tree\",_xlfn.XLOOKUP(V173,NonInfiltratingSoilCellBioretentionwithTreeList2,Lookup!$U$51:$U$55,\"\")))","v":{"$error":"#N/A"}}]
[null,null,null,null,null,null,null,null,null,null,null,null,null," "]
[null,{"$f":"IFERROR(IF(INDEX($K$7:$K$46,MATCH(AN179,$AO$7:$AO$46,0))=\"\",\"\",INDEX($K$7:$K$46,MATCH(AN179,$AO$7:$AO$46,0))),\"\")","v":""},null,null,null,null,null,null,null,null,null,null,null,{"$f":"IF(B179=\"\",\"\",IF(AO179=\"Vegetated Roof System\",\"Roof Area\",\"Contributing Area (sf)\"))","v":""},null,null,null,null,null,null,null,{"$f":"IF(B179=\"\",\"\",SUMIF($AO$7:$AO$46,AN179,$F$7:$I$46))","v":""},null,null,null,null,null,null,{"$f":"IFERROR(IF(AO179=\"Water Quality BMP in lieu of NIB\",\"Submit sizing documentation separately.\",\nIF(AP179=-999,\"Configuration not allowed.\",IF(AP179=0,\"Configuration not allowed.\",IF(AO179=\"Trees\",\"As many as feasible.\",\nIF(AP179=\"equation\",TEXT(AQ179,\"#,##0\")&\" \"&AR179,\nTEXT(IF(OR(AO179=\"Permeable Pavement Facility\",AO179=\"Vegetated Roof System\",AO179=\"Rainwater Harvesting - Category 1\", AO179=\"Rainwater Harvesting - Category 4\"),H181,\nIF(AO179=\"Sidewalk/Trail Compost-Amended Strip\",MAX(V179/H181,AP179*V179),\nIF(OR(AO179=\"Infiltrating Soil Cell Bioretention with Tree\",AO179=\"Non-Infiltrating Soil Cell Bioretention with Tree\"),MAX(AP179*V179,AQ187),\nAP179*V179))),\"#,##0\")&\" \"&AR179))))),\"\")","v":""},null,null,null,null,null,null,null,null,null,null,14,{"$f":"INDEX($AP$7:$AP$46,MATCH(AN179,$AO$7:$AO$46,0))","v":{"$error":"#N/A"}},{"$f":"IF(AO179=\"Trees\", INDEX(Lookup!$G$97:$G$365,MATCH(TRIM(CONCATENATE(AO179,V181)),Lookup!$F$97:$F$365,0)),\nIF(AO179=\"Residential Cistern\", INDEX(Lookup!$G$97:$G$365,MATCH(TRIM(CONCATENATE(AO179,IF(V179<400,0,IF(V179>4200,4201,ROUNDDOWN(V179,-2))))),Lookup!$F$97:$F$365,0)),\nIF(AO179=\"Sidewalk/Trail Compost-Amended Strip\", IF(H181=\"\",NA(),IF(H181<10,Lookup!$G$99,Lookup!$G$98)),\nIF(AND(AO179=\"Non-Infiltrating Bioretention\",V183=\"Sloped sides\",V181=6),IF(V179<=2000,0.025,0.028),\nINDEX(Lookup!$G$97:$G$365,MATCH(TRIM(CONCATENATE(AO179,V181,V183,V185,V187)),Lookup!$F$97:$F$365,0))))))","v":{"$error":"#N/A"}},{"$f":"IF(AP179<=0,NA(),IF(OR(AO179=\"Permeable Pavement Facility\",AO179=\"Vegetated Roof System\",AO179=\"Rainwater Harvesting - Category 1\",AO179=\"Rainwater Harvesting - Category 4\"),H181,\nIF(AO179=\"Sidewalk/Trail Compost-Amended Strip\",MAX(V179/H181,AP179*V179),\nIF(OR(AO179=\"Infiltrating Soil Cell Bioretention with Tree\",AO179=\"Non-Infiltrating Soil Cell Bioretention with Tree\"),MAX(AP179*V179,AQ187),\nAP179*V179))))","v":{"$error":"#N/A"}},{"$f":"IF(AO179=\"Residential Cistern\",\n\"sf\",INDEX(Lookup!$I$97:$I$365,MATCH(TRIM(CONCATENATE(AO179,V181,V183,V185,V187)),Lookup!$F$97:$F$365,0)))","v":{"$error":"#N/A"}},{"$f":"IF(AO179=\"Trees\", INDEX(Lookup!$H$97:$H$365,MATCH(TRIM(CONCATENATE(AO179,V181)),Lookup!$F$97:$F$365,0))*V183,\nIF(AO179=\"Residential Cistern\", INDEX(Lookup!$H$97:$H$365,MATCH(TRIM(CONCATENATE(AO179,IF(V179<400,0,IF(V179>4200,4201,ROUNDDOWN(V179,-2))))),Lookup!$F$97:$F$365,0))*V179,\nIF(AND(AO179=\"Sidewalk/Trail Compost-Amended Strip\",OR(H181=\"\",InfRate=0)),NA(),\nINDEX(Lookup!$H$97:$H$365,MATCH(TRIM(CONCATENATE(AO179,V181,V183,V185,V187)),Lookup!$F$97:$F$365,0))*V179)))*7.48052\n*IF(OR(AO179=\"Permeable Pavement Facility\",AO179=\"Vegetated Roof System\"),MIN(1,H181/(AP179*V179)),1)\n+IF(AO179=\"Permeable Pavement Facility\",H181*2.1*7.48052,1)","v":{"$error":"#N/A"}},{"$f":"IFERROR(\nIF(AO179=\"Residential Cistern\",INDEX(Lookup!$I$97:$I$365,MATCH(TRIM(CONCATENATE(AO179,IF(V179<400,0,IF(V179>4200,4201,ROUNDDOWN(V179,-2))))),Lookup!$F$97:$F$365,0)),\nIF(AO179=\"Sidewalk/Trail Compost-Amended Strip\",ROUND(AQ179/(V179/H181),1) &\" ft wide x \"& ROUND(V179/H181,0)&\" ft long\",\nIF(OR(AO179=\"Rainwater Harvesting - Category 1\",AO179=\"Rainwater Harvesting - Category 4\"),\" required minimum live storage\",\nIF(AO179=\"Water Quality BMP in lieu of NIB\",\"See Plan\",\nIF(AND(V181=\"\",V183=\"\",V185=\"\"),\"\",TRIM(V183&\" \"&AP183&\" \"&V181&\" \"&AP181&\" \"&V185&\" \"&AP185)))))),\"\")","v":""}]
[]
[null,{"$f":"IFERROR(\nIF(AO179=\"Permeable Pavement Facility\",\"Facility Area (sf)\",\nIF(AO179=\"Vegetated Roof System\",\"Vegetated Area (sf)\",\nIF(AO179=\"Sidewalk/Trail Compost-Amended Strip\",\"Sidewalk/Trail Width (ft)\",\nIF(OR(AO179=\"Rainwater Harvesting - Category 1\",AO179=\"Rainwater Harvesting - Category 4\"),\"Live Storage Volume (gal)\",\n\"\")))),\"\")","v":""},null,null,null,null,null,null,null,null,null,null,null,{"$f":"IFERROR(INDEX(Lookup!$C$70:$C$94,MATCH(AO179,Lookup!$A$70:$A$94,0)),\"\")","v":""},null,null,null,null,null,null,null,null,null,null,null,null,null,null,{"$f":"IFERROR(TEXT(AS179,\"#,##0\")&\" gal managed/year\",IFERROR(IF(AP179=0,\"Infiltration rate too low.\",\"\"),\"\"))","v":""},null,null,null,null,null,null,null,null,null,null,null,{"$f":"TRIM(SUBSTITUTE(SUBSTITUTE(SUBSTITUTE(AO179,\" \",\"\"),\"-\",\"\"),\"/\",\"\")&\"List1\")","v":{"$error":"#N/A"}},{"$f":"IFERROR(INDEX(Lookup!$G$70:$G$94,MATCH(AO179,Lookup!$A$70:$A$94,0)),\"\")","v":""}]
[]
[null,{"$f":"IFERROR(\nIF(OR(AO179=\"Permeable Pavement Facility\",AO179=\"Vegetated Roof System\"),\"Minimum Facility Area \"&TEXT((AP179*V179),\"#,###\")&\" sf\",\nIF(OR(AO179=\"Rainwater Harvesting - Category 1\",AO179=\"Rainwater Harvesting - Category 4\"),\"Continuous runoff modeling required by\",\n\"\")),\"\")","v":""},null,null,null,null,null,null,null,null,null,null,null,{"$f":"IFERROR(INDEX(Lookup!$D$70:$D$94,MATCH(AO179,Lookup!$A$70:$A$94,0)),\"\")","v":""},null,null,null,null,null,null,null,null,null,null,null,null,null,null,{"$f":"IFERROR(IF(AO179=\"Sidewalk/Trail Compost-Amended Strip\",ROUND(AQ179/(V179/H181),1) &\" ft wide compost-amended strip\",\nIF(OR(AO179=\"Infiltrating Soil Cell Bioretention with Tree\",AO179=\"Non-Infiltrating Soil Cell Bioretention with Tree\"),\"BMP size excludes tree planting area\",\nIF(AO179=\"Residential Cistern\",IF(AQ179=-999,\"\",IF(V179<800,3,IF(V179<1300,4,5)))&\" ft live storage\",\n\n\"\"))),\"\")","v":""},null,null,null,null,null,null,null,null,null,null,null,{"$f":"TRIM(SUBSTITUTE(SUBSTITUTE(SUBSTITUTE(AO179,\" \",\"\"),\"-\",\"\"),\"/\",\"\")&\"List2\")","v":{"$error":"#N/A"}},{"$f":"IFERROR(INDEX(Lookup!$H$70:$H$94,MATCH(AO179,Lookup!$A$70:$A$94,0)),\"\")","v":""}]
[]
[null,{"$f":"IFERROR(IF(OR(AO179=\"Rainwater Harvesting - Category 1\",AO179=\"Rainwater Harvesting - Category 4\"),\"professional engineer.\",\n\"\"),\"\")","v":""},null,null,null,null,null,null,null,null,null,null,null,{"$f":"IFERROR(INDEX(Lookup!$E$70:$E$94,MATCH(AO179,Lookup!$A$70:$A$94,0)),\"\")","v":""},null,null,null,null,null,null,null,null,null,null,null,null,null,null,{"$f":"IFERROR(IF(AO179=\"Sidewalk/Trail Compost-Amended Strip\",IF(AND(AC183=\"\",H181<>\"\"),\"\",\"along full \"& ROUND(V179/H181,0) &\" ft trail/sidewalk\"),\"\"),\"\")","v":""},null,null,null,null,null,null,null,null,null,null,null,{"$f":"TRIM(SUBSTITUTE(SUBSTITUTE(SUBSTITUTE(AO179,\" \",\"\"),\"-\",\"\"),\"/\",\"\")&\"List3\")","v":{"$error":"#N/A"}},{"$f":"IFERROR(INDEX(Lookup!$H$70:$H$94,MATCH(AO181,Lookup!$A$70:$A$94,0)),\"\")","v":""},{"$f":"IF(OR(AO179=\"Infiltrating Soil Cell Bioretention with Tree\",AO179=\"Non-Infiltrating Soil Cell Bioretention with Tree\"),\"min footprint to meet soil volume\",\"\")","v":{"$error":"#N/A"}},{"$f":"IF(OR(AO179=\"Infiltrating Soil Cell Bioretention with Tree\",AO179=\"Non-Infiltrating Soil Cell Bioretention with Tree\"),\"min soil volume\",\"\")","v":{"$error":"#N/A"}}]
[]
[null,null,null,null,null,null,null,null,null,null,null,null,null,{"$f":"IFERROR(INDEX(Lookup!$F$70:$F$94,MATCH(AO179,Lookup!$A$70:$A$94,0)),\"\")","v":""},null,null,null,null,null,null,null,null,null,null,null,null,null,null,null,null,null,null,null,null,null,null,null,null,null,null,{"$f":"TRIM(SUBSTITUTE(SUBSTITUTE(SUBSTITUTE(AO179,\" \",\"\"),\"-\",\"\"),\"/\",\"\")&\"List4\")","v":{"$error":"#N/A"}},null,{"$f":"IF(AO179=\"Infiltrating Soil Cell Bioretention with Tree\",AR187/(V187/12),\nIF(AO179=\"Non-Infiltrating Soil Cell Bioretention with Tree\",AR187/(V185/12),\"\"))","v":{"$error":"#N/A"}},{"$f":"IF(AO179=\"Infiltrating Soil Cell Bioretention with Tree\",_xlfn.XLOOKUP(V185,InfiltratingSoilCellBioretentionwithTreeList3,Lookup!$U$51:$U$55),\nIF(AO179=\"Non-Infiltrating Soil Cell Bioretention with Tree\",_xlfn.XLOOKUP(V183,NonInfiltratingSoilCellBioretentionwithTreeList2,Lookup!$U$51:$U$55,\"\")))","v":{"$error":"#N/A"}}]
[null,null,null,null,null,null,null,null,null,null,null,null,null," "]
[null,{"$f":"IFERROR(IF(INDEX($K$7:$K$46,MATCH(AN189,$AO$7:$AO$46,0))=\"\",\"\",INDEX($K$7:$K$46,MATCH(AN189,$AO$7:$AO$46,0))),\"\")","v":""},null,null,null,null,null,null,null,null,null,null,null,{"$f":"IF(B189=\"\",\"\",IF(AO189=\"Vegetated Roof System\",\"Roof Area\",\"Contributing Area (sf)\"))","v":""},null,null,null,null,null,null,null,{"$f":"IF(B189=\"\",\"\",SUMIF($AO$7:$AO$46,AN189,$F$7:$I$46))","v":""},null,null,null,null,null,null,{"$f":"IFERROR(IF(AO189=\"Water Quality BMP in lieu of NIB\",\"Submit sizing documentation separately.\",\nIF(AP189=-999,\"Configuration not allowed.\",IF(AP189=0,\"Configuration not allowed.\",IF(AO189=\"Trees\",\"As many as feasible.\",\nIF(AP189=\"equation\",TEXT(AQ189,\"#,##0\")&\" \"&AR189,\nTEXT(IF(OR(AO189=\"Permeable Pavement Facility\",AO189=\"Vegetated Roof System\",AO189=\"Rainwater Harvesting - Category 1\", AO189=\"Rainwater Harvesting - Category 4\"),H191,\nIF(AO189=\"Sidewalk/Trail Compost-Amended Strip\",MAX(V189/H191,AP189*V189),\nIF(OR(AO189=\"Infiltrating Soil Cell Bioretention with Tree\",AO189=\"Non-Infiltrating Soil Cell Bioretention with Tree\"),MAX(AP189*V189,AQ197),\nAP189*V189))),\"#,##0\")&\" \"&AR189))))),\"\")","v":""},null,null,null,null,null,null,null,null,null,null,15,{"$f":"INDEX($AP$7:$AP$46,MATCH(AN189,$AO$7:$AO$46,0))","v":{"$error":"#N/A"}},{"$f":"IF(AO189=\"Trees\", INDEX(Lookup!$G$97:$G$365,MATCH(TRIM(CONCATENATE(AO189,V191)),Lookup!$F$97:$F$365,0)),\nIF(AO189=\"Residential Cistern\", INDEX(Lookup!$G$97:$G$365,MATCH(TRIM(CONCATENATE(AO189,IF(V189<400,0,IF(V189>4200,4201,ROUNDDOWN(V189,-2))))),Lookup!$F$97:$F$365,0)),\nIF(AO189=\"Sidewalk/Trail Compost-Amended Strip\", IF(H191=\"\",NA(),IF(H191<10,Lookup!$G$99,Lookup!$G$98)),\nIF(AND(AO189=\"Non-Infiltrating Bioretention\",V193=\"Sloped sides\",V191=6),IF(V189<=2000,0.025,0.028),\nINDEX(Lookup!$G$97:$G$365,MATCH(TRIM(CONCATENATE(AO189,V191,V193,V195,V197)),Lookup!$F$97:$F$365,0))))))","v":{"$error":"#N/A"}},{"$f":"IF(AP189<=0,NA(),IF(OR(AO189=\"Permeable Pavement Facility\",AO189=\"Vegetated Roof System\",AO189=\"Rainwater Harvesting - Category 1\",AO189=\"Rainwater Harvesting - Category 4\"),H191,\nIF(AO189=\"Sidewalk/Trail Compost-Amended Strip\",MAX(V189/H191,AP189*V189),\nIF(OR(AO189=\"Infiltrating Soil Cell Bioretention with Tree\",AO189=\"Non-Infiltrating Soil Cell Bioretention with Tree\"),MAX(AP189*V189,AQ197),\nAP189*V189))))","v":{"$error":"#N/A"}},{"$f":"IF(AO189=\"Residential Cistern\",\n\"sf\",INDEX(Lookup!$I$97:$I$365,MATCH(TRIM(CONCATENATE(AO189,V191,V193,V195,V197)),Lookup!$F$97:$F$365,0)))","v":{"$error":"#N/A"}},{"$f":"IF(AO189=\"Trees\", INDEX(Lookup!$H$97:$H$365,MATCH(TRIM(CONCATENATE(AO189,V191)),Lookup!$F$97:$F$365,0))*V193,\nIF(AO189=\"Residential Cistern\", INDEX(Lookup!$H$97:$H$365,MATCH(TRIM(CONCATENATE(AO189,IF(V189<400,0,IF(V189>4200,4201,ROUNDDOWN(V189,-2))))),Lookup!$F$97:$F$365,0))*V189,\nIF(AND(AO189=\"Sidewalk/Trail Compost-Amended Strip\",OR(H191=\"\",InfRate=0)),NA(),\nINDEX(Lookup!$H$97:$H$365,MATCH(TRIM(CONCATENATE(AO189,V191,V193,V195,V197)),Lookup!$F$97:$F$365,0))*V189)))*7.48052\n*IF(OR(AO189=\"Permeable Pavement Facility\",AO189=\"Vegetated Roof System\"),MIN(1,H191/(AP189*V189)),1)\n+IF(AO189=\"Permeable Pavement Facility\",H191*2.1*7.48052,1)","v":{"$error":"#N/A"}},{"$f":"IFERROR(\nIF(AO189=\"Residential Cistern\",INDEX(Lookup!$I$97:$I$365,MATCH(TRIM(CONCATENATE(AO189,IF(V189<400,0,IF(V189>4200,4201,ROUNDDOWN(V189,-2))))),Lookup!$F$97:$F$365,0)),\nIF(AO189=\"Sidewalk/Trail Compost-Amended Strip\",ROUND(AQ189/(V189/H191),1) &\" ft wide x \"& ROUND(V189/H191,0)&\" ft long\",\nIF(OR(AO189=\"Rainwater Harvesting - Category 1\",AO189=\"Rainwater Harvesting - Category 4\"),\" required minimum live storage\",\nIF(AO189=\"Water Quality BMP in lieu of NIB\",\"See Plan\",\nIF(AND(V191=\"\",V193=\"\",V195=\"\"),\"\",TRIM(V193&\" \"&AP193&\" \"&V191&\" \"&AP191&\" \"&V195&\" \"&AP195)))))),\"\")","v":""}]
[]
[null,{"$f":"IFERROR(\nIF(AO189=\"Permeable Pavement Facility\",\"Facility Area (sf)\",\nIF(AO189=\"Vegetated Roof System\",\"Vegetated Area (sf)\",\nIF(AO189=\"Sidewalk/Trail Compost-Amended Strip\",\"Sidewalk/Trail Width (ft)\",\nIF(OR(AO189=\"Rainwater Harvesting - Category 1\",AO189=\"Rainwater Harvesting - Category 4\"),\"Live Storage Volume (gal)\",\n\"\")))),\"\")","v":""},null,null,null,null,null,null,null,null,null,null,null,{"$f":"IFERROR(INDEX(Lookup!$C$70:$C$94,MATCH(AO189,Lookup!$A$70:$A$94,0)),\"\")","v":""},null,null,null,null,null,null,null,null,null,null,null,null,null,null,{"$f":"IFERROR(TEXT(AS189,\"#,##0\")&\" gal managed/year\",IFERROR(IF(AP189=0,\"Infiltration rate too low.\",\"\"),\"\"))","v":""},null,null,null,null,null,null,null,null,null,null,null,{"$f":"TRIM(SUBSTITUTE(SUBSTITUTE(SUBSTITUTE(AO189,\" \",\"\"),\"-\",\"\"),\"/\",\"\")&\"List1\")","v":{"$error":"#N/A"}},{"$f":"IFERROR(INDEX(Lookup!$G$70:$G$94,MATCH(AO189,Lookup!$A$70:$A$94,0)),\"\")","v":""}]
[]
[null,{"$f":"IFERROR(\nIF(OR(AO189=\"Permeable Pavement Facility\",AO189=\"Vegetated Roof System\"),\"Minimum Facility Area \"&TEXT((AP189*V189),\"#,###\")&\" sf\",\nIF(OR(AO189=\"Rainwater Harvesting - Category 1\",AO189=\"Rainwater Harvesting - Category 4\"),\"Continuous runoff modeling required by\",\n\"\")),\"\")","v":""},null,null,null,null,null,null,null,null,null,null,null,{"$f":"IFERROR(INDEX(Lookup!$D$70:$D$94,MATCH(AO189,Lookup!$A$70:$A$94,0)),\"\")","v":""},null,null,null,null,null,null,null,null,null,null,null,null,null,null,{"$f":"IFERROR(IF(AO189=\"Sidewalk/Trail Compost-Amended Strip\",ROUND(AQ189/(V189/H191),1) &\" ft wide compost-amended strip\",\nIF(OR(AO189=\"Infiltrating Soil Cell Bioretention with Tree\",AO189=\"Non-Infiltrating Soil Cell Bioretention with Tree\"),\"BMP size excludes tree planting area\",\nIF(AO189=\"Residential Cistern\",IF(AQ189=-999,\"\",IF(V189<800,3,IF(V189<1300,4,5)))&\" ft live storage\",\n\n\"\"))),\"\")","v":""},null,null,null,null,null,null,null,null,null,null,null,{"$f":"TRIM(SUBSTITUTE(SUBSTITUTE(SUBSTITUTE(AO189,\" \",\"\"),\"-\",\"\"),\"/\",\"\")&\"List2\")","v":{"$error":"#N/A"}},{"$f":"IFERROR(INDEX(Lookup!$H$70:$H$94,MATCH(AO189,Lookup!$A$70:$A$94,0)),\"\")","v":""}]
[]
[null,{"$f":"IFERROR(IF(OR(AO189=\"Rainwater Harvesting - Category 1\",AO189=\"Rainwater Harvesting - Category 4\"),\"professional engineer.\",\n\"\"),\"\")","v":""},null,null,null,null,null,null,null,null,null,null,null,{"$f":"IFERROR(INDEX(Lookup!$E$70:$E$94,MATCH(AO189,Lookup!$A$70:$A$94,0)),\"\")","v":""},null,null,null,null,null,null,null,null,null,null,null,null,null,null,{"$f":"IFERROR(IF(AO189=\"Sidewalk/Trail Compost-Amended Strip\",IF(AND(AC193=\"\",H191<>\"\"),\"\",\"along full \"& ROUND(V189/H191,0) &\" ft trail/sidewalk\"),\"\"),\"\")","v":""},null,null,null,null,null,null,null,null,null,null,null,{"$f":"TRIM(SUBSTITUTE(SUBSTITUTE(SUBSTITUTE(AO189,\" \",\"\"),\"-\",\"\"),\"/\",\"\")&\"List3\")","v":{"$error":"#N/A"}},{"$f":"IFERROR(INDEX(Lookup!$H$70:$H$94,MATCH(AO191,Lookup!$A$70:$A$94,0)),\"\")","v":""},{"$f":"IF(OR(AO189=\"Infiltrating Soil Cell Bioretention with Tree\",AO189=\"Non-Infiltrating Soil Cell Bioretention with Tree\"),\"min footprint to meet soil volume\",\"\")","v":{"$error":"#N/A"}},{"$f":"IF(OR(AO189=\"Infiltrating Soil Cell Bioretention with Tree\",AO189=\"Non-Infiltrating Soil Cell Bioretention with Tree\"),\"min soil volume\",\"\")","v":{"$error":"#N/A"}}]
[]
[null,null,null,null,null,null,null,null,null,null,null,null,null,{"$f":"IFERROR(INDEX(Lookup!$F$70:$F$94,MATCH(AO189,Lookup!$A$70:$A$94,0)),\"\")","v":""},null,null,null,null,null,null,null,null,null,null,null,null,null,null,null,null,null,null,null,null,null,null,null,null,null,null,{"$f":"TRIM(SUBSTITUTE(SUBSTITUTE(SUBSTITUTE(AO189,\" \",\"\"),\"-\",\"\"),\"/\",\"\")&\"List4\")","v":{"$error":"#N/A"}},null,{"$f":"IF(AO189=\"Infiltrating Soil Cell Bioretention with Tree\",AR197/(V197/12),\nIF(AO189=\"Non-Infiltrating Soil Cell Bioretention with Tree\",AR197/(V195/12),\"\"))","v":{"$error":"#N/A"}},{"$f":"IF(AO189=\"Infiltrating Soil Cell Bioretention with Tree\",_xlfn.XLOOKUP(V195,InfiltratingSoilCellBioretentionwithTreeList3,Lookup!$U$51:$U$55),\nIF(AO189=\"Non-Infiltrating Soil Cell Bioretention with Tree\",_xlfn.XLOOKUP(V193,NonInfiltratingSoilCellBioretentionwithTreeList2,Lookup!$U$51:$U$55,\"\")))","v":{"$error":"#N/A"}}]
[null,null,null,null,null,null,null,null,null,null,null,null,null," "]
[null,{"$f":"IFERROR(IF(INDEX($K$7:$K$46,MATCH(AN199,$AO$7:$AO$46,0))=\"\",\"\",INDEX($K$7:$K$46,MATCH(AN199,$AO$7:$AO$46,0))),\"\")","v":""},null,null,null,null,null,null,null,null,null,null,null,{"$f":"IF(B199=\"\",\"\",IF(AO199=\"Vegetated Roof System\",\"Roof Area\",\"Contributing Area (sf)\"))","v":""},null,null,null,null,null,null,null,{"$f":"IF(B199=\"\",\"\",SUMIF($AO$7:$AO$46,AN199,$F$7:$I$46))","v":""},null,null,null,null,null,null,{"$f":"IFERROR(IF(AO199=\"Water Quality BMP in lieu of NIB\",\"Submit sizing documentation separately.\",\nIF(AP199=-999,\"Configuration not allowed.\",IF(AP199=0,\"Configuration not allowed.\",IF(AO199=\"Trees\",\"As many as feasible.\",\nIF(AP199=\"equation\",TEXT(AQ199,\"#,##0\")&\" \"&AR199,\nTEXT(IF(OR(AO199=\"Permeable Pavement Facility\",AO199=\"Vegetated Roof System\",AO199=\"Rainwater Harvesting - Category 1\", AO199=\"Rainwater Harvesting - Category 4\"),H201,\nIF(AO199=\"Sidewalk/Trail Compost-Amended Strip\",MAX(V199/H201,AP199*V199),\nIF(OR(AO199=\"Infiltrating Soil Cell Bioretention with Tree\",AO199=\"Non-Infiltrating Soil Cell Bioretention with Tree\"),MAX(AP199*V199,AQ207),\nAP199*V199))),\"#,##0\")&\" \"&AR199))))),\"\")","v":""},null,null,null,null,null,null,null,null,null,null,16,{"$f":"INDEX($AP$7:$AP$46,MATCH(AN199,$AO$7:$AO$46,0))","v":{"$error":"#N/A"}},{"$f":"IF(AO199=\"Trees\", INDEX(Lookup!$G$97:$G$365,MATCH(TRIM(CONCATENATE(AO199,V201)),Lookup!$F$97:$F$365,0)),\nIF(AO199=\"Residential Cistern\", INDEX(Lookup!$G$97:$G$365,MATCH(TRIM(CONCATENATE(AO199,IF(V199<400,0,IF(V199>4200,4201,ROUNDDOWN(V199,-2))))),Lookup!$F$97:$F$365,0)),\nIF(AO199=\"Sidewalk/Trail Compost-Amended Strip\", IF(H201=\"\",NA(),IF(H201<10,Lookup!$G$99,Lookup!$G$98)),\nIF(AND(AO199=\"Non-Infiltrating Bioretention\",V203=\"Sloped sides\",V201=6),IF(V199<=2000,0.025,0.028),\nINDEX(Lookup!$G$97:$G$365,MATCH(TRIM(CONCATENATE(AO199,V201,V203,V205,V207)),Lookup!$F$97:$F$365,0))))))","v":{"$error":"#N/A"}},{"$f":"IF(AP199<=0,NA(),IF(OR(AO199=\"Permeable Pavement Facility\",AO199=\"Vegetated Roof System\",AO199=\"Rainwater Harvesting - Category 1\",AO199=\"Rainwater Harvesting - Category 4\"),H201,\nIF(AO199=\"Sidewalk/Trail Compost-Amended Strip\",MAX(V199/H201,AP199*V199),\nIF(OR(AO199=\"Infiltrating Soil Cell Bioretention with Tree\",AO199=\"Non-Infiltrating Soil Cell Bioretention with Tree\"),MAX(AP199*V199,AQ207),\nAP199*V199))))","v":{"$error":"#N/A"}},{"$f":"IF(AO199=\"Residential Cistern\",\n\"sf\",INDEX(Lookup!$I$97:$I$365,MATCH(TRIM(CONCATENATE(AO199,V201,V203,V205,V207)),Lookup!$F$97:$F$365,0)))","v":{"$error":"#N/A"}},{"$f":"IF(AO199=\"Trees\", INDEX(Lookup!$H$97:$H$365,MATCH(TRIM(CONCATENATE(AO199,V201)),Lookup!$F$97:$F$365,0))*V203,\nIF(AO199=\"Residential Cistern\", INDEX(Lookup!$H$97:$H$365,MATCH(TRIM(CONCATENATE(AO199,IF(V199<400,0,IF(V199>4200,4201,ROUNDDOWN(V199,-2))))),Lookup!$F$97:$F$365,0))*V199,\nIF(AND(AO199=\"Sidewalk/Trail Compost-Amended Strip\",OR(H201=\"\",InfRate=0)),NA(),\nINDEX(Lookup!$H$97:$H$365,MATCH(TRIM(CONCATENATE(AO199,V201,V203,V205,V207)),Lookup!$F$97:$F$365,0))*V199)))*7.48052\n*IF(OR(AO199=\"Permeable Pavement Facility\",AO199=\"Vegetated Roof System\"),MIN(1,H201/(AP199*V199)),1)\n+IF(AO199=\"Permeable Pavement Facility\",H201*2.1*7.48052,1)","v":{"$error":"#N/A"}},{"$f":"IFERROR(\nIF(AO199=\"Residential Cistern\",INDEX(Lookup!$I$97:$I$365,MATCH(TRIM(CONCATENATE(AO199,IF(V199<400,0,IF(V199>4200,4201,ROUNDDOWN(V199,-2))))),Lookup!$F$97:$F$365,0)),\nIF(AO199=\"Sidewalk/Trail Compost-Amended Strip\",ROUND(AQ199/(V199/H201),1) &\" ft wide x \"& ROUND(V199/H201,0)&\" ft long\",\nIF(OR(AO199=\"Rainwater Harvesting - Category 1\",AO199=\"Rainwater Harvesting - Category 4\"),\" required minimum live storage\",\nIF(AO199=\"Water Quality BMP in lieu of NIB\",\"See Plan\",\nIF(AND(V201=\"\",V203=\"\",V205=\"\"),\"\",TRIM(V203&\" \"&AP203&\" \"&V201&\" \"&AP201&\" \"&V205&\" \"&AP205)))))),\"\")","v":""}]
[]
[null,{"$f":"IFERROR(\nIF(AO199=\"Permeable Pavement Facility\",\"Facility Area (sf)\",\nIF(AO199=\"Vegetated Roof System\",\"Vegetated Area (sf)\",\nIF(AO199=\"Sidewalk/Trail Compost-Amended Strip\",\"Sidewalk/Trail Width (ft)\",\nIF(OR(AO199=\"Rainwater Harvesting - Category 1\",AO199=\"Rainwater Harvesting - Category 4\"),\"Live Storage Volume (gal)\",\n\"\")))),\"\")","v":""},null,null,null,null,null,null,null,null,null,null,null,{"$f":"IFERROR(INDEX(Lookup!$C$70:$C$94,MATCH(AO199,Lookup!$A$70:$A$94,0)),\"\")","v":""},null,null,null,null,null,null,null,null,null,null,null,null,null,null,{"$f":"IFERROR(TEXT(AS199,\"#,##0\")&\" gal managed/year\",IFERROR(IF(AP199=0,\"Infiltration rate too low.\",\"\"),\"\"))","v":""},null,null,null,null,null,null,null,null,null,null,null,{"$f":"TRIM(SUBSTITUTE(SUBSTITUTE(SUBSTITUTE(AO199,\" \",\"\"),\"-\",\"\"),\"/\",\"\")&\"List1\")","v":{"$error":"#N/A"}},{"$f":"IFERROR(INDEX(Lookup!$G$70:$G$94,MATCH(AO199,Lookup!$A$70:$A$94,0)),\"\")","v":""}]
[]
[null,{"$f":"IFERROR(\nIF(OR(AO199=\"Permeable Pavement Facility\",AO199=\"Vegetated Roof System\"),\"Minimum Facility Area \"&TEXT((AP199*V199),\"#,###\")&\" sf\",\nIF(OR(AO199=\"Rainwater Harvesting - Category 1\",AO199=\"Rainwater Harvesting - Category 4\"),\"Continuous runoff modeling required by\",\n\"\")),\"\")","v":""},null,null,null,null,null,null,null,null,null,null,null,{"$f":"IFERROR(INDEX(Lookup!$D$70:$D$94,MATCH(AO199,Lookup!$A$70:$A$94,0)),\"\")","v":""},null,null,null,null,null,null,null,null,null,null,null,null,null,null,{"$f":"IFERROR(IF(AO199=\"Sidewalk/Trail Compost-Amended Strip\",ROUND(AQ199/(V199/H201),1) &\" ft wide compost-amended strip\",\nIF(OR(AO199=\"Infiltrating Soil Cell Bioretention with Tree\",AO199=\"Non-Infiltrating Soil Cell Bioretention with Tree\"),\"BMP size excludes tree planting area\",\nIF(AO199=\"Residential Cistern\",IF(AQ199=-999,\"\",IF(V199<800,3,IF(V199<1300,4,5)))&\" ft live storage\",\n\n\"\"))),\"\")","v":""},null,null,null,null,null,null,null,null,null,null,null,{"$f":"TRIM(SUBSTITUTE(SUBSTITUTE(SUBSTITUTE(AO199,\" \",\"\"),\"-\",\"\"),\"/\",\"\")&\"List2\")","v":{"$error":"#N/A"}},{"$f":"IFERROR(INDEX(Lookup!$H$70:$H$94,MATCH(AO199,Lookup!$A$70:$A$94,0)),\"\")","v":""}]
[]
[null,{"$f":"IFERROR(IF(OR(AO199=\"Rainwater Harvesting - Category 1\",AO199=\"Rainwater Harvesting - Category 4\"),\"professional engineer.\",\n\"\"),\"\")","v":""},null,null,null,null,null,null,null,null,null,null,null,{"$f":"IFERROR(INDEX(Lookup!$E$70:$E$94,MATCH(AO199,Lookup!$A$70:$A$94,0)),\"\")","v":""},null,null,null,null,null,null,null,null,null,null,null,null,null,null,{"$f":"IFERROR(IF(AO199=\"Sidewalk/Trail Compost-Amended Strip\",IF(AND(AC203=\"\",H201<>\"\"),\"\",\"along full \"& ROUND(V199/H201,0) &\" ft trail/sidewalk\"),\"\"),\"\")","v":""},null,null,null,null,null,null,null,null,null,null,null,{"$f":"TRIM(SUBSTITUTE(SUBSTITUTE(SUBSTITUTE(AO199,\" \",\"\"),\"-\",\"\"),\"/\",\"\")&\"List3\")","v":{"$error":"#N/A"}},{"$f":"IFERROR(INDEX(Lookup!$H$70:$H$94,MATCH(AO201,Lookup!$A$70:$A$94,0)),\"\")","v":""},{"$f":"IF(OR(AO199=\"Infiltrating Soil Cell Bioretention with Tree\",AO199=\"Non-Infiltrating Soil Cell Bioretention with Tree\"),\"min footprint to meet soil volume\",\"\")","v":{"$error":"#N/A"}},{"$f":"IF(OR(AO199=\"Infiltrating Soil Cell Bioretention with Tree\",AO199=\"Non-Infiltrating Soil Cell Bioretention with Tree\"),\"min soil volume\",\"\")","v":{"$error":"#N/A"}}]
[]
[null,null,null,null,null,null,null,null,null,null,null,null,null,{"$f":"IFERROR(INDEX(Lookup!$F$70:$F$94,MATCH(AO199,Lookup!$A$70:$A$94,0)),\"\")","v":""},null,null,null,null,null,null,null,null,null,null,null,null,null,null,null,null,null,null,null,null,null,null,null,null,null,null,{"$f":"TRIM(SUBSTITUTE(SUBSTITUTE(SUBSTITUTE(AO199,\" \",\"\"),\"-\",\"\"),\"/\",\"\")&\"List4\")","v":{"$error":"#N/A"}},null,{"$f":"IF(AO199=\"Infiltrating Soil Cell Bioretention with Tree\",AR207/(V207/12),\nIF(AO199=\"Non-Infiltrating Soil Cell Bioretention with Tree\",AR207/(V205/12),\"\"))","v":{"$error":"#N/A"}},{"$f":"IF(AO199=\"Infiltrating Soil Cell Bioretention with Tree\",_xlfn.XLOOKUP(V205,InfiltratingSoilCellBioretentionwithTreeList3,Lookup!$U$51:$U$55),\nIF(AO199=\"Non-Infiltrating Soil Cell Bioretention with Tree\",_xlfn.XLOOKUP(V203,NonInfiltratingSoilCellBioretentionwithTreeList2,Lookup!$U$51:$U$55,\"\")))","v":{"$error":"#N/A"}}]
[null,null,null,null,null,null,null,null,null,null,null,null,null," "]
[null,{"$f":"IFERROR(IF(INDEX($K$7:$K$46,MATCH(AN209,$AO$7:$AO$46,0))=\"\",\"\",INDEX($K$7:$K$46,MATCH(AN209,$AO$7:$AO$46,0))),\"\")","v":""},null,null,null,null,null,null,null,null,null,null,null,{"$f":"IF(B209=\"\",\"\",IF(AO209=\"Vegetated Roof System\",\"Roof Area\",\"Contributing Area (sf)\"))","v":""},null,null,null,null,null,null,null,{"$f":"IF(B209=\"\",\"\",SUMIF($AO$7:$AO$46,AN209,$F$7:$I$46))","v":""},null,null,null,null,null,null,{"$f":"IFERROR(IF(AO209=\"Water Quality BMP in lieu of NIB\",\"Submit sizing documentation separately.\",\nIF(AP209=-999,\"Configuration not allowed.\",IF(AP209=0,\"Configuration not allowed.\",IF(AO209=\"Trees\",\"As many as feasible.\",\nIF(AP209=\"equation\",TEXT(AQ209,\"#,##0\")&\" \"&AR209,\nTEXT(IF(OR(AO209=\"Permeable Pavement Facility\",AO209=\"Vegetated Roof System\",AO209=\"Rainwater Harvesting - Category 1\", AO209=\"Rainwater Harvesting - Category 4\"),H211,\nIF(AO209=\"Sidewalk/Trail Compost-Amended Strip\",MAX(V209/H211,AP209*V209),\nIF(OR(AO209=\"Infiltrating Soil Cell Bioretention with Tree\",AO209=\"Non-Infiltrating Soil Cell Bioretention with Tree\"),MAX(AP209*V209,AQ217),\nAP209*V209))),\"#,##0\")&\" \"&AR209))))),\"\")","v":""},null,null,null,null,null,null,null,null,null,null,17,{"$f":"INDEX($AP$7:$AP$46,MATCH(AN209,$AO$7:$AO$46,0))","v":{"$error":"#N/A"}},{"$f":"IF(AO209=\"Trees\", INDEX(Lookup!$G$97:$G$365,MATCH(TRIM(CONCATENATE(AO209,V211)),Lookup!$F$97:$F$365,0)),\nIF(AO209=\"Residential Cistern\", INDEX(Lookup!$G$97:$G$365,MATCH(TRIM(CONCATENATE(AO209,IF(V209<400,0,IF(V209>4200,4201,ROUNDDOWN(V209,-2))))),Lookup!$F$97:$F$365,0)),\nIF(AO209=\"Sidewalk/Trail Compost-Amended Strip\", IF(H211=\"\",NA(),IF(H211<10,Lookup!$G$99,Lookup!$G$98)),\nIF(AND(AO209=\"Non-Infiltrating Bioretention\",V213=\"Sloped sides\",V211=6),IF(V209<=2000,0.025,0.028),\nINDEX(Lookup!$G$97:$G$365,MATCH(TRIM(CONCATENATE(AO209,V211,V213,V215,V217)),Lookup!$F$97:$F$365,0))))))","v":{"$error":"#N/A"}},{"$f":"IF(AP209<=0,NA(),IF(OR(AO209=\"Permeable Pavement Facility\",AO209=\"Vegetated Roof System\",AO209=\"Rainwater Harvesting - Category 1\",AO209=\"Rainwater Harvesting - Category 4\"),H211,\nIF(AO209=\"Sidewalk/Trail Compost-Amended Strip\",MAX(V209/H211,AP209*V209),\nIF(OR(AO209=\"Infiltrating Soil Cell Bioretention with Tree\",AO209=\"Non-Infiltrating Soil Cell Bioretention with Tree\"),MAX(AP209*V209,AQ217),\nAP209*V209))))","v":{"$error":"#N/A"}},{"$f":"IF(AO209=\"Residential Cistern\",\n\"sf\",INDEX(Lookup!$I$97:$I$365,MATCH(TRIM(CONCATENATE(AO209,V211,V213,V215,V217)),Lookup!$F$97:$F$365,0)))","v":{"$error":"#N/A"}},{"$f":"IF(AO209=\"Trees\", INDEX(Lookup!$H$97:$H$365,MATCH(TRIM(CONCATENATE(AO209,V211)),Lookup!$F$97:$F$365,0))*V213,\nIF(AO209=\"Residential Cistern\", INDEX(Lookup!$H$97:$H$365,MATCH(TRIM(CONCATENATE(AO209,IF(V209<400,0,IF(V209>4200,4201,ROUNDDOWN(V209,-2))))),Lookup!$F$97:$F$365,0))*V209,\nIF(AND(AO209=\"Sidewalk/Trail Compost-Amended Strip\",OR(H211=\"\",InfRate=0)),NA(),\nINDEX(Lookup!$H$97:$H$365,MATCH(TRIM(CONCATENATE(AO209,V211,V213,V215,V217)),Lookup!$F$97:$F$365,0))*V209)))*7.48052\n*IF(OR(AO209=\"Permeable Pavement Facility\",AO209=\"Vegetated Roof System\"),MIN(1,H211/(AP209*V209)),1)\n+IF(AO209=\"Permeable Pavement Facility\",H211*2.1*7.48052,1)","v":{"$error":"#N/A"}},{"$f":"IFERROR(\nIF(AO209=\"Residential Cistern\",INDEX(Lookup!$I$97:$I$365,MATCH(TRIM(CONCATENATE(AO209,IF(V209<400,0,IF(V209>4200,4201,ROUNDDOWN(V209,-2))))),Lookup!$F$97:$F$365,0)),\nIF(AO209=\"Sidewalk/Trail Compost-Amended Strip\",ROUND(AQ209/(V209/H211),1) &\" ft wide x \"& ROUND(V209/H211,0)&\" ft long\",\nIF(OR(AO209=\"Rainwater Harvesting - Category 1\",AO209=\"Rainwater Harvesting - Category 4\"),\" required minimum live storage\",\nIF(AO209=\"Water Quality BMP in lieu of NIB\",\"See Plan\",\nIF(AND(V211=\"\",V213=\"\",V215=\"\"),\"\",TRIM(V213&\" \"&AP213&\" \"&V211&\" \"&AP211&\" \"&V215&\" \"&AP215)))))),\"\")","v":""}]
[]
[null,{"$f":"IFERROR(\nIF(AO209=\"Permeable Pavement Facility\",\"Facility Area (sf)\",\nIF(AO209=\"Vegetated Roof System\",\"Vegetated Area (sf)\",\nIF(AO209=\"Sidewalk/Trail Compost-Amended Strip\",\"Sidewalk/Trail Width (ft)\",\nIF(OR(AO209=\"Rainwater Harvesting - Category 1\",AO209=\"Rainwater Harvesting - Category 4\"),\"Live Storage Volume (gal)\",\n\"\")))),\"\")","v":""},null,null,null,null,null,null,null,null,null,null,null,{"$f":"IFERROR(INDEX(Lookup!$C$70:$C$94,MATCH(AO209,Lookup!$A$70:$A$94,0)),\"\")","v":""},null,null,null,null,null,null,null,null,null,null,null,null,null,null,{"$f":"IFERROR(TEXT(AS209,\"#,##0\")&\" gal managed/year\",IFERROR(IF(AP209=0,\"Infiltration rate too low.\",\"\"),\"\"))","v":""},null,null,null,null,null,null,null,null,null,null,null,{"$f":"TRIM(SUBSTITUTE(SUBSTITUTE(SUBSTITUTE(AO209,\" \",\"\"),\"-\",\"\"),\"/\",\"\")&\"List1\")","v":{"$error":"#N/A"}},{"$f":"IFERROR(INDEX(Lookup!$G$70:$G$94,MATCH(AO209,Lookup!$A$70:$A$94,0)),\"\")","v":""}]
[]
[null,{"$f":"IFERROR(\nIF(OR(AO209=\"Permeable Pavement Facility\",AO209=\"Vegetated Roof System\"),\"Minimum Facility Area \"&TEXT((AP209*V209),\"#,###\")&\" sf\",\nIF(OR(AO209=\"Rainwater Harvesting - Category 1\",AO209=\"Rainwater Harvesting - Category 4\"),\"Continuous runoff modeling required by\",\n\"\")),\"\")","v":""},null,null,null,null,null,null,null,null,null,null,null,{"$f":"IFERROR(INDEX(Lookup!$D$70:$D$94,MATCH(AO209,Lookup!$A$70:$A$94,0)),\"\")","v":""},null,null,null,null,null,null,null,null,null,null,null,null,null,null,{"$f":"IFERROR(IF(AO209=\"Sidewalk/Trail Compost-Amended Strip\",ROUND(AQ209/(V209/H211),1) &\" ft wide compost-amended strip\",\nIF(OR(AO209=\"Infiltrating Soil Cell Bioretention with Tree\",AO209=\"Non-Infiltrating Soil Cell Bioretention with Tree\"),\"BMP size excludes tree planting area\",\nIF(AO209=\"Residential Cistern\",IF(AQ209=-999,\"\",IF(V209<800,3,IF(V209<1300,4,5)))&\" ft live storage\",\n\n\"\"))),\"\")","v":""},null,null,null,null,null,null,null,null,null,null,null,{"$f":"TRIM(SUBSTITUTE(SUBSTITUTE(SUBSTITUTE(AO209,\" \",\"\"),\"-\",\"\"),\"/\",\"\")&\"List2\")","v":{"$error":"#N/A"}},{"$f":"IFERROR(INDEX(Lookup!$H$70:$H$94,MATCH(AO209,Lookup!$A$70:$A$94,0)),\"\")","v":""}]
[]
[null,{"$f":"IFERROR(IF(OR(AO209=\"Rainwater Harvesting - Category 1\",AO209=\"Rainwater Harvesting - Category 4\"),\"professional engineer.\",\n\"\"),\"\")","v":""},null,null,null,null,null,null,null,null,null,null,null,{"$f":"IFERROR(INDEX(Lookup!$E$70:$E$94,MATCH(AO209,Lookup!$A$70:$A$94,0)),\"\")","v":""},null,null,null,null,null,null,null,null,null,null,null,null,null,null,{"$f":"IFERROR(IF(AO209=\"Sidewalk/Trail Compost-Amended Strip\",IF(AND(AC213=\"\",H211<>\"\"),\"\",\"along full \"& ROUND(V209/H211,0) &\" ft trail/sidewalk\"),\"\"),\"\")","v":""},null,null,null,null,null,null,null,null,null,null,null,{"$f":"TRIM(SUBSTITUTE(SUBSTITUTE(SUBSTITUTE(AO209,\" \",\"\"),\"-\",\"\"),\"/\",\"\")&\"List3\")","v":{"$error":"#N/A"}},{"$f":"IFERROR(INDEX(Lookup!$H$70:$H$94,MATCH(AO211,Lookup!$A$70:$A$94,0)),\"\")","v":""},{"$f":"IF(OR(AO209=\"Infiltrating Soil Cell Bioretention with Tree\",AO209=\"Non-Infiltrating Soil Cell Bioretention with Tree\"),\"min footprint to meet soil volume\",\"\")","v":{"$error":"#N/A"}},{"$f":"IF(OR(AO209=\"Infiltrating Soil Cell Bioretention with Tree\",AO209=\"Non-Infiltrating Soil Cell Bioretention with Tree\"),\"min soil volume\",\"\")","v":{"$error":"#N/A"}}]
[]
[null,null,null,null,null,null,null,null,null,null,null,null,null,{"$f":"IFERROR(INDEX(Lookup!$F$70:$F$94,MATCH(AO209,Lookup!$A$70:$A$94,0)),\"\")","v":""},null,null,null,null,null,null,null,null,null,null,null,null,null,null,null,null,null,null,null,null,null,null,null,null,null,null,{"$f":"TRIM(SUBSTITUTE(SUBSTITUTE(SUBSTITUTE(AO209,\" \",\"\"),\"-\",\"\"),\"/\",\"\")&\"List4\")","v":{"$error":"#N/A"}},null,{"$f":"IF(AO209=\"Infiltrating Soil Cell Bioretention with Tree\",AR217/(V217/12),\nIF(AO209=\"Non-Infiltrating Soil Cell Bioretention with Tree\",AR217/(V215/12),\"\"))","v":{"$error":"#N/A"}},{"$f":"IF(AO209=\"Infiltrating Soil Cell Bioretention with Tree\",_xlfn.XLOOKUP(V215,InfiltratingSoilCellBioretentionwithTreeList3,Lookup!$U$51:$U$55),\nIF(AO209=\"Non-Infiltrating Soil Cell Bioretention with Tree\",_xlfn.XLOOKUP(V213,NonInfiltratingSoilCellBioretentionwithTreeList2,Lookup!$U$51:$U$55,\"\")))","v":{"$error":"#N/A"}}]
[null,null,null,null,null,null,null,null,null,null,null,null,null," "]
[null,{"$f":"IFERROR(IF(INDEX($K$7:$K$46,MATCH(AN219,$AO$7:$AO$46,0))=\"\",\"\",INDEX($K$7:$K$46,MATCH(AN219,$AO$7:$AO$46,0))),\"\")","v":""},null,null,null,null,null,null,null,null,null,null,null,{"$f":"IF(B219=\"\",\"\",IF(AO219=\"Vegetated Roof System\",\"Roof Area\",\"Contributing Area (sf)\"))","v":""},null,null,null,null,null,null,null,{"$f":"IF(B219=\"\",\"\",SUMIF($AO$7:$AO$46,AN219,$F$7:$I$46))","v":""},null,null,null,null,null,null,{"$f":"IFERROR(IF(AO219=\"Water Quality BMP in lieu of NIB\",\"Submit sizing documentation separately.\",\nIF(AP219=-999,\"Configuration not allowed.\",IF(AP219=0,\"Configuration not allowed.\",IF(AO219=\"Trees\",\"As many as feasible.\",\nIF(AP219=\"equation\",TEXT(AQ219,\"#,##0\")&\" \"&AR219,\nTEXT(IF(OR(AO219=\"Permeable Pavement Facility\",AO219=\"Vegetated Roof System\",AO219=\"Rainwater Harvesting - Category 1\", AO219=\"Rainwater Harvesting - Category 4\"),H221,\nIF(AO219=\"Sidewalk/Trail Compost-Amended Strip\",MAX(V219/H221,AP219*V219),\nIF(OR(AO219=\"Infiltrating Soil Cell Bioretention with Tree\",AO219=\"Non-Infiltrating Soil Cell Bioretention with Tree\"),MAX(AP219*V219,AQ227),\nAP219*V219))),\"#,##0\")&\" \"&AR219))))),\"\")","v":""},null,null,null,null,null,null,null,null,null,null,18,{"$f":"INDEX($AP$7:$AP$46,MATCH(AN219,$AO$7:$AO$46,0))","v":{"$error":"#N/A"}},{"$f":"IF(AO219=\"Trees\", INDEX(Lookup!$G$97:$G$365,MATCH(TRIM(CONCATENATE(AO219,V221)),Lookup!$F$97:$F$365,0)),\nIF(AO219=\"Residential Cistern\", INDEX(Lookup!$G$97:$G$365,MATCH(TRIM(CONCATENATE(AO219,IF(V219<400,0,IF(V219>4200,4201,ROUNDDOWN(V219,-2))))),Lookup!$F$97:$F$365,0)),\nIF(AO219=\"Sidewalk/Trail Compost-Amended Strip\", IF(H221=\"\",NA(),IF(H221<10,Lookup!$G$99,Lookup!$G$98)),\nIF(AND(AO219=\"Non-Infiltrating Bioretention\",V223=\"Sloped sides\",V221=6),IF(V219<=2000,0.025,0.028),\nINDEX(Lookup!$G$97:$G$365,MATCH(TRIM(CONCATENATE(AO219,V221,V223,V225,V227)),Lookup!$F$97:$F$365,0))))))","v":{"$error":"#N/A"}},{"$f":"IF(AP219<=0,NA(),IF(OR(AO219=\"Permeable Pavement Facility\",AO219=\"Vegetated Roof System\",AO219=\"Rainwater Harvesting - Category 1\",AO219=\"Rainwater Harvesting - Category 4\"),H221,\nIF(AO219=\"Sidewalk/Trail Compost-Amended Strip\",MAX(V219/H221,AP219*V219),\nIF(OR(AO219=\"Infiltrating Soil Cell Bioretention with Tree\",AO219=\"Non-Infiltrating Soil Cell Bioretention with Tree\"),MAX(AP219*V219,AQ227),\nAP219*V219))))","v":{"$error":"#N/A"}},{"$f":"IF(AO219=\"Residential Cistern\",\n\"sf\",INDEX(Lookup!$I$97:$I$365,MATCH(TRIM(CONCATENATE(AO219,V221,V223,V225,V227)),Lookup!$F$97:$F$365,0)))","v":{"$error":"#N/A"}},{"$f":"IF(AO219=\"Trees\", INDEX(Lookup!$H$97:$H$365,MATCH(TRIM(CONCATENATE(AO219,V221)),Lookup!$F$97:$F$365,0))*V223,\nIF(AO219=\"Residential Cistern\", INDEX(Lookup!$H$97:$H$365,MATCH(TRIM(CONCATENATE(AO219,IF(V219<400,0,IF(V219>4200,4201,ROUNDDOWN(V219,-2))))),Lookup!$F$97:$F$365,0))*V219,\nIF(AND(AO219=\"Sidewalk/Trail Compost-Amended Strip\",OR(H221=\"\",InfRate=0)),NA(),\nINDEX(Lookup!$H$97:$H$365,MATCH(TRIM(CONCATENATE(AO219,V221,V223,V225,V227)),Lookup!$F$97:$F$365,0))*V219)))*7.48052\n*IF(OR(AO219=\"Permeable Pavement Facility\",AO219=\"Vegetated Roof System\"),MIN(1,H221/(AP219*V219)),1)\n+IF(AO219=\"Permeable Pavement Facility\",H221*2.1*7.48052,1)","v":{"$error":"#N/A"}},{"$f":"IFERROR(\nIF(AO219=\"Residential Cistern\",INDEX(Lookup!$I$97:$I$365,MATCH(TRIM(CONCATENATE(AO219,IF(V219<400,0,IF(V219>4200,4201,ROUNDDOWN(V219,-2))))),Lookup!$F$97:$F$365,0)),\nIF(AO219=\"Sidewalk/Trail Compost-Amended Strip\",ROUND(AQ219/(V219/H221),1) &\" ft wide x \"& ROUND(V219/H221,0)&\" ft long\",\nIF(OR(AO219=\"Rainwater Harvesting - Category 1\",AO219=\"Rainwater Harvesting - Category 4\"),\" required minimum live storage\",\nIF(AO219=\"Water Quality BMP in lieu of NIB\",\"See Plan\",\nIF(AND(V221=\"\",V223=\"\",V225=\"\"),\"\",TRIM(V223&\" \"&AP223&\" \"&V221&\" \"&AP221&\" \"&V225&\" \"&AP225)))))),\"\")","v":""}]
[]
[null,{"$f":"IFERROR(\nIF(AO219=\"Permeable Pavement Facility\",\"Facility Area (sf)\",\nIF(AO219=\"Vegetated Roof System\",\"Vegetated Area (sf)\",\nIF(AO219=\"Sidewalk/Trail Compost-Amended Strip\",\"Sidewalk/Trail Width (ft)\",\nIF(OR(AO219=\"Rainwater Harvesting - Category 1\",AO219=\"Rainwater Harvesting - Category 4\"),\"Live Storage Volume (gal)\",\n\"\")))),\"\")","v":""},null,null,null,null,null,null,null,null,null,null,null,{"$f":"IFERROR(INDEX(Lookup!$C$70:$C$94,MATCH(AO219,Lookup!$A$70:$A$94,0)),\"\")","v":""},null,null,null,null,null,null,null,null,null,null,null,null,null,null,{"$f":"IFERROR(TEXT(AS219,\"#,##0\")&\" gal managed/year\",IFERROR(IF(AP219=0,\"Infiltration rate too low.\",\"\"),\"\"))","v":""},null,null,null,null,null,null,null,null,null,null,null,{"$f":"TRIM(SUBSTITUTE(SUBSTITUTE(SUBSTITUTE(AO219,\" \",\"\"),\"-\",\"\"),\"/\",\"\")&\"List1\")","v":{"$error":"#N/A"}},{"$f":"IFERROR(INDEX(Lookup!$G$70:$G$94,MATCH(AO219,Lookup!$A$70:$A$94,0)),\"\")","v":""}]
[]
[null,{"$f":"IFERROR(\nIF(OR(AO219=\"Permeable Pavement Facility\",AO219=\"Vegetated Roof System\"),\"Minimum Facility Area \"&TEXT((AP219*V219),\"#,###\")&\" sf\",\nIF(OR(AO219=\"Rainwater Harvesting - Category 1\",AO219=\"Rainwater Harvesting - Category 4\"),\"Continuous runoff modeling required by\",\n\"\")),\"\")","v":""},null,null,null,null,null,null,null,null,null,null,null,{"$f":"IFERROR(INDEX(Lookup!$D$70:$D$94,MATCH(AO219,Lookup!$A$70:$A$94,0)),\"\")","v":""},null,null,null,null,null,null,null,null,null,null,null,null,null,null,{"$f":"IFERROR(IF(AO219=\"Sidewalk/Trail Compost-Amended Strip\",ROUND(AQ219/(V219/H221),1) &\" ft wide compost-amended strip\",\nIF(OR(AO219=\"Infiltrating Soil Cell Bioretention with Tree\",AO219=\"Non-Infiltrating Soil Cell Bioretention with Tree\"),\"BMP size excludes tree planting area\",\nIF(AO219=\"Residential Cistern\",IF(AQ219=-999,\"\",IF(V219<800,3,IF(V219<1300,4,5)))&\" ft live storage\",\n\n\"\"))),\"\")","v":""},null,null,null,null,null,null,null,null,null,null,null,{"$f":"TRIM(SUBSTITUTE(SUBSTITUTE(SUBSTITUTE(AO219,\" \",\"\"),\"-\",\"\"),\"/\",\"\")&\"List2\")","v":{"$error":"#N/A"}},{"$f":"IFERROR(INDEX(Lookup!$H$70:$H$94,MATCH(AO219,Lookup!$A$70:$A$94,0)),\"\")","v":""}]
[]
[null,{"$f":"IFERROR(IF(OR(AO219=\"Rainwater Harvesting - Category 1\",AO219=\"Rainwater Harvesting - Category 4\"),\"professional engineer.\",\n\"\"),\"\")","v":""},null,null,null,null,null,null,null,null,null,null,null,{"$f":"IFERROR(INDEX(Lookup!$E$70:$E$94,MATCH(AO219,Lookup!$A$70:$A$94,0)),\"\")","v":""},null,null,null,null,null,null,null,null,null,null,null,null,null,null,{"$f":"IFERROR(IF(AO219=\"Sidewalk/Trail Compost-Amended Strip\",IF(AND(AC223=\"\",H221<>\"\"),\"\",\"along full \"& ROUND(V219/H221,0) &\" ft trail/sidewalk\"),\"\"),\"\")","v":""},null,null,null,null,null,null,null,null,null,null,null,{"$f":"TRIM(SUBSTITUTE(SUBSTITUTE(SUBSTITUTE(AO219,\" \",\"\"),\"-\",\"\"),\"/\",\"\")&\"List3\")","v":{"$error":"#N/A"}},{"$f":"IFERROR(INDEX(Lookup!$H$70:$H$94,MATCH(AO221,Lookup!$A$70:$A$94,0)),\"\")","v":""},{"$f":"IF(OR(AO219=\"Infiltrating Soil Cell Bioretention with Tree\",AO219=\"Non-Infiltrating Soil Cell Bioretention with Tree\"),\"min footprint to meet soil volume\",\"\")","v":{"$error":"#N/A"}},{"$f":"IF(OR(AO219=\"Infiltrating Soil Cell Bioretention with Tree\",AO219=\"Non-Infiltrating Soil Cell Bioretention with Tree\"),\"min soil volume\",\"\")","v":{"$error":"#N/A"}}]
[]
[null,null,null,null,null,null,null,null,null,null,null,null,null,{"$f":"IFERROR(INDEX(Lookup!$F$70:$F$94,MATCH(AO219,Lookup!$A$70:$A$94,0)),\"\")","v":""},null,null,null,null,null,null,null,null,null,null,null,null,null,null,null,null,null,null,null,null,null,null,null,null,null,null,{"$f":"TRIM(SUBSTITUTE(SUBSTITUTE(SUBSTITUTE(AO219,\" \",\"\"),\"-\",\"\"),\"/\",\"\")&\"List4\")","v":{"$error":"#N/A"}},null,{"$f":"IF(AO219=\"Infiltrating Soil Cell Bioretention with Tree\",AR227/(V227/12),\nIF(AO219=\"Non-Infiltrating Soil Cell Bioretention with Tree\",AR227/(V225/12),\"\"))","v":{"$error":"#N/A"}},{"$f":"IF(AO219=\"Infiltrating Soil Cell Bioretention with Tree\",_xlfn.XLOOKUP(V225,InfiltratingSoilCellBioretentionwithTreeList3,Lookup!$U$51:$U$55),\nIF(AO219=\"Non-Infiltrating Soil Cell Bioretention with Tree\",_xlfn.XLOOKUP(V223,NonInfiltratingSoilCellBioretentionwithTreeList2,Lookup!$U$51:$U$55,\"\")))","v":{"$error":"#N/A"}}]
[null,null,null,null,null,null,null,null,null,null,null,null,null," "]
[null,{"$f":"IFERROR(IF(INDEX($K$7:$K$46,MATCH(AN229,$AO$7:$AO$46,0))=\"\",\"\",INDEX($K$7:$K$46,MATCH(AN229,$AO$7:$AO$46,0))),\"\")","v":""},null,null,null,null,null,null,null,null,null,null,null,{"$f":"IF(B229=\"\",\"\",IF(AO229=\"Vegetated Roof System\",\"Roof Area\",\"Contributing Area (sf)\"))","v":""},null,null,null,null,null,null,null,{"$f":"IF(B229=\"\",\"\",SUMIF($AO$7:$AO$46,AN229,$F$7:$I$46))","v":""},null,null,null,null,null,null,{"$f":"IFERROR(IF(AO229=\"Water Quality BMP in lieu of NIB\",\"Submit sizing documentation separately.\",\nIF(AP229=-999,\"Configuration not allowed.\",IF(AP229=0,\"Configuration not allowed.\",IF(AO229=\"Trees\",\"As many as feasible.\",\nIF(AP229=\"equation\",TEXT(AQ229,\"#,##0\")&\" \"&AR229,\nTEXT(IF(OR(AO229=\"Permeable Pavement Facility\",AO229=\"Vegetated Roof System\",AO229=\"Rainwater Harvesting - Category 1\", AO229=\"Rainwater Harvesting - Category 4\"),H231,\nIF(AO229=\"Sidewalk/Trail Compost-Amended Strip\",MAX(V229/H231,AP229*V229),\nIF(OR(AO229=\"Infiltrating Soil Cell Bioretention with Tree\",AO229=\"Non-Infiltrating Soil Cell Bioretention with Tree\"),MAX(AP229*V229,AQ237),\nAP229*V229))),\"#,##0\")&\" \"&AR229))))),\"\")","v":""},null,null,null,null,null,null,null,null,null,null,19,{"$f":"INDEX($AP$7:$AP$46,MATCH(AN229,$AO$7:$AO$46,0))","v":{"$error":"#N/A"}},{"$f":"IF(AO229=\"Trees\", INDEX(Lookup!$G$97:$G$365,MATCH(TRIM(CONCATENATE(AO229,V231)),Lookup!$F$97:$F$365,0)),\nIF(AO229=\"Residential Cistern\", INDEX(Lookup!$G$97:$G$365,MATCH(TRIM(CONCATENATE(AO229,IF(V229<400,0,IF(V229>4200,4201,ROUNDDOWN(V229,-2))))),Lookup!$F$97:$F$365,0)),\nIF(AO229=\"Sidewalk/Trail Compost-Amended Strip\", IF(H231=\"\",NA(),IF(H231<10,Lookup!$G$99,Lookup!$G$98)),\nIF(AND(AO229=\"Non-Infiltrating Bioretention\",V233=\"Sloped sides\",V231=6),IF(V229<=2000,0.025,0.028),\nINDEX(Lookup!$G$97:$G$365,MATCH(TRIM(CONCATENATE(AO229,V231,V233,V235,V237)),Lookup!$F$97:$F$365,0))))))","v":{"$error":"#N/A"}},{"$f":"IF(AP229<=0,NA(),IF(OR(AO229=\"Permeable Pavement Facility\",AO229=\"Vegetated Roof System\",AO229=\"Rainwater Harvesting - Category 1\",AO229=\"Rainwater Harvesting - Category 4\"),H231,\nIF(AO229=\"Sidewalk/Trail Compost-Amended Strip\",MAX(V229/H231,AP229*V229),\nIF(OR(AO229=\"Infiltrating Soil Cell Bioretention with Tree\",AO229=\"Non-Infiltrating Soil Cell Bioretention with Tree\"),MAX(AP229*V229,AQ237),\nAP229*V229))))","v":{"$error":"#N/A"}},{"$f":"IF(AO229=\"Residential Cistern\",\n\"sf\",INDEX(Lookup!$I$97:$I$365,MATCH(TRIM(CONCATENATE(AO229,V231,V233,V235,V237)),Lookup!$F$97:$F$365,0)))","v":{"$error":"#N/A"}},{"$f":"IF(AO229=\"Trees\", INDEX(Lookup!$H$97:$H$365,MATCH(TRIM(CONCATENATE(AO229,V231)),Lookup!$F$97:$F$365,0))*V233,\nIF(AO229=\"Residential Cistern\", INDEX(Lookup!$H$97:$H$365,MATCH(TRIM(CONCATENATE(AO229,IF(V229<400,0,IF(V229>4200,4201,ROUNDDOWN(V229,-2))))),Lookup!$F$97:$F$365,0))*V229,\nIF(AND(AO229=\"Sidewalk/Trail Compost-Amended Strip\",OR(H231=\"\",InfRate=0)),NA(),\nINDEX(Lookup!$H$97:$H$365,MATCH(TRIM(CONCATENATE(AO229,V231,V233,V235,V237)),Lookup!$F$97:$F$365,0))*V229)))*7.48052\n*IF(OR(AO229=\"Permeable Pavement Facility\",AO229=\"Vegetated Roof System\"),MIN(1,H231/(AP229*V229)),1)\n+IF(AO229=\"Permeable Pavement Facility\",H231*2.1*7.48052,1)","v":{"$error":"#N/A"}},{"$f":"IFERROR(\nIF(AO229=\"Residential Cistern\",INDEX(Lookup!$I$97:$I$365,MATCH(TRIM(CONCATENATE(AO229,IF(V229<400,0,IF(V229>4200,4201,ROUNDDOWN(V229,-2))))),Lookup!$F$97:$F$365,0)),\nIF(AO229=\"Sidewalk/Trail Compost-Amended Strip\",ROUND(AQ229/(V229/H231),1) &\" ft wide x \"& ROUND(V229/H231,0)&\" ft long\",\nIF(OR(AO229=\"Rainwater Harvesting - Category 1\",AO229=\"Rainwater Harvesting - Category 4\"),\" required minimum live storage\",\nIF(AO229=\"Water Quality BMP in lieu of NIB\",\"See Plan\",\nIF(AND(V231=\"\",V233=\"\",V235=\"\"),\"\",TRIM(V233&\" \"&AP233&\" \"&V231&\" \"&AP231&\" \"&V235&\" \"&AP235)))))),\"\")","v":""}]
[]
[null,{"$f":"IFERROR(\nIF(AO229=\"Permeable Pavement Facility\",\"Facility Area (sf)\",\nIF(AO229=\"Vegetated Roof System\",\"Vegetated Area (sf)\",\nIF(AO229=\"Sidewalk/Trail Compost-Amended Strip\",\"Sidewalk/Trail Width (ft)\",\nIF(OR(AO229=\"Rainwater Harvesting - Category 1\",AO229=\"Rainwater Harvesting - Category 4\"),\"Live Storage Volume (gal)\",\n\"\")))),\"\")","v":""},null,null,null,null,null,null,null,null,null,null,null,{"$f":"IFERROR(INDEX(Lookup!$C$70:$C$94,MATCH(AO229,Lookup!$A$70:$A$94,0)),\"\")","v":""},null,null,null,null,null,null,null,null,null,null,null,null,null,null,{"$f":"IFERROR(TEXT(AS229,\"#,##0\")&\" gal managed/year\",IFERROR(IF(AP229=0,\"Infiltration rate too low.\",\"\"),\"\"))","v":""},null,null,null,null,null,null,null,null,null,null,null,{"$f":"TRIM(SUBSTITUTE(SUBSTITUTE(SUBSTITUTE(AO229,\" \",\"\"),\"-\",\"\"),\"/\",\"\")&\"List1\")","v":{"$error":"#N/A"}},{"$f":"IFERROR(INDEX(Lookup!$G$70:$G$94,MATCH(AO229,Lookup!$A$70:$A$94,0)),\"\")","v":""}]
[]
[null,{"$f":"IFERROR(\nIF(OR(AO229=\"Permeable Pavement Facility\",AO229=\"Vegetated Roof System\"),\"Minimum Facility Area \"&TEXT((AP229*V229),\"#,###\")&\" sf\",\nIF(OR(AO229=\"Rainwater Harvesting - Category 1\",AO229=\"Rainwater Harvesting - Category 4\"),\"Continuous runoff modeling required by\",\n\"\")),\"\")","v":""},null,null,null,null,null,null,null,null,null,null,null,{"$f":"IFERROR(INDEX(Lookup!$D$70:$D$94,MATCH(AO229,Lookup!$A$70:$A$94,0)),\"\")","v":""},null,null,null,null,null,null,null,null,null,null,null,null,null,null,{"$f":"IFERROR(IF(AO229=\"Sidewalk/Trail Compost-Amended Strip\",ROUND(AQ229/(V229/H231),1) &\" ft wide compost-amended strip\",\nIF(OR(AO229=\"Infiltrating Soil Cell Bioretention with Tree\",AO229=\"Non-Infiltrating Soil Cell Bioretention with Tree\"),\"BMP size excludes tree planting area\",\nIF(AO229=\"Residential Cistern\",IF(AQ229=-999,\"\",IF(V229<800,3,IF(V229<1300,4,5)))&\" ft live storage\",\n\n\"\"))),\"\")","v":""},null,null,null,null,null,null,null,null,null,null,null,{"$f":"TRIM(SUBSTITUTE(SUBSTITUTE(SUBSTITUTE(AO229,\" \",\"\"),\"-\",\"\"),\"/\",\"\")&\"List2\")","v":{"$error":"#N/A"}},{"$f":"IFERROR(INDEX(Lookup!$H$70:$H$94,MATCH(AO229,Lookup!$A$70:$A$94,0)),\"\")","v":""}]
[]
[null,{"$f":"IFERROR(IF(OR(AO229=\"Rainwater Harvesting - Category 1\",AO229=\"Rainwater Harvesting - Category 4\"),\"professional engineer.\",\n\"\"),\"\")","v":""},null,null,null,null,null,null,null,null,null,null,null,{"$f":"IFERROR(INDEX(Lookup!$E$70:$E$94,MATCH(AO229,Lookup!$A$70:$A$94,0)),\"\")","v":""},null,null,null,null,null,null,null,null,null,null,null,null,null,null,{"$f":"IFERROR(IF(AO229=\"Sidewalk/Trail Compost-Amended Strip\",IF(AND(AC233=\"\",H231<>\"\"),\"\",\"along full \"& ROUND(V229/H231,0) &\" ft trail/sidewalk\"),\"\"),\"\")","v":""},null,null,null,null,null,null,null,null,null,null,null,{"$f":"TRIM(SUBSTITUTE(SUBSTITUTE(SUBSTITUTE(AO229,\" \",\"\"),\"-\",\"\"),\"/\",\"\")&\"List3\")","v":{"$error":"#N/A"}},{"$f":"IFERROR(INDEX(Lookup!$H$70:$H$94,MATCH(AO231,Lookup!$A$70:$A$94,0)),\"\")","v":""},{"$f":"IF(OR(AO229=\"Infiltrating Soil Cell Bioretention with Tree\",AO229=\"Non-Infiltrating Soil Cell Bioretention with Tree\"),\"min footprint to meet soil volume\",\"\")","v":{"$error":"#N/A"}},{"$f":"IF(OR(AO229=\"Infiltrating Soil Cell Bioretention with Tree\",AO229=\"Non-Infiltrating Soil Cell Bioretention with Tree\"),\"min soil volume\",\"\")","v":{"$error":"#N/A"}}]
[]
[null,null,null,null,null,null,null,null,null,null,null,null,null,{"$f":"IFERROR(INDEX(Lookup!$F$70:$F$94,MATCH(AO229,Lookup!$A$70:$A$94,0)),\"\")","v":""},null,null,null,null,null,null,null,null,null,null,null,null,null,null,null,null,null,null,null,null,null,null,null,null,null,null,{"$f":"TRIM(SUBSTITUTE(SUBSTITUTE(SUBSTITUTE(AO229,\" \",\"\"),\"-\",\"\"),\"/\",\"\")&\"List4\")","v":{"$error":"#N/A"}},null,{"$f":"IF(AO229=\"Infiltrating Soil Cell Bioretention with Tree\",AR237/(V237/12),\nIF(AO229=\"Non-Infiltrating Soil Cell Bioretention with Tree\",AR237/(V235/12),\"\"))","v":{"$error":"#N/A"}},{"$f":"IF(AO229=\"Infiltrating Soil Cell Bioretention with Tree\",_xlfn.XLOOKUP(V235,InfiltratingSoilCellBioretentionwithTreeList3,Lookup!$U$51:$U$55),\nIF(AO229=\"Non-Infiltrating Soil Cell Bioretention with Tree\",_xlfn.XLOOKUP(V233,NonInfiltratingSoilCellBioretentionwithTreeList2,Lookup!$U$51:$U$55,\"\")))","v":{"$error":"#N/A"}}]
[null,null,null,null,null,null,null,null,null,null,null,null,null," "]
[null,{"$f":"IFERROR(IF(INDEX($K$7:$K$46,MATCH(AN239,$AO$7:$AO$46,0))=\"\",\"\",INDEX($K$7:$K$46,MATCH(AN239,$AO$7:$AO$46,0))),\"\")","v":""},null,null,null,null,null,null,null,null,null,null,null,{"$f":"IF(B239=\"\",\"\",IF(AO239=\"Vegetated Roof System\",\"Roof Area\",\"Contributing Area (sf)\"))","v":""},null,null,null,null,null,null,null,{"$f":"IF(B239=\"\",\"\",SUMIF($AO$7:$AO$46,AN239,$F$7:$I$46))","v":""},null,null,null,null,null,null,{"$f":"IFERROR(IF(AO239=\"Water Quality BMP in lieu of NIB\",\"Submit sizing documentation separately.\",\nIF(AP239=-999,\"Configuration not allowed.\",IF(AP239=0,\"Configuration not allowed.\",IF(AO239=\"Trees\",\"As many as feasible.\",\nIF(AP239=\"equation\",TEXT(AQ239,\"#,##0\")&\" \"&AR239,\nTEXT(IF(OR(AO239=\"Permeable Pavement Facility\",AO239=\"Vegetated Roof System\",AO239=\"Rainwater Harvesting - Category 1\", AO239=\"Rainwater Harvesting - Category 4\"),H241,\nIF(AO239=\"Sidewalk/Trail Compost-Amended Strip\",MAX(V239/H241,AP239*V239),\nIF(OR(AO239=\"Infiltrating Soil Cell Bioretention with Tree\",AO239=\"Non-Infiltrating Soil Cell Bioretention with Tree\"),MAX(AP239*V239,AQ247),\nAP239*V239))),\"#,##0\")&\" \"&AR239))))),\"\")","v":""},null,null,null,null,null,null,null,null,null,null,20,{"$f":"INDEX($AP$7:$AP$46,MATCH(AN239,$AO$7:$AO$46,0))","v":{"$error":"#N/A"}},{"$f":"IF(AO239=\"Trees\", INDEX(Lookup!$G$97:$G$365,MATCH(TRIM(CONCATENATE(AO239,V241)),Lookup!$F$97:$F$365,0)),\nIF(AO239=\"Residential Cistern\", INDEX(Lookup!$G$97:$G$365,MATCH(TRIM(CONCATENATE(AO239,IF(V239<400,0,IF(V239>4200,4201,ROUNDDOWN(V239,-2))))),Lookup!$F$97:$F$365,0)),\nIF(AO239=\"Sidewalk/Trail Compost-Amended Strip\", IF(H241=\"\",NA(),IF(H241<10,Lookup!$G$99,Lookup!$G$98)),\nIF(AND(AO239=\"Non-Infiltrating Bioretention\",V243=\"Sloped sides\",V241=6),IF(V239<=2000,0.025,0.028),\nINDEX(Lookup!$G$97:$G$365,MATCH(TRIM(CONCATENATE(AO239,V241,V243,V245,V247)),Lookup!$F$97:$F$365,0))))))","v":{"$error":"#N/A"}},{"$f":"IF(AP239<=0,NA(),IF(OR(AO239=\"Permeable Pavement Facility\",AO239=\"Vegetated Roof System\",AO239=\"Rainwater Harvesting - Category 1\",AO239=\"Rainwater Harvesting - Category 4\"),H241,\nIF(AO239=\"Sidewalk/Trail Compost-Amended Strip\",MAX(V239/H241,AP239*V239),\nIF(OR(AO239=\"Infiltrating Soil Cell Bioretention with Tree\",AO239=\"Non-Infiltrating Soil Cell Bioretention with Tree\"),MAX(AP239*V239,AQ247),\nAP239*V239))))","v":{"$error":"#N/A"}},{"$f":"IF(AO239=\"Residential Cistern\",\n\"sf\",INDEX(Lookup!$I$97:$I$365,MATCH(TRIM(CONCATENATE(AO239,V241,V243,V245,V247)),Lookup!$F$97:$F$365,0)))","v":{"$error":"#N/A"}},{"$f":"IF(AO239=\"Trees\", INDEX(Lookup!$H$97:$H$365,MATCH(TRIM(CONCATENATE(AO239,V241)),Lookup!$F$97:$F$365,0))*V243,\nIF(AO239=\"Residential Cistern\", INDEX(Lookup!$H$97:$H$365,MATCH(TRIM(CONCATENATE(AO239,IF(V239<400,0,IF(V239>4200,4201,ROUNDDOWN(V239,-2))))),Lookup!$F$97:$F$365,0))*V239,\nIF(AND(AO239=\"Sidewalk/Trail Compost-Amended Strip\",OR(H241=\"\",InfRate=0)),NA(),\nINDEX(Lookup!$H$97:$H$365,MATCH(TRIM(CONCATENATE(AO239,V241,V243,V245,V247)),Lookup!$F$97:$F$365,0))*V239)))*7.48052\n*IF(OR(AO239=\"Permeable Pavement Facility\",AO239=\"Vegetated Roof System\"),MIN(1,H241/(AP239*V239)),1)\n+IF(AO239=\"Permeable Pavement Facility\",H241*2.1*7.48052,1)","v":{"$error":"#N/A"}},{"$f":"IFERROR(\nIF(AO239=\"Residential Cistern\",INDEX(Lookup!$I$97:$I$365,MATCH(TRIM(CONCATENATE(AO239,IF(V239<400,0,IF(V239>4200,4201,ROUNDDOWN(V239,-2))))),Lookup!$F$97:$F$365,0)),\nIF(AO239=\"Sidewalk/Trail Compost-Amended Strip\",ROUND(AQ239/(V239/H241),1) &\" ft wide x \"& ROUND(V239/H241,0)&\" ft long\",\nIF(OR(AO239=\"Rainwater Harvesting - Category 1\",AO239=\"Rainwater Harvesting - Category 4\"),\" required minimum live storage\",\nIF(AO239=\"Water Quality BMP in lieu of NIB\",\"See Plan\",\nIF(AND(V241=\"\",V243=\"\",V245=\"\"),\"\",TRIM(V243&\" \"&AP243&\" \"&V241&\" \"&AP241&\" \"&V245&\" \"&AP245)))))),\"\")","v":""}]
[]
[null,{"$f":"IFERROR(\nIF(AO239=\"Permeable Pavement Facility\",\"Facility Area (sf)\",\nIF(AO239=\"Vegetated Roof System\",\"Vegetated Area (sf)\",\nIF(AO239=\"Sidewalk/Trail Compost-Amended Strip\",\"Sidewalk/Trail Width (ft)\",\nIF(OR(AO239=\"Rainwater Harvesting - Category 1\",AO239=\"Rainwater Harvesting - Category 4\"),\"Live Storage Volume (gal)\",\n\"\")))),\"\")","v":""},null,null,null,null,null,null,null,null,null,null,null,{"$f":"IFERROR(INDEX(Lookup!$C$70:$C$94,MATCH(AO239,Lookup!$A$70:$A$94,0)),\"\")","v":""},null,null,null,null,null,null,null,null,null,null,null,null,null,null,{"$f":"IFERROR(TEXT(AS239,\"#,##0\")&\" gal managed/year\",IFERROR(IF(AP239=0,\"Infiltration rate too low.\",\"\"),\"\"))","v":""},null,null,null,null,null,null,null,null,null,null,null,{"$f":"TRIM(SUBSTITUTE(SUBSTITUTE(SUBSTITUTE(AO239,\" \",\"\"),\"-\",\"\"),\"/\",\"\")&\"List1\")","v":{"$error":"#N/A"}},{"$f":"IFERROR(INDEX(Lookup!$G$70:$G$94,MATCH(AO239,Lookup!$A$70:$A$94,0)),\"\")","v":""}]
[]
[null,{"$f":"IFERROR(\nIF(OR(AO239=\"Permeable Pavement Facility\",AO239=\"Vegetated Roof System\"),\"Minimum Facility Area \"&TEXT((AP239*V239),\"#,###\")&\" sf\",\nIF(OR(AO239=\"Rainwater Harvesting - Category 1\",AO239=\"Rainwater Harvesting - Category 4\"),\"Continuous runoff modeling required by\",\n\"\")),\"\")","v":""},null,null,null,null,null,null,null,null,null,null,null,{"$f":"IFERROR(INDEX(Lookup!$D$70:$D$94,MATCH(AO239,Lookup!$A$70:$A$94,0)),\"\")","v":""},null,null,null,null,null,null,null,null,null,null,null,null,null,null,{"$f":"IFERROR(IF(AO239=\"Sidewalk/Trail Compost-Amended Strip\",ROUND(AQ239/(V239/H241),1) &\" ft wide compost-amended strip\",\nIF(OR(AO239=\"Infiltrating Soil Cell Bioretention with Tree\",AO239=\"Non-Infiltrating Soil Cell Bioretention with Tree\"),\"BMP size excludes tree planting area\",\nIF(AO239=\"Residential Cistern\",IF(AQ239=-999,\"\",IF(V239<800,3,IF(V239<1300,4,5)))&\" ft live storage\",\n\n\"\"))),\"\")","v":""},null,null,null,null,null,null,null,null,null,null,null,{"$f":"TRIM(SUBSTITUTE(SUBSTITUTE(SUBSTITUTE(AO239,\" \",\"\"),\"-\",\"\"),\"/\",\"\")&\"List2\")","v":{"$error":"#N/A"}},{"$f":"IFERROR(INDEX(Lookup!$H$70:$H$94,MATCH(AO239,Lookup!$A$70:$A$94,0)),\"\")","v":""}]
[]
[null,{"$f":"IFERROR(IF(OR(AO239=\"Rainwater Harvesting - Category 1\",AO239=\"Rainwater Harvesting - Category 4\"),\"professional engineer.\",\n\"\"),\"\")","v":""},null,null,null,null,null,null,null,null,null,null,null,{"$f":"IFERROR(INDEX(Lookup!$E$70:$E$94,MATCH(AO239,Lookup!$A$70:$A$94,0)),\"\")","v":""},null,null,null,null,null,null,null,null,null,null,null,null,null,null,{"$f":"IFERROR(IF(AO239=\"Sidewalk/Trail Compost-Amended Strip\",IF(AND(AC243=\"\",H241<>\"\"),\"\",\"along full \"& ROUND(V239/H241,0) &\" ft trail/sidewalk\"),\"\"),\"\")","v":""},null,null,null,null,null,null,null,null,null,null,null,{"$f":"TRIM(SUBSTITUTE(SUBSTITUTE(SUBSTITUTE(AO239,\" \",\"\"),\"-\",\"\"),\"/\",\"\")&\"List3\")","v":{"$error":"#N/A"}},{"$f":"IFERROR(INDEX(Lookup!$H$70:$H$94,MATCH(AO241,Lookup!$A$70:$A$94,0)),\"\")","v":""},{"$f":"IF(OR(AO239=\"Infiltrating Soil Cell Bioretention with Tree\",AO239=\"Non-Infiltrating Soil Cell Bioretention with Tree\"),\"min footprint to meet soil volume\",\"\")","v":{"$error":"#N/A"}},{"$f":"IF(OR(AO239=\"Infiltrating Soil Cell Bioretention with Tree\",AO239=\"Non-Infiltrating Soil Cell Bioretention with Tree\"),\"min soil volume\",\"\")","v":{"$error":"#N/A"}}]
[]
[null,null,null,null,null,null,null,null,null,null,null,null,null,{"$f":"IFERROR(INDEX(Lookup!$F$70:$F$94,MATCH(AO239,Lookup!$A$70:$A$94,0)),\"\")","v":""},null,null,null,null,null,null,null,null,null,null,null,null,null,null,null,null,null,null,null,null,null,null,null,null,null,null,{"$f":"TRIM(SUBSTITUTE(SUBSTITUTE(SUBSTITUTE(AO239,\" \",\"\"),\"-\",\"\"),\"/\",\"\")&\"List4\")","v":{"$error":"#N/A"}},null,{"$f":"IF(AO239=\"Infiltrating Soil Cell Bioretention with Tree\",AR247/(V247/12),\nIF(AO239=\"Non-Infiltrating Soil Cell Bioretention with Tree\",AR247/(V245/12),\"\"))","v":{"$error":"#N/A"}},{"$f":"IF(AO239=\"Infiltrating Soil Cell Bioretention with Tree\",_xlfn.XLOOKUP(V245,InfiltratingSoilCellBioretentionwithTreeList3,Lookup!$U$51:$U$55),\nIF(AO239=\"Non-Infiltrating Soil Cell Bioretention with Tree\",_xlfn.XLOOKUP(V243,NonInfiltratingSoilCellBioretentionwithTreeList2,Lookup!$U$51:$U$55,\"\")))","v":{"$error":"#N/A"}}]
[]
[null,"*If Flow Control or Water Quality Treatment are required, check the sizing below with the sizing from the Flow Control and Water Quality calculations (i.e. other calculator or engineering calculations)"]

{"sheet":"Infeasibility Criteria","index":9,"n_rows":356,"n_cols":3,"rows_kept":356,"cut":false,"hidden":false,"merged":[[0,0,0,3]]}
["On-site Stormwater Management Calculator"]
[null,null,"Infeasibility Criteria"]
[{"$f":"Version","v":"Version 05-22-2026"}]
[]
["Infeasibility Criteria"]
[null,"Full Dispersion"]
[null,1,"The site has less than a 65 to 10 ratio of the native vegetation area to the impervious area."]
[null,2,"The minimum native vegetation flowpath length is less than 100 feet."]
[null,3,"A licensed professional recommends dispersion not be used anywhere within project site due to reasonable concerns of erosion, slope failure, or flooding."]
[null,4,"The dispersion flow path area does not provide positive drainage."]
[null,5,"The dispersion flowpath area is within a landslide-prone area (SMC, Section 25.09.080)."]
[null,6,"The dispersion flowpath area is within 100 feet of a contaminated site or landfill (active or closed)."]
[null,7,"The dispersion flowpath area is in a steep slope area (SMC, Section 25.09.020) or within a setback to a steep slope area (calculated as 10 times the height of the steep slope to a 500 foot maximum setback)."]
[null,8,"The dispersion flowpath area is within 10 feet of a proposed or existing septic system or drainfield. "]
[null,9,"Installation requires removal of an existing tree. "]
[null,10,"Installation is prohibited per Regulations for Environmentally Critical Areas (SMC Chapter 25.09)."]
[null,11,"Installation would require pumping to a designated point of discharge, but failure of the pump may destabilize a steep slope."]
[null,12,"Unable to maintain a desired access of 36 inches in a required building setback from a property line. "]
[null,13,"Unable to maintain clearance for required ingress, egress, or ADA pathways."]
[null,14,"Installation would require a pump when a pump is not already required to provide site storm drainage."]
[null,"Infiltration Trench"]
[null,1,"Field testing indicates potential infiltration trench site(s) have a measured underlying soil infiltration rate less than 2 inches per hour (Volume 3, Section 5.4.2)."]
[null,2,"Evaluation of infiltration is not required per the “Infiltration Investigation Map”."]
[null,3,"The area available for siting does not allow for overflow conveyance to an approved point of discharge per Volume 3, Section 4.3.2."]
[null,4,"The area available for siting is within an ECA steep slope area or land-slide prone area (or setback) (refer to Volume 3, Section 3.2)."]
[null,5,"The area available for siting does not meet the minimum horizontal setback requirements (refer to Volume 3, Section 3.2)."]
[null,6,"The area available for siting does not meet the minimum vertical setback requirements (refer to Volume 3, Section 3.2, and Appendix D)."]
[null,7,"The minimum vertical separation from groundwater or a hydraulically restrictive soil per Appendix D, Section D-2.2.4, or solid rock, cannot be met."]
[null,8,"Infiltration is restricted due to contaminated soil or groundwater (refer to Volume 3, Section 3.2)."]
[null,9,"Installation requires removal of an existing tree. "]
[null,10,"Where BMP installation is prohibited per Regulations for Environmentally Critical Areas (SMC Chapter 25.09)."]
[null,11,"Installation would require pumping to a designated point of discharge, but failure of the pump may destabilize a steep slope."]
[null,12,"Installation would require a pump when a pump is not already required to provide site storm drainage."]
[null,13,"Infiltration is not recommended due to reasonable concerns about erosion, slope failure, or flooding. (Requires site-specific evaluation and documentation by a licensed professional.) "]
[null,14,"The area available for siting would threaten the safety or reliability of pre-existing underground utilities, pre-existing underground storage tanks, pre-existing structures, or pre-existing road or parking lot surfaces or subgrades.  (Requires site-specific evaluation and documentation by a licensed professional.) "]
[null,15,"The area available for siting would threaten shoreline structures such as bulkheads. (Requires site-specific evaluation and documentation by a licensed professional.) "]
[null,16,"The area available for siting would threaten existing or proposed buildings or structures. (Requires site-specific evaluation and documentation by a licensed professional.) "]
[null,17,"Infiltration is not recommended based on the results of a Groundwater Mounding analysis or a Characterization of Infiltration Receptor analysis per Appendix D, Sections D-5 and D-6. (Requires site-specific evaluation and documentation by a licensed professional.) "]
[null,18,"Where the site cannot be reasonably designed to locate a catch basin between the infiltration trench and point of connection to the public system."]
[null,"Drywell"]
[null,1,"Field testing indicates potential drywell site(s) have a measured underlying soil infiltration rate less than 5 inches per hour (Volume 3, Section 5.4.3)."]
[null,2,"Evaluation of infiltration is not required per the “Infiltration Investigation Map”."]
[null,3,"The area available for siting does not allow for overflow conveyance to an approved point of discharge per Volume 3, Section 4.3.2."]
[null,4,"The area available for siting is within an ECA steep slope area or land-slide prone area (or setback) (refer to Volume 3, Section 3.2)."]
[null,5,"The area available for siting does not meet the minimum horizontal setback requirements (refer to Volume 3, Section 3.2)."]
[null,6,"The area available for siting does not meet the minimum vertical setback requirements (refer to Volume 3, Section 3.2, and Appendix D)."]
[null,7,"The minimum vertical separation from groundwater or a hydraulically restrictive soil per Appendix D, Section D-2.2.4, or solid rock, cannot be met."]
[null,8,"Infiltration is restricted due to contaminated soil or groundwater (refer to Volume 3, Section 3.2)."]
[null,9,"Installation requires removal of an existing tree. "]
[null,10,"Where BMP installation is prohibited per Regulations for Environmentally Critical Areas (SMC Chapter 25.09)."]
[null,11,"Installation would require pumping to a designated point of discharge, but failure of the pump may destabilize a steep slope."]
[null,12,"Installation would require a pump when a pump is not already required to provide site storm drainage."]
[null,13,"Infiltration is not recommended due to reasonable concerns about erosion, slope failure, or flooding. (Requires site-specific evaluation and documentation by a licensed professional.) "]
[null,14,"The area available for siting would threaten the safety or reliability of pre-existing underground utilities, pre-existing underground storage tanks, pre-existing structures, or pre-existing road or parking lot surfaces or subgrades.  (Requires site-specific evaluation and documentation by a licensed professional.) "]
[null,15,"The area available for siting would threaten shoreline structures such as bulkheads. (Requires site-specific evaluation and documentation by a licensed professional.) "]
[null,16,"The area available for siting would threaten existing or proposed buildings or structures. (Requires site-specific evaluation and documentation by a licensed professional.) "]
[null,17,"Infiltration is not recommended based on the results of a Groundwater Mounding analysis or a Characterization of Infiltration Receptor analysis per Appendix D, Sections D-5 and D-6. (Requires site-specific evaluation and documentation by a licensed professional.) "]
[null,18,"Where the site cannot be reasonably designed to locate a catch basin between the drywell and point of connection to the public system."]
[null,"Rain Garden"]
[null,1,"Field testing indicates soils have a measured underlying soil infiltration rate less than 0.3 inches per hour."]
[null,2,"Evaluation of infiltration is not required per the “Infiltration Investigation Map”."]
[null,3,"The facility is located within a 1/4 mile of Green Lake (nutrient critical water body), unless the optional HPBSM and polishing layer are used."]
[null,4,"The area available for siting does not allow for overflow conveyance to an approved point of discharge per Volume 3, Section 4.3.2."]
[null,5,"The area available for siting is within an ECA steep slope area or land-slide prone area (or setback) (refer to Volume 3, Section 3.2)."]
[null,6,"The area available for siting does not meet the minimum horizontal setback requirements (refer to Volume 3, Section 3.2)."]
[null,7,"The area available for siting does not meet the minimum vertical setback requirements (refer to Volume 3, Section 3.2, and Appendix D)."]
[null,8,"The minimum vertical separation from groundwater or a hydraulically restrictive soil per Appendix D, Section D-2.2.4, or solid rock, cannot be met."]
[null,9,"Infiltration is restricted due to contaminated soil or groundwater (refer to Volume 3, Section 3.2)."]
[null,10,"In the right-of-way, the longitudinal road slope exceeds 8 percent."]
[null,11,"The rain garden would have a linear geometry with a longitudinal slope greater than 8 percent."]
[null,12,"The minimum bottom width (12-inch average) or side slopes of the rain garden cannot be met due to, but not limited to: encroachment within the critical root zone of an existing tree(s) or minimum setbacks to structures, utilities, or property lines."]
[null,13,"The infiltration area is within the minimum vertical or horizontal clearance from utilities, according to clearances required by the utility owner."]
[null,14,"For projects in the right-of-way, the total rain garden top area would be less than 500 square feet and the project discharges to: A designated receiving water body or, A combined system, or A capacity constrained system which does not drain to a creek wetland or small lake."]
[null,15,"Installation requires removal of an existing tree. "]
[null,16,"Where BMP installation is prohibited per Regulations for Environmentally Critical Areas (SMC Chapter 25.09)."]
[null,17,"Installation would require pumping to a designated point of discharge, but failure of the pump may destabilize a steep slope."]
[null,18,"Unable to maintain a desired access of 36 inches in a required building setback from a property line. "]
[null,19,"Unable to maintain clearance for required ingress, egress, or ADA pathways."]
[null,20,"Installation would require a pump when a pump is not already required to provide site storm drainage."]
[null,21,"Infiltration is not recommended due to reasonable concerns about erosion, slope failure, or flooding. (Requires site-specific evaluation and documentation by a licensed professional.) "]
[null,22,"The area available for siting would threaten the safety or reliability of pre-existing underground utilities, pre-existing underground storage tanks, pre-existing structures, or pre-existing road or parking lot surfaces or subgrades.  (Requires site-specific evaluation and documentation by a licensed professional.) "]
[null,23,"The area available for siting would threaten shoreline structures such as bulkheads. (Requires site-specific evaluation and documentation by a licensed professional.) "]
[null,24,"The area available for siting would threaten existing or proposed buildings or structures. (Requires site-specific evaluation and documentation by a licensed professional.) "]
[null,25,"Infiltration is not recommended based on the results of a Groundwater Mounding analysis or a Characterization of Infiltration Receptor analysis per Appendix D, Sections D-5 and D-6. (Requires site-specific evaluation and documentation by a licensed professional.) "]
[null,"Infiltrating Bioretention"]
[null,1,"Evaluation of infiltration is not required per the “Infiltration Investigation Map”."]
[null,2,"Field testing indicates soils have a measured underlying soil infiltration rate less than 0.3 inches per hour."]
[null,3,"Field testing indicates soils have a measured underlying soil infiltration rate less than 0.6 inches per hour and an underdrain cannot be installed per the design criteria."]
[null,4,"The facility is located within a 1/4 mile of Green Lake (nutrient critical water body), unless the optional HPBSM and polishing layer are used."]
[null,5,"The area available for siting does not allow for overflow conveyance to an approved point of discharge per Volume 3, Section 4.3.2."]
[null,6,"The area available for siting is within an ECA steep slope area or land-slide prone area (or setback) (refer to Volume 3, Section 3.2)."]
[null,7,"The area available for siting does not meet the minimum horizontal setback requirements (refer to Volume 3, Section 3.2)."]
[null,8,"The area available for siting does not meet the minimum vertical setback requirements (refer to Volume 3, Section 3.2, and Appendix D)."]
[null,9,"The minimum vertical separation from groundwater or a hydraulically restrictive soil per Appendix D, Section D-2.2.4, or solid rock, cannot be met."]
[null,10,"Infiltration is restricted due to contaminated soil or groundwater (refer to Volume 3, Section 3.2)."]
[null,11,"In the right-of-way the infiltrating bioretention facility would have a linear geometry with a longitudinal slope greater than 8 percent."]
[null,12,"The minimum bottom width of the infiltrating bioretention facility (2 feet for facilities with vertical sides and 18 inch average for facilities with sloped sides) cannot be met due to, but not limited to: encroachment within the critical root zone of an existing tree(s) or minimum setbacks to structures, utilities, or property lines."]
[null,13,"The infiltration area is within the minimum vertical and horizontal clearance from utilities, according to clearances required by the utility owner."]
[null,14,"The facility with an underdrain would route underdrained water to Green Lake (nutrient-critical receiving water) unless the optional HPBSM and polishing layer are used."]
[null,15,"In the right-of-way, installation requires a vertical walled facility."]
[null,16,"A vertical wall facility is required to provide sufficient bottom area and the depth to the bottom of the ponding area from the surrounding grade would need to be 22 inches or more."]
[null,17,"Installation requires removal of an existing tree. "]
[null,18,"Where BMP installation is prohibited per Regulations for Environmentally Critical Areas (SMC Chapter 25.09)."]
[null,19,"Installation would require pumping to a designated point of discharge, but failure of the pump may destabilize a steep slope."]
[null,20,"Unable to maintain a desired access of 36 inches in a required building setback from a property line. "]
[null,21,"Unable to maintain clearance for required ingress, egress, or ADA pathways."]
[null,22,"Installation would require a pump when a pump is not already required to provide site storm drainage."]
[null,23,"Infiltration is not recommended due to reasonable concerns about erosion, slope failure, or flooding. (Requires site-specific evaluation and documentation by a licensed professional.) "]
[null,24,"The area available for siting would threaten the safety or reliability of pre-existing underground utilities, pre-existing underground storage tanks, pre-existing structures, or pre-existing road or parking lot surfaces or subgrades.  (Requires site-specific evaluation and documentation by a licensed professional.) "]
[null,25,"The area available for siting would threaten shoreline structures such as bulkheads. (Requires site-specific evaluation and documentation by a licensed professional.) "]
[null,26,"The area available for siting would threaten existing or proposed buildings or structures. (Requires site-specific evaluation and documentation by a licensed professional.) "]
[null,27,"Infiltration is not recommended based on the results of a Groundwater Mounding analysis or a Characterization of Infiltration Receptor analysis per Appendix D, Sections D-5 and D-6. (Requires site-specific evaluation and documentation by a licensed professional.) "]
[null,"Rainwater Harvesting"]
[null,1,"Installation requires removal of an existing tree. "]
[null,2,"Installation is prohibited per Regulations for Environmentally Critical Areas (SMC Chapter 25.09)."]
[null,3,"Installation would require pumping to a designated point of discharge, but failure of the pump may destabilize a steep slope."]
[null,4,"Unable to maintain a desired access of 36 inches in a required building setback from a property line. "]
[null,5,"Unable to maintain clearance for required ingress, egress, or ADA pathways."]
[null,6,"Installation would require a pump when a pump is not already required to provide site storm drainage. (Requiring a pump as the result of using the Rainwater Harvesting BMP does not make this BMP infeasible.)"]
[null,7,"Project lacks non-pollution-generating roof from which to harvest rainwater."]
[null,8,"Non-potable water demand is insufficient to meet the On-site Performance Standard per modeling conducted in accordance with Volume 3, Section 5.5.1.6."]
[null,9,"Installation is not economically feasible based on reasonable consideration of financial cost (e.g., roof area is less than 20,000 sf or the ratio of roof area to average daily rainwater demand is less than 10,000 square feet/gpm) (refer to Appendix H). Documentation is required. "]
[null,"Permeable Pavement Facility"]
[null,1,"Evaluation of infiltration is not required per the “Infiltration Investigation Map”."]
[null,2,"Field testing indicates soils have a measured underlying soil infiltration rate less than 0.3 inches per hour."]
[null,3,"The area available for siting does not allow for overflow conveyance to an approved point of discharge per Volume 3, Section 4.3.2."]
[null,4,"The area available for siting is within a steep slope area or land-slide prone area (or setback) (refer to Volume 3, Section 3.2)."]
[null,5,"The area available for siting does not meet the minimum horizontal setback requirements (refer to Volume 3, Section 3.2)."]
[null,6,"The area available for siting does not meet the minimum vertical setback requirements (refer to Volume 3, Section 3.2, and Appendix D)."]
[null,7,"Infiltration is restricted due to contaminated soil or groundwater (refer to Volume 3, Section 3.2)."]
[null,8,"The minimum vertical separation from groundwater or a hydraulically restrictive soil per Appendix D, Section D-2.2.4, or solid rock, cannot be met."]
[null,9,"The subgrade slope exceeds 6 percent after reasonable efforts to grade."]
[null,10,"The permeable pavement wearing course slope exceeds 6 percent after reasonable efforts to grade."]
[null,11,"For projects in the right-of-way, the permeable pavement surface area would be less than 2,000 square feet of contiguous pavement and the project discharges to: a designated receiving water body, a combined system, or a capacity constrained system which does not drain to a creek wetland or small lake."]
[null,12,"The anticipated mature tree spread (based on tree species) would overhang more than 50 percent of permeable pavement area."]
[null,13,"The pavement is over a structure, such as, but not limited to: parking garages, box culverts, and bridges."]
[null,14,"The pavement is subject to long-term excessive sediment deposition (e.g., construction and landscaping material yards)."]
[null,15,"Underlying soils are unsuitable for supporting traffic loads when saturated (e.g., a residential access road has a California Bearing Ratio of 5 percent or less)."]
[null,16,"Pavement is replacing an existing pollution-generating hard surface in the right-of-way."]
[null,17,"The street type is classified as arterial or collector rather than local access. Refer to RCW 35.78.010, RCW 36.86.070, and RCW 47.05.021. Note: This infeasibility criterion does not extend to sidewalks and other non-traffic bearing surfaces associated with the collector or arterial."]
[null,18,"Streets that receive more than very low traffic volumes, and areas having more than very low truck traffic. Streets with a projected average daily traffic volume of 400 vehicles or less are very low volume roads (AASHTO, 2001)(U.S. Dept. of Transportation, 2013). Areas with very low truck traffic volumes are streets and other areas not subject to through truck traffic but may receive up to weekly use by utility trucks (e.g., garbage, recycling), daily school bus use, and multiple daily use by pick-up trucks, mail/parcel delivery trucks, and maintenance vehicles. Note: This infeasibility criterion does not extend to sidewalks and other non-traffic bearing surfaces."]
[null,19,"The pavement area is defined as a “high use site” in SMC, Section 22.801.090."]
[null,20,"In areas with “industrial activity” as identified in 40 CFR 122.26(b)(14)."]
[null,21,"Where the risk of concentrated pollutant spills is more likely, including, but not limited to, gas stations, truck stops, and industrial chemical storage sites."]
[null,22,"In areas where routine, heavy roadway applications of sand occur in frequent snow zones to maintain traction during weeks of snow and ice accumulation, including sidewalks within 7 feet of roadways with sand application."]
[null,23,"Where run-on from unstabilized erodible areas would occur without presettling."]
[null,24,"The areas contributing runoff to the permeable pavement facilities exceed the maximum run-on limits: Pollution-generating impervious surfaces (e.g., roadways, parking lots) exceed the maximum run-on area ratio of 2:1, Non-pollution generating impervious surfaces (e.g., roofs, sidewalks) and stabilized pervious surfaces exceed the maximum run-on area ratio of 5:1"]
[null,25,"The Director has determined that permeable pavement in active zones of a skate park, bike park, or sport court violates safety standards."]
[null,26,"Installation requires removal of an existing tree. "]
[null,27,"Where BMP installation is prohibited per Regulations for Environmentally Critical Areas (SMC Chapter 25.09)."]
[null,28,"Installation would require pumping to a designated point of discharge, but failure of the pump may destabilize a steep slope."]
[null,29,"Installation would require a pump when a pump is not already required to provide site storm drainage."]
[null,30,"Infiltrating or ponding water below pavement area would compromise adjacent pavements. (Requires site-specific evaluation and documentation by a licensed professional.) "]
[null,31,"Fill soils are used that can become unstable when saturated. (Requires site-specific evaluation and documentation by a licensed professional.) "]
[null,32,"The permeable pavement design does not provide sufficient strength to support heavy loads in areas with “industrial activity” as identified in 40 CFR 122.26(b)(14). (Requires site-specific evaluation and documentation by a licensed professional.) "]
[null,33,"Infiltration is not recommended due to reasonable concerns about erosion, slope failure, or flooding. (Requires site-specific evaluation and documentation by a licensed professional.) "]
[null,34,"The area available for siting would threaten the safety or reliability of pre-existing underground utilities, pre-existing underground storage tanks, pre-existing structures, or pre-existing road or parking lot surfaces or subgrades.  (Requires site-specific evaluation and documentation by a licensed professional.) "]
[null,35,"The area available for siting would threaten shoreline structures such as bulkheads. (Requires site-specific evaluation and documentation by a licensed professional.) "]
[null,36,"The area available for siting would threaten existing or proposed buildings or structures. (Requires site-specific evaluation and documentation by a licensed professional.) "]
[null,37,"Infiltration is not recommended based on the results of a Groundwater Mounding analysis or a Characterization of Infiltration Receptor analysis per Appendix D, Sections D-5 and D-6. (Requires site-specific evaluation and documentation by a licensed professional.) "]
[null,"Permeable Pavement Surface"]
[null,1,"Field testing indicates soils have a measured underlying soil infiltration rate less than 0.3 inches per hour (Note: field infiltration tests are not required for permeable pavement surfaces, but must be used to demonstrate infeasibility)."]
[null,2,"Subsurface investigation demonstrate groundwater or hydraulically-restrictive layer is too shallow per the Minimum Vertical Separation table in Appendix C."]
[null,3,"The subgrade slope exceeds 6 percent after reasonable efforts to grade."]
[null,4,"The permeable pavement wearing course slope exceeds 6 percent after reasonable efforts to grade."]
[null,5,"For projects in the right-of-way, the permeable pavement surface area would be less than 2,000 square feet of contiguous pavement and the project discharges to: a designated receiving water body, a combined system, or a capacity constrained system which does not drain to a creek wetland or small lake."]
[null,6,"The anticipated mature tree spread (based on tree species) would overhang more than 50 percent of permeable pavement area."]
[null,7,"The pavement is over a structure, such as, but not limited to: parking garages, box culverts, and bridges."]
[null,8,"The pavement is subject to long-term excessive sediment deposition (e.g., construction and landscaping material yards)."]
[null,9,"Underlying soils are unsuitable for supporting traffic loads when saturated (e.g., a residential access road has a California Bearing Ratio of 5 percent or less)."]
[null,10,"Pavement is replacing an existing pollution-generating hard surface in the right-of-way."]
[null,11,"The street type is classified as arterial or collector rather than local access. Refer to RCW 35.78.010, RCW 36.86.070, and RCW 47.05.021. Note: This infeasibility criterion does not extend to sidewalks and other non-traffic bearing surfaces associated with the collector or arterial."]
[null,12,"Streets that receive more than very low traffic volumes, and areas having more than very low truck traffic. Streets with a projected average daily traffic volume of 400 vehicles or less are very low volume roads (AASHTO, 2001)(U.S. Dept. of Transportation, 2013). Areas with very low truck traffic volumes are streets and other areas not subject to through truck traffic but may receive up to weekly use by utility trucks (e.g., garbage, recycling), daily school bus use, and multiple daily use by pick-up trucks, mail/parcel delivery trucks, and maintenance vehicles. Note: This infeasibility criterion does not extend to sidewalks and other non-traffic bearing surfaces."]
[null,13,"The pavement area is defined as a “high use site” in SMC, Section 22.801.090."]
[null,14,"In areas with “industrial activity” as identified in 40 CFR 122.26(b)(14)."]
[null,15,"Where the risk of concentrated pollutant spills is more likely, including, but not limited to, gas stations, truck stops, and industrial chemical storage sites."]
[null,16,"In areas where routine, heavy roadway applications of sand occur in frequent snow zones to maintain traction during weeks of snow and ice accumulation, including sidewalks within 7 feet of roadways with sand application."]
[null,17,"Where runon from unstabilized erodible areas would occur without presettling."]
[null,18,"The site is a contaminated site or abandoned landfill."]
[null,19,"Installation is within 10 feet of a petroleum, chemical, or liquid hazardous waste storage tank or connecting underground pipes."]
[null,20,"Run-on from an adjacent impervious area is greater than 10 percent of the permeable pavement surface area."]
[null,21,"A licensed professional (as defined in Appendix D, Section D-1) recommends permeable pavement not be used anywhere within the project site due to reasonable concerns of erosion, slope failure, or flooding (requires a signed and stamped written determination based on site-specific conditions from a licensed professional)."]
[null,22,"The Director has determined that permeable pavement in active zones of a skate park, bike park, or sport court violates safety standards."]
[null,23,"The hard surface in question is a set of stairs or a 6 foot long or less landing between sets of stairs."]
[null,24,"Installation requires removal of an existing tree."]
[null,25,"Where BMP installation is prohibited per Regulations for Environmentally Critical Areas (SMC Chapter 25.09)."]
[null,26,"Installation would require pumping to a designated point of discharge, but failure of the pump may destabilize a steep slope."]
[null,27,"Infiltrating or ponding water below pavement area would compromise adjacent pavements. (Requires site-specific evaluation and documentation by a licensed professional.) "]
[null,28,"Fill soils are used that can become unstable when saturated. (Requires site-specific evaluation and documentation by a licensed professional.) "]
[null,29,"The permeable pavement design does not provide sufficient strength to support heavy loads in areas with “industrial activity” as identified in 40 CFR 122.26(b)(14). (Requires site-specific evaluation and documentation by a licensed professional.) "]
[null,"Sidewalk/Trail Compost-Amended Strip"]
[null,1,"A licensed professional recommends dispersion not be used anywhere within project site due to reasonable concerns of erosion, slope failure, or flooding. (Requires site-specific evaluation and documentation by a licensed professional.) "]
[null,2,"The dispersion flow path area does not provide positive drainage."]
[null,3,"The dispersion flowpath area is within a landslide-prone area (SMC, Section 25.09.080)."]
[null,4,"The dispersion flowpath area is within 100 feet of a contaminated site or landfill (active or closed)."]
[null,5,"The dispersion flowpath area is in a steep slope area (SMC, Section 25.09.020) or within a setback to a steep slope area (calculated as 10 times the height of the steep slope to a 500 foot maximum setback)."]
[null,6,"The dispersion flowpath area is within 30 feet of a proposed or existing septic system drainfield or reserve area or within 10 feet of sewage septic tanks and distribution boxes. "]
[null,7,"The sidewalk or trail to be dispersed exceeds a lateral slope of 5 percent or a longitudinal slope of 8 percent."]
[null,8,"The sidewalk or trail to be dispersed has a lateral slope of less than 1 percent."]
[null,9,"Field testing indicates underlying soils have a design soil infiltration rate less than 0.15 inch per hour. Note that field infiltration tests are not required for Sidewalk/Trail Compost-Amended Strip, but must be used to demonstrate infeasibility."]
[null,10,"The minimum Sidewalk/Trail Compost-Amended Strip design criteria cannot be met."]
[null,11,"Installation requires removal of an existing tree. "]
[null,12,"Installation is prohibited per Regulations for Environmentally Critical Areas (SMC Chapter 25.09)."]
[null,"Sheet Flow Dispersion"]
[null,1,"A licensed professional recommends dispersion not be used anywhere within project site due to reasonable concerns of erosion, slope failure, or flooding. (Requires site-specific evaluation and documentation by a licensed professional.) "]
[null,2,"The dispersion flow path area does not provide positive drainage."]
[null,3,"The dispersion flowpath area is within a landslide-prone area (SMC, Section 25.09.080)."]
[null,4,"The dispersion flowpath area is within 100 feet of a contaminated site or landfill (active or closed)."]
[null,5,"The dispersion flowpath area is in a steep slope area (SMC, Section 25.09.020) or within a setback to a steep slope area (calculated as 10 times the height of the steep slope to a 500 foot maximum setback)."]
[null,6,"The dispersion flowpath area is within 30 feet of a proposed or existing septic system drainfield or reserve area or within 10 feet of sewage septic tanks and distribution boxes. "]
[null,7,"The area to be dispersed (e.g., driveway, patio) exceeds a slope of 15 percent."]
[null,8,"The minimum vegetated flow path for sheet flow dispersion cannot be met. Note: A 10 foot flowpath is required to disperse runoff from a contributing flow length of up to 20 feet. An additional 10 feet of flow path is required for each additional 20 feet of contributing flow path or fraction thereof. Refer to Volume 3, Figure 5.5."]
[null,9,"The flowpath does not meet the minimum horizontal setback requirements to property lines, structures and other flowpaths (refer to Volume 3, Section 5.3.5)."]
[null,10,"Installation requires removal of an existing tree. "]
[null,11,"Where BMP installation is prohibited per Regulations for Environmentally Critical Areas (SMC Chapter 25.09)."]
[null,"Concentrated Dispersion"]
[null,1,"A licensed professional recommends dispersion not be used anywhere within project site due to reasonable concerns of erosion, slope failure, or flooding. (Requires site-specific evaluation and documentation by a licensed professional.) "]
[null,2,"The dispersion flow path area does not provide positive drainage."]
[null,3,"The dispersion flowpath area is within a landslide-prone area (SMC, Section 25.09.080)."]
[null,4,"The dispersion flowpath area is within 100 feet of a contaminated site or landfill (active or closed)."]
[null,5,"The dispersion flowpath area is in a steep slope area (SMC, Section 25.09.020) or within a setback to a steep slope area (calculated as 10 times the height of the steep slope to a 500 foot maximum setback)."]
[null,6,"The dispersion flowpath area is within 30 feet of a proposed or existing septic system drainfield or reserve area or within 10 feet of sewage septic tanks and distribution boxes. "]
[null,7,"There are no concentrated flows to disperse."]
[null,8,"The minimum dispersion trench length of 10 feet cannot be met."]
[null,9,"The vegetated flow path for the dispersion trench is less than 25 feet"]
[null,10,"The vegetated flow path for a rock pad is less than 50 feet."]
[null,11,"Greater than 700 square feet of surface area drains to the BMP."]
[null,12,"The flowpath does not meet the minimum horizontal setback requirements to property lines, structures and other flowpaths (refer to Volume 3, Section 5.3.6)."]
[null,13,"Installation requires removal of an existing tree. "]
[null,14,"Where BMP installation is prohibited per Regulations for Environmentally Critical Areas (SMC Chapter 25.09)."]
[null,"Splashblock Downspout Dispersion"]
[null,1,"A licensed professional recommends dispersion not be used anywhere within project site due to reasonable concerns of erosion, slope failure, or flooding. (Requires site-specific evaluation and documentation by a licensed professional.) "]
[null,2,"The dispersion flow path area does not provide positive drainage."]
[null,3,"The dispersion flowpath area is within a landslide-prone area (SMC, Section 25.09.080)."]
[null,4,"The dispersion flowpath area is within 100 feet of a contaminated site or landfill (active or closed)."]
[null,5,"The dispersion flowpath area is in a steep slope area (SMC, Section 25.09.020) or within a setback to a steep slope area (calculated as 10 times the height of the steep slope to a 500 foot maximum setback)."]
[null,6,"The dispersion flowpath area is within 30 feet of a proposed or existing septic system drainfield or reserve area or within 10 feet of sewage septic tanks and distribution boxes. "]
[null,7,"There are no downspouts."]
[null,8,"The vegetated flowpath is less than 50 feet."]
[null,9,"Greater than 700 square feet of surface area drains to the BMP."]
[null,10,"The flowpath does not meet the minimum horizontal setback requirements to property lines, structures and other flowpaths (refer to Volume 3, Section 5.3.3). "]
[null,11,"Installation requires removal of an existing tree. "]
[null,12,"Where BMP installation is prohibited per Regulations for Environmentally Critical Areas (SMC Chapter 25.09)."]
[null,"Trench Downspout Dispersion"]
[null,1,"A licensed professional recommends dispersion not be used anywhere within project site due to reasonable concerns of erosion, slope failure, or flooding. (Requires site-specific evaluation and documentation by a licensed professional.) "]
[null,2,"The dispersion flow path area does not provide positive drainage."]
[null,3,"The dispersion flowpath area is within a landslide-prone area (SMC, Section 25.09.080)."]
[null,4,"The dispersion flowpath area is within 100 feet of a contaminated site or landfill (active or closed)."]
[null,5,"The dispersion flowpath area is in a steep slope area (SMC, Section 25.09.020) or within a setback to a steep slope area (calculated as 10 times the height of the steep slope to a 500 foot maximum setback)."]
[null,6,"The dispersion flowpath area is within 30 feet of a proposed or existing septic system drainfield or reserve area or within 10 feet of sewage septic tanks and distribution boxes. "]
[null,7,"There are no downspouts."]
[null,8,"The minimum dispersion trench length of 10 feet for every 700 square feet of drainage area cannot be met."]
[null,9,"The vegetated flowpath is less than 25 feet."]
[null,10,"The flowpath is within the setbacks to property lines, structures and other flowpaths (refer to Volume 3, Section 5.3.4)."]
[null,11,"Installation requires removal of an existing tree. "]
[null,12,"Where BMP installation is prohibited per Regulations for Environmentally Critical Areas (SMC Chapter 25.09)."]
[null,"Non-infiltrating Bioretention"]
[null,1,"Installation requires removal of an existing tree. "]
[null,2,"Where BMP installation is prohibited per Regulations for Environmentally Critical Areas (SMC Chapter 25.09)."]
[null,3,"Installation would require pumping to a designated point of discharge, but failure of the pump may destabilize a steep slope."]
[null,4,"Unable to maintain a desired access of 36 inches in a required building setback from a property line. "]
[null,5,"Unable to maintain clearance for required ingress, egress, or ADA pathways."]
[null,6,"Installation would require a pump when a pump is not already required to provide site storm drainage."]
[null,7,"In the right-of-way, the infiltrating bioretention facility would have a linear geometry and roadway with an overall a longitudinal slope greater than 8 percent."]
[null,8,"The minimum bottom width of the non-infiltrating bioretention facility (2 feet) cannot be met due to, but not limited to: encroachment within the critical root zone of an existing tree(s), minimum setbacks to structures / utilities, or project limits/planting strip too small."]
[null,9,"Minimum vertical and horizontal clearances from utilities are unachievable as required by utility owner."]
[null,10,"The facility would route underdrained water to a Green Lake (nutrient-critical receiving water) unless the optional HPBSM and polishing layer are used."]
[null,11,"The area available for siting is within a setback equal to the height of the slope to a maximum of 50 feet from the top of steep slope and known landslide area."]
[null,12,"The BMP would be located on a structure or roof that cannot provide sufficient structural support for the BMP."]
[null,13,"Less than 1 foot between the liner and seasonal high groundwater elevation."]
[null,14,"A vertical wall facility is required to provide sufficient bottom area and the depth to the bottom of the ponding area from the surrounding grade would need to be 22 inches or more to accommodate gravity flow."]
[null,"Vegetated Roof"]
[null,1,"Project does not include a roof."]
[null,2,"Roof design has a slope less than 1 degree (0.2:12) or greater than 10 degrees (2:12)."]
[null,3,"Installation is not economically feasible based on reasonable consideration of financial cost (refer to Appendix H). Documentation is required."]
[null,4,"This portion of the roof is an amenity area subject to pedestrian use (e.g. balcony, patio, walkway, pet runs, etc.)."]
[null,5,"The portion of the roof is required for HVAC equipment and/or maintenance access ways (e.g., window washing, HVAC maintenance, etc.)."]
[null,6,"This portion of the roof is completely covered with Solar Panels."]
[null,"Perforated Stub-out Connection"]
[null,1,"Evaluation of infiltration is not required per the “Infiltration Investigation Map”."]
[null,2,"Field testing indicates soils have a measured underlying soil infiltration rate less than 0.3 inches per hour (Note: field infiltration tests are not required for permeable pavement surfaces, but must be used to demonstrate infeasibility)."]
[null,3,"Installation would require pumping to a designated point of discharge, but failure of the pump may destabilize a steep slope."]
[null,4,"Installation would require a pump when a pump is not already required to provide site storm drainage."]
[null,5,"The minimum vertical separation from groundwater or a hydraulically restrictive soil per Appendix D, Section D-2.2.4, or solid rock, cannot be met."]
[null,6,"The area available for siting does not allow for overflow conveyance to an approved point of discharge per Volume 3, Section 4.3.2."]
[null,7,"The area available for siting is within a steep slope area or land-slide prone area (or setback) (refer to Volume 3, Section 3.2)."]
[null,8,"The area available for siting does not meet the minimum horizontal setback requirements (refer to Volume 3, Section 3.2)."]
[null,9,"The area available for siting does not meet the minimum vertical setback requirements (refer to Volume 3, Section 3.2, and Appendix D)."]
[null,10,"Infiltration is restricted due to contaminated soil or groundwater (refer to Volume 3, Section 3.2)."]
[null,11,"The location for the perforated pipe portion of the system is under impervious or heavily compacted (e.g., driveways and parking areas) surfaces."]
[null,12,"The minimum perforated stub-out length of 10 feet per 5,000 square feet of contributing roof area cannot be met."]
[null,13,"Where the site cannot be reasonably designed to locate a catch basin between the perforated stub-out and point of connection to the public system."]
[null,14,"Installation requires removal of an existing tree. "]
[null,15,"Where BMP installation is prohibited per Regulations for Environmentally Critical Areas (SMC Chapter 25.09)."]
[null,16,"Infiltration is not recommended due to reasonable concerns about erosion, slope failure, or flooding. (Requires site-specific evaluation and documentation by a licensed professional.) "]
[null,17,"The area available for siting would threaten the safety or reliability of pre-existing underground utilities, pre-existing underground storage tanks, pre-existing structures, or pre-existing road or parking lot surfaces or subgrades.  (Requires site-specific evaluation and documentation by a licensed professional.) "]
[null,18,"The area available for siting would threaten shoreline structures such as bulkheads. (Requires site-specific evaluation and documentation by a licensed professional.) "]
[null,19,"The area available for siting would threaten existing or proposed buildings or structures. (Requires site-specific evaluation and documentation by a licensed professional.) "]
[null,20,"Infiltration is not recommended based on the results of a Groundwater Mounding analysis or a Characterization of Infiltration Receptor analysis per Appendix D, Sections D-5 and D-6. (Requires site-specific evaluation and documentation by a licensed professional.) "]
[null,"Trees"]
[null,1,"Installation requires removal of an existing tree. "]
[null,2,"Where BMP installation is prohibited per Regulations for Environmentally Critical Areas (SMC Chapter 25.09)."]
[null,3,"Unable to maintain a desired access of 36 inches in a required building setback from a property line. "]
[null,4,"Unable to maintain clearance for required ingress, egress, or ADA pathways."]
[null,5,"The area available for tree planting is unsuitable for approved trees that reach a mature height of 15 feet, possess a mature canopy spread of 15 feet, or have a rooting depth necessary for such trees. The approved species lists are found on the Green Factor Tree List available on the SDCI website for parcels and the SDOT’s Approved Street Tree List for the right-of-way."]
[null,"Residential Cistern"]
[null,1,"Installation requires removal of an existing tree. "]
[null,2,"Where BMP installation is prohibited per Regulations for Environmentally Critical Areas (SMC Chapter 25.09)."]
[null,3,"Installation would require pumping to a designated point of discharge, but failure of the pump may destabilize a steep slope."]
[null,4,"Unable to maintain a desired access of 36 inches in a required building setback from a property line, "]
[null,5,"Unable to maintain clearance for required ingress, egress, or ADA pathways."]
[null,6,"Installation would require a pump when a pump is not already required to provide site storm drainage."]
[null,7,"Project does not include non-pollution generating surfaces."]
[null,8,"The cistern would be within restricted setbacks."]
[null,"Infiltrating Soil Cell Bioretention"]
[null,1,"Evaluation of infiltration is not required per the “Infiltration Investigation Map”."]
[null,2,"Field testing indicates soils have  a measured underlying soil infiltration rate less than 0.3 inch per hour."]
[null,3,"Field testing indicates soils have  a measured underlying soil infiltration rate less than 0.6 inch  per hour and an underdrain cannot be installed per the design criteria."]
[null,4,"The minimum vertical separation from groundwater or a hydraulically restrictive soil per Appendix D, Section D-2.2.4, or solid rock, cannot be met."]
[null,5,"The area available for siting does not allow for overflow conveyance to an approved point of discharge per Volume 3, Section 4.3.2."]
[null,6,"The area available for siting is within a steep slope area or land-slide prone area (or setback) (refer to Volume 3, Section 3.2)."]
[null,7,"The area available for siting does not meet the minimum horizontal setback requirements (refer to Volume 3, Section 3.2)."]
[null,8,"The area available for siting does not meet the minimum vertical setback requirements (refer to Volume 3, Section 3.2, and Appendix D)."]
[null,9,"Infiltration is restricted due to contaminated soil or groundwater (refer to Volume 3, Section 3.2)."]
[null,10,"The infiltrating soil cell bioretention would have a linear geometry with a longitudinal slope greater than 5 percent or a bottom slope greater than 3 percent."]
[null,11,"The minimum bottom width (2 feet) of the infiltrating soil cell bioretention cannot be met."]
[null,12,"The infiltration area is within the minimum vertical and horizontal clearance from utilities, according to clearances required by the utility owner."]
[null,13,"The facility is located within a 1/4 mile of Green Lake (nutrient critical water body), unless the optional HPBSM and polishing layer are used."]
[null,14,"The facility with an underdrain would route underdrained water to a Green Lake (nutrient-critical receiving water) unless the optional HPBSM and polishing layer are used."]
[null,15,"The minimum infiltrating soil cell bioretention design criteria cannot be met."]
[null,16,"The mature height, size, and/or rooting depth is not compatible with trees listed as approved species in the Green Factor Tree List posted on SDCI’s website for parcels and SDOT’s Approved Street Tree List for the ROW."]
[null,17,"Installation requires removal of an existing tree. "]
[null,18,"Installation is prohibited per Regulations for Environmentally Critical Areas (SMC Chapter 25.09)."]
[null,19,"Installation would require pumping to a designated point of discharge, but failure of the pump may destabilize a steep slope."]
[null,20,"Unable to maintain a desired access of 36 inches in a required building setback from a property line. "]
[null,21,"Unable to maintain clearance for required ingress, egress, or ADA pathways."]
[null,22,"Installation would require a pump when a pump is not already required to provide site storm drainage."]
[null,23,"Infiltration is not recommended due to reasonable concerns about erosion, slope failure, or flooding. (Requires site-specific evaluation and documentation by a licensed professional.) "]
[null,24,"The area available for siting would threaten the safety or reliability of pre-existing underground utilities, pre-existing underground storage tanks, pre-existing structures, or pre-existing road or parking lot surfaces or subgrades.  (Requires site-specific evaluation and documentation by a licensed professional.) "]
[null,25,"The area available for siting would threaten shoreline structures such as bulkheads. (Requires site-specific evaluation and documentation by a licensed professional.) "]
[null,26,"The area available for siting would threaten existing or proposed buildings or structures. (Requires site-specific evaluation and documentation by a licensed professional.) "]
[null,27,"Infiltration is not recommended based on the results of a Groundwater Mounding analysis or a Characterization of Infiltration Receptor analysis per Appendix D, Sections D-5 and D-6. (Requires site-specific evaluation and documentation by a licensed professional.) "]
[null,"Non-Infiltrating Soil Cell Bioretention"]
[null,1,"Installation requires removal of an existing tree."]
[null,2,"Installation is prohibited per Regulations for Environmentally Critical Areas (SMC Chapter 25.09)."]
[null,3,"Installation would require pumping to a designated point of discharge, but failure of the pump may destabilize a steep slope."]
[null,4,"Unable to maintain a desired access of 36 inches in a required building setback from a property line."]
[null,5,"Unable to maintain clearance for required ingress, egress, or ADA pathways."]
[null,6,"Installation would require a pump when a pump is not already required to provide site storm drainage."]
[null,7,"The non-infiltrating soil cell bioretention would have a linear geometry with a longitudinal slope greater than 5 percent or a bottom slope greater than 3 percent."]
[null,8,"The minimum bottom width of the non-infiltrating soil cell bioretention (2 feet) cannot be met."]
[null,9,"Minimum vertical and horizontal clearances from utilities are unachievable as required by utility owner."]
[null,10,"The facility would route underdrained water to a Green Lake (nutrient-critical receiving water) unless the optional HPBSM and polishing layer are used."]
[null,11,"The area available for siting is within a setback equal to the height of the slope to a maximum of 50 feet from the top of steep slope and known landslide area."]
[null,12,"Less than 1 foot between the liner and seasonal high groundwater elevation."]
[null,13,"The minimum non-infiltrating soil cell bioretention design criteria cannot be met."]